{"text_format":"1","workbook":"xlsx","n_sheets":2,"sheets":["Formulario","BD"],"not_rendered":{"charts":0,"images":1,"macros":1,"external_links":0,"defined_names":2,"comments":1,"pivot_tables":0},"unopened":[],"bounds":{"document_bytes":16777216,"sheet_cells":100000,"rows_first":2000,"rows_last":500,"rows_between":2000,"halvings":0,"cell_chars":16384,"cell_head_chars":4096},"cells_cut":0,"cells_raw":0,"read":"whole","date_system":"1900"}

{"sheet":"Formulario","index":0,"n_rows":83,"n_cols":19,"rows_kept":83,"cut":false,"hidden":false,"merged":[[31,1,31,10],[31,14,31,15],[10,3,10,4],[0,1,0,18],[2,1,2,2],[2,3,2,9],[4,1,4,2],[4,3,4,14],[8,1,8,2],[8,3,8,14],[8,16,8,17],[4,16,4,17],[10,16,10,17],[10,1,10,2],[12,1,12,11],[18,1,19,1],[18,2,19,2],[18,3,19,5],[18,6,19,8],[18,9,19,10],[18,11,19,11],[18,14,19,14],[18,15,19,15],[18,16,18,18],[20,3,20,5],[20,6,20,8],[20,9,20,10],[18,12,19,12],[18,13,19,13],[21,3,21,5],[21,6,21,8],[21,9,21,10],[22,3,22,5],[22,6,22,8],[22,9,22,10],[23,3,23,5],[23,6,23,8],[23,9,23,10],[24,3,24,5],[24,6,24,8],[24,9,24,10],[25,3,25,5],[25,6,25,8],[25,9,25,10],[26,3,26,5],[26,6,26,8],[26,9,26,10],[27,3,27,5],[27,6,27,8],[27,9,27,10],[28,3,28,5],[28,6,28,8],[28,9,28,10],[29,3,29,5],[29,6,29,8],[29,9,29,10],[30,3,30,5],[30,6,30,8],[30,9,30,10],[44,1,44,9],[42,16,42,18],[44,16,44,18],[36,1,36,9],[38,1,38,9],[36,16,36,18],[38,16,38,18],[40,16,40,18],[40,1,40,9],[42,1,42,9],[36,13,36,15],[38,13,38,15],[73,1,73,18],[70,1,70,18],[6,1,6,2],[6,3,6,14],[6,16,6,17],[48,1,48,18],[54,1,54,18],[56,1,56,18],[57,1,57,18],[66,1,66,18],[68,1,68,18],[50,1,50,18],[53,1,53,18],[16,1,16,18],[33,1,33,18],[35,16,35,18]]}
[null,"Solicitação de pedido de pagamento a título de adiantamento contra fatura"]
[]
[null,"Nº da Operação Mar 2020: ",null,null,null,null,null,null,null,null,"* "]
[]
[null,"Nome do beneficiário: ",null,{"$f":"+BD!A7","v":"Não disponível"},null,null,null,null,null,null,null,null,null,null,null,null,"Investimento: ",null,{"$f":"+BD!D10","v":"Não disponível"}]
[]
[null,"Designação da operação: ",null,{"$f":"+BD!A10","v":"Não disponível"},null,null,null,null,null,null,null,null,null,null,null,null,"Investimento elegível: ",null,{"$f":"+BD!D13","v":"Não disponível"}]
[null," "]
[null,"Entidade analista: ",null,{"$f":"+BD!A19","v":"Não disponível"},null,null,null,null,null,null,null,null,null,null,null,null,"Despesa  Pública: ",null,{"$f":"IFERROR(BD!D16+BD!D19,\"Não disponível\")","v":"Não disponível"}]
[]
[null,"NIFAP: ",null,{"$f":"+BD!A13","v":"Não disponível"},null,null,null,null,null,null,"Data de inicio : ",{"$f":"+BD!F10","v":"Não disponível"},"Data de fim: ",{"$f":"+BD!F13","v":"Não disponível"},null,null,"FEAMP: ",null,{"$f":"+BD!D16","v":"Não disponível"}]
[]
[null,"Data da submissão da despesa no idigital a regularizar o anterior pedido de adiantamento contra fatura apresentado para o mesmo projeto",null,null,null,null,null,null,null,null,null,null,null,null,"* "]
[]
[null," "]
[]
[null,"1 - Registo dos documentos de despesa * (todos os campos são de prenchimento obrigatório)"]
[]
[null,"Nº  de ordem","Rúbrica do investimento","Nº Fatura",null,null,"Data",null,null,"NIF Fornecedor",null,"Montante com IVA (euros)","Montante elegível afeto à operação \n(euros)","Montante do adiantamento solicitado\n(euros)","Descrição do trabalho ou item fornecido","Nome do(s) ficheiro(s) anexo(s) (em pdf com as faturas carimbadas e os documentos solicitados no ponto 3)","Validação OI (**)"]
[null,null,null,null,null,null,null,null,null,null,null,null,null,null,null,null,"Montante elegível apurado\n(euros)","Taxa de apoio apurada\n(%)","Montante do adiantamento apurado\n(euros)"]
[null,"(1)","(2)","(3)",null,null,"(4)",null,null,"(5)",null,"(6)","(7)","(8)","(9)","(10)","(11)","(12)","(13)"]
[null,1,null,null,null,null,null,null,null,null,null,null,null,{"$f":"IF(M22=0,0,IFERROR(M22*$S$9/$S$7,\"Não disponível\"))","v":0},null,null,null,null,{"$f":"+Q22*R22","v":0}]
[null,2,null,null,null,null,null,null,null,null,null,null,null,0,null,null,null,null,{"$f":"+Q23*R23","v":0}]
[null,3,null,null,null,null,null,null,null,null,null,null,null,0,null,null,null,null,0]
[null,4,null,null,null,null,null,null,null,null,null,null,null,0,null,null,null,null,0]
[null,5,null,null,null,null,null,null,null,null,null,null,null,0,null,null,null,null,0]
[null,6,null,null,null,null,null,null,null,null,null,null,null,0,null,null,null,null,0]
[null,7,null,null,null,null,null,null,null,null,null,null,null,0,null,null,null,null,0]
[null,8,null,null,null,null,null,null,null,null,null,null,null,0,null,null,null,null,0]
[null,9,null,null,null,null,null,null,null,null,null,null,null,0,null,null,null,null,0]
[null,10,null,null,null,null,null,null,null,null,null,null,null,0,null,null,null,null,0]
[null,"TOTAL",null,null,null,null,null,null,null,null,null,{"$f":"SUM(L22:L31)","v":0},{"$f":"SUM(M22:M31)","v":0},{"$f":"IF(SUM(M22:M31)=0,0,IFERROR(IF(SUM(N22:N31)>S9*0.5,\"Erro\",SUM(N22:N31)),\"Não disponível\"))","v":0},{"$f":"IFERROR(IF(SUM(N22:N31)>S9*0.5,\"Não pode apresentar montante superior a 50% do apoio\",\"-\"),\"\")","v":""},null,{"$f":"SUM(Q22:Q31)","v":0},"-",{"$f":"SUM(S22:S31)","v":0}]
[]
[null,"2 - Documentos apresentados"]
[]
[null,null,null,null,null,null,null,null,null,null,null,null,"Data de validade",null,null,null,"VALIDAÇÃO TÉCNICA (**)"]
[null,"a) Apresentação de Declaração da Segurança Social, comprovativa da situação regularizada do beneficiário perante aquela entidade ou comprovativo de que deu consentimento para a consulta no serviço Segurança Social Direta.",null,null,null,null,null,null,null,null,null,null,null," * Deve juntar pdf com a declaração da SS ou com o comprovativo que dá consentimento \npara a consulta (este comprovativo não pode ser aplicado nos projetos da Prioridade 4)"]
[]
[null,"b) Apresentação de Declaração da Autoridade Tributária, comprovativa da situação regularizada do beneficiário perante aquela entidade ou comprovativo de que deu consentimento para a consulta nas declarações eletrónicas.",null,null,null,null,null,null,null,null,null,null,null," * Deve juntar pdf com a declaração da AT ou com o comprovativo que dá consentimento \npara a consulta (este comprovativo não pode ser aplicado nos projetos da Prioridade 4)"]
[]
[null,"c) Tratando-se de fatura relativa a trabalhos de construção civil, deve ser evidenciada a licença de obras ou documento que comprove a sua isenção bem como o respetivo auto de medição.",null,null,null,null,null,null,null,null,null,"* Deve juntar pdf com a licença"]
[]
[null,"d) Tratando-se de fatura emitida no contexto de um procedimento ao abrigo do Código da Contratação Pública (CCP) devem ser presentes as respetivas peças do procedimento e a publicitação no portal BASE (www.base.gov.pt).",null,null,null,null,null,null,null,null,null,"* Deve juntar pdf com  o contrato e com a publicitação no portal base gov"]
[]
[null,"e) Caso exista condicionante formulada no termo de aceitação quanto a qualquer licença ou autorização prévia relacionada com a fatura, deve a mesma ser anexa à solicitação do pedido de adiantamento.",null,null,null,null,null,null,null,null,null,"* Deve juntar pdf com a evidência em causa"]
[]
[null,"* Campos de preenchimento obrigatório",null,null,null,null,null,null,null,null,null,null,null,null,null,null,"** A preencher pelos serviços"]
[]
[null,"3 - A concessão de adiantamento contra fatura no âmbito de uma operação aprovada no âmbito do PO Mar 2020 rege-se pelas seguintes regras:"]
[]
[null,"a) Pode ser efetuado um pedido de adiantamento contra fatura desde que a soma dos adiantamentos já realizados e não justificados com despesa submetida e validada não ultrapasse os 50% da despesa pública aprovada na operação;"]
[null,"b) A solicitação de adiantamento contra fatura pode repetir-se no número máximo de 10 pedidos de pagamentos;"]
[null,"c) O adiantamento a conceder é equivalente ao montante que decorre da aplicação da taxa de apoio aprovada sobre os itens elegíveis da fatura;"]
[null,"d) A fatura para qual é solicitado o pagamento de adiantamento deve referir-se a trabalhos ou fornecimentos efetivos que já ocorreram ou pode tratar-se de fatura de adiantamento por conta, desde que prevista no contrato de empreitada ou de prestação de serviços e se a efetiva execução dos serviços ou o fornecimento dos bens estiver previsto que ocorra até à data de regularização do adiantamento contra fatura (30 dias úteis após o seu recebimento);"]
[null,"e) Cada solicitação de adiantamento contra fatura pode incluir, no máximo, 10 faturas, que não podem, individualmente ou no seu conjunto, dar origem a adiantamento que ultrapasse o valor do adiantamento máximo que seria concedido na modalidade de adiantamento contra garantia (50% do valor do financiamento aprovado);"]
[null,"f) A solicitação do adiantamento por conta tem de ser acompanhada de contrato escrito que sustente os pagamentos por conta a efetuar;"]
[null,"g) O descritivo da fatura(s) apresentada(s) deve permitir estabelecer uma ligação inequívoca com o investimento aprovado no pedido de apoio (PA), não sendo aceites documentos que não estejam compreendidos entre as datas de inicio e de fim aprovadas para a operação nem que consistam em alterações à operação aprovada;"]
[null,"h) A faturação apresentada deve ser emitida de forma legal - faturação detalhada (descrição usual dos serviços) ou suportada por autos de medição, indicação das quantidades unitárias ou totais dos mesmos e respetivo preço unitário e, caso o descritivo da fatura remeta para outros documentos (contratos, autos de medição, orçamentos, guias), os mesmos fazem parte integrante da fatura e devem acompanhá-la (artigo 36º do código do CIVA);"]
[null,"i) As faturas devem ser emitidas por fornecedor com objeto social e CAE adequada à comercialização dos bens em causa;"]
[null,"j) As faturas deverão apresentar-se inutilizadas com o carimbo de cofinanciamento devidamente preenchido;"]
[null,"k) Tratando-se de faturas relativas a trabalhos de construção civil, deve ser evidenciada a licença de obras ou documento que comprove a sua isenção, emitido pela entidade competente;"]
[null,"l) Tratando-se de faturas emitidas no contexto de um procedimento ao abrigo do CCP devem ser presentes as respetivas peças do procedimento e a publicitação no portal base.gov.pt;"]
[null,"m) Caso exista condicionante formulada no termo de aceitação quanto a qualquer licença ou autorização prévia relacionada com a fatura, deve a mesma ser anexa ao pedido de adiantamento (ex. fatura relativa a abertura de furo de captação de água);"]
[null,"n) Deve ser apresentada Declaração da Segurança Social, comprovativa da situação regularizada do beneficiário perante aquela entidade ou comprovativo de que deu consentimento para a consulta no serviço Segurança Social Direta;"]
[null,"o) Deve ser apresentada Declaração da Autoridade Tributária, comprovativa da situação regularizada do beneficiário perante aquela entidade ou comprovativo de que deu consentimento para a consulta nas declarações eletrónicas."]
[]
[null,"4 - Aos adiantamentos concedidos ao abrigo do ponto anterior são aplicáveis as seguintes regras para a respetiva regularização:"]
[]
[null,"a) O adiantamento concedido é obrigatoriamente regularizado, com a comprovação da liquidação financeira e realização material do respetivo investimento, no prazo limite de 30 dias úteis após o seu recebimento, mediante a submissão no iDigital/SIIFAP de um pedido de pagamento com despesa associada no âmbito da operação aprovada;"]
[null,"b) Caso não se verifique a regularização do adiantamento contra fatura no prazo estabelecido na alínea anterior, a reposição do valor adiantado deve ser efetuada no prazo de 30 dias úteis, vencendo-se juros de mora desde a data do pagamento;"]
[null,"c) Ultrapassados os 30 dias úteis referidos em 2. b), o beneficiário constitui-se imediatamente devedor do IFAP e, ainda que posteriormente a essa data venha a regularizar o adiantamento concedido, será aplicado adicionalmente na operação aprovada e sobre a ajuda pública apurada, uma sanção correspondente a 25% do valor adiantado contra fatura;"]
[null,"d) Não será aceite qualquer justificação que afaste a aplicação da sanção referida em c), exceto caso de força maior não imputável ao beneficiário ou aos seus fornecedores."]
[]
[null,"5 - Submissão de pedido"]
[]
[]
[]
[]
[]
[]
[]
[]
[null,"v1.9 - 16/07/2021"]

{"sheet":"BD","index":1,"n_rows":1397,"n_cols":22,"rows_kept":1397,"cut":false,"hidden":true,"merged":[]}
[null,null,null,null,null,null,null,"Cód. Proj. IFAP","Promotor","Nome do Projecto","Entidade que Analisa","Cód. NIFAP","Financiamento Proposto","Custo Total Elegivel","FEAMP","Nacional","Data de Inicio","Data de Fim","NDEPARTA","EMAIL",null," "]
["CANDIDATURA",null,null,"Sim",null,"Não",null,"Cód. Proj. IFAP","Promotor","Nome do Projecto","Entidade que Analisa","Cód, NIFAP","Financiamento Proposto","Custo Total Elegivel","FEAMP","Nacional","Data de Inicio","Data de Fim","Estrutura de Apoio Técnico da Autoridade de Gestão do MAR2020","geral@mar2020.pt",null,"PROCV"]
[{"$f":"+Formulario!D3","v":0},null,null,null,null,"Não aplicável",null,"MAR-01.01.01-FEAMP-0013","SOCIEDADE DE PESCA MIRADOURO, SA","NADIR , A-3867-C  -  PRT000021378","DRAPC",7065633,38485,38485,8659.1299999999992,2886.3700000000008,"2016-07-13","2017-09-30","DRAPN","adelaide.inacio@drapnorte.gov.pt",null,{"$f":"VLOOKUP(K3,S:T,2,FALSE)","v":"diav@drapc.gov.pt"}]
[null,null,null,"Sim",null,null,null,"MAR-01.01.01-FEAMP-0014","ÁLVARO MILHAZES & LILIANA NOVO, LDA","PARCEIRO VC-241-C  -  PRT000020323","DRAPN",7872715,21450,21450,8043.75,2681.25,"2016-08-01","2017-06-07","DRAPC","diav@drapc.gov.pt",null,{"$f":"VLOOKUP(K4,S:T,2,FALSE)","v":"adelaide.inacio@drapnorte.gov.pt"}]
["RESPOSTA",null,null,"Não",null,null,null,"MAR-01.01.01-FEAMP-0015","SOCIEDADE DE PESCA MIRADOURO, SA","BEIRA LITORAL A-3437-C  -  PRT000020224","DRAPC",7065633,40935,40935,9210.3799999999992,3070.1200000000008,"2016-08-26","2017-09-30","DRAPLVT","decisoesmar2020@draplvt.gov.pt",null,"diav@drapc.gov.pt"]
["BENEFICIÁRIO",null,null,null,null,null,null,"MAR-01.01.01-FEAMP-0039","JOÃO COENTRÃO MARQUES","DOIS MARQUES  PV-159-C - PRT000000982","DRAPN",7085525,45300,45300,16987.5,5662.5,"2016-07-01","2017-08-31","DRAPAL",null,null,"adelaide.inacio@drapnorte.gov.pt"]
[{"$f":"IF(ISERROR(VLOOKUP(A3,H:R,2,FALSE)),\"Não disponível\",(VLOOKUP(A3,H:R,2,FALSE)))","v":"Não disponível"},null,null,null,null,null,null,"MAR-01.01.01-FEAMP-0043","SOCIEDADE DE PESCA MIRADOURO, SA","ALBAMAR A-3504-C -  PRT000020835","DRAPC",7065633,92286.37,90036.37,20258.18,6752.73,"2016-09-15","2017-12-31","DRAPALG","Mar2020-ap@drapalg.min-agricultura.pt",null,"diav@drapc.gov.pt"]
[null,null,null,null,null,null,null,"MAR-01.01.01-FEAMP-0055","FERNANDO MANUEL PONTES DA SILVA","SENHOR da AGONIA  L-2060-L - PRT000021405","DRAPN",7309861,3800,3800,2280,760,"2018-03-01","2018-09-20","DSPEP","info.mar2020@azores.gov.pt",null,"adelaide.inacio@drapnorte.gov.pt"]
["OPERAÇÃO",null,null,"INVESTIMENTO",null,"INICIO",null,"MAR-01.01.01-FEAMP-0056","SOCIEDADE DE PESCA MIRADOURO, SA","TRICANA DE AVEIRO, A-3314-C  - PRT000019300","DRAPC",7065633,40459.42,38339.42,8626.3700000000008,2875.4599999999991,"2015-12-04","2017-09-30","SRMP","adiantamento.fatura.inv@ifap.pt",null,"diav@drapc.gov.pt"]
[{"$f":"IF(ISERROR(VLOOKUP(A3,H:R,3,FALSE)),\"Não disponível\",(VLOOKUP(A3,H:R,3,FALSE)))","v":"Não disponível"},null,null,{"$f":"IF(ISERROR(VLOOKUP(A3,H:R,6,FALSE)),\"Não disponível\",(VLOOKUP(A3,H:R,6,FALSE)))","v":"Não disponível"},null,{"$f":"IF(ISERROR(VLOOKUP(A3,H:R,10,FALSE)),\"Não disponível\",(VLOOKUP(A3,H:R,10,FALSE)))","v":"Não disponível"},null,"MAR-01.01.01-FEAMP-0059","CÂNDIDO FLÁVIO DA CUNHA MATOS","O MEU SONHO  P-2196-C -  PRT000023701","DRAPN",8083623,128425,67450,40470,13490,"2016-10-23","2017-05-31","Litoral Norte","veronica.lima@cim-altominho.pt",null,"adelaide.inacio@drapnorte.gov.pt"]
[null,null,null,null,null,null,null,"MAR-01.01.01-FEAMP-0064","ESTRELA DE ÂNCORA, LDA.","ESTRELA de ÂNCORA  AN-186-C ( 2º Proj.) - PRT000022560","DRAPN",7960367,15400,15400,5775,1925,"2016-11-02","2017-12-31","AMP","gallitoralnorte@amp.pt",null,"adelaide.inacio@drapnorte.gov.pt"]
["NIFAP",null,null,"ELEGIVEL",null,"FIM",null,"MAR-01.01.01-FEAMP-0068","JOSÉ BARTOLOMEU DOS SANTOS DAVID","CORREIO DO SUL, F-64-C -  PRT000000878","DRAPALG",8383425,6188.78,2800,1680,560,"2018-03-01","2018-12-31","Região de Aveiro","gac@regiaodeaveiro.pt",null,"Mar2020-ap@drapalg.min-agricultura.pt"]
[{"$f":"IF(ISERROR(VLOOKUP(A3,H:R,5,FALSE)),\"Não disponível\",(VLOOKUP(A3,H:R,5,FALSE)))","v":"Não disponível"},null,null,{"$f":"IF(ISERROR(VLOOKUP(A3,H:R,7,FALSE)),\"Não disponível\",(VLOOKUP(A3,H:R,7,FALSE)))","v":"Não disponível"},null,{"$f":"IF(ISERROR(VLOOKUP(A3,H:R,11,FALSE)),\"Não disponível\",(VLOOKUP(A3,H:R,11,FALSE)))","v":"Não disponível"},null,"MAR-01.01.01-FEAMP-0069","JOAQUIM RAMOS AGRA","PARCERIA  PV-288-C -  PRT000020574","DRAPN",7085475,30497.5,30497.5,11436.56,3812.1900000000005,"2016-11-01","2017-11-30","ADELO","geral@adelo.pt",null,"adelaide.inacio@drapnorte.gov.pt"]
[null,null,null,null,null,null,null,"MAR-01.01.01-FEAMP-0080","MENSAGEIRO - EMPRESA DE PESCA, LDA","BRAVO,  A-3425-C -  PRT000019308","DRAPC",8859854,100350,93156.35,34933.64,11644.54,"2016-12-19","2018-11-11","adae","mar2020@adae.pt",null,"diav@drapc.gov.pt"]
[null,null,null,"FEAMP",null,null,null,"MAR-01.01.01-FEAMP-0082","EMPRESA DE PESCA SÃO JACINTO, SA","COIMBRA, A-2204-N  -  PRT000000095","DRAPC",7178035,472866.89,331104.65000000002,124164.25,41388.079999999987,"2016-10-19","2017-12-31","ADEPE","galpescaoeste@adepe.pt",null,"diav@drapc.gov.pt"]
[null,null,null,{"$f":"IF(ISERROR(VLOOKUP(A3,H:R,8,FALSE)),\"Não disponível\",(VLOOKUP(A3,H:R,8,FALSE)))","v":"Não disponível"},null,null,null,"MAR-01.01.01-FEAMP-0084","SOC. DE PESCA NUNO PEDRO, LDA.","PRINCESA DE SESIMBRA  VR-533-C -  PRT000023104","DRAPALG",7157824,62947.45,62533.15,23449.94,7816.6500000000015,"2015-12-31","2018-03-30","ecoMAR","geral@ecocoast.pt",null,"Mar2020-ap@drapalg.min-agricultura.pt"]
[null,null,null,null,null,null,null,"MAR-01.01.01-FEAMP-0086","ANTÓNIO TORRES MACIEL","AVÔ RICARDO VC-198-C -  PRT000001570","DRAPN",7085386,7540,7540,2827.5,942.5,"2016-10-10","2017-07-04","A2S","geral@a2s.pt",null,"adelaide.inacio@drapnorte.gov.pt"]
["ENTIDADE ANALISTA",null,null,"OE",null,null,null,"MAR-01.01.01-FEAMP-0091","JOSÉ MIGUEL PEREIRA CASTRO","TRAVESSO A-3433-L -  PRT000020106","DRAPC",7168362,17139.73,15497.73,9298.64,3099.5400000000009,"2017-01-02","2017-08-31","ADREPES","natalia.henriques@adrepes.pt",null,"diav@drapc.gov.pt"]
[{"$f":"IF(ISERROR(VLOOKUP(A3,H:R,4,FALSE)),\"Não disponível\",(VLOOKUP(A3,H:P,4,FALSE)))","v":"Não disponível"},null,null,{"$f":"IF(ISERROR(VLOOKUP(A3,H:R,9,FALSE)),\"Não disponível\",(VLOOKUP(A3,H:R,9,FALSE)))","v":"Não disponível"},null,null,null,"MAR-01.01.01-FEAMP-0092","ALFREDO COENTRÃO E MANUELA VIANA, LDA","VIANA COENTRÃO PV-166-C -  PRT000000977","DRAPN",7728093,59500,59500,22312.5,7437.5,"2016-12-15","2018-05-31","ADL","adl.alentejano@mail.telepac.pt",null,"adelaide.inacio@drapnorte.gov.pt"]
["DESTINATARIO / ASSUNTO",null,null,null,null,null,null,"MAR-01.01.01-FEAMP-0094","JOÃO OLIVEIRA & RICARDO COENTRÃO, LDA","VIVIANA COENTRÃO VC-276-C -  PRT000023267","DRAPN",8851673,34030.410000000003,24580,14748,4916,"2017-01-01","2018-05-30","SOTAVENTO","rpestana@cm-olhao.pt",null,"adelaide.inacio@drapnorte.gov.pt"]
[{"$f":"IF(ISERROR(VLOOKUP(A19,S:T,2,FALSE)),\"Não disponível\",(VLOOKUP(A19,S:T,2,FALSE)))","v":"Não disponível"},null,null,null,null,null,null,"MAR-01.01.01-FEAMP-0101","JOAQUIM DE OLIVEIRA SANTOS - CABEÇA DE CASAL DA HERANÇA DE","FAINA MAIOR A-3791-L -  PRT000020321","DRAPC",8888803,8500,8500,5100,1700,"2017-02-01","2017-06-30","BARLAVENTO","geral@ad-barlavento.pt",null,"diav@drapc.gov.pt"]
[{"$f":"CONCATENATE(\"Apresentação de pedido de pagamento contra fatura - Operação \",A3)","v":"Apresentação de pedido de pagamento contra fatura - Operação 0"}," ",null,null,null,null,null,"MAR-01.01.01-FEAMP-0103","PESCARADE - SOCIEDADE DE PESCA DO ARADE, S.A.","CAROLINA TEIXEIRA PM-1336-C -  PRT000001591","DRAPALG",7290521,844247.51,720189.36,270071.05,90023.679999999993,"2016-01-01","2020-03-31","GRATER","grater@grater.pt",null,"Mar2020-ap@drapalg.min-agricultura.pt"]
[null,null,null,null,null,null,null,"MAR-01.01.01-FEAMP-0104","MAIO & RIBEIRO, LDA","TRÊS SORRISOS, VC-204-C -  PRT000018886","DRAPN",8577381,26665,26665,9999.3799999999992,3333.1200000000008,"2017-01-15","2017-12-31","DGPM","pomar2020.oi@dgpm.mm.gov.pt; fernanda.rodrigues@dgpm.mm.gov.pt",null,"adelaide.inacio@drapnorte.gov.pt"]
["BODY"," \n - ",null,null,null,null,null,"MAR-01.01.01-FEAMP-0106","IMPARAVELÂNCORA UNIPESSOAL LDA","JAIME CRUZ  C-1302-C -  PRT000020205","DRAPN",8355085,38219.269999999997,29827.27,11185.23,3728.41,"2017-02-15","2020-03-31","DGRM","ifferreira@dgrm.mm.gov.pt",null,"adelaide.inacio@drapnorte.gov.pt"]
[{"$f":"CONCATENATE(A26,B24,A27,B24,A28,B24,A29,B24,A30,B24,A31,B24,A32,B24,A33,B24,A34,B24,A35,B24,A36)","v":"Exmos. Senhores,\n\nJunto se enviam os seguintes documentos em anexo:\n - Formulário do pedido de pagamento contra fatura; \n - 0 \n - 0 \n - 0 \n - 0 \n - 0 \n - 0 \n - 0 \n - 0 \n - 0 \n - 0"},null,null,null,null,null,null,"MAR-01.01.01-FEAMP-0109","LUCIANO PAULO LOPES BAPTISTA","VONTADE INDOMITA FZ-841-L -  PRT000015294","DRAPALG",7304995,4601,2400,900,300,"2017-05-01","2017-12-31","ADELIAÇOR","adeliacor@sapo.pt",null,"Mar2020-ap@drapalg.min-agricultura.pt"]
["Exmos. Senhores,\n\nJunto se enviam os seguintes documentos em anexo:\n - Formulário do pedido de pagamento contra fatura;",null,null,null,null,null,null,"MAR-01.01.01-FEAMP-0113","TORCATO DA COSTA CRAVEIRO","VERA MARINA, PV-257-C -  PRT000000628","DRAPN",7075724,100495,34895,13085.63,4361.8700000000008,"2016-01-01","2018-12-31","MARAÇORESORIENTAL","gal.acoresoriental@gmail.com",null,"adelaide.inacio@drapnorte.gov.pt"]
[{"$f":"+Formulario!P22","v":0},null,null,null,null,null,null,"MAR-01.01.01-FEAMP-0114","JOSÉ TIAGO ROMEIRA BOTEQUILHA","EBENEZER O-2172-L -  PRT000023179","DRAPALG",8217082,24859.65,7129,4277.3999999999996,1425.8000000000002,"2017-04-01","2017-12-01","SRMCT","info.mar2020@azores.gov.pt",null,"Mar2020-ap@drapalg.min-agricultura.pt"]
[{"$f":"+Formulario!P23","v":0},null,null,null,null,null,null,"MAR-01.01.01-FEAMP-0120","ARNALDO JOSÉ DE MELIM DIAS","AMAZÓNIA FN-1662-C","SRMP",7917801,21747.34,21747.34,11417.36,3805.7799999999988,"2016-12-05","2017-05-04",null,null,null,"adiantamento.fatura.inv@ifap.pt"]
[{"$f":"+Formulario!P24","v":0},null,null,null,null,null,null,"MAR-01.01.01-FEAMP-0121","CARAVELARECORD - UNIPESSOAL LDA","Modernização da embarcação SÃO ÁLVARO FN-1689-C","SRMP",9209337,14324.2,14324.2,7520.2,2506.7300000000005,"2016-11-14","2017-08-31",null,null,null,"adiantamento.fatura.inv@ifap.pt"]
[{"$f":"+Formulario!P25","v":0},null,null,null,null,null,null,"MAR-01.01.01-FEAMP-0122","VIRGÍLIO ALEXANDRE CASIMIRO GASPAR","JOÃO GASPAR FN-1678-C","SRMP",8838773,18542.38,18542.38,11125.43,3708.4599999999991,"2017-03-01","2017-08-31",null,null,null,"adiantamento.fatura.inv@ifap.pt"]
[{"$f":"+Formulario!P26","v":0},null,null,null,null,null,null,"MAR-01.01.01-FEAMP-0123","FAROL SERENO, EMPRESA DE PESCA, UNIPESSOAL, LDA","BEM AVENTURADO  VC-263-C -  PRT000022570","DRAPN",9029251,5780,4565,1711.88,570.61999999999989,"2017-03-20","2017-12-31",null,null,null,"adelaide.inacio@drapnorte.gov.pt"]
[{"$f":"+Formulario!P27","v":0},null,null,null,null,null,null,"MAR-01.01.01-FEAMP-0125","JOAO ERNESTO OLIVEIRA CAÇADOR","FICA BEM, A--3876-L -  PRT000024743","DRAPC",7195014,6250,6250,3750,1250,"2017-07-01","2017-12-31",null,null,null,"diav@drapc.gov.pt"]
[{"$f":"+Formulario!P28","v":0},null,null,null,null,null,null,"MAR-01.01.01-FEAMP-0135","JOSÉ LUÍS E NATÉRCIA, LDA","EÇA de QUEIRÓS  PV-299-C -  PRT000022581","DRAPN",7690123,16117,16117,6043.88,2014.62,"2017-03-10","2017-12-31",null,null,null,"adelaide.inacio@drapnorte.gov.pt"]
[{"$f":"+Formulario!P29","v":0},null,null,null,null,null,null,"MAR-01.01.01-FEAMP-0136","MARIA E JOSE, LDA","JOSÉ DINIS  VC-272-C -  PRT000022468","DRAPN",8355127,15111,14976,8985.6,2995.1999999999989,"2017-05-01","2018-05-31",null,null,null,"adelaide.inacio@drapnorte.gov.pt"]
[{"$f":"+Formulario!P30","v":0},null,null,null,null,null,null,"MAR-01.01.01-FEAMP-0140","JOSÉ MATILDE - PESCAS, UNIPESSOAL, LDA","PEROLA DO OCEANO VR-528-C -  PRT000000268","DRAPALG",7310075,7980,7980,2992.5,997.5,"2017-11-01","2019-03-31",null,null,null,"Mar2020-ap@drapalg.min-agricultura.pt"]
[{"$f":"+Formulario!P31","v":0},null,null,null,null,null,null,"MAR-01.01.01-FEAMP-0155","JOANA CARLA RIBEIRO RAMOS MENDANHA","GERTRUDES FZ-892-L -  PRT000019127","DRAPALG",8868072,4731,4731,2838.6,946.20000000000027,"2017-05-01","2019-12-01",null,null,null,"Mar2020-ap@drapalg.min-agricultura.pt"]
[null,null,null,null,null,null,null,"MAR-01.01.01-FEAMP-0157","JORGE SANTOS & MONIZ, LDA","FELICIDADE ROCHA FN-1725-C","SRMP",7928547,38515.300000000003,36228.699999999997,21737.23,7245.73,"2017-09-04","2019-06-30",null,null,null,"adiantamento.fatura.inv@ifap.pt"]
[null,null,null,null,null,null,null,"MAR-01.01.01-FEAMP-0158","CARLOS MIGUEL PRADO LEAL","GAIVINA FZ-867-L -  PRT000023948","DRAPALG",7748855,2983,2983,1789.8,596.60000000000014,"2017-06-01","2018-06-01",null,null,null,"Mar2020-ap@drapalg.min-agricultura.pt"]
[null,null,null,null,null,null,null,"MAR-01.01.01-FEAMP-0162","LUIS GOMES CRUZ","CANDEIAS  PV-327-C -  PRT000000168","DRAPN",7309571,136084.99,99925,37471.879999999997,12490.620000000003,"2016-12-01","2018-08-31",null,null,null,"adelaide.inacio@drapnorte.gov.pt"]
[null,null,null,null,null,null,null,"MAR-01.01.01-FEAMP-0164","JOSÉ CARLOS MILHAZES MOITA E JOAQUIM JOSÉ MILHAZES MOITA","FÁTIMA JOSÉ  PV-298-C -  PRT000022486","DRAPN",7302307,55410,25260,9472.5,3157.5,"2017-05-15","2018-07-30",null,null,null,"adelaide.inacio@drapnorte.gov.pt"]
[null,null,null,null,null,null,null,"MAR-01.01.01-FEAMP-0165","TESTA & CUNHAS, SA","SATURNO,  A-3514-C - PRT000020934","DRAPC",7067984,24883,24883,9331.1299999999992,3110.3700000000008,"2016-02-12","2018-02-10",null,null,null,"diav@drapc.gov.pt"]
[null,null,null,null,null,null,null,"MAR-01.01.01-FEAMP-0166","SOCIEDADE DE PESCA MIRADOURO, SA","MARNOTO DE AVEIRO A-3306-C -  PRT000019167","DRAPC",7065633,40947.5,40822.5,9185.06,3061.6900000000005,"2017-04-01","2017-09-30",null,null,null,"diav@drapc.gov.pt"]
[null,null,null,null,null,null,null,"MAR-01.01.01-FEAMP-0167","TESTA & CUNHAS, SA","GEMINI A-3508-C - PRT000019156","DRAPC",7067984,82588,79307.570000000007,29740.34,9913.4500000000007,"2016-12-12","2018-12-10",null,null,null,"diav@drapc.gov.pt"]
[null,null,null,null,null,null,null,"MAR-01.01.01-FEAMP-0171","ANTÓNIO FIGUEIREDO TORRÃO","FÁTIMA TORRÃO PV-333-C -  PRT000023662","DRAPN",7090743,22350,22350,13410,4470,"2017-07-01","2018-12-31",null,null,null,"adelaide.inacio@drapnorte.gov.pt"]
[null,null,null,null,null,null,null,"MAR-01.01.01-FEAMP-0176","SOCIEDADE DE PESCA LÍRIOS DO MAR, LDA","LÍRIOS do MAR  VC-222-C -  PRT000019503","DRAPN",8899824,141550,86550,32456.25,10818.75,"2017-04-15","2019-09-30",null,null,null,"adelaide.inacio@drapnorte.gov.pt"]
[null,null,null,null,null,null,null,"MAR-01.01.01-FEAMP-0186","VARAMAR SOCIEDADE DE PESCA E COMERCIO DE PEIXE LDA","DESTERRADO, SN-835-C -  PRT000019515","DRAPAL",7199476,41466.14,36841.14,13815.43,4605.1399999999994,"2017-06-30","2018-03-31",null,null,null,0]
[null,null,null,null,null,null,null,"MAR-01.01.01-FEAMP-0196","SOCIEDADE DE PESCA MIRADOURO, SA","SÃO GONÇALINHO A-3484-C -  PRT000020848","DRAPC",7065633,70187.600000000006,70187.600000000006,15792.21,5264.07,"2017-08-15","2018-04-30",null,null,null,"diav@drapc.gov.pt"]
[null,null,null,null,null,null,null,"MAR-01.01.01-FEAMP-0197","ROSA MILHAZES & JOÃO GRAÇA, LDA","SALVADOR GRAÇA  PV-284-C -  PRT000021236","DRAPN",8730993,59620,59620,22357.5,7452.5,"2017-09-01","2018-12-31",null,null,null,"adelaide.inacio@drapnorte.gov.pt"]
[null,null,null,null,null,null,null,"MAR-01.01.01-FEAMP-0198","MAIA E SILVA, LDA","MARTA JOSÉ  PV-286-C -  PRT000020579","DRAPN",8617353,34167.5,34167.5,12812.81,4270.9400000000005,"2018-08-03","2018-12-31",null,null,null,"adelaide.inacio@drapnorte.gov.pt"]
[null,null,null,null,null,null,null,"MAR-01.01.01-FEAMP-0200","CARLOS MIGUEL PRADO LEAL","SLB, FZ-911-L -  PRT000021181","DRAPALG",7748855,49548.800000000003,10657.44,6394.46,2131.4900000000007,"2017-09-01","2018-09-01",null,null,null,"Mar2020-ap@drapalg.min-agricultura.pt"]
[null,null,null,null,null,null,null,"MAR-01.01.01-FEAMP-0201","PESCARIAS VIANEZ, UNIPESSOAL LDA","AVÔ VIANEZ  PV-271-C -  PRT000020258","DRAPN",7774663,79853.25,31720,11895,3965,"2017-01-01","2018-12-31",null,null,null,"adelaide.inacio@drapnorte.gov.pt"]
[null,null,null,null,null,null,null,"MAR-01.01.01-FEAMP-0205","MÁRIO VICENTE ARTEIRO FANGUEIRO","ALGAMAR, SN-833-C -  PRT000022478","DRAPAL",7080354,45746,40696,15261,5087,"2017-01-08","2018-12-31",null,null,null,0]
[null,null,null,null,null,null,null,"MAR-01.01.01-FEAMP-0209","ROSA AREIAS - ACTIVIDADES DE PESCA LDA","SANTA MARIA das AREIAS  AN-194-C -  PRT000023099","DRAPN",7315602,149077.41,120495.4,72297.240000000005,24099.08,"2018-05-28","2019-12-31",null,null,null,"adelaide.inacio@drapnorte.gov.pt"]
[null,null,null,null,null,null,null,"MAR-01.01.01-FEAMP-0211","MANUEL VIANA DE SÁ","SENHORA da AGONIA  AN-193-C -  PRT000023172","DRAPN",7090124,147827.41,106127.4,63676.44,21225.479999999996,"2018-06-01","2019-12-31",null,null,null,"adelaide.inacio@drapnorte.gov.pt"]
[null,null,null,null,null,null,null,"MAR-01.01.01-FEAMP-0212","TESTA & CUNHAS, SA","LEONIS A-3670-C -  PRT000023047","DRAPC",7067984,66770.259999999995,66770.259999999995,25038.85,8346.2799999999988,"2017-06-01","2019-04-30",null,null,null,"diav@drapc.gov.pt"]
[null,null,null,null,null,null,null,"MAR-01.01.01-FEAMP-0213","AIRES BRITES UNIPESSOAL, LDA","HÉLDER JOSÉ FN-1647-C","SRMP",9355085,80753.350000000006,59613,31296.84,10432.280000000002,"2017-08-21","2018-08-21",null,null,null,"adiantamento.fatura.inv@ifap.pt"]
[null,null,null,null,null,null,null,"MAR-01.01.01-FEAMP-0215","DOMINGOS MANUEL FANGUEIRO POSTIGA","VEM SE VIER  VC-270-C -  PRT000023042","DRAPN",7941165,96795,84245,31591.88,10530.619999999999,"2018-08-28","2019-11-15",null,null,null,"adelaide.inacio@drapnorte.gov.pt"]
[null,null,null,null,null,null,null,"MAR-01.01.01-FEAMP-0217","LÁZARO MIRANDA ARTEIRO E JOSÉ ALBERTO DOS SANTOS ARTEIRO","MESTRE LÁZARO  PV-289-C -  PRT000021400","DRAPN",7280476,121960,27675,10378.129999999999,3459.3700000000008,"2017-09-01","2018-04-30",null,null,null,"adelaide.inacio@drapnorte.gov.pt"]
[null,null,null,null,null,null,null,"MAR-01.01.01-FEAMP-0218","SOCIEDADE PESCA FOZ DA NAZARÉ, LDA","FOZ da NAZARÉ L-2046-C -  PRT000001636","DRAPN",7074953,142860,107100,40162.5,13387.5,"2017-06-15","2020-12-31",null,null,null,"adelaide.inacio@drapnorte.gov.pt"]
[null,null,null,null,null,null,null,"MAR-01.01.01-FEAMP-0225","JOSÉ MIGUEL PEREIRA CASTRO","TRAVESSO, A-3433-C -  PRT000020106","DRAPC",7168362,10100,10100,6060,2020,"2017-09-26","2018-08-31",null,null,null,"diav@drapc.gov.pt"]
[null,null,null,null,null,null,null,"MAR-01.01.01-FEAMP-0226","JOSE MANUEL DE SOUSA NUNES","Modernização da embarcação ARAUS PS-92-C","SRMP",7504692,10207.5,9803.9,5147.05,1715.6799999999994,"2017-12-01","2018-08-25",null,null,null,"adiantamento.fatura.inv@ifap.pt"]
[null,null,null,null,null,null,null,"MAR-01.01.01-FEAMP-0231","PORTIGRALHA - SOCIEDADE DE PESCA, LDA","PORTIPESCA  VC-259-C - PRT000022528","DRAPN",8182153,134248.89000000001,39048,14643.01,4880.99,"2017-01-01","2018-12-31",null,null,null,"adelaide.inacio@drapnorte.gov.pt"]
[null,null,null,null,null,null,null,"MAR-01.01.01-FEAMP-0232","MESTRE DA GALILEIA DE RAMIRO & EMILIA - EMPRESA DE PESCA, LDA","MESTRE da GALILEIA P-2150-C -  PRT000022467","DRAPN",7215075,13825,13095,7857,2619,"2018-02-20","2019-07-31",null,null,null,"adelaide.inacio@drapnorte.gov.pt"]
[null,null,null,null,null,null,null,"MAR-01.01.01-FEAMP-0234","ROGÉRIO FILIPE RAMOS DE SOUSA","TANIA ANDREIA, FZ-895-L  -  PRT000023113","DRAPALG",7277911,9107,7551,4530.6000000000004,1510.1999999999998,"2017-10-01","2019-09-30",null,null,null,"Mar2020-ap@drapalg.min-agricultura.pt"]
[null,null,null,null,null,null,null,"MAR-01.01.01-FEAMP-0235","JOSÉ TIAGO ROMEIRA BOTEQUILHA","EBENEZER, O-2172-L - PRT000023179","DRAPALG",8217082,13980,5270,3162,1054,"2017-10-01","2018-05-01",null,null,null,"Mar2020-ap@drapalg.min-agricultura.pt"]
[null,null,null,null,null,null,null,"MAR-01.01.01-FEAMP-0238","JOAO FILIPE ESTIMA VIEIRA","DUAS ANINHAS  VC-255-C - PRT000021410","DRAPN",7304434,3928,3928,1473,491,"2017-11-01","2019-04-30",null,null,null,"adelaide.inacio@drapnorte.gov.pt"]
[null,null,null,null,null,null,null,"MAR-01.01.01-FEAMP-0239","MARCOS MANUEL LAPA CORREIA","TREVO DA FELICIDADE, P-2183-L - PRT000022797","DRAPN",7280155,11535,3535,2121,707,"2017-12-01","2019-05-30",null,null,null,"adelaide.inacio@drapnorte.gov.pt"]
[null,null,null,null,null,null,null,"MAR-01.01.01-FEAMP-0241","TESTA & CUNHAS, SA","SAGITARIUS, A-3636-C - PRT000022690","DRAPC",7067984,68122.259999999995,68122.259999999995,25545.85,8515.2799999999988,"2017-07-31","2018-12-31",null,null,null,{"$f":"VLOOKUP(K68,S:T,2,FALSE)","v":"diav@drapc.gov.pt"}]
[null,null,null,null,null,null,null,"MAR-01.01.01-FEAMP-0247","JOSÉ MANUEL DA SILVA COENTRÃO","HERANÇA de DEUS  VC-246-C - PRT000020589","DRAPN",8217607,36890,36890,13833.75,4611.25,"2017-12-01","2019-05-31",null,null,null,"adelaide.inacio@drapnorte.gov.pt"]
[null,null,null,null,null,null,null,"MAR-01.01.01-FEAMP-0248","VICENTE SALVADOR MAIO PEREIRA","POLO NORTE,  PV-307-C  -  PRT000023200","DRAPN",7325577,31900,31900,11962.5,3987.5,"2018-07-01","2020-08-31",null,null,null,"adelaide.inacio@drapnorte.gov.pt"]
[null,null,null,null,null,null,null,"MAR-01.01.01-FEAMP-0250","JOSÉ ANTÓNIO RIO SOARES","MAR AS ONDAS, LG-1315-L  -  PRT000021793","DRAPALG",8879603,12072.14,7000,4200,1400,"2018-02-09","2018-03-31",null,null,null,"Mar2020-ap@drapalg.min-agricultura.pt"]
[null,null,null,null,null,null,null,"MAR-01.01.01-FEAMP-0252","TORRES & GAGO - SOCIEDADE DE PESCA, LDA.","BALUEIRO, O-2178-N - PRT000023097","DRAPALG",9043997,1753935,159462.73000000001,59798.53,19932.839999999997,"2015-01-01","2019-12-31",null,null,null,"Mar2020-ap@drapalg.min-agricultura.pt"]
[null,null,null,null,null,null,null,"MAR-01.01.01-FEAMP-0255","TESTA & CUNHAS, SA","NEPTUNO, A-3346-C - PRT000019696","DRAPC",7067984,66764.259999999995,66764.259999999995,25036.6,8345.5299999999988,"2017-10-20","2018-12-31",null,null,null,"diav@drapc.gov.pt"]
[null,null,null,null,null,null,null,"MAR-01.01.01-FEAMP-0260","ESPÍRITO GLORIOSO - UNIPESSOAL LDA","BRANCA DE SAGRES  SA-522-C - PRT000020092","DRAPALG",9041596,7195,7195,2698.13,899.36999999999989,"2018-02-01","2018-06-30",null,null,null,"Mar2020-ap@drapalg.min-agricultura.pt"]
[null,null,null,null,null,null,null,"MAR-01.01.01-FEAMP-0262","JOAQUIM LUÍS DOS SANTOS ","RIO MIRA, PM-501-C - PRT000000387","DRAPALG",7540753,30970,30970,11613.75,3871.25,"2018-01-31","2018-04-24",null,null,null,"Mar2020-ap@drapalg.min-agricultura.pt"]
[null,null,null,null,null,null,null,"MAR-01.01.01-FEAMP-0263","PAULO CARLOS BARBOSA PACHECO","OCEANO ATLÂNTICO  V-1087-C - PRT000023709","DRAPN",8186402,41150,38650,14493.75,4831.25,"2017-12-02","2018-12-31",null,null,null,"adelaide.inacio@drapnorte.gov.pt"]
[null,null,null,null,null,null,null,"MAR-01.01.01-FEAMP-0267","TESTA & CUNHAS, SA","CALYPSO, A-3527-C - PRT000021508","DRAPC",7067984,41884.26,41884.26,15706.6,5235.5300000000007,"2017-12-06","2018-12-31",null,null,null,"diav@drapc.gov.pt"]
[null,null,null,null,null,null,null,"MAR-01.01.01-FEAMP-0273","ÂNCORADELTAS, LDA","MÃE PADROEIRA  P-2111-L - PRT000020116","DRAPN",7736332,43620,15835.6,9501.36,3167.119999999999,"2016-01-01","2019-08-31",null,null,null,"adelaide.inacio@drapnorte.gov.pt"]
[null,null,null,null,null,null,null,"MAR-01.01.01-FEAMP-0277","ARMANDO SERRÃO & JOSÉ SERRÃO LDª","Modernização da Embarcação de Pesca Mestre Gregorio FN-1741-C","SRMP",7637407,37460,37460,19666.5,6555.5,"2017-11-17","2018-12-31",null,null,null,"adiantamento.fatura.inv@ifap.pt"]
[null,null,null,null,null,null,null,"MAR-01.01.01-FEAMP-0278","MANUEL & FÁBIO, LDA","S. JOÃO BATISTA, VR-548-C - PRT000000484","DRAPALG",9007707,83412,41640,15615,5205,"2017-02-15","2019-12-31",null,null,null,"Mar2020-ap@drapalg.min-agricultura.pt"]
[null,null,null,null,null,null,null,"MAR-01.01.01-FEAMP-0279","RAINHA DOS MILAGRES, UNIPESSOAL, LDA","RAINHA dos MILAGRES  P-2195-C - PRT000023702","DRAPN",9161876,11157,10300,6180,2060,"2018-03-01","2019-03-31",null,null,null,"adelaide.inacio@drapnorte.gov.pt"]
[null,null,null,null,null,null,null,"MAR-01.01.01-FEAMP-0280","SEBASTIÃO PAULO & FILHOS, LDA","BEATRIZ PAULO  SB-1260-C - PRT000020591","DRAPLVT",7086416,26000,26000,9750,3250,"2018-01-19","2019-04-30",null,null,null,"decisoesmar2020@draplvt.gov.pt"]
[null,null,null,null,null,null,null,"MAR-01.01.01-FEAMP-0282","DESEJO IDEAL - PESCA, LDA","PRINCESA DE PENICHE  PE-2226-C - PRT000020246","DRAPLVT",7508322,63600,63600,23850,7950,"2018-08-01","2019-12-31",null,null,null,"decisoesmar2020@draplvt.gov.pt"]
[null,null,null,null,null,null,null,"MAR-01.01.01-FEAMP-0289","ZACARIAS MAIO PEREIRA","MELHORZINHO do MUNDO, PV-336-C - PRT000022476","DRAPN",7312952,63886.8,26981.8,10118.18,3372.7199999999993,"2017-07-01","2019-06-14",null,null,null,"adelaide.inacio@drapnorte.gov.pt"]
[null,null,null,null,null,null,null,"MAR-01.01.01-FEAMP-0292","RAINHA DOS MILAGRES, UNIPESSOAL, LDA","RAINHA dos MILAGRES P-2195-C - PRT000023702","DRAPN",9161876,2290.04,2290.04,1374.02,458.01,"2018-04-01","2018-12-31",null,null,null,"adelaide.inacio@drapnorte.gov.pt"]
[null,null,null,null,null,null,null,"MAR-01.01.01-FEAMP-0294","TESTA & CUNHAS, SA","DELPHINUS, A-3602-C - PRT000022471","DRAPC",7067984,67469.259999999995,67469.259999999995,25300.97,8433.6599999999962,"2018-03-27","2019-12-31",null,null,null,"diav@drapc.gov.pt"]
[null,null,null,null,null,null,null,"MAR-01.01.01-FEAMP-0303","JORGE MANUEL REGO BRAGA","Modernização do Convés da embarcação Caboz PD-536-L","DSPEP",6409951,1321.77,1321.77,842.63,280.87,"2018-09-01","2019-05-31",null,null,null,"info.mar2020@azores.gov.pt"]
[null,null,null,null,null,null,null,"MAR-01.01.01-FEAMP-0307","CARLOS MIGUEL PRADO LEAL","GAIVINA, FZ-867-L - PRT000023948","DRAPALG",7748855,19651.669999999998,10302.98,6181.79,2060.5899999999992,"2018-05-15","2019-12-01",null,null,null,"Mar2020-ap@drapalg.min-agricultura.pt"]
[null,null,null,null,null,null,null,"MAR-01.01.01-FEAMP-0319","EDUÍNO PERINHO ,UNIPESSOAL LDA","Aquisição de 1 dessalinizador, embarcação Goretti Perinho, VP-245-C","DSPEP",8237426,7976,7976,5084.7,1694.9000000000005,"2017-12-30","2018-12-31",null,null,null,"info.mar2020@azores.gov.pt"]
[null,null,null,null,null,null,null,"MAR-01.01.01-FEAMP-0320","PESCAFIXE,UNIPESSIOAL, LDA","Aquisição de 1 dessalinizador, embarcação Ilha Amarela VP-250-C","DSPEP",7554447,7976,7976,5084.7,1694.9000000000005,"2017-12-30","2018-12-31",null,null,null,"info.mar2020@azores.gov.pt"]
[null,null,null,null,null,null,null,"MAR-01.01.01-FEAMP-0329","FRANCISCO ANTÓNIO FERREIRA GONÇALVES","Aquisição Contentores Isotérmicos","DRAPN",7316192,6300,6300,3780,1260,"2018-07-01","2019-03-31",null,null,null,"adelaide.inacio@drapnorte.gov.pt"]
[null,null,null,null,null,null,null,"MAR-01.01.01-FEAMP-0335","PESCAS DE RITA AMARAL E FILHOS, LDA","Melhorias das condições de trabalho embarcação Pepe Cumbrera, PD-600-C","DSPEP",6410126,308642.19,301776.68,147116.14000000001,49038.709999999992,"2018-10-15","2019-09-30",null,null,null,"info.mar2020@azores.gov.pt"]
[null,null,null,null,null,null,null,"MAR-01.01.01-FEAMP-0337","MANUEL DE OLIVEIRA SANGUEDO","Aquisição Contentores Isotérmicos","DRAPN",7315946,6300,3780,2268,756,"2018-09-01","2019-12-31",null,null,null,"adelaide.inacio@drapnorte.gov.pt"]
[null,null,null,null,null,null,null,"MAR-01.01.01-FEAMP-0339","ARRAIA PESCAS, LDA","Aquisição de rádio para a embarcação Flor da Horta, H-209-C","DSPEP",9256725,6136.5,6136.5,3912.02,1304.0099999999998,"2018-10-01","2019-04-30",null,null,null,"info.mar2020@azores.gov.pt"]
[null,null,null,null,null,null,null,"MAR-01.01.01-FEAMP-0340","EDUARDO PACHECO SOARES & FILHOS, LDA.","Aquisição de um dessalinizador embarcação Mestre Soares, VP-236-C","DSPEP",7180467,7976,7976,3888.3,1296.0999999999995,"2019-07-20","2019-12-31",null,null,null,"info.mar2020@azores.gov.pt"]
[null,null,null,null,null,null,null,"MAR-01.01.01-FEAMP-0343","SOCIEDADE LISBONENSE DE PESCA DE BACALHAU, LDA","Modernização da embarcação Mar Salgado","DRAPC",7211143,43070,41238,15464.25,5154.75,"2017-10-01","2019-11-30",null,null,null,"diav@drapc.gov.pt"]
[null,null,null,null,null,null,null,"MAR-01.01.01-FEAMP-0350","JOSÉ CARLOS GONÇALVES CASCÃO","MODERNIZAÇÃO DA EMBARCAÇÃO","DRAPN",7633112,50600,42200,15825,5275,"2019-04-01","2019-12-31",null,null,null,"adelaide.inacio@drapnorte.gov.pt"]
[null,null,null,null,null,null,null,"MAR-01.01.01-FEAMP-0352","ROSA AREIAS - ACTIVIDADES DE PESCA LDA","MODERNIZAÇÃO DA EMBARCAÇÃO","DRAPN",7315602,30600,30600,18360,6120,"2019-06-01","2019-12-31",null,null,null,"adelaide.inacio@drapnorte.gov.pt"]
[null,null,null,null,null,null,null,"MAR-01.01.01-FEAMP-0353","MANUEL VIANA DE SÁ","MODERNIZAÇÃO DA EMBARCAÇÃO","DRAPN",7090124,30100,30100,18060,6020,"2018-06-01","2019-12-31",null,null,null,"adelaide.inacio@drapnorte.gov.pt"]
[null,null,null,null,null,null,null,"MAR-01.01.01-FEAMP-0354","TESTA & CUNHAS, SA","Investimentos a bordo Neptuno","DRAPC",7067984,52230.04,52230.04,19586.27,6528.75,"2018-10-22","2019-03-31",null,null,null,"diav@drapc.gov.pt"]
[null,null,null,null,null,null,null,"MAR-01.01.01-FEAMP-0358","TESTA & CUNHAS, SA","Investimentos a bordo Scorpius","DRAPC",7067984,111317.31,109989.3,41245.99,13748.660000000003,"2018-09-01","2019-04-30",null,null,null,"diav@drapc.gov.pt"]
[null,null,null,null,null,null,null,"MAR-01.01.01-FEAMP-0359","TESTA & CUNHAS, SA","Investimentos a bordo Centaurus","DRAPC",7067984,119523.91,119523.91,44821.47,14940.489999999998,"2018-05-01","2019-04-30",null,null,null,"diav@drapc.gov.pt"]
[null,null,null,null,null,null,null,"MAR-01.01.01-FEAMP-0360","TESTA & CUNHAS, SA","Investimentos a Bordo Deneb","DRAPC",7067984,94545.91,94545.91,35454.720000000001,11818.239999999998,"2018-06-18","2019-03-31",null,null,null,"diav@drapc.gov.pt"]
[null,null,null,null,null,null,null,"MAR-01.01.01-FEAMP-0367","JOSE EDUARDO PEREIRA DA SILVA","Melhoria das Estruturas de abrigo no convés","DSPEP",8231886,6842.03,4794.25,3056.33,1018.7800000000002,"2018-12-15","2019-10-31",null,null,null,"info.mar2020@azores.gov.pt"]
[null,null,null,null,null,null,null,"MAR-01.01.01-FEAMP-0369","ARMANDA COUTINHO - EMPRESA DE PESCA UNIPESSOAL, LDA","Investimentos a Bordo","DRAPN",9283351,21996,21996,13197.6,4399.1999999999989,"2018-12-01","2020-05-31",null,null,null,"adelaide.inacio@drapnorte.gov.pt"]
[null,null,null,null,null,null,null,"MAR-01.01.01-FEAMP-0370","EMPRESA DE PESCA SÃO JACINTO, SA","Modernização do navio Augusto da Cunha Júnior","DRAPC",7178035,42170,42170,15813.75,5271.25,"2018-09-01","2019-11-30",null,null,null,"diav@drapc.gov.pt"]
[null,null,null,null,null,null,null,"MAR-01.01.01-FEAMP-0371","PARALELO - SOCIEDADE DE PESCAS, LDA","MODERNIZAÇÃO DA EMBARCAÇÃO PARALELO - VC-296-C","DRAPN",7719902,205868.1,199868.09,74950.539999999994,24983.510000000009,"2017-12-15","2020-09-30",null,null,null,"adelaide.inacio@drapnorte.gov.pt"]
[null,null,null,null,null,null,null,"MAR-01.01.01-FEAMP-0373","JOÃO VICENTE MONIZ DA SILVA","Investimentos a bordo e Seletividade","SRMP",7077487,296123.03000000003,288528.83,151477.65,50492.540000000008,"2018-12-03","2020-07-07",null,null,null,"adiantamento.fatura.inv@ifap.pt"]
[null,null,null,null,null,null,null,"MAR-01.01.01-FEAMP-0375","FERNANDO ALVES NUNES","Investimentos a bordo e Seletividade","SRMP",7194606,29452.76,29372.26,15420.43,5140.1500000000015,"2018-12-03","2019-12-31",null,null,null,"adiantamento.fatura.inv@ifap.pt"]
[null,null,null,null,null,null,null,"MAR-01.01.01-FEAMP-0376","ABRAÃO DE JESUS MOREIRA ","Aquisição Contentores Isotérmicos","DRAPN",7084754,6300,6300,2362.5,787.5,"2018-12-01","2019-12-31",null,null,null,"adelaide.inacio@drapnorte.gov.pt"]
[null,null,null,null,null,null,null,"MAR-01.01.01-FEAMP-0377","JOÃO VIANA DA SILVA","Investimentos a Bordo no Domínio da Eficiência Energética, Segurança e Selectividade","DRAPN",7079351,7700,7700,2887.5,962.5,"2019-03-08","2020-09-30",null,null,null,"adelaide.inacio@drapnorte.gov.pt"]
[null,null,null,null,null,null,null,"MAR-01.01.01-FEAMP-0380","MARCO DANIEL VIEIRA MONIZ","Rádio GMDSS","DSPEP",8821361,6616.5,6616.5,4218.0200000000004,1406.0099999999993,"2018-10-29","2020-06-26",null,null,null,"info.mar2020@azores.gov.pt"]
[null,null,null,null,null,null,null,"MAR-01.01.01-FEAMP-0381","FERNANDO ALVES, SOCIEDADE UNIPESSOAL, LDª","beneficiação/modificação, na embarcação de pesca costeira denominada ","DSPEP",8229976,135726.24,55967.99,27284.39,9094.7900000000009,"2018-11-28","2020-05-31",null,null,null,"info.mar2020@azores.gov.pt"]
[null,null,null,null,null,null,null,"MAR-01.01.01-FEAMP-0382","FERNANDO ALVES, SOCIEDADE UNIPESSOAL, LDª","beneficiação/modificação, na embarcação de pesca costeira denominada Bela Aurora Eficiência Energética","DSPEP",8229976,118750,103775,50590.31,16863.440000000002,"2018-11-28","2020-05-31",null,null,null,"info.mar2020@azores.gov.pt"]
[null,null,null,null,null,null,null,"MAR-01.01.01-FEAMP-0388","ARMANDA COUTINHO - EMPRESA DE PESCA UNIPESSOAL, LDA","Investimentos a Bordo","DRAPN",9283351,11570,11570,6942,2314,"2019-02-02","2020-07-31",null,null,null,"adelaide.inacio@drapnorte.gov.pt"]
[null,null,null,null,null,null,null,"MAR-01.01.01-FEAMP-0391","NUNO MIGUEL SILVA SOARES","Aquisição de equipamento electrónicos ","DSPEP",9309652,2476,2476,1578.45,526.14999999999986,"2019-02-01","2020-07-31",null,null,null,"info.mar2020@azores.gov.pt"]
[null,null,null,null,null,null,null,"MAR-01.01.01-FEAMP-0392","TERROSO&TORRÃO","Investimentos a Bordo no Domínio da Eficiência Energética, Segurança e Selectividade","DRAPALG",8933556,238360,193030.19,72386.33,24128.770000000004,"2018-06-15","2019-12-31",null,null,null,"Mar2020-ap@drapalg.min-agricultura.pt"]
[null,null,null,null,null,null,null,"MAR-01.01.01-FEAMP-0397","SOCIEDADE DE PESCA SOUSA & MILHAZES, LDA","MODERNIZAÇÃO MARGHERITA, PV-334-C","DRAPN",8441411,70225,60725,22771.88,7590.619999999999,"2018-06-11","2020-06-30",null,null,null,"adelaide.inacio@drapnorte.gov.pt"]
[null,null,null,null,null,null,null,"MAR-01.01.01-FEAMP-0398","PESCALEÇA - SOCIEDADE PORTUGUESA DE PESCA, LDA","MODERNIZAÇÃO DA EMBARCAÇÃO MAR IBÉRICO - L-2045-C","DRAPN",7075643,402672.61,202422.62,75908.490000000005,25302.819999999992,"2017-06-01","2019-12-31",null,null,null,"adelaide.inacio@drapnorte.gov.pt"]
[null,null,null,null,null,null,null,"MAR-01.01.01-FEAMP-0399","EMPRESA DE PESCA RIBEIRO-MAR, LDA","MODERNIZAÇÃO DA EMBARCAÇÃO LUCIMAR - L-561-C","DRAPN",7075836,1074217.95,321895.21000000002,120710.78,40236.829999999987,"2017-01-01","2019-12-31",null,null,null,"adelaide.inacio@drapnorte.gov.pt"]
[null,null,null,null,null,null,null,"MAR-01.01.01-FEAMP-0400","MANUEL AGONIA DA SILVA MARQUES","SILVA MARQUES - I.B.","DRAPN",8989003,145610,15000,5625,1875,"2019-07-01","2020-09-30",null,null,null,"adelaide.inacio@drapnorte.gov.pt"]
[null,null,null,null,null,null,null,"MAR-01.01.01-FEAMP-0401","COSTA&COENTRÃO PESCA ARTESANAL, LDA","Investimentos a Bordo no Domínio da Eficiência Energética, Segurança e Selectividade","DRAPN",8990254,3490,3490,2094,698,"2019-02-11","2020-02-11",null,null,null,"adelaide.inacio@drapnorte.gov.pt"]
[null,null,null,null,null,null,null,"MAR-01.01.01-FEAMP-0402","MARINO MANUEL MARQUES DA CUNHA FOLHA","MODERNIZAÇÃO DA EMBARCAÇÃO FOLHA SANTOS - L-2083-L","DRAPN",7706913,19601,18822.5,11293.5,3764.5,"2019-08-01","2019-12-31",null,null,null,"adelaide.inacio@drapnorte.gov.pt"]
[null,null,null,null,null,null,null,"MAR-01.01.01-FEAMP-0407","LUÍS MANUEL MONIZ PENACHO"," aquisição de equipamentos electrónicos PACK RADIO MF\\HF GMDSS","DSPEP",7181173,6338.3,6336.71,4039.65,1346.5499999999997,"2019-03-07","2020-08-31",null,null,null,"info.mar2020@azores.gov.pt"]
[null,null,null,null,null,null,null,"MAR-01.01.01-FEAMP-0409","ARMANDA COUTINHO - EMPRESA DE PESCA UNIPESSOAL, LDA","Investimentos a Bordo","DRAPN",9283351,22500,22500,13500,4500,"2019-04-30","2020-07-31",null,null,null,"adelaide.inacio@drapnorte.gov.pt"]
[null,null,null,null,null,null,null,"MAR-01.01.01-FEAMP-0414","JOÃO VÍTOR ANDRADE CABRAL","AQUISIÇÃO GARMIN, PACK GPSMAP +RADAR GMR 18HD, GARMIN CARTA BLUECHART G2 VISION","DSPEP",8820091,2476,2476,1578.45,526.14999999999986,"2019-05-04","2020-11-13",null,null,null,"info.mar2020@azores.gov.pt"]
[null,null,null,null,null,null,null,"MAR-01.01.01-FEAMP-0418","JERONIMO VIANA E SERGIO BARBOSA, LDA","Investimentos a Bordo no Domínio da Eficiência Energética, Segurança e Selectividade","DRAPN",8215253,25000,25000,9375,3125,"2019-05-30","2020-12-31",null,null,null,"adelaide.inacio@drapnorte.gov.pt"]
[null,null,null,null,null,null,null,"MAR-01.01.01-FEAMP-0419","NELSON MORGADO, UNIPESSOAL, LDA","Investimentos a Bordo no Domínio da Eficiência Energética, Segurança e Selectividade","DRAPN",9043107,72070,58227.94,33643.35,11214.450000000004,"2019-06-18","2020-12-31",null,null,null,"adelaide.inacio@drapnorte.gov.pt"]
[null,null,null,null,null,null,null,"MAR-01.01.01-FEAMP-0422","JOAQUIM RAMOS AGRA","PARCERIA - IB","DRAPN",7085475,17730,11382.32,4268.37,1422.79,"2019-07-02","2019-12-31",null,null,null,"adelaide.inacio@drapnorte.gov.pt"]
[null,null,null,null,null,null,null,"MAR-01.01.01-FEAMP-0424","MARCO PAULO SILVEIRA ROSA","Aquisição jangada salva vidas","DSPEP",7200942,1275,1275,812.81,270.94000000000005,"2019-07-10","2019-08-15",null,null,null,"info.mar2020@azores.gov.pt"]
[null,null,null,null,null,null,null,"MAR-01.01.01-FEAMP-0425","TESTA & CUNHAS, SA","Investimentos a bordo Sagittarius","DRAPC",7067984,63088.160000000003,62692.160000000003,23509.56,7836.52,"2019-07-01","2020-01-31",null,null,null,"diav@drapc.gov.pt"]
[null,null,null,null,null,null,null,"MAR-01.01.01-FEAMP-0426","TESTA & CUNHAS, SA","Investimentos a bordo LEONIS","DRAPC",7067984,63088.160000000003,62692.160000000003,23509.56,7836.52,"2019-09-02","2020-03-31",null,null,null,{"$f":"VLOOKUP(K132,S:T,2,FALSE)","v":"diav@drapc.gov.pt"}]
[null,null,null,null,null,null,null,"MAR-01.01.01-FEAMP-0428","JOAO ALEXANDRE RODRIGUES E JOÃO ALBERTO DE JESUS","Modernização da embarcação","SRMP",6411884,15773,5654.75,3392.85,1130.9500000000003,"2019-05-01","2020-12-31",null,null,null,"adiantamento.fatura.inv@ifap.pt"]
[null,null,null,null,null,null,null,"MAR-01.01.01-FEAMP-0431","ANTÓNIO MANUEL TROCADO CASCÃO","MODERNIZAÇÃO DA EMBARCAÇÃO ","DRAPN",7977184,24350,24350,9131.25,3043.75,"2019-03-01","2020-08-31",null,null,null,"adelaide.inacio@drapnorte.gov.pt"]
[null,null,null,null,null,null,null,"MAR-01.01.01-FEAMP-0432","ABEL TROCADO DOS SANTOS","MODERNIZAÇÃO DA EMBARCAÇÃO ","DRAPN",8831413,91209.75,64974.75,24365.54,8121.84,"2019-01-01","2021-06-30",null,null,null,"adelaide.inacio@drapnorte.gov.pt"]
[null,null,null,null,null,null,null,"MAR-01.01.01-FEAMP-0438","SALVADOR DO MAR, SOCIEDADE UNIPESSOAL, LDA","beneficiação/modificação, na embarcação de pesca costeira denominada Saragaça T1 ","SRMP",8819122,499120.64000000001,499120.64000000001,262038.34,87346.110000000015,"2019-09-01","2021-02-28",null,null,null,"adiantamento.fatura.inv@ifap.pt"]
[null,null,null,null,null,null,null,"MAR-01.01.01-FEAMP-0440","TESTA & CUNHAS, SA","Investimentos a bordo Delphinus","DRAPC",7067984,66871.28,66475.28,24928.23,8309.41,"2019-08-16","2020-08-14",null,null,null,"diav@drapc.gov.pt"]
[null,null,null,null,null,null,null,"MAR-01.01.01-FEAMP-0441","OCEANO VIBRANTE - UNIPESSOAL LDA","beneficiação/modificação, na embarcação de pesca costeira denominada T1 ","DSPEP",9311697,430154.7,313919,153035.54,51011.81,"2019-09-01","2021-02-28",null,null,null,"info.mar2020@azores.gov.pt"]
[null,null,null,null,null,null,null,"MAR-01.01.01-FEAMP-0442","MANUEL CABRAL DE ANDRADE PALRÃO","Aquisição de Radio GMDSS ","DSPEP",6415093,6371,6371,4061.51,1353.8400000000001,"2019-08-12","2021-02-11",null,null,null,"info.mar2020@azores.gov.pt"]
[null,null,null,null,null,null,null,"MAR-01.01.01-FEAMP-0443","ROSA MILHAZES & JOÃO GRAÇA, LDA","SALVADOR GRAÇA - IB","DRAPN",8730993,12627.5,12627.5,4735.3100000000004,1578.4399999999996,"2019-08-24","2019-12-31",null,null,null,"adelaide.inacio@drapnorte.gov.pt"]
[null,null,null,null,null,null,null,"MAR-01.01.01-FEAMP-0447","PEDRO MIGUEL REBELO RODRIGUES","SANTO ANTÓNIO - IB","DRAPN",9384927,14073,10605,6363,2121,"2019-12-01","2020-12-31",null,null,null,"adelaide.inacio@drapnorte.gov.pt"]
[null,null,null,null,null,null,null,"MAR-01.01.01-FEAMP-0455","MANUEL AGONIA DA SILVA MARQUES","SILVA MARQUES - IB 2","DRAPN",8989003,27800,27800,10425,3475,"2019-10-01","2020-12-31",null,null,null,"adelaide.inacio@drapnorte.gov.pt"]
[null,null,null,null,null,null,null,"MAR-01.01.01-FEAMP-0458","JOSE MANUEL DE SOUSA NUNES","MADEIRA - Investimentos a Bordo","SRMP",7504692,44458.26,36958.26,19403.099999999999,6467.6900000000023,"2019-12-01","2020-12-31",null,null,null,"adiantamento.fatura.inv@ifap.pt"]
[null,null,null,null,null,null,null,"MAR-01.01.01-FEAMP-0461","ANTÓNIO VIEIRA ANDRADE","Aquisição de equipamentos eletronicos\\coletes de salvação","DSPEP",6414267,5510,5206,2537.9299999999998,845.97000000000025,"2019-11-04","2021-05-10",null,null,null,"info.mar2020@azores.gov.pt"]
[null,null,null,null,null,null,null,"MAR-01.01.01-FEAMP-0462","FERNANDO MANUEL DOS SANTOS MAGANINHO","Investimentos a bordo","DRAPN",9403865,55195,39695,14885.63,4961.8700000000008,"2019-12-01","2020-12-31",null,null,null,"adelaide.inacio@drapnorte.gov.pt"]
[null,null,null,null,null,null,null,"MAR-01.01.01-FEAMP-0463","NELSON MORGADO, UNIPESSOAL, LDA","Investimentos a bordo","DRAPN",9043107,6668.63,6668.63,4001.18,1333.7199999999998,"2019-12-01","2020-12-31",null,null,null,"adelaide.inacio@drapnorte.gov.pt"]
[null,null,null,null,null,null,null,"MAR-01.01.01-FEAMP-0464","TESTA & CUNHAS, SA","Investimentos a bordo Calypso","DRAPC",7067984,59920.160000000003,59449.16,22293.439999999999,7431.1400000000031,"2019-10-01","2020-06-30",null,null,null,"diav@drapc.gov.pt"]
[null,null,null,null,null,null,null,"MAR-01.01.01-FEAMP-0469","JOSE BENJAMIM ALVES DA SILVA","MADEIRA - Investimentos a Bordo","SRMP",7302764,4556,4556,2733.6,911.20000000000027,"2020-03-01","2020-11-30",null,null,null,"adiantamento.fatura.inv@ifap.pt"]
[null,null,null,null,null,null,null,"MAR-01.01.01-FEAMP-0477","JOSÉ EMANUEL SOUSA MEDEIROS","Gerador Vetus","DSPEP",6412044,11980.5,11980.5,7637.57,2545.8600000000006,"2019-11-16","2021-01-31",null,null,null,"info.mar2020@azores.gov.pt"]
[null,null,null,null,null,null,null,"MAR-01.01.01-FEAMP-0478","JOAQUIM PACHECO LEITAO LDA","Joaquim Pacheco Leitão. Lda, PÉROLA DA PRAIA, VV-10-C","DSPEP",6411192,28884.84,21332.400000000001,10399.540000000001,3466.5199999999986,"2020-01-30","2020-12-31",null,null,null,"info.mar2020@azores.gov.pt"]
[null,null,null,null,null,null,null,"MAR-01.01.01-FEAMP-0481","FERNANDO ALVES, SOCIEDADE UNIPESSOAL, LDª","beneficiação/modificação, na embarcação de pesca costeira denominada ”Flor do Pico” T4","DSPEP",8229976,176264.7,79985,38992.699999999997,12997.550000000003,"2020-07-01","2021-12-31",null,null,null,"info.mar2020@azores.gov.pt"]
[null,null,null,null,null,null,null,"MAR-01.01.01-FEAMP-0482","FERNANDO ALVES, SOCIEDADE UNIPESSOAL, LDª","beneficiação/modificação, na embarcação de pesca costeira denominada ”Flor do Pico”","DSPEP",8229976,354120.1,293006.24,142840.57999999999,47613.48000000001,"2020-01-01","2021-12-31",null,null,null,"info.mar2020@azores.gov.pt"]
[null,null,null,null,null,null,null,"MAR-01.01.01-FEAMP-0485","SOFIA MACIEL SANTOS, UNIPESSOAL LDA","MODERNIZAÇÃO DA EMBARCAÇÃO CIDADE CELESTIAL - PD-500-C","DSPEP",9286361,392643,281930,137440.88,45813.619999999995,"2020-01-01","2020-12-31",null,null,null,"info.mar2020@azores.gov.pt"]
[null,null,null,null,null,null,null,"MAR-01.01.01-FEAMP-0487","TROPIPEIXE-PESCAS LDA","Beneficiação/modificação embarcação","DSPEP",7398815,166460.70000000001,87911.1,42856.67,14285.550000000003,"2019-12-05","2020-09-30",null,null,null,"info.mar2020@azores.gov.pt"]
[null,null,null,null,null,null,null,"MAR-01.01.01-FEAMP-0490","TIAGO JOSÉ - SOCIEDADE DE PESCA, LDA.","Modernização da embarcação","SRMP",7625163,29233.83,29233.83,15347.77,5115.91,"2019-11-01","2020-03-31",null,null,null,"adiantamento.fatura.inv@ifap.pt"]
[null,null,null,null,null,null,null,"MAR-01.01.01-FEAMP-0492","EGIDIO & MARCO LDA","Modernizaçao da Embarcação ","SRMP",9230287,34830.300000000003,28023.8,16814.28,5604.760000000002,"2018-05-01","2020-04-30",null,null,null,"adiantamento.fatura.inv@ifap.pt"]
[null,null,null,null,null,null,null,"MAR-01.01.01-FEAMP-0498","FERNANDO MANUEL DOS SANTOS MAGANINHO","Investimentos a bordo","DRAPN",9403865,15500,15500,5812.5,1937.5,"2020-07-01","2022-01-01",null,null,null,"adelaide.inacio@drapnorte.gov.pt"]
[null,null,null,null,null,null,null,"MAR-01.01.01-FEAMP-0500","HERMÍNIO GOMES PEREIRA","Aquisição Contentores Isotérmicos","DRAPN",7075063,6300,6300,3780,1260,"2020-03-01","2021-12-31",null,null,null,"adelaide.inacio@drapnorte.gov.pt"]
[null,null,null,null,null,null,null,"MAR-01.01.01-FEAMP-0504","JOAQUIM FRANCISCO DA CUNHA","MODERNIZAÇÃO DA EMBARCAÇÃO MANTO SAGRADO - PV-233-C","DRAPN",7094547,69117.3,65127.3,24422.74,8140.91,"2020-01-01","2020-10-31",null,null,null,"adelaide.inacio@drapnorte.gov.pt"]
[null,null,null,null,null,null,null,"MAR-01.01.01-FEAMP-0507","JOSÉ MANUEL JESUS BRANCO","Melhorias de Segurança e Condições Trabalho a Bordo","DRAPC",7204487,25058.63,18108.63,10865.18,3621.7199999999993,"2020-03-01","2020-12-31",null,null,null,"diav@drapc.gov.pt"]
[null,null,null,null,null,null,null,"MAR-01.01.01-FEAMP-0508","JOSÉ MANUEL JESUS BRANCO","Melhorias de Segurança a Bordo","DRAPC",7204487,4495,4495,2697,899,"2020-03-01","2020-12-31",null,null,null,"diav@drapc.gov.pt"]
[null,null,null,null,null,null,null,"MAR-01.01.01-FEAMP-0509","AMÉRICO BONITO DOS SANTOS","CEGO DO MAIO - I.B.","DRAPN",7074551,24161,24161,9060.3799999999992,3020.1200000000008,"2019-10-01","2020-12-31",null,null,null,"adelaide.inacio@drapnorte.gov.pt"]
[null,null,null,null,null,null,null,"MAR-01.01.01-FEAMP-0511","KARPAL PESCAS, LDA","MODERNIZAÇÃO DA EMBARCAÇÃO SONHO DE INFÂNCIA - LG-1348-C","DRAPALG",8901214,75950,75950,28481.25,9493.75,"2020-07-01","2020-12-31",null,null,null,"Mar2020-ap@drapalg.min-agricultura.pt"]
[null,null,null,null,null,null,null,"MAR-01.01.01-FEAMP-0512","BASTIDORJASMIM - UNIPESSOAL,LDA","MODERNIZAÇÃO DA EMBARCAÇÃO ADRIANA DANIELA - PV-325-C","DRAPN",8896861,125031,123017,46131.38,15377.120000000003,"2020-07-01","2020-12-31",null,null,null,"adelaide.inacio@drapnorte.gov.pt"]
[null,null,null,null,null,null,null,"MAR-01.01.01-FEAMP-0513","SOFIA MACIEL SANTOS, UNIPESSOAL LDA","MODERNIZAÇÃO DA EMBARCAÇÃO CIDADE CELESTIAL - PD-500-C","DSPEP",9286361,85950,81450,39706.89,13235.61,"2020-01-01","2020-12-31",null,null,null,"info.mar2020@azores.gov.pt"]
[null,null,null,null,null,null,null,"MAR-01.01.01-FEAMP-0515","LA PALOMA PORTUGAL, UNIPESSOAL, LDA","MODERNIZAÇÃO DA EMBARCAÇÃO ARTUR E TERESA - AN-217-C","DRAPN",9312511,1032393.25,685667.57,257125.35,85708.439999999973,"2019-02-01","2020-12-31",null,null,null,"adelaide.inacio@drapnorte.gov.pt"]
[null,null,null,null,null,null,null,"MAR-01.01.01-FEAMP-0518","VALENTINO DA SILVA BENJAMIM- CABEÇA DE CASAL DA HERANÇA DE","Aquisição Ploter GPS para a embarcação SG-275C","DSPEP",9025187,2233,2175.15,1386.66,462.22,"2018-10-31","2021-04-30",null,null,null,"info.mar2020@azores.gov.pt"]
[null,null,null,null,null,null,null,"MAR-01.01.01-FEAMP-0519","TESTA & CUNHAS, SA","Protecção individual- Surto Covid 19","DRAPC",7067984,25902,20000,7500,2500,"2020-03-18","2020-06-30",null,null,null,"diav@drapc.gov.pt"]
[null,null,null,null,null,null,null,"MAR-01.01.01-FEAMP-0520","LA PALOMA PORTUGAL, UNIPESSOAL, LDA","AQUISIÇÃO DE MATERIAIS, EQUIPAMENTOS E SERVIÇOS COM VISTA À MITIGAÇÃO DO CONTÁGIO DO COVID-19","DRAPN",9312511,4200.8,4200.8,1575.31,525.09999999999991,"2020-04-15","2020-12-31",null,null,null,"adelaide.inacio@drapnorte.gov.pt"]
[null,null,null,null,null,null,null,"MAR-01.01.01-FEAMP-0521","MÁRIO MARTINS FIGUEIREDO","Aquisição de materiais, equipamentos e serviços com vista à mitigação do contágio do COVID-19","DRAPLVT",10361154,1933.36,627.61,235.36,78.449999999999989,"2020-04-24","2020-12-31",null,null,null,"decisoesmar2020@draplvt.gov.pt"]
[null,null,null,null,null,null,null,"MAR-01.01.01-FEAMP-0522","TERROSO&TORRÃO","Investimentos a bordo","DRAPN",8933556,900.8,732.36,274.64,91.54000000000002,"2020-04-21","2020-05-31",null,null,null,"adelaide.inacio@drapnorte.gov.pt"]
[null,null,null,null,null,null,null,"MAR-01.01.01-FEAMP-0524","ROLANDO PEREIRA DIAS E PEDRO PEREIRA DIAS","Aquisição Contentores Isotérmicos","DRAPAL",8600262,6300,6300,3780,1260,"2019-10-31","2020-12-31",null,null,null,0]
[null,null,null,null,null,null,null,"MAR-01.01.01-FEAMP-0525","SIDÓNIO VIEIRA DE SOUSA","MADEIRA - Investimentos a Bordo","SRMP",8980043,9247.2199999999993,9247.2199999999993,5548.34,1849.4399999999996,"2021-01-01","2021-01-31",null,null,null,"adiantamento.fatura.inv@ifap.pt"]
[null,null,null,null,null,null,null,"MAR-01.01.01-FEAMP-0526","RAINHA DOS MILAGRES, UNIPESSOAL, LDA","Aquisição materiais, equipamentos com à mitigação do contágio do COVID-19","DRAPN",9161876,60.29,49.02,29.42,9.7999999999999972,"2020-04-15","2020-12-31",null,null,null,"adelaide.inacio@drapnorte.gov.pt"]
[null,null,null,null,null,null,null,"MAR-01.01.01-FEAMP-0527","ROSA AREIAS - ACTIVIDADES DE PESCA LDA","AQUISIÇÃO DE MATERIAIS, EQUIPAMENTOS E SERVIÇOS COM VISTA À MITIGAÇÃO DO CONTÁGIO DO COVID-19","DRAPN",7315602,9599.17,9595.74,5757.45,1919.1500000000005,"2020-03-18","2020-12-31",null,null,null,"adelaide.inacio@drapnorte.gov.pt"]
[null,null,null,null,null,null,null,"MAR-01.01.01-FEAMP-0528","MANUEL VIANA DE SÁ","AQUISIÇÃO DE MATERIAIS, EQUIPAMENTOS E SERVIÇOS COM VISTA À MITIGAÇÃO DO CONTÁGIO DO COVID-19","DRAPN",7090124,9402.35,9350,5610.02,1870,"2020-03-18","2020-12-31",null,null,null,"adelaide.inacio@drapnorte.gov.pt"]
[null,null,null,null,null,null,null,"MAR-01.01.01-FEAMP-0529","ATLANTIS - SOCIEDADE DE PESCAS LDA","Aquisição de materiais,equipamentos e serviços com vista à mitigação do contágio do Covid-19","DRAPC",7080702,15844.08,5259.81,1972.43,657.47999999999979,"2020-03-18","2020-12-31",null,null,null,"diav@drapc.gov.pt"]
[null,null,null,null,null,null,null,"MAR-01.01.01-FEAMP-0530","IAP - INDUSTRIA AVEIRENSE DE PESCA SA","Aquisição de materiais,equipamentos e serviços com vista à mitigação do contágio do Covid-19","DRAPC",7080725,13718.88,4536.8100000000004,1701.31,567.09999999999991,"2020-03-18","2020-12-31",null,null,null,"diav@drapc.gov.pt"]
[null,null,null,null,null,null,null,"MAR-01.01.01-FEAMP-0531","SOCIEDADE DE PESCA MIRADOURO, SA","Aquisição de materiais, equipamentos e serviços com vista à mitigação do contágio do COVID-19","DRAPC",7065633,35589.599999999999,32045.58,7210.25,2403.42,"2020-03-20","2020-07-05",null,null,null,"diav@drapc.gov.pt"]
[null,null,null,null,null,null,null,"MAR-01.01.01-FEAMP-0532","ANTÓNIO VIEGAS GUERREIRO, S.A.","Aquisição de materiais, equipamentos e serviços com vista à mitigação do contágio do COVID-19 ","DRAPALG",7092073,1722.86,1722.86,1033.72,344.56999999999994,"2020-05-17","2020-12-31",null,null,null,"Mar2020-ap@drapalg.min-agricultura.pt"]
[null,null,null,null,null,null,null,"MAR-01.01.01-FEAMP-0533","LUIS GOMES CRUZ","Investimentos a bordo","DRAPN",7309571,96900,84600,31725,10575,"2020-05-01","2021-12-31",null,null,null,"adelaide.inacio@drapnorte.gov.pt"]
[null,null,null,null,null,null,null,"MAR-01.01.01-FEAMP-0534","PITURROS, PESCA MARÍTIMA, LDA","MADEIRA - Investimentos a Bordo","SRMP",7744583,34439,34439,20663.400000000001,6887.7999999999993,"2020-09-01","2020-10-01",null,null,null,"adiantamento.fatura.inv@ifap.pt"]
[null,null,null,null,null,null,null,"MAR-01.01.01-FEAMP-0535","SOCIEDADE DE PESCA GOMES & FERNANDES LDA","AUISIÇÃO DE MATERIAIS, EQUIPAMENTOS E SERVIÇOS COM VISTA À MITIGAÇÃO DO CONTÁGIO DO COVID-19","DRAPAL",7311272,1207.5,1005.5,377.06,125.69,"2020-04-14","2020-07-13",null,null,null,0]
[null,null,null,null,null,null,null,"MAR-01.01.01-FEAMP-0537","LUIS & PINHAL, LDA","Apoios especificos inerentes ao surto de Covid19","DRAPLVT",7198376,3230.08,2626.08,984.78,328.26,"2020-04-27","2020-05-31",null,null,null,"decisoesmar2020@draplvt.gov.pt"]
[null,null,null,null,null,null,null,"MAR-01.01.01-FEAMP-0538","ANTÓNIO CONDE & Cª SA","Aquisição de materiais, equipamentos e serviços com vista à mitigação do contágio do COVID-19","DRAPC",7190187,33333.33,33333.33,7500,2500,"2020-03-18","2020-12-31",null,null,null,"diav@drapc.gov.pt"]
[null,null,null,null,null,null,null,"MAR-01.01.01-FEAMP-0539","ANCORAVANTAGEM - PESCA MARITIMA LDA","Aquisição de materiais, equipamentos e serviços com vista à mitigação do contágio do COVID-19","DRAPALG",8387864,9568.5,9568.5,3588.19,1196.06,"2020-04-15","2020-05-31",null,null,null,"Mar2020-ap@drapalg.min-agricultura.pt"]
[null,null,null,null,null,null,null,"MAR-01.01.01-FEAMP-0540","PESCABRASCAS LDA","Aquisição de materiais, equipamentos e serviços com vista à mitigação do contágio do COVID-19","DRAPALG",8387895,9568.5,9568.5,3588.19,1196.06,"2020-05-03","2020-12-31",null,null,null,"Mar2020-ap@drapalg.min-agricultura.pt"]
[null,null,null,null,null,null,null,"MAR-01.01.01-FEAMP-0541","SOCIEDADE DE PESCA SOUSA & MILHAZES, LDA","MODERNIZAÇÃO DA EMBARCAÇÃO MARGHERITA - PV-334-C","DRAPN",8441411,55350,55350,20756.25,6918.75,"2020-04-01","2020-12-31",null,null,null,"adelaide.inacio@drapnorte.gov.pt"]
[null,null,null,null,null,null,null,"MAR-01.01.01-FEAMP-0544","ALFREDO MANUEL PONTES COENTRÃO","MESTRE COENTRÃO - I.B.","DRAPN",7292647,102250,98590,36971.25,12323.75,"2020-06-01","2020-12-31",null,null,null,"adelaide.inacio@drapnorte.gov.pt"]
[null,null,null,null,null,null,null,"MAR-01.01.01-FEAMP-0545","EXCLUSIVÂNCORA - LDA","beneficiação/modificação, na embarcação de pesca costeira denominada T1 ","DSPEP",8160641,501751.14,331166.74,161443.81,53814.570000000007,"2020-07-01","2021-06-30",null,null,null,"info.mar2020@azores.gov.pt"]
[null,null,null,null,null,null,null,"MAR-01.01.01-FEAMP-0549","JOÃO AUGUSTO PERRUCA","Aquisição de materiais, equipamentos e serviços com vista à mitigação do contágio do COVID-19","DRAPALG",7242973,1722.96,1722.96,646.13,215.36,"2020-05-17","2020-12-31",null,null,null,"Mar2020-ap@drapalg.min-agricultura.pt"]
[null,null,null,null,null,null,null,"MAR-01.01.01-FEAMP-0550","MARIA DE LURDES BAPTISTA LOPES","PILOTO AUTOMÁTICO E RADIOBALIZA DE EMERGÊNCIA","DSPEP",6412945,3751.5,3599,2294.36,764.79,"2020-05-22","2020-12-31",null,null,null,"info.mar2020@azores.gov.pt"]
[null,null,null,null,null,null,null,"MAR-01.01.01-FEAMP-0551","ARNALDO JOSÉ DE MELIM DIAS","Beneficiação/modificação embarcação","SRMP",7917801,30179,29668,15575.71,5191.8899999999994,"2018-06-14","2020-06-30",null,null,null,"adiantamento.fatura.inv@ifap.pt"]
[null,null,null,null,null,null,null,"MAR-01.01.01-FEAMP-0552","ATLANTIKAROMAS UNIPESSOAL, LDA","Aquisição de materiais, equipamentos e serviços com vista à mitigação do contágio do COVID-19","DRAPC",10398547,33333.33,13804.8,5176.8,1725.5999999999995,"2020-03-18","2020-12-31",null,null,null,"diav@drapc.gov.pt"]
[null,null,null,null,null,null,null,"MAR-01.01.01-FEAMP-0553","NAVEGAR NA FANTASIA, LDA","Investimento a bordo","SRMP",7984555,7251.22,7196.22,4317.74,1439.2399999999998,"2020-04-23","2020-10-31",null,null,null,"adiantamento.fatura.inv@ifap.pt"]
[null,null,null,null,null,null,null,"MAR-01.01.01-FEAMP-0555","FERNANDO ALVES NUNES","Pretendo equipar a embarcaçao com outros meios electronicos, 1 grupo gerador, 1 hélice, 1 grupo electro bomba e 1 valvula de fundo","SRMP",7194606,39612.1,36647.1,19239.73,6413.2400000000016,"2020-03-06","2020-12-06",null,null,null,{"$f":"VLOOKUP(K196,S:T,2,FALSE)","v":"adiantamento.fatura.inv@ifap.pt"}]
[null,null,null,null,null,null,null,"MAR-01.01.01-FEAMP-0556","PEDRO FRANÇA, S.A.","Modernização do Navio Lutador","DRAPC",7907644,140430,140385,52644.38,17548.120000000003,"2020-06-01","2020-10-31",null,null,null,"diav@drapc.gov.pt"]
[null,null,null,null,null,null,null,"MAR-01.01.01-FEAMP-0562","THUNNUS THYNNUS - PESCAS, S.A.","beneficiação/modificação, na embarcação de pesca costeira Cabo da Praia","DSPEP",8728197,97380,67537.679999999993,32924.639999999999,10974.849999999999,"2020-01-01","2021-06-30",null,null,null,"info.mar2020@azores.gov.pt"]
[null,null,null,null,null,null,null,"MAR-01.01.01-FEAMP-0563","RAMIRO GOMES MAGANINHO","Investimentos a bordo","DRAPN",10390432,52600,51780,19417.5,6472.5,"2020-08-21","2021-12-31",null,null,null,"adelaide.inacio@drapnorte.gov.pt"]
[null,null,null,null,null,null,null,"MAR-01.01.01-FEAMP-0564","FERNANDO ALVES, SOCIEDADE UNIPESSOAL, LDª","beneficiação/modificação, na embarcação de pesca costeira denominada ”Flor do Pico”","DSPEP",8229976,240920,179430,87472.14,29157.360000000001,"2020-07-01","2021-12-31",null,null,null,"info.mar2020@azores.gov.pt"]
[null,null,null,null,null,null,null,"MAR-01.01.01-FEAMP-0565","JOSÉ BARTOLOMEU DOS SANTOS DAVID","Investimentos a Bordo Embarcação ","DRAPALG",8383425,2090,2090,1254,418,"2020-09-15","2021-12-31",null,null,null,"Mar2020-ap@drapalg.min-agricultura.pt"]
[null,null,null,null,null,null,null,"MAR-01.01.01-FEAMP-0569","MANUEL FERNANDO ROSA MADRUGA","MANUEL FERNANDO ROSA MADRUGA, MADRUGA, LP-775-L","DSPEP",6410993,7380,7380,4704.75,1568.25,"2020-10-01","2021-09-30",null,null,null,"info.mar2020@azores.gov.pt"]
[null,null,null,null,null,null,null,"MAR-01.01.01-FEAMP-0570","PESCAFIXE,UNIPESSIOAL, LDA","TERMINAL SATÉLITE, ILHA AMARELA VP-250-C","DSPEP",7554447,2900,2900,1848.75,616.25,"2020-07-14","2021-12-31",null,null,null,"info.mar2020@azores.gov.pt"]
[null,null,null,null,null,null,null,"MAR-01.01.01-FEAMP-0572","PAULO RENATO DA SILVA GOULART","melhoria eletricidade","DSPEP",7366953,3806.31,1882.92,1200.3699999999999,400.12000000000012,"2020-08-31","2021-08-31",null,null,null,"info.mar2020@azores.gov.pt"]
[null,null,null,null,null,null,null,"MAR-01.01.01-FEAMP-0574","JOSÉ SALVADOR PACHECO VIEIRA","INVESTIMENTOS no âmbito de segurança | \"Condessa dos Mares\" PD-139-L","DSPEP",9348963,14410,13360,8517,2839,"2020-09-07","2021-09-30",null,null,null,"info.mar2020@azores.gov.pt"]
[null,null,null,null,null,null,null,"MAR-01.01.01-FEAMP-0575","JOSÉ SALVADOR PACHECO VIEIRA","Investimentos no âmbito da tipologia 4 | PD-139-L \"Condessa dos Mares\"","DSPEP",9348963,14340,6190,3946.14,1315.3600000000001,"2020-09-07","2021-09-30",null,null,null,"info.mar2020@azores.gov.pt"]
[null,null,null,null,null,null,null,"MAR-01.01.01-FEAMP-0578","RUBEN FILIPE VIEIRA REBELO","AQUISIÇÃO JANGADA SALVA VIDAS E EPIRB","DSPEP",9425451,2665,2665,1698.94,566.30999999999995,"2020-09-07","2020-12-31",null,null,null,"info.mar2020@azores.gov.pt"]
[null,null,null,null,null,null,null,"MAR-01.01.01-FEAMP-0579","OURIÇO NA AREIA - UNIPESSOAL, LDA","Investimentos em segurança, comunicações e salvamento.","SRMP",7941881,16973,13095,7857,2619,"2020-09-12","2020-12-31",null,null,null,"adiantamento.fatura.inv@ifap.pt"]
[null,null,null,null,null,null,null,"MAR-01.01.01-FEAMP-0580","SOFIA MACIEL SANTOS, UNIPESSOAL LDA","MODERNIZAÇÃO DA EMBARCAÇÃO CIDADE CELESTIAL - PD-500-C","DSPEP",9286361,876236.6,329131.59999999998,160451.70000000001,53483.839999999997,"2019-01-01","2021-12-31",null,null,null,"info.mar2020@azores.gov.pt"]
[null,null,null,null,null,null,null,"MAR-01.01.01-FEAMP-0581","SOFIA MACIEL SANTOS, UNIPESSOAL LDA","MODERNIZAÇÃO DA EMBARCAÇÃO CIDADE CELESTIAL - PD-500-C","DSPEP",9286361,65000,65000,31687.5,10562.5,"2020-01-01","2021-12-31",null,null,null,"info.mar2020@azores.gov.pt"]
[null,null,null,null,null,null,null,"MAR-01.01.01-FEAMP-0582","SOFIA MACIEL SANTOS, UNIPESSOAL LDA","MODERNIZAÇÃO DA EMBARCAÇÃO CIDADE CELESTIAL - PD-500-C","DSPEP",9286361,77150,77150,37610.629999999997,12536.870000000003,"2019-12-01","2020-12-31",null,null,null,"info.mar2020@azores.gov.pt"]
[null,null,null,null,null,null,null,"MAR-01.01.01-FEAMP-0583","MARCO DANIEL VIEIRA MONIZ","AQUISIÇÃO GPSMAP","DSPEP",8821361,2527.31,2274.58,1450.04,483.35000000000014,"2020-09-14","2020-12-31",null,null,null,"info.mar2020@azores.gov.pt"]
[null,null,null,null,null,null,null,"MAR-01.01.01-FEAMP-0584","MARIA DE LURDES BAPTISTA LOPES","AQUISIÇÃO GPSMAP","DSPEP",6412945,2527.31,2527.31,1611.16,537.04999999999995,"2020-09-17","2020-12-31",null,null,null,"info.mar2020@azores.gov.pt"]
[null,null,null,null,null,null,null,"MAR-01.01.01-FEAMP-0585","PAULO JORGE DE BRUM RODRIGUES","Melhoramos na embarcação a nivel energético","DSPEP",6413113,1830.78,1119.44,713.64,237.88,"2020-09-30","2021-09-30",null,null,null,"info.mar2020@azores.gov.pt"]
[null,null,null,null,null,null,null,"MAR-01.01.01-FEAMP-0586","MANUEL VIEIRA CABRAL SEBASTIÃO","AQUISIÇÃO JANGADA SALVA VIDAS E EPIRB","DSPEP",6414422,2815,2810,1791.38,597.11999999999989,"2020-09-16","2020-12-31",null,null,null,"info.mar2020@azores.gov.pt"]
[null,null,null,null,null,null,null,"MAR-01.01.01-FEAMP-0587","JOSÉ SALVADOR REBELO VIEIRA","AQUISIÇÃO DE EQUIPAMENTO DE SEGURANÇA","DSPEP",7765993,2600,2600,1657.5,552.5,"2020-09-11","2022-03-10",null,null,null,"info.mar2020@azores.gov.pt"]
[null,null,null,null,null,null,null,"MAR-01.01.01-FEAMP-0589","GILBERTO XAVIER ANDRADE REBELO","AQUISIÇÃO DE EQUIPAMENTO DE SEGURANÇA","DSPEP",9403037,2665,2665,1698.94,566.30999999999995,"2020-09-07","2022-03-02",null,null,null,"info.mar2020@azores.gov.pt"]
[null,null,null,null,null,null,null,"MAR-01.01.01-FEAMP-0590","MANUEL CALAÇA DOS SANTOS","Aquisição de Receptor MIR-5000, Piloto Simrad AP44 e Simrad RS40 Marine VHF","SRMP",9381902,15835.94,15835.94,9501.56,3167.1900000000005,"2020-06-16","2020-12-31",null,null,null,"adiantamento.fatura.inv@ifap.pt"]
[null,null,null,null,null,null,null,"MAR-01.01.01-FEAMP-0592","JOSÉ JORGE, UNIPESSOAL LDA","MODERNIZAÇÃO DA EMBARCAÇÃO ESTRELA MARINHA - H-226-C","DSPEP",8383224,10998,10998,5361.53,1787.17,"2020-01-01","2021-09-30",null,null,null,"info.mar2020@azores.gov.pt"]
[null,null,null,null,null,null,null,"MAR-01.01.01-FEAMP-0593","JOSÉ JORGE, UNIPESSOAL LDA","MODERNIZAÇÃO DA EMBARCAÇÃO ESTRELA MARINHA - H-226-C","DSPEP",8383224,60217.87,60217.87,29356.22,9785.4000000000015,"2020-01-01","2021-09-30",null,null,null,"info.mar2020@azores.gov.pt"]
[null,null,null,null,null,null,null,"MAR-01.01.01-FEAMP-0594","JOSÉ EMANUEL SOUSA MEDEIROS","BATERIAS VICTRON GEL 12V; PROJETORES LED ESTANQUE 230 VAC","DSPEP",6412044,4135.25,4135.25,2636.22,878.74000000000024,"2020-12-31","2021-12-31",null,null,null,"info.mar2020@azores.gov.pt"]
[null,null,null,null,null,null,null,"MAR-01.01.01-FEAMP-0595","ARRAIA PESCAS, LDA","Remodelação da Embarcação","DSPEP",9256725,55968.39,49998.53,31874.06,10624.689999999999,"2020-09-01","2021-12-31",null,null,null,"info.mar2020@azores.gov.pt"]
[null,null,null,null,null,null,null,"MAR-01.01.01-FEAMP-0596","ARRAIA PESCAS, LDA","Remodelação da Embarcação","DSPEP",9256725,53994.27,49317.29,31439.8,10479.899999999998,"2020-09-01","2021-12-31",null,null,null,"info.mar2020@azores.gov.pt"]
[null,null,null,null,null,null,null,"MAR-01.01.01-FEAMP-0597","JORGE FERNANDO LEAL GONCALVES","Investimento em Saúde e segurança a Bordo","DSPEP",6410343,174615.87,147680.51,71994.27,23998.069999999992,"2020-10-01","2020-12-31",null,null,null,"info.mar2020@azores.gov.pt"]
[null,null,null,null,null,null,null,"MAR-01.01.01-FEAMP-0598","RAJADAS DE SORTE - PESCAS LDA","beneficiação/modificação na embarcação de pesca costeira Mal Amanhado","DSPEP",7596633,422730,300990,146732.65,48910.850000000006,"2020-10-01","2022-03-31",null,null,null,"info.mar2020@azores.gov.pt"]
[null,null,null,null,null,null,null,"MAR-01.01.01-FEAMP-0599","ANTÓNIO MANUEL VALENTE BAGARRÃO","António Manuel Valente Bagarrao , NEUZAMAR, H-177-C","DSPEP",6409982,5998,5998,2924.03,974.66999999999962,"2020-12-01","2021-12-31",null,null,null,"info.mar2020@azores.gov.pt"]
[null,null,null,null,null,null,null,"MAR-01.01.01-FEAMP-0602","ABÍLIO SANTOS SOCIEDADE DE PESCA UNIPESSOAL, LDA","AQUISIÇÃO DE MAQUINA DE TRANSFERENCIA DE PEIXE","DRAPALG",7321796,47978.32,47978.32,17991.87,5997.2900000000009,"2020-10-06","2020-12-31",null,null,null,"Mar2020-ap@drapalg.min-agricultura.pt"]
[null,null,null,null,null,null,null,"MAR-01.01.01-FEAMP-0603","JORGE FERNANDO LEAL GONCALVES","Melhoria do sistema de propulsão do navio","DSPEP",6410343,25028,24750,12065.64,4021.8600000000006,"2020-10-01","2020-12-31",null,null,null,"info.mar2020@azores.gov.pt"]
[null,null,null,null,null,null,null,"MAR-01.01.01-FEAMP-0604","ROGER ALCÍDIO DE MELO E VARGAS","Nereidinha - Higiene, segurança e condições de trabalho a bordo","DSPEP",8453733,2828.5,2792.25,1780.06,593.34999999999991,"2021-01-01","2022-01-01",null,null,null,"info.mar2020@azores.gov.pt"]
[null,null,null,null,null,null,null,"MAR-01.01.01-FEAMP-0605","ROGER ALCÍDIO DE MELO E VARGAS","NEREIDINHA - LIMITAÇÃO DOS IMPACTOS NA PESCA","DSPEP",8453733,4705,3680,2346,782,"2021-01-01","2022-01-01",null,null,null,"info.mar2020@azores.gov.pt"]
[null,null,null,null,null,null,null,"MAR-01.01.01-FEAMP-0607","ROGER ALCÍDIO DE MELO E VARGAS","NEREIDINHA - PREVISTA NO REGULAMENTO DELEGADO (EU) 2015/531 ARTIGO13º, 14º E 16º","DSPEP",8453733,7077.7,5415.89,3452.63,1150.8800000000001,"2021-01-01","2022-01-01",null,null,null,"info.mar2020@azores.gov.pt"]
[null,null,null,null,null,null,null,"MAR-01.01.01-FEAMP-0608","Joao Gabriel Da Costa Pinheiro","João Gabriel da Costa Pinheiro, Ilhéu Azul, H-199-C, Inv. Segurança","DSPEP",6410695,11395,9029,5756.02,1918.6399999999994,"2020-10-01","2021-02-28",null,null,null,"info.mar2020@azores.gov.pt"]
[null,null,null,null,null,null,null,"MAR-01.01.01-FEAMP-0623","FÁBIO TOBIAS CALAÇA SANTOS","Beneficiação/modificação embarcação","SRMP",9381202,5045.5200000000004,5045.5200000000004,3027.32,1009.0999999999999,"2020-09-27","2021-03-31",null,null,null,"adiantamento.fatura.inv@ifap.pt"]
[null,null,null,null,null,null,null,"MAR-01.01.01-FEAMP-0624","JORGE SANTOS & MONIZ, LDA","Investimento a bordo","SRMP",7928547,18796.2,18796.2,11277.72,3759.24,"2021-04-01","2021-05-30",null,null,null,"adiantamento.fatura.inv@ifap.pt"]
[null,null,null,null,null,null,null,"MAR-01.01.01-FEAMP-0625","ANTÓNIO MANUEL TROCADO CASCÃO","MODERNIZAÇÃO DA EMBARCAÇÃO SENHORA DAS DORES - PV-117-C","DRAPN",7977184,97935,93518,35069.269999999997,11689.730000000003,"2021-01-01","2021-12-31",null,null,null,"adelaide.inacio@drapnorte.gov.pt"]
[null,null,null,null,null,null,null,"MAR-01.01.01-FEAMP-0627","ABÍLIO SANTOS SOCIEDADE DE PESCA UNIPESSOAL, LDA","MODERNIZAÇÃO DA EMBARCAÇÃO POEMA DO MAR - VR-554-C","DRAPALG",7321796,35943,35943,13478.64,4492.8600000000006,"2021-01-01","2021-12-31",null,null,null,"Mar2020-ap@drapalg.min-agricultura.pt"]
[null,null,null,null,null,null,null,"MAR-01.01.01-FEAMP-0629","ROCHA & BOTA LDA","Investimento a Bordo ","DRAPALG",7071807,31000,31000,18600,6200,"2021-01-02","2021-12-02",null,null,null,"Mar2020-ap@drapalg.min-agricultura.pt"]
[null,null,null,null,null,null,null,"MAR-01.01.01-FEAMP-0631","EMPRESA DE PESCA SÃO JACINTO, SA","Modernização do navio Coimbra","DRAPC",7178035,20976.05,19527.78,7322.92,2440.9699999999993,"2020-12-10","2021-01-04",null,null,null,"diav@drapc.gov.pt"]
[null,null,null,null,null,null,null,"MAR-01.01.01-FEAMP-0634","ANTÓNIO GRAÇA COENTRÃO","Modernização de embarcação - Antonio Damata","DRAPN",7305623,23942.54,8309.64,3116.12,1038.6999999999998,"2020-12-28","2021-12-31",null,null,null,"adelaide.inacio@drapnorte.gov.pt"]
[null,null,null,null,null,null,null,"MAR-01.01.01-FEAMP-0635","FASCÍNIOS DO MAR, LDA","FASCINIOS DO MAR - I.B.","DRAPN",7451606,22113.200000000001,22113.200000000001,8292.4599999999991,2764.1400000000012,"2020-08-28","2021-12-31",null,null,null,"adelaide.inacio@drapnorte.gov.pt"]
[null,null,null,null,null,null,null,"MAR-01.01.01-FEAMP-0637","PITURROS, PESCA MARÍTIMA, LDA","MADEIRA - Investimentos a Bordo","SRMP",7744583,16267.4,16267.4,9760.44,3253.4799999999996,"2021-01-04","2021-12-14",null,null,null,"adiantamento.fatura.inv@ifap.pt"]
[null,null,null,null,null,null,null,"MAR-01.01.01-FEAMP-0638","MANUEL AGONIA DA SILVA MARQUES","Silva Marques - IB III","DRAPN",8989003,29270,29270,10976.25,3658.75,"2021-04-01","2021-12-31",null,null,null,"adelaide.inacio@drapnorte.gov.pt"]
[null,null,null,null,null,null,null,"MAR-01.01.01-FEAMP-0639","MANUEL AGONIA DA SILVA MARQUES","Silva Marques - I.B. IV","DRAPN",8989003,148480,135830,50936.26,16978.739999999998,"2021-04-01","2021-12-31",null,null,null,"adelaide.inacio@drapnorte.gov.pt"]
[null,null,null,null,null,null,null,"MAR-01.01.01-FEAMP-0641","AMÉRICO BONITO DOS SANTOS","Silvério Manuel - IB ","DRAPN",7074551,14000,14000,5250,1750,"2020-12-23","2021-12-31",null,null,null,"adelaide.inacio@drapnorte.gov.pt"]
[null,null,null,null,null,null,null,"MAR-01.01.01-FEAMP-0642","MARIA DAS DORES DOS SANTOS NOVO FESTAS","Goncalo Festas - I.B.","DRAPN",10390022,14000,10208,3828,1276,"2021-01-04","2021-12-31",null,null,null,"adelaide.inacio@drapnorte.gov.pt"]
[null,null,null,null,null,null,null,"MAR-01.01.01-FEAMP-0645","CÁLCULO APETECÍVEL - LDA","Investimento a bordo","SRMP",9322873,15211.6,15211.6,9126.9599999999991,3042.3200000000015,"2021-04-01","2021-05-30",null,null,null,"adiantamento.fatura.inv@ifap.pt"]
[null,null,null,null,null,null,null,"MAR-01.01.01-FEAMP-0649","SOCIEDADE DE PESCA CHAVES E COIMBRA, LDA.","Aquisição Contentores Isotérmicos","DRAPC",9136871,9450,9450,5670,1890,"2021-01-01","2021-12-31",null,null,null,"diav@drapc.gov.pt"]
[null,null,null,null,null,null,null,"MAR-01.01.01-FEAMP-0650","FERNANDO MANUEL DOS SANTOS MAGANINHO","Investimentos a bordo - Melhoria Segurança e Condições a Bordo","DRAPN",9403865,14700,14700,5512.5,1837.5,"2021-01-01","2021-12-31",null,null,null,"adelaide.inacio@drapnorte.gov.pt"]
[null,null,null,null,null,null,null,"MAR-01.01.02-FEAMP-0495","MARCO DANIEL VIEIRA MONIZ","DETETOR DE APERELHOS PESCA POR GPS","DSPEP",8821361,6444,5934,3782.93,1260.9699999999998,"2020-01-28","2020-09-30",null,null,null,"info.mar2020@azores.gov.pt"]
[null,null,null,null,null,null,null,"MAR-01.01.02-FEAMP-0601","PAULO JORGE DE BRUM RODRIGUES","INSTALAÇÃO GERADOR","DSPEP",6413113,1686.3,1686.3,1075.02,358.33999999999992,"2020-12-01","2021-12-31",null,null,null,"info.mar2020@azores.gov.pt"]
[null,null,null,null,null,null,null,"MAR-01.01.02-FEAMP-0613","COASTFISHING, S.A.","MODERNIZAÇÃO DA EMBARCAÇÃO PENINSULA - L-2028-C","DRAPN",7536643,64645.22,64645.22,24241.96,8080.6500000000015,"2020-08-01","2021-08-31",null,null,null,"adelaide.inacio@drapnorte.gov.pt"]
[null,null,null,null,null,null,null,"MAR-01.01.03-FEAMP-0006","ESTRELA DE ÂNCORA, LDA.","ESTRELA de ÂNCORA AN-186-C  -  PRT000022560","DRAPN",7960367,105878,104202,15630.3,15630.3,"2016-06-20","2017-12-31",null,null,null,"adelaide.inacio@drapnorte.gov.pt"]
[null,null,null,null,null,null,null,"MAR-01.01.03-FEAMP-0007","JORGE CARLOS AMORIM DA SILVA SOUTO","STEVEN V-672-L  -  PRT000013128","DRAPN",7280581,11124,11124,1668.6,1668.6,"2016-07-15","2016-08-31",null,null,null,"adelaide.inacio@drapnorte.gov.pt"]
[null,null,null,null,null,null,null,"MAR-01.01.03-FEAMP-0021","NELSON PEREIRA NETO","LINO, T-420-L  -  PRT000024468","DRAPALG",7329327,13343.7,13343.7,2001.56,2001.5500000000002,"2016-09-01","2017-08-31",null,null,null,"Mar2020-ap@drapalg.min-agricultura.pt"]
[null,null,null,null,null,null,null,"MAR-01.01.03-FEAMP-0033","VITOR MANUEL HENRIQUES DA FONSECA, UNIPESSOAL, LDA.","MARINÉU  PE-2163-C -  PRT000020424","DRAPLVT",7303311,27400,27400,4110,4110,"2016-12-15","2017-07-31",null,null,null,"decisoesmar2020@draplvt.gov.pt"]
[null,null,null,null,null,null,null,"MAR-01.01.03-FEAMP-0040","JORGE MANUEL PONTES MASCARENHAS ARVELOA","CARLA PATRICIA, AL-543-L  -  PRT000021771","DRAPALG",8811092,11773.18,9918.76,1487.81,1487.81,"2016-10-15","2018-06-30",null,null,null,"Mar2020-ap@drapalg.min-agricultura.pt"]
[null,null,null,null,null,null,null,"MAR-01.01.03-FEAMP-0044","DOMINGOS MANUEL FANGUEIRO POSTIGA","VEM se VIER  VC-270-C -  PRT000023042","DRAPN",7941165,122924,121440,18216,18216,"2016-09-20","2017-12-31",null,null,null,"adelaide.inacio@drapnorte.gov.pt"]
[null,null,null,null,null,null,null,"MAR-01.01.03-FEAMP-0046","VALÉRIO PEDRO DOS SANTOS ARRAIS","OS MECAS, O-2214-L  -  PRT000021841","DRAPALG",7492336,9923.2900000000009,9923.2900000000009,1488.5,1488.4899999999998,"2016-10-05","2017-10-05",null,null,null,"Mar2020-ap@drapalg.min-agricultura.pt"]
[null,null,null,null,null,null,null,"MAR-01.01.03-FEAMP-0049","RAMIRO TOMÁS DE BRITO JOSÉ","GRATIDÃO, O-2128-L  -  PRT000022169","DRAPALG",7303791,9374.91,9374.91,1406.24,1406.2299999999998,"2016-10-05","2017-10-05",null,null,null,"Mar2020-ap@drapalg.min-agricultura.pt"]
[null,null,null,null,null,null,null,"MAR-01.01.03-FEAMP-0050","JOSÉ RAFAEL PATRÍCIO QUINTINO","JESUS, O-1973-L  -  PRT000019871","DRAPALG",8926587,5942,5942,891.3,891.3,"2016-10-04","2017-10-04",null,null,null,{"$f":"VLOOKUP(K260,S:T,2,FALSE)","v":"Mar2020-ap@drapalg.min-agricultura.pt"}]
[null,null,null,null,null,null,null,"MAR-01.01.03-FEAMP-0061","VALTER JAIME DE CASTRO MANAM","SOL NASCENTE  PE-2507-L -  PRT000024460","DRAPLVT",8793006,11574,11534,1730.1,1730.1,"2017-09-30","2018-01-30",null,null,null,"decisoesmar2020@draplvt.gov.pt"]
[null,null,null,null,null,null,null,"MAR-01.01.03-FEAMP-0063","JOEL QUITÉRIO MORAIS","SANTA FÉ  PE-1927-L -  PRT000014899","DRAPLVT",8816866,7182,7182,1077.3,1077.3,"2017-05-24","2019-11-15",null,null,null,"decisoesmar2020@draplvt.gov.pt"]
[null,null,null,null,null,null,null,"MAR-01.01.03-FEAMP-0070","RUI JORGE DA CRUZ MAGANINHO","CHORONA  P-1736-L -  PRT000010931","DRAPN",8362665,2750,2750,412.5,412.5,"2016-11-24","2016-12-24",null,null,null,"adelaide.inacio@drapnorte.gov.pt"]
[null,null,null,null,null,null,null,"MAR-01.01.03-FEAMP-0077","JOÃO HERMÍNIO EFIGÉNIA DA CRUZ","PEDRINHO, T-350-L -  PRT000021160","DRAPALG",8803444,9935.4500000000007,9935.4500000000007,1490.32,1490.32,"2016-12-05","2017-07-31",null,null,null,"Mar2020-ap@drapalg.min-agricultura.pt"]
[null,null,null,null,null,null,null,"MAR-01.01.03-FEAMP-0083","SEZIMAR - SOCIEDADE DE PESCA E COMÉRCIO DE PEIXE, LDA","ESTRELA DIVINA  SB-255-C -  PRT000000290","DRAPLVT",8375991,45668.93,34398.480000000003,5159.7700000000004,5159.7700000000004,"2016-12-21","2017-12-30",null,null,null,"decisoesmar2020@draplvt.gov.pt"]
[null,null,null,null,null,null,null,"MAR-01.01.03-FEAMP-0090","ALFREDO AUGUSTO DA CRUZ GONÇALVES","NOÉ  V-671-L -  PRT000024402","DRAPN",7087725,3495,3495,524.25,524.25,"2017-01-15","2017-01-31",null,null,null,"adelaide.inacio@drapnorte.gov.pt"]
[null,null,null,null,null,null,null,"MAR-01.01.03-FEAMP-0097","JOAQUIM RAMOS AGRA","PARCERIA PV-288-C -  PRT000020574","DRAPN",7085475,99430,98240,14736,14736,"2016-12-10","2017-12-31",null,null,null,"adelaide.inacio@drapnorte.gov.pt"]
[null,null,null,null,null,null,null,"MAR-01.01.03-FEAMP-0098","VÍTOR MANUEL PATRÍCIO BONZINHO","SEMPRE AMIGOS F-944-L -  PRT000020884","DRAPALG",7404025,9375.51,9375.51,1406.33,1406.3200000000002,"2017-01-25","2019-01-24",null,null,null,"Mar2020-ap@drapalg.min-agricultura.pt"]
[null,null,null,null,null,null,null,"MAR-01.01.03-FEAMP-0100","JOSÉ ARTUR LUÍS DOS SANTOS","KINKY  TR-1486-L -  PRT000022493","DRAPLVT",8901856,7440.24,7440.24,1116.04,1116.0300000000002,"2017-01-31","2017-06-30",null,null,null,"decisoesmar2020@draplvt.gov.pt"]
[null,null,null,null,null,null,null,"MAR-01.01.03-FEAMP-0107","RICARDO ALEXANDRE VAIRINHOS MARTINS","BRISA DO OCEANO Q-1081-L -  PRT000020876","DRAPALG",8935056,11618,11618,1742.7,1742.7,"2017-02-01","2017-06-30",null,null,null,"Mar2020-ap@drapalg.min-agricultura.pt"]
[null,null,null,null,null,null,null,"MAR-01.01.03-FEAMP-0116","JOSÉ CONSTÂNCIO GUERREIRO","NÃO É PRECISO,  S-923-L - PRT000004282","DRAPLVT",8908937,4923,4923,738.45,738.45,"2017-03-31","2017-08-30",null,null,null,"decisoesmar2020@draplvt.gov.pt"]
[null,null,null,null,null,null,null,"MAR-01.01.03-FEAMP-0118","JÚLIO GUERREIRO MARTINS","XEBARRA, Q-1177-L -  PRT000023854","DRAPALG",8876527,14421,12413,1861.95,1861.95,"2017-02-06","2020-01-13",null,null,null,"Mar2020-ap@drapalg.min-agricultura.pt"]
[null,null,null,null,null,null,null,"MAR-01.01.03-FEAMP-0124","JORGE MANUEL BELO TAVARES","PÉROLA,  A-3552-L -  PRT000022567","DRAPC",8928934,3456.59,3456.59,518.49,518.49,"2017-04-01","2017-12-31",null,null,null,"diav@drapc.gov.pt"]
[null,null,null,null,null,null,null,"MAR-01.01.03-FEAMP-0126","JOAQUIM MATEUS CORREIA CATARINO","BENÇÃO  DE DEUS  S-2157-L -  PRT000024511","DRAPLVT",8916577,10200,10200,1530,1530,"2017-03-30","2017-04-15",null,null,null,"decisoesmar2020@draplvt.gov.pt"]
[null,null,null,null,null,null,null,"MAR-01.01.03-FEAMP-0127","HERNÂNI DA SILVA RODRIGUES","CALÃO II,  SB-1323-L -  PRT000023801","DRAPLVT",8917921,3437,3437,515.54999999999995,515.54999999999995,"2017-01-09","2017-12-31",null,null,null,"decisoesmar2020@draplvt.gov.pt"]
[null,null,null,null,null,null,null,"MAR-01.01.03-FEAMP-0132","ANTERO MANUEL PEDRO NOBRE","JORGE MANUEL, Q-1119-L -  PRT000022327","DRAPALG",7740585,9918.76,9918.76,1487.81,1487.81,"2017-03-30","2018-07-31",null,null,null,"Mar2020-ap@drapalg.min-agricultura.pt"]
[null,null,null,null,null,null,null,"MAR-01.01.03-FEAMP-0133","ANTÓNIO JOSÉ DA CRUZ SILVA RAIMUNDO","LÚCIA DE JESUS  SB-1125-C -  PRT000001289","DRAPLVT",7210252,52132.75,41672.83,6250.93,6250.92,"2016-04-01","2017-07-31",null,null,null,"decisoesmar2020@draplvt.gov.pt"]
[null,null,null,null,null,null,null,"MAR-01.01.03-FEAMP-0134","JOSÉ CARLOS FREIRE DE LIMA GAMBOA","ISA  LX-344-L -  PRT000023255","DRAPLVT",7699586,4105,4105,615.75,615.75,"2017-04-08","2017-04-14",null,null,null,"decisoesmar2020@draplvt.gov.pt"]
[null,null,null,null,null,null,null,"MAR-01.01.03-FEAMP-0137","MARIA ODETE DA COSTA","SANTO OVIDIO  S-1595-L -  PRT000004514","DRAPLVT",8904553,7000,7000,1050,1050,"2017-08-10","2017-11-24",null,null,null,"decisoesmar2020@draplvt.gov.pt"]
[null,null,null,null,null,null,null,"MAR-01.01.03-FEAMP-0138","GABRIEL JESUS BUCHINHO SANTOS","JONI E DIOGO O-2175-L -  PRT000023849","DRAPALG",7662997,10900,10900,1635,1635,"2017-04-13","2018-12-31",null,null,null,"Mar2020-ap@drapalg.min-agricultura.pt"]
[null,null,null,null,null,null,null,"MAR-01.01.03-FEAMP-0154","LUÍS MIGUEL BISPA ROCHA","FILIPE ANDRÉ  S-2115-L -  PRT000022871","DRAPLVT",7553854,10248.780000000001,10248.780000000001,1537.32,1537.3100000000002,"2017-06-22","2017-06-25",null,null,null,"decisoesmar2020@draplvt.gov.pt"]
[null,null,null,null,null,null,null,"MAR-01.01.03-FEAMP-0163","PEXINHA SOCIEDADE DAS PESCAS, LDA","DIOGO MIGUEL   PE-2380-C -  PRT000020955","DRAPLVT",8981143,28838,28838,4325.7,4325.7,"2017-09-15","2017-12-15",null,null,null,"decisoesmar2020@draplvt.gov.pt"]
[null,null,null,null,null,null,null,"MAR-01.01.03-FEAMP-0172","SOCIEDADE DE PESCAS FONSECAS & MIGUEL, LDA.","DÁRIO LUIS  PE-2436-C -  PRT000021354","DRAPLVT",8986941,33950,33950,5092.5,5092.5,"2017-11-15","2018-02-15",null,null,null,"decisoesmar2020@draplvt.gov.pt"]
[null,null,null,null,null,null,null,"MAR-01.01.03-FEAMP-0174","FERNANDO DOS SANTOS CIDADE","FERRINHOS  SB-1324-L -  PRT000023744","DRAPLVT",7741051,9069.11,9069.11,1360.37,1360.3600000000001,"2017-04-29","2018-01-18",null,null,null,"decisoesmar2020@draplvt.gov.pt"]
[null,null,null,null,null,null,null,"MAR-01.01.03-FEAMP-0175","MARIA GRACIETE BOTAS MARQUÊS MATA","FINA FLÔR  SB-1346-L -  PRT000024883","DRAPLVT",7325755,11209,11209,1681.35,1681.35,"2016-12-02","2018-02-06",null,null,null,"decisoesmar2020@draplvt.gov.pt"]
[null,null,null,null,null,null,null,"MAR-01.01.03-FEAMP-0177","JOSÉ CARLOS MILHAZES MOITA E JOAQUIM JOSÉ MILHAZES MOITA","FÁTIMA JOSÉ  PV-298-C -  PRT000022486","DRAPN",7302307,107652,101132,15169.8,15169.8,"2016-09-16","2018-03-10",null,null,null,"adelaide.inacio@drapnorte.gov.pt"]
[null,null,null,null,null,null,null,"MAR-01.01.03-FEAMP-0178","FERREIRA MAR, LDA","DRAGÃO do MAR, VC-223-C -  PRT000019806","DRAPN",7744931,140644,132012,19801.8,19801.8,"2016-06-05","2018-07-31",null,null,null,"adelaide.inacio@drapnorte.gov.pt"]
[null,null,null,null,null,null,null,"MAR-01.01.03-FEAMP-0179","VÍTOR MANUEL PATRÍCIO RAIMUNDO","RICA COSTA  SB-1322-L -  PRT000023270","DRAPLVT",8854996,18135,18135,2720.25,2720.25,"2016-07-05","2018-02-27",null,null,null,"decisoesmar2020@draplvt.gov.pt"]
[null,null,null,null,null,null,null,"MAR-01.01.03-FEAMP-0180","FERNANDO JOSÉ FRANCO DA CRUZ CATARINO","SETE MARES  SB-1308-L -  PRT000022706","DRAPLVT",8216852,12433,12433,1864.95,1864.95,"2017-07-17","2017-12-31",null,null,null,"decisoesmar2020@draplvt.gov.pt"]
[null,null,null,null,null,null,null,"MAR-01.01.03-FEAMP-0190","NUNO ALEXANDRE NUNES DIAS ROCHA","SOL POSTO,  PE-2898-L -  PRT000021666","DRAPLVT",8802151,13662.94,6500,975,975,"2017-07-20","2019-11-15",null,null,null,"decisoesmar2020@draplvt.gov.pt"]
[null,null,null,null,null,null,null,"MAR-01.01.03-FEAMP-0191","DIONÍSIO ALEXANDRE CONCEIÇÃO TEIXEIRA MACHADO","LEÃOZINHO  SB-1300-L -  PRT000022508","DRAPLVT",8377297,11668.89,11668.89,1750.33,1750.33,"2016-08-31","2018-03-02",null,null,null,"decisoesmar2020@draplvt.gov.pt"]
[null,null,null,null,null,null,null,"MAR-01.01.03-FEAMP-0193","ANTÓNIO JORGE MARÇALO DIAS","GRAVANA  SB-1339-L -  PRT000021775","DRAPLVT",7323532,10188,6188,928.2,928.2,"2015-10-01","2018-02-15",null,null,null,"decisoesmar2020@draplvt.gov.pt"]
[null,null,null,null,null,null,null,"MAR-01.01.03-FEAMP-0194","MÁRIO RUI MOURO DINIS","JOSÉ RUI  VC-252-C - Aq. Motor -  PRT000021362","DRAPN",7296742,96430,91830,13774.5,13774.5,"2017-08-04","2017-12-31",null,null,null,"adelaide.inacio@drapnorte.gov.pt"]
[null,null,null,null,null,null,null,"MAR-01.01.03-FEAMP-0199","CARLOS MANUEL FIALHO NUNES","GRIFO, SA-631-L -  PRT000024016","DRAPALG",9009915,10430,10430,1564.5,1564.5,"2017-08-21","2018-03-31",null,null,null,"Mar2020-ap@drapalg.min-agricultura.pt"]
[null,null,null,null,null,null,null,"MAR-01.01.03-FEAMP-0204","ANTÓNIO FIGUEIREDO TORRÃO","FÁTIMA TORRÃO  PV-333-C -  PRT000023662","DRAPN",7090743,78870,78870,11830.5,11830.5,"2018-04-01","2019-07-30",null,null,null,"adelaide.inacio@drapnorte.gov.pt"]
[null,null,null,null,null,null,null,"MAR-01.01.03-FEAMP-0206","VENÂNCIO JOSÉ PINHEIRO DA SILVA","CHINESA  C-1194-L - PRT000023489","DRAPN",9001815,4458,4458,668.7,668.7,"2017-10-16","2018-05-31",null,null,null,"adelaide.inacio@drapnorte.gov.pt"]
[null,null,null,null,null,null,null,"MAR-01.01.03-FEAMP-0208","ROSA AREIAS - ACTIVIDADES DE PESCA LDA","SANTA MARIA das AREIAS  AN-194-C - PRT000023099","DRAPN",7315602,118356,101386,15207.9,15207.9,"2018-06-01","2019-12-31",null,null,null,"adelaide.inacio@drapnorte.gov.pt"]
[null,null,null,null,null,null,null,"MAR-01.01.03-FEAMP-0210","MANUEL VIANA DE SÁ","SENHORA da AGONIA  AN-193-C -  PRT000023172","DRAPN",7090124,147541,106670,16000.5,16000.5,"2018-06-01","2019-12-31",null,null,null,"adelaide.inacio@drapnorte.gov.pt"]
[null,null,null,null,null,null,null,"MAR-01.01.03-FEAMP-0214","AIRES BRITES UNIPESSOAL, LDA","Substituição do motor embarcação HÉLDER JOSÉ FN-1647-C","SRMP",9355085,49500,49500,7425,7425,"2017-08-21","2018-08-21",null,null,null,"adiantamento.fatura.inv@ifap.pt"]
[null,null,null,null,null,null,null,"MAR-01.01.03-FEAMP-0219","CARLOS JOSÉ REIS LAGOELA","VAMOS ANDANDO, ES-302-L -  PRT000022188","DRAPN",7810096,15597,15597,2339.5500000000002,2339.5500000000002,"2017-10-16","2018-05-31",null,null,null,"adelaide.inacio@drapnorte.gov.pt"]
[null,null,null,null,null,null,null,"MAR-01.01.03-FEAMP-0220","HUGO JORGE CARVALHO EIRAS","PRINCESA do MAR,  ES-322-L -  PRT000022191","DRAPN",8029003,15597,15597,2339.5500000000002,2339.5500000000002,"2017-10-16","2018-05-31",null,null,null,"adelaide.inacio@drapnorte.gov.pt"]
[null,null,null,null,null,null,null,"MAR-01.01.03-FEAMP-0222","PAULO JOSÉ DA CONCEIÇÃO TRINDADE","PICA  PE-2483-L -  PRT000024462","DRAPLVT",9002181,7358,7358,1103.7,1103.7,"2017-09-15","2018-03-31",null,null,null,"decisoesmar2020@draplvt.gov.pt"]
[null,null,null,null,null,null,null,"MAR-01.01.03-FEAMP-0223","JOSÉ AUGUSTO LEAL DA LUZ ALEXANDRE","AVÔ ZÉ, SA-655-L -  PRT000021483","DRAPALG",8994534,10764.94,10764.94,1614.74,1614.74,"2017-09-01","2018-02-28",null,null,null,"Mar2020-ap@drapalg.min-agricultura.pt"]
[null,null,null,null,null,null,null,"MAR-01.01.03-FEAMP-0233","MESTRE DA GALILEIA DE RAMIRO & EMILIA - EMPRESA DE PESCA, LDA","MESTRE da GALILEIA, P-2150-L - PRT000022467","DRAPN",7215075,78442,51810,7771.5,7771.5,"2018-02-20","2019-07-31",null,null,null,"adelaide.inacio@drapnorte.gov.pt"]
[null,null,null,null,null,null,null,"MAR-01.01.03-FEAMP-0237","JOSÉ ANAZÁRIO LOPES CARVALHO","POMBA BRANCA  SB-739-L - PRT000004013","DRAPLVT",9026426,1231.71,1231.71,184.76,184.75,"2017-11-01","2017-12-31",null,null,null,"decisoesmar2020@draplvt.gov.pt"]
[null,null,null,null,null,null,null,"MAR-01.01.03-FEAMP-0245","AAPCS AAPCS - ASSOCIAÇÃO DE ARMADORES DE PESCA LOCAL E ARTESANAL DO CENTRO E SUL","ALVA,  SB-1332-L - PRT000024399","DRAPLVT",9000545,9115.98,9115.98,1367.4,1367.3899999999999,"2017-11-23","2018-12-31",null,null,null,"decisoesmar2020@draplvt.gov.pt"]
[null,null,null,null,null,null,null,"MAR-01.01.03-FEAMP-0249","HUMBERTO JOÃO BATISTA LEANDRO","ROMEU E SOFIA , SB-1318-L  - PRT000021442","DRAPLVT",9029316,9101.32,6887,1033.05,1033.05,"2015-10-12","2018-04-11",null,null,null,"decisoesmar2020@draplvt.gov.pt"]
[null,null,null,null,null,null,null,"MAR-01.01.03-FEAMP-0253","MARTINHO JOSÉ VIEIRA DE PASSOS","CARLA DIANA  C-1300-L -  PRT000024912","DRAPN",9032601,5702.59,5702.59,855.39,855.39,"2018-01-15","2018-06-30",null,null,null,"adelaide.inacio@drapnorte.gov.pt"]
[null,null,null,null,null,null,null,"MAR-01.01.03-FEAMP-0258","ANTÓNIO ILÍDIO DA QUINTA DIAS","PATRICÍA ALEXANDRA  ES-342-L  -  PRT000024125","DRAPN",8137932,12684,12684,1902.6,1902.6,"2018-01-21","2018-05-31",null,null,null,"adelaide.inacio@drapnorte.gov.pt"]
[null,null,null,null,null,null,null,"MAR-01.01.03-FEAMP-0261","ABRAÃO DE JESUS MOREIRA ","ABRAÃO MIGUEL P-2148-C -  PRT000022841","DRAPN",7084754,66543,59537,8930.5499999999993,8930.5499999999993,"2018-03-01","2018-10-31",null,null,null,"adelaide.inacio@drapnorte.gov.pt"]
[null,null,null,null,null,null,null,"MAR-01.01.03-FEAMP-0266","VASCO MIGUEL PINTO SEROMENHO","TRAINEL, Q-1141-L - PRT000023167","DRAPALG",9145491,9500,9500,1425,1425,"2018-02-01","2020-01-17",null,null,null,"Mar2020-ap@drapalg.min-agricultura.pt"]
[null,null,null,null,null,null,null,"MAR-01.01.03-FEAMP-0270","CARLOS MANUEL DA SILVA VIEIRA","TANIA VIEIRA, A-3596-L - PRT000022615","DRAPC",9156507,2600,2600,390,390,"2018-03-01","2018-08-31",null,null,null,"diav@drapc.gov.pt"]
[null,null,null,null,null,null,null,"MAR-01.01.03-FEAMP-0271","IDALÉCIO DA SILVA ESPADA","ESTRELA DO ORIENTE, S-2159-L - PRT000020429","DRAPLVT",9029904,8300,8300,1245,1245,"2018-02-12","2018-08-30",null,null,null,"decisoesmar2020@draplvt.gov.pt"]
[null,null,null,null,null,null,null,"MAR-01.01.03-FEAMP-0286","PEDRO NUNO CARETAS BAPTISTA","JOAO MIGUEL, SN-664-C (atual PAI LOURENÇO, SB-1359-C)-PRT000018894","DRAPAL",9167923,15500,15500,2325,2325,"2018-03-01","2019-01-31",null,null,null,0]
[null,null,null,null,null,null,null,"MAR-01.01.03-FEAMP-0291","JAIME MANUEL FERREIRA DA COSTA","SANTO ANTÓNIO  C-1039-L - PRT000022546","DRAPN",9136101,5701.6,5701.6,855.24,855.24,"2018-03-20","2018-07-30",null,null,null,"adelaide.inacio@drapnorte.gov.pt"]
[null,null,null,null,null,null,null,"MAR-01.01.03-FEAMP-0300","JOSÉ MANUEL DE LIMA NIBRA","FLECHA ES-329-L - Aq. Motor - PRT000023402","DRAPN",7071421,11720,11720,1758,1758,"2018-05-01","2018-10-31",null,null,null,"adelaide.inacio@drapnorte.gov.pt"]
[null,null,null,null,null,null,null,"MAR-01.01.03-FEAMP-0301","LIZUARTE DA BALINHA CORREIA","NOSSA SENHORA do CARMO  V-183-L - PRT000003451","DRAPN",7159316,4600,4600,690,690,"2018-05-02","2018-07-30",null,null,null,"adelaide.inacio@drapnorte.gov.pt"]
[null,null,null,null,null,null,null,"MAR-01.01.03-FEAMP-0305","IVÃ ANDRÉ MENDONÇA BECHINHO","SARGUETE, O-2234-L - PRT000023445","DRAPALG",7189323,17852.43,11440.99,1716.15,1716.15,"2018-10-01","2018-12-31",null,null,null,"Mar2020-ap@drapalg.min-agricultura.pt"]
[null,null,null,null,null,null,null,"MAR-01.01.03-FEAMP-0308","JOSÉ AMÂNDIO LUÍS DOS REIS","LEANDRO EMANUEL, F-987-L - PRT000021786","DRAPALG",7577311,12402.28,11429.07,1714.36,1714.36,"2018-03-01","2019-12-01",null,null,null,"Mar2020-ap@drapalg.min-agricultura.pt"]
[null,null,null,null,null,null,null,"MAR-01.01.03-FEAMP-0312","JOSÉ LUÍS DA ENCARNAÇÃO TAVARES","ROAZ, FZ-896-L - PRT000022189","DRAPALG",9136461,10952,10952,1642.8,1642.8,"2018-06-01","2020-12-01",null,null,null,"Mar2020-ap@drapalg.min-agricultura.pt"]
[null,null,null,null,null,null,null,"MAR-01.01.03-FEAMP-0316","BRUNO CARVALHO CERQUEIRA PAULO","Aquisição Motor Suzuki","DRAPLVT",9236984,7339.93,7339.93,1100.99,1100.99,"2018-05-30","2018-06-30",null,null,null,"decisoesmar2020@draplvt.gov.pt"]
[null,null,null,null,null,null,null,"MAR-01.01.03-FEAMP-0321","FRANCISCO JOSÉ RAMOS FORTUNATO","ESTRELA CADENTE  PV-321-C - PRT000020677","DRAPN",7385954,74730,67441,10116.15,10116.15,"2018-09-01","2020-02-28",null,null,null,"adelaide.inacio@drapnorte.gov.pt"]
[null,null,null,null,null,null,null,"MAR-01.01.03-FEAMP-0322","NOÉ FELICIANO DO VALE GUIMARÃES","FUZILEIRO, C-991-L - PRT000020641","DRAPN",7688364,5701.6,5701.6,855.24,855.24,"2018-06-25","2018-09-30",null,null,null,"adelaide.inacio@drapnorte.gov.pt"]
[null,null,null,null,null,null,null,"MAR-01.01.03-FEAMP-0324","JOSÉ LUIS DA COSTA RODRIGUES","TONY  C-1147-L - PRT000022583","DRAPN",9212154,5020,4093,613.95000000000005,613.95000000000005,"2018-06-08","2018-10-31",null,null,null,{"$f":"VLOOKUP(K324,S:T,2,FALSE)","v":"adelaide.inacio@drapnorte.gov.pt"}]
[null,null,null,null,null,null,null,"MAR-01.01.03-FEAMP-0328","JOSE ANTONIO LAZERA GRAÇA","O CAXINEIRO N-2536-L - PRT000023226 - Substituição de Motor","DRAPLVT",9251763,8000,8000,1200,1200,"2018-07-26","2018-10-31",null,null,null,"decisoesmar2020@draplvt.gov.pt"]
[null,null,null,null,null,null,null,"MAR-01.01.03-FEAMP-0341","ULISSES RIBEIRO GOMES AZEVEDO","MODERNIZAÇÃO DO SISTEMA PROPULSOR E AUXILIAR","DRAPN",7080563,23636.87,14807.15,2221.08,2221.0699999999997,"2018-09-30","2019-09-30",null,null,null,"adelaide.inacio@drapnorte.gov.pt"]
[null,null,null,null,null,null,null,"MAR-01.01.03-FEAMP-0342","PAULO JOSÉ DOS SANTOS PEREIRA","SUBSTITUIÇÃO DE MOTOR PROPULSOR","DRAPALG",7404184,10433,10433,1564.95,1564.95,"2018-09-14","2020-09-30",null,null,null,"Mar2020-ap@drapalg.min-agricultura.pt"]
[null,null,null,null,null,null,null,"MAR-01.01.03-FEAMP-0345","EDUARDO DOS SANTOS DO ROSÁRIO","SUBSTITUIÇÃO DE MOTOR PROPULSOR","DRAPALG",7273936,11052.03,11052.03,1657.81,1657.8000000000002,"2018-09-20","2019-06-30",null,null,null,"Mar2020-ap@drapalg.min-agricultura.pt"]
[null,null,null,null,null,null,null,"MAR-01.01.03-FEAMP-0361","LUIS MIGUEL GOMES","Investimento a bordo","DRAPALG",9244852,10937.8,10937.8,1640.67,1640.67,"2018-10-02","2019-10-01",null,null,null,"Mar2020-ap@drapalg.min-agricultura.pt"]
[null,null,null,null,null,null,null,"MAR-01.01.03-FEAMP-0364","VITOR MANUEL VIEIRA FIDALGO","MODERNIZAÇÃO DO SISTEMA PROPULSOR","DRAPC",7312213,3151.17,3151.17,472.68,472.67,"2018-11-18","2019-12-31",null,null,null,"diav@drapc.gov.pt"]
[null,null,null,null,null,null,null,"MAR-01.01.03-FEAMP-0365","ARMÉNIO DO CARMO BAGARRÃO","Aquisição de motor ","DRAPALG",7668321,11607,11607,1741.05,1741.05,"2018-12-16","2019-12-31",null,null,null,"Mar2020-ap@drapalg.min-agricultura.pt"]
[null,null,null,null,null,null,null,"MAR-01.01.03-FEAMP-0366","ALBERTO RODRIGO DO CARMO","SUBSTITUIÇÃO DE MOTOR PROPULSOR","DRAPALG",7091553,11713,11713,1756.95,1756.95,"2018-11-24","2019-12-31",null,null,null,"Mar2020-ap@drapalg.min-agricultura.pt"]
[null,null,null,null,null,null,null,"MAR-01.01.03-FEAMP-0368","JOSÉ PAULO TAVARES BRAVO","MODERNIZAÇÃO DO SISTEMA PROPULSOR","DRAPC",9282904,2724.34,2724.34,408.65,408.65,"2018-12-06","2019-12-31",null,null,null,"diav@drapc.gov.pt"]
[null,null,null,null,null,null,null,"MAR-01.01.03-FEAMP-0372","ANTÓNIO CARLOS MARQUES JUSTINO","Aquisição do Motor Tohatsu MFS6C-SL 4,4 KW","DRAPLVT",9289823,1170,1170,175.5,175.5,"2018-12-18","2019-02-28",null,null,null,"decisoesmar2020@draplvt.gov.pt"]
[null,null,null,null,null,null,null,"MAR-01.01.03-FEAMP-0374","PAULO EMANUEL BAPTISTA FERREIRA","MODERNIZAÇÃO DO SISTEMA PROPULSOR","DRAPC",9285036,2032.52,2032.52,304.88,304.88,"2018-12-13","2019-12-31",null,null,null,"diav@drapc.gov.pt"]
[null,null,null,null,null,null,null,"MAR-01.01.03-FEAMP-0389","MARIA GABRIELA RODRIGUES CARVALHO RUIVO","Aquisição do motor principal - DOOSAN","DRAPLVT",9320383,21800,19748,2962.2,2962.2,"2019-02-15","2019-06-30",null,null,null,"decisoesmar2020@draplvt.gov.pt"]
[null,null,null,null,null,null,null,"MAR-01.01.03-FEAMP-0390","LUÍS MANUEL GOMES FARINHA","Aquisição do motor principal - Honda","DRAPLVT",7689197,3176,3176,476.4,476.4,"2019-02-28","2019-06-30",null,null,null,"decisoesmar2020@draplvt.gov.pt"]
[null,null,null,null,null,null,null,"MAR-01.01.03-FEAMP-0395","RAINHA DOS MILAGRES, UNIPESSOAL, LDA","Substituição motorização embarcação ","DRAPN",9161876,88330,73580,11037,11037,"2019-03-01","2020-12-31",null,null,null,"adelaide.inacio@drapnorte.gov.pt"]
[null,null,null,null,null,null,null,"MAR-01.01.03-FEAMP-0396","FRANCISCO RUI DO CARMO MENDONÇA","Substituição motor embarcação de pesca ","DRAPALG",7072092,7571.41,2752,412.8,412.8,"2019-02-01","2020-03-01",null,null,null,"Mar2020-ap@drapalg.min-agricultura.pt"]
[null,null,null,null,null,null,null,"MAR-01.01.03-FEAMP-0410","IVÃ ANDRÉ MENDONÇA BECHINHO","Substituição do Motor Propulsor","DRAPALG",7189323,12338,9909,1486.35,1486.35,"2019-10-31","2020-02-29",null,null,null,"Mar2020-ap@drapalg.min-agricultura.pt"]
[null,null,null,null,null,null,null,"MAR-01.01.03-FEAMP-0411","JOÃO MANJUA BUCHINHO","SUBSTITUIÇÃO DE MOTOR PROPULSOR","DRAPALG",7360813,12398.13,9909,1486.35,1486.35,"2019-04-23","2019-10-31",null,null,null,"Mar2020-ap@drapalg.min-agricultura.pt"]
[null,null,null,null,null,null,null,"MAR-01.01.03-FEAMP-0427","JOSÉ ALBERTO MIRANDA DA CUNHA","MODERNIZAÇÃO DA EMBARCAÇÃO COM SUBSTITUIÇÃO DE MOTOR PROPULSOR","DRAPN",7328491,19432.169999999998,16751.990000000002,2512.8000000000002,2512.8000000000002,"2019-07-22","2019-12-31",null,null,null,"adelaide.inacio@drapnorte.gov.pt"]
[null,null,null,null,null,null,null,"MAR-01.01.03-FEAMP-0429","JOAO ALEXANDRE RODRIGUES E JOÃO ALBERTO DE JESUS","Substuituiçao de Motor","SRMP",6411884,30000,30000,4500,4500,"2019-05-01","2020-12-31",null,null,null,"adiantamento.fatura.inv@ifap.pt"]
[null,null,null,null,null,null,null,"MAR-01.01.03-FEAMP-0437","JOSE MANUEL AVEIRO PIRES","Substituição de Motor Propulsor de Embarcação de Pesca","DRAPLVT",9370266,9931.7099999999991,7351.9,1102.79,1102.7800000000002,"2019-08-01","2020-01-31",null,null,null,"decisoesmar2020@draplvt.gov.pt"]
[null,null,null,null,null,null,null,"MAR-01.01.03-FEAMP-0439","MENSAGEIRO - EMPRESA DE PESCA, LDA","Substituição motor principal","DRAPN",8859854,147300,80600,12090,12090,"2019-07-08","2019-12-31",null,null,null,"adelaide.inacio@drapnorte.gov.pt"]
[null,null,null,null,null,null,null,"MAR-01.01.03-FEAMP-0444","MANUEL MACIEIRA POSTIGA","MODERNIZAÇÃO DA EMBARCAÇÃOCOM SUBSTITUIÇÃO DO MOTOR PROPULSOR","DRAPN",7090066,208148.6,123588,18538.2,18538.2,"2019-06-01","2020-12-31",null,null,null,"adelaide.inacio@drapnorte.gov.pt"]
[null,null,null,null,null,null,null,"MAR-01.01.03-FEAMP-0450","GISELA DE OLIVEIRA BRANDÃO CONDE","MODERNIZAÇAO DO SISTEMA DE PROPULSÃO","DRAPC",9421387,3779.67,3779.67,566.95000000000005,566.95000000000005,"2019-10-03","2020-12-31",null,null,null,"diav@drapc.gov.pt"]
[null,null,null,null,null,null,null,"MAR-01.01.03-FEAMP-0452","MANUEL TORRES DA SILVA","MODERNIZAÇÃO DO SISTEMA PROPULSOR","DRAPN",8064893,17222.05,15289.68,2293.4499999999998,2293.4499999999998,"2019-10-01","2020-03-31",null,null,null,"adelaide.inacio@drapnorte.gov.pt"]
[null,null,null,null,null,null,null,"MAR-01.01.03-FEAMP-0453","AUGUSTO LOUREIRO EIRAS","MODERNIZAÇÃO DA EMBARCAÇÃO COM SUBSTITUIÇÃO DE MOTOR PROPULSOR","DRAPN",8210275,15207.77,15207.77,2281.17,2281.16,"2019-10-21","2019-12-31",null,null,null,"adelaide.inacio@drapnorte.gov.pt"]
[null,null,null,null,null,null,null,"MAR-01.01.03-FEAMP-0454","JOAQUIM DA SILVA PEREIRA","Substituição de Motor fora de bordo","DRAPN",9253166,9653.4500000000007,9653.4500000000007,1448.02,1448.02,"2019-02-13","2020-02-12",null,null,null,"adelaide.inacio@drapnorte.gov.pt"]
[null,null,null,null,null,null,null,"MAR-01.01.03-FEAMP-0457","PEDRO MIGUEL REBELO RODRIGUES","Santo António - Subst. Motor","DRAPN",9384927,49495,44545,10022.629999999999,3340.8700000000008,"2019-12-01","2020-12-31",null,null,null,"adelaide.inacio@drapnorte.gov.pt"]
[null,null,null,null,null,null,null,"MAR-01.01.03-FEAMP-0467","ANTÓNIO JÚLIO RAMOS DE OLIVEIRA FERNANDES","AQUISIÇÃO DE MOTOR PRINCIPAL - HONDA","DRAPLVT",7708251,2316,2316,347.4,347.4,"2019-11-25","2020-01-31",null,null,null,"decisoesmar2020@draplvt.gov.pt"]
[null,null,null,null,null,null,null,"MAR-01.01.03-FEAMP-0470","JOAQUIM ÁLVARO DIAS FERRADEIRA","Substituição do Motor Celeste Maria","DRAPN",7085452,38951,28071,4210.6499999999996,4210.6499999999996,"2019-10-01","2020-12-31",null,null,null,"adelaide.inacio@drapnorte.gov.pt"]
[null,null,null,null,null,null,null,"MAR-01.01.03-FEAMP-0491","OLEKSANDR VELKO","Substituição de Motor fora de bordo","DRAPN",9440825,7080,7080,1062,1062,"2020-01-02","2020-12-31",null,null,null,"adelaide.inacio@drapnorte.gov.pt"]
[null,null,null,null,null,null,null,"MAR-01.01.03-FEAMP-0493","EGIDIO & MARCO LDA","Substuituiçao de Motor","SRMP",9230287,33410,33410,5011.5,5011.5,"2018-05-01","2020-12-31",null,null,null,"adiantamento.fatura.inv@ifap.pt"]
[null,null,null,null,null,null,null,"MAR-01.01.03-FEAMP-0502","MARCO ANTÓNIO FERREIRA CARREIRO","Motor fora de borda Yamaha","DSPEP",6414534,5682.93,5682.93,852.44,852.44,"2020-02-04","2021-12-31",null,null,null,"info.mar2020@azores.gov.pt"]
[null,null,null,null,null,null,null,"MAR-01.01.03-FEAMP-0503","MÁRIO ANTÓNIO SILVEIRA DE MEDEIROS","Mário António Silveira Medeiros, ELISÍA MEDEIROS, H-504-L - Investimento","DSPEP",7177175,23678,23678,3551.7,3551.7,"2020-03-09","2020-07-31",null,null,null,"info.mar2020@azores.gov.pt"]
[null,null,null,null,null,null,null,"MAR-01.01.03-FEAMP-0510","AMÉRICO BONITO DOS SANTOS","Cego do Maio - Subst. Motor ","DRAPN",7074551,103516.5,101716.5,15257.48,15257.470000000001,"2019-10-08","2020-12-31",null,null,null,"adelaide.inacio@drapnorte.gov.pt"]
[null,null,null,null,null,null,null,"MAR-01.01.03-FEAMP-0517","GUALTER OSVALDO CABRAL MOURA","Motor fora de borda Yamaha","DSPEP",6414557,7105.69,7105.69,1065.8599999999999,1065.8500000000001,"2020-03-30","2021-12-31",null,null,null,"info.mar2020@azores.gov.pt"]
[null,null,null,null,null,null,null,"MAR-01.01.03-FEAMP-0523","CARLOS FERNANDO ALMEIDA VAZ","MODERNIZAÇÃO DA EMBARCAÇÃO COM SUBSTITUIÇÃO DE MOTOR PROPULSOR","DRAPN",10354107,15512,15440,2316,2316,"2020-04-24","2020-12-31",null,null,null,"adelaide.inacio@drapnorte.gov.pt"]
[null,null,null,null,null,null,null,"MAR-01.01.03-FEAMP-0558","VÍTOR MANUEL SILVA DE OLIVEIRA","Substituição do motor propulsor","DRAPLVT",7359663,11475,8696.15,1173.98,1173.98,"2020-07-15","2020-07-30",null,null,null,"decisoesmar2020@draplvt.gov.pt"]
[null,null,null,null,null,null,null,"MAR-01.01.03-FEAMP-0577","OLHAR DE GELO - UNIPESSOAL LDª","Investimento na substituição do Motor.","SRMP",9237016,10186.89,8838.2900000000009,1325.76,1325.74,"2020-09-10","2020-12-31",null,null,null,"adiantamento.fatura.inv@ifap.pt"]
[null,null,null,null,null,null,null,"MAR-01.01.03-FEAMP-0588","JOÃO REI DE MATOS","MODERNIZAÇÃO DA EMBARCAÇÃO COM SUBSTITUIÇÃO DE MOTOR PROPULSOR","DRAPN",7376174,16030,15440,2316,2316,"2020-09-01","2021-03-31",null,null,null,"adelaide.inacio@drapnorte.gov.pt"]
[null,null,null,null,null,null,null,"MAR-01.01.03-FEAMP-0612","PEDRO MIGUEL VICENTE FERREIRA","INVESTIMENTOS A BORDO E SELETIVIDADE","DRAPLVT",9144425,9400,8121.95,1218.3,1218.2900000000002,"2020-10-09","2020-10-30",null,null,null,"decisoesmar2020@draplvt.gov.pt"]
[null,null,null,null,null,null,null,"MAR-01.01.03-FEAMP-0614","AUGUSTO VILELA VILAS BOAS","MODERNIZAÇÃO DA EMBARCAÇÃO RUBEN - ES-317-L","DRAPN",8180131,6384.57,6384.57,957.69,957.67999999999984,"2020-09-01","2020-12-31",null,null,null,"adelaide.inacio@drapnorte.gov.pt"]
[null,null,null,null,null,null,null,"MAR-01.01.03-FEAMP-0626","ANTÓNIO MANUEL TROCADO CASCÃO","MODERNIZAÇÃO DA EMBARCAÇÃO SENHORA DAS DORES - PV-117-C","DRAPN",7977184,90170,51280,7692,7692,"2021-01-01","2021-12-31",null,null,null,"adelaide.inacio@drapnorte.gov.pt"]
[null,null,null,null,null,null,null,"MAR-01.01.03-FEAMP-0643","MARIA DAS DORES DOS SANTOS NOVO FESTAS","Gonçalo Festas - subst. motor","DRAPN",10390022,33800,30300,4545,4545,"2021-01-04","2021-12-31",null,null,null,"adelaide.inacio@drapnorte.gov.pt"]
[null,null,null,null,null,null,null,"MAR-01.01.03-FEAMP-0651","CÁLCULO APETECÍVEL - LDA","Investimento a bordo","SRMP",9322873,10599,8878.4500000000007,1331.77,1331.77,"2021-02-22","2021-03-23",null,null,null,"adiantamento.fatura.inv@ifap.pt"]
[null,null,null,null,null,null,null,"MAR-01.02.01-FEAMP-0001","PAULO FERNANDO DE ALMEIDA VIDAL","SÓ OS DOIS  PE-2356-L  -  PRT000022854","DRAPLVT",8845564,30000,25430,4768.13,1589.37,"2016-11-09","2017-12-31",null,null,null,"decisoesmar2020@draplvt.gov.pt"]
[null,null,null,null,null,null,null,"MAR-01.02.01-FEAMP-0002","DAVID GONÇALO NOBRE CAÇOILA","JONI  SM-300-L  -   PRT000023470","DRAPLVT",8851441,75000,50070,9388.1299999999992,3129.3700000000008,"2016-07-27","2016-10-31",null,null,null,"decisoesmar2020@draplvt.gov.pt"]
[null,null,null,null,null,null,null,"MAR-01.02.01-FEAMP-0006","ÂNGELO  MIGUEL MACHADO MANGAS","A MALA T-425-L  -  PRT000024376","DRAPALG",8889532,50000,50000,9375,3125,"2017-03-20","2017-12-30",null,null,null,"Mar2020-ap@drapalg.min-agricultura.pt"]
[null,null,null,null,null,null,null,"MAR-01.02.01-FEAMP-0007","MANUEL AGONIA DA SILVA MARQUES","SILVÉRIO MANUEL VC-243-C - Aquisição -  PRT000020502","DRAPN",8989003,300000,299224,56104.5,18701.5,"2017-07-03","2017-12-31",null,null,null,"adelaide.inacio@drapnorte.gov.pt"]
[null,null,null,null,null,null,null,"MAR-01.02.01-FEAMP-0009","TRAJANO MANUEL FANGUEIRO MARTINS","XEMICA, V-1091-C - Aquisição -  PRT000023545","DRAPN",9004195,100000,100000,18750,6250,"2017-08-03","2017-12-31",null,null,null,"adelaide.inacio@drapnorte.gov.pt"]
[null,null,null,null,null,null,null,"MAR-01.02.01-FEAMP-0012","EMANUEL RIBEIRO BAETA","BELUGA, F-1102-L  -  PRT000023140","DRAPALG",9231863,30000,30000,5625,1875,"2018-06-14","2018-10-18",null,null,null,"Mar2020-ap@drapalg.min-agricultura.pt"]
[null,null,null,null,null,null,null,"MAR-01.02.01-FEAMP-0013","BRUNO JOSÉ GRAÇA CERQUEIRA","MAR FURIOSO","DRAPN",9173525,42000,42000,7875,2625,"2018-08-08","2018-12-31",null,null,null,"adelaide.inacio@drapnorte.gov.pt"]
[null,null,null,null,null,null,null,"MAR-01.02.01-FEAMP-0015","RUI DANIEL RAMOS PEREIRA","Apoio a Jovens Pescadores","DRAPN",9257895,92090,40000,7500,2500,"2019-01-02","2019-12-31",null,null,null,"adelaide.inacio@drapnorte.gov.pt"]
[null,null,null,null,null,null,null,"MAR-01.03.01-FEAMP-0003","FACULDADE DE CIENCIAS DA UNIVERSIDADE DE LISBOA","VALOREJET","DRAPLVT",7477221,335959.83,335775.67,251831.76,83943.909999999974,"2016-09-30","2016-11-30",null,null,null,"decisoesmar2020@draplvt.gov.pt"]
[null,null,null,null,null,null,null,"MAR-01.03.01-FEAMP-0005","UNIVERSIDADE DE AVEIRO","MOLBIPACK - DESENVOLVIMENTO DE METODOLOGIAS E EMBALAGENS","DRAPC",7430371,378498,367366.8,275525.09999999998,91841.700000000012,"2016-09-30","2016-11-30",null,null,null,"diav@drapc.gov.pt"]
[null,null,null,null,null,null,null,"MAR-01.03.01-FEAMP-0011","INSTITUTO PORTUGUÊS DO MAR E DA ATMOSFERA IP","PROJETO I9+PROALGA","DRAPLVT",7956586,490935.16,488010.16,366007.62,122002.53999999998,"2016-09-30","2016-11-30",null,null,null,"decisoesmar2020@draplvt.gov.pt"]
[null,null,null,null,null,null,null,"MAR-01.03.01-FEAMP-0016","UNIVERSIDADE NOVA DE LISBOA","Alga 4Food","DRAPLVT",9026322,571163.76,570514.77,427886.08000000002,142628.69,"2017-12-01","2020-11-30",null,null,null,"decisoesmar2020@draplvt.gov.pt"]
[null,null,null,null,null,null,null,"MAR-01.03.01-FEAMP-0020","UNIVERSIDADE DO ALGARVE","INOVPESCA - Redução de capturas acidentais de espécies marinhas protegidas","DRAPALG",7090437,193180.44,193180.44,144885.32999999999,48295.110000000015,"2017-11-01","2021-03-31",null,null,null,"Mar2020-ap@drapalg.min-agricultura.pt"]
[null,null,null,null,null,null,null,"MAR-01.03.01-FEAMP-0023","INSTITUTO PORTUGUÊS DO MAR E DA ATMOSFERA IP","BIVALOR-Criação de Depósito e Unidade de Transformação de Bivalves do Tejo","DRAPLVT",7956586,1399991,1399991,1049993.25,349997.75,"2017-09-01","2018-12-31",null,null,null,"decisoesmar2020@draplvt.gov.pt"]
[null,null,null,null,null,null,null,"MAR-01.03.01-FEAMP-0025","INSTITUTO SUPERIOR TECNICO","SmoKlean - Produção de Peixe Fumado e sua Qualificação para Exportação com particular incidência na quantificação de PAHs carcinogénicos prioritários e nas características sensoriais e microbiológicas","DRAPLVT",7507791,515240.29,440964.22,330723.17,110241.04999999999,"2019-06-01","2021-05-31",null,null,null,"decisoesmar2020@draplvt.gov.pt"]
[null,null,null,null,null,null,null,"MAR-01.03.01-FEAMP-0028","UNIVERSIDADE NOVA DE LISBOA","SMART FISHING. Integração de novas tecnologias para a pesca local sustentável e segura.","DRAPLVT",9026322,149147,149147,111860.25,37286.75,"2019-07-01","2020-12-31",null,null,null,"decisoesmar2020@draplvt.gov.pt"]
[null,null,null,null,null,null,null,"MAR-01.03.01-FEAMP-0029","INSTITUTO POLITÉCNICO DE LEIRIA - IPLEIRIA","e-Fishing: Novas ferramentas moleculares para apoio à gestão da pesca","DRAPLVT",7163701,225668.74,173385.21,130038.91,43346.299999999988,"2019-01-01","2021-12-31",null,null,null,"decisoesmar2020@draplvt.gov.pt"]
[null,null,null,null,null,null,null,"MAR-01.03.01-FEAMP-0030","PASCOAL & FILHOS, SA","Rumo à excelência operacional: Projeto de transformação operacional e inovação tecnológica na cadeia de valor de produção de Bacalhau demolhado","DRAPC",7065842,3868476.75,2742890.23,617150.31000000006,205716.75999999989,"2018-05-28","2021-05-27",null,null,null,"diav@drapc.gov.pt"]
[null,null,null,null,null,null,null,"MAR-01.03.01-FEAMP-0031","UNIVERSIDADE DO PORTO","e-FishMarket","DRAPN",7513563,343286.46,343286.46,257464.85,85821.610000000015,"2019-02-01","2022-01-31",null,null,null,"adelaide.inacio@drapnorte.gov.pt"]
[null,null,null,null,null,null,null,"MAR-01.03.01-FEAMP-0032","UNIVERSIDADE DE COIMBRA","UC Mar - Transferência de tecnologia e conhecimento produzida na Universidade de Coimbra para a economia do Mar ","DRAPC",5233282,672031.94,404481.24,303360.94,101120.29999999999,"2019-01-01","2020-12-31",null,null,null,{"$f":"VLOOKUP(K388,S:T,2,FALSE)","v":"diav@drapc.gov.pt"}]
[null,null,null,null,null,null,null,"MAR-01.03.01-FEAMP-0045","UNIVERSIDADE DE AVEIRO","SEEBug – desenvolvimento de um SEnsor para a deteção rápida e Eficaz de bactérias patogénicas em Bivalves","DRAPC",7430371,505933.66,487343.08,365507.31,121835.77000000002,"2020-01-01","2022-12-31",null,null,null,"diav@drapc.gov.pt"]
[null,null,null,null,null,null,null,"MAR-01.03.01-FEAMP-0046","UNIVERSIDADE DE AVEIRO","DepurD - SISTEMAS DE MONITORIZAÇÃO E DESCONTAMINAÇÃO PARA A EXPLORAÇÃO SUSTENTÁVEL DE MOLUSCOS BIVALVES NA COSTA PORTUGUESA","DRAPC",7430371,755181.85,569279.26,426959.44,142319.82,"2019-04-02","2019-05-31",null,null,null,"diav@drapc.gov.pt"]
[null,null,null,null,null,null,null,"MAR-01.03.01-FEAMP-0047","FACULDADE DE CIENCIAS DA UNIVERSIDADE DE LISBOA","MarCODE - Desenvolvimento e Aplicação de Ferramentas Bioquímicas de Rastreamento de Produtos Comerciais Marinhos","DRAPLVT",7477221,1275193.1499999999,1257208.71,942906.53,314302.17999999993,"2020-01-01","2022-12-31",null,null,null,"decisoesmar2020@draplvt.gov.pt"]
[null,null,null,null,null,null,null,"MAR-01.03.01-FEAMP-0049","UNIVERSIDADE DO ALGARVE","Descontaminação de moluscos bivalves, contaminados com biotoxinas marinhas, durante o processo de depuração – DEPURATOX","DRAPALG",7090437,357148.74,355037.37,266278.03000000003,88759.339999999967,"2020-09-01","2022-12-31",null,null,null,"Mar2020-ap@drapalg.min-agricultura.pt"]
[null,null,null,null,null,null,null,"MAR-01.03.01-FEAMP-0050","CENTRO DE CIÊNCIAS DO MAR DO ALGARVE","SEAFOODQual - Aplicação de Tecnologias Inovadoras e Sustentáveis de Processamento e de Monitorização de Qualidade de Produtos Alimentares do Mar.","DRAPALG",7409073,244140.54,191721.41,143791.07,47930.34,"2020-03-01","2022-12-31",null,null,null,"Mar2020-ap@drapalg.min-agricultura.pt"]
[null,null,null,null,null,null,null,"MAR-01.03.02-FEAMP-0002","UNIVERSIDADE DE ÉVORA","Plano Operacional de Monitorização e Gestão de Peixes Anádromos em Portugal","DRAPC",250504,491737.97,491737.97,368803.48,122934.48999999999,"2017-12-19","2021-12-18",null,null,null,"diav@drapc.gov.pt"]
[null,null,null,null,null,null,null,"MAR-01.03.02-FEAMP-0007","INSTITUTO PORTUGUÊS DO MAR E DA ATMOSFERA IP","CONTRIBUTO PARA A GESTÃO SUSTENTADA DA PEQUENA PESCA COSTEIRA E DA APANHA","DRAPLVT",7956586,517983.92,517983.92,388487.95,129495.96999999997,"2017-04-01","2020-03-31",null,null,null,"decisoesmar2020@draplvt.gov.pt"]
[null,null,null,null,null,null,null,"MAR-01.03.02-FEAMP-0008","INSTITUTO PORTUGUÊS DO MAR E DA ATMOSFERA IP","A Pesca Com Arte de Xávega","DRAPC",7956586,251399.52,251399.52,188549.65,62849.869999999995,"2017-01-01","2019-12-31",null,null,null,"diav@drapc.gov.pt"]
[null,null,null,null,null,null,null,"MAR-01.03.02-FEAMP-0009","MUNICIPIO DE VILA NOVA DE CERVEIRA","MAR2020 - V. N. Cerveira - Valorização Prod. Psc Rio Minho","DRAPN",7540486,523466.03,523466.03,392599.53,130866.5,"2017-07-01","2021-03-31",null,null,null,"adelaide.inacio@drapnorte.gov.pt"]
[null,null,null,null,null,null,null,"MAR-01.03.02-FEAMP-0012","Municipio de Mafra","REDE OURICEIRA MAR","DRAPLVT",7499417,589956.56999999995,589850,442387.5,147462.5,"2019-01-24","2021-11-15",null,null,null,"decisoesmar2020@draplvt.gov.pt"]
[null,null,null,null,null,null,null,"MAR-01.03.02-FEAMP-0013","FACULDADE DE CIENCIAS DA UNIVERSIDADE DE LISBOA","NIPOGES","DRAPLVT",7477221,582133.4,563739.18999999994,422804.39,140934.79999999993,"2017-12-01","2020-12-31",null,null,null,"decisoesmar2020@draplvt.gov.pt"]
[null,null,null,null,null,null,null,"MAR-01.03.02-FEAMP-0018","INSTITUTO POLITÉCNICO DE LEIRIA","CO-PESCA 2","DRAPLVT",7163701,594445.97,592442.30000000005,444331.73,148110.57000000007,"2017-08-03","2021-02-28",null,null,null,"decisoesmar2020@draplvt.gov.pt"]
[null,null,null,null,null,null,null,"MAR-01.03.02-FEAMP-0019","UNIVERSIDADE DE ÉVORA","Parceria AL Percebe","DRAPAL",250504,162246.74,162246.74,121685.06,40561.679999999993,"2016-09-30","2016-11-30",null,null,null,0]
[null,null,null,null,null,null,null,"MAR-01.03.02-FEAMP-0021","INSTITUTO PORTUGUÊS DO MAR E DA ATMOSFERA IP","PESCAPANHA - Contributo para a gestão sustentada da peq. pesca costeira e apanha","DRAPALG",7956586,433260.22,423295.78,317471.84999999998,105823.93000000005,"2018-01-01","2019-11-29",null,null,null,"Mar2020-ap@drapalg.min-agricultura.pt"]
[null,null,null,null,null,null,null,"MAR-01.03.02-FEAMP-0022","INSTITUTO PORTUGUÊS DO MAR E DA ATMOSFERA IP","MONTEREAL - Monotorização em tempo real da frota de ganchorra.","DRAPALG",7956586,532942.21,529335.89,397001.93,132333.96000000002,"2018-01-01","2019-11-29",null,null,null,"Mar2020-ap@drapalg.min-agricultura.pt"]
[null,null,null,null,null,null,null,"MAR-01.03.02-FEAMP-0026","SPEA-SOCIEDADE PORTUGUESA PARA O ESTUDO DAS AVES","ANZOL+  - Inovação e transferência de conhecimentos entre cientistas e pescadores de anzol e pequenos palangreiros","DRAPLVT",7513211,366265.47,363580.68,272685.51,90895.169999999984,"2019-05-03","2021-12-31",null,null,null,"decisoesmar2020@draplvt.gov.pt"]
[null,null,null,null,null,null,null,"MAR-01.03.02-FEAMP-0037","DIREÇÃO REGIONAL DAS PESCAS","Conferência internacional sobre governança dos oceanos em regiões arquipelágicas","SRMP",7991621,150000,129542.43,97156.82,32385.609999999986,"2019-03-01","2020-12-31",null,null,null,"adiantamento.fatura.inv@ifap.pt"]
[null,null,null,null,null,null,null,"MAR-01.03.02-FEAMP-0038","IMAR - INSTITUTO DO MAR","Diversificação para o Desenvolvimento Sustentavel da Pesca Artesanal dos Açores – DDeSPAr","DSPEP",7369023,194025.53,194025.53,145519.15,48506.380000000005,"2020-01-01","2021-12-31",null,null,null,"info.mar2020@azores.gov.pt"]
[null,null,null,null,null,null,null,"MAR-01.03.02-FEAMP-0039","IMAR - INSTITUTO DO MAR","PESCAz - Pescarias sustentáveis nos Açores: como pode ser melhorada a base científica para avaliações do estado dos recursos pesqueiros?","DSPEP",7369023,190550.19,188601.2,141450.91,47150.290000000008,"2019-07-01","2022-07-01",null,null,null,"info.mar2020@azores.gov.pt"]
[null,null,null,null,null,null,null,"MAR-01.03.02-FEAMP-0040","IMAR - INSTITUTO DO MAR","SOS TubaProf: Avaliação da Sustentabilidade das capturas acessórias dOS TUBArões de PROFundidade ","DSPEP",7369023,200000,200000,150000,50000,"2019-10-01","2022-09-30",null,null,null,"info.mar2020@azores.gov.pt"]
[null,null,null,null,null,null,null,"MAR-01.03.02-FEAMP-0048","UNIVERSIDADE DE ÉVORA","SALMONLINK - CONTRIBUIÇÃO DOS CIENTISTAS E PESCADORES PARA A CONSERVAÇÃO E GESTÃO PARTICIPADA DAS POPULAÇÕES DE SALMÃO DO ATLÂNTICO EM PORTUGAL","DRAPN",250504,338199.11,335970.36,251977.77,83992.59,"2020-01-02","2022-12-31",null,null,null,"adelaide.inacio@drapnorte.gov.pt"]
[null,null,null,null,null,null,null,"MAR-01.03.02-FEAMP-0052","UNIVERSIDADE DO ALGARVE","29/2019","DRAPALG",7090437,613419.42000000004,549545.39,412159.05,137386.34000000003,"2019-04-02","2019-05-31",null,null,null,"Mar2020-ap@drapalg.min-agricultura.pt"]
[null,null,null,null,null,null,null,"MAR-01.03.02-FEAMP-0053","INSTITUTO PORTUGUÊS DO MAR E DA ATMOSFERA IP","Participesca - Implementação da Cogestão para a Pesca do Polvo no Algarve","DRAPALG",7956586,15438.62,15438.62,11578.97,3859.6500000000015,"2019-10-01","2022-12-31",null,null,null,"Mar2020-ap@drapalg.min-agricultura.pt"]
[null,null,null,null,null,null,null,"MAR-01.03.02-FEAMP-0054","ASSOCIAÇÃO NATUREZA PORTUGAL","Implementação da Cogestão para a Pesca do Polvo no Algarve","DRAPALG",9370316,375193.23,299848.23,224886.17,74962.059999999969,"2019-10-01","2022-12-31",null,null,null,"Mar2020-ap@drapalg.min-agricultura.pt"]
[null,null,null,null,null,null,null,"MAR-01.03.02-FEAMP-0055","CENTRO DE CIÊNCIAS DO MAR DO ALGARVE","Implementação da Cogestão para a Pesca do Polvo no Algarve","DRAPALG",7409073,323025.11,305899.77,229424.83,76474.940000000031,"2019-10-01","2022-12-31",null,null,null,"Mar2020-ap@drapalg.min-agricultura.pt"]
[null,null,null,null,null,null,null,"MAR-01.04.02-FEAMP-0001","INSTITUTO PORTUGUÊS DO MAR E DA ATMOSFERA IP","BIODIVERSIDADE E ECOLOGIA DO ZOOPLÂNCTON DE PORTUGAL","DGRM",7956586,427438.95,427438.95,320579.21000000002,106859.73999999999,"2017-02-01","2020-01-31",null,null,null,"ifferreira@dgrm.mm.gov.pt"]
[null,null,null,null,null,null,null,"MAR-01.04.02-FEAMP-0002","INSTITUTO PORTUGUÊS DO MAR E DA ATMOSFERA IP","OBSERVA.PT","DGRM",7956586,755924.51,755924.51,566943.38,188981.13,"2017-07-01","2020-06-30",null,null,null,"ifferreira@dgrm.mm.gov.pt"]
[null,null,null,null,null,null,null,"MAR-01.04.02-FEAMP-0003","UNIVERSIDADE DO ALGARVE","CONPRAR Protecção e Restauração da Biodiversidade","DGRM",7090437,512939.77,512939.77,384704.83,128234.94,"2018-04-01","2021-03-31",null,null,null,"ifferreira@dgrm.mm.gov.pt"]
[null,null,null,null,null,null,null,"MAR-01.04.02-FEAMP-0004","DIRECÇÃO GERAL DE RECURSOS NATURAIS, SEGURANÇA E SERVIÇOS MARÍTIMOS","PESCA LÚDICA","DGRM",8171291,839800,839800,629850,209950,"2016-12-09","2017-03-03",null,null,null,"ifferreira@dgrm.mm.gov.pt"]
[null,null,null,null,null,null,null,"MAR-01.04.02-FEAMP-0005","UNIVERSIDADE DO ALGARVE","CRUSTAPANHA","DGRM",7090437,677018.31,677018.31,507763.73,169254.58000000007,"2018-04-01","2021-09-30",null,null,null,"ifferreira@dgrm.mm.gov.pt"]
[null,null,null,null,null,null,null,"MAR-01.04.02-FEAMP-0006","FACULDADE DE CIENCIAS DA UNIVERSIDADE DE LISBOA","TUBAREPEL","DGRM",7477221,694405.16,694405.16,520803.87,173601.29000000004,"2016-12-09","2017-03-03",null,null,null,"ifferreira@dgrm.mm.gov.pt"]
[null,null,null,null,null,null,null,"MAR-01.04.02-FEAMP-0007","FACULDADE DE CIENCIAS DA UNIVERSIDADE DE LISBOA","VALPRAD","DGRM",7477221,649246.17000000004,649246.17000000004,486934.63,162311.54000000004,"2018-05-01","2021-04-30",null,null,null,"ifferreira@dgrm.mm.gov.pt"]
[null,null,null,null,null,null,null,"MAR-01.04.02-FEAMP-0009","INSTITUTO PORTUGUÊS DO MAR E DA ATMOSFERA IP","SARDINHA 2020","DGRM",7956586,1599601.96,1599601.96,1199701.47,399900.49,"2017-04-01","2020-03-31",null,null,null,"ifferreira@dgrm.mm.gov.pt"]
[null,null,null,null,null,null,null,"MAR-01.04.02-FEAMP-0010","INSTITUTO PORTUGUÊS DO MAR E DA ATMOSFERA IP","TECPESCA - TECNOLOGIA DA PESCA E SELETIVIDADE","DGRM",7956586,731917.87,731917.87,548938.4,182979.46999999997,"2018-01-01","2020-12-31",null,null,null,"ifferreira@dgrm.mm.gov.pt"]
[null,null,null,null,null,null,null,"MAR-01.04.02-FEAMP-0011","INSTITUTO PORTUGUÊS DO MAR E DA ATMOSFERA IP","MANUAL PRÁTICO DE IDENTIFICAÇÃO DE PEIXES ÓSSEOS","DGRM",7956586,52475.53,52475.53,39356.65,13118.879999999997,"2018-05-01","2019-01-31",null,null,null,"ifferreira@dgrm.mm.gov.pt"]
[null,null,null,null,null,null,null,"MAR-01.04.02-FEAMP-0012","INSTITUTO PORTUGUÊS DO MAR E DA ATMOSFERA IP","CEIC","DGRM",7956586,604623.5,604623.5,453467.63,151155.87,"2017-07-01","2020-06-30",null,null,null,"ifferreira@dgrm.mm.gov.pt"]
[null,null,null,null,null,null,null,"MAR-01.04.02-FEAMP-0013","INSTITUTO PORTUGUÊS DO MAR E DA ATMOSFERA IP","CSS","DGRM",7956586,665692.29,665692.29,499269.22,166423.07000000007,"2017-07-01","2020-06-30",null,null,null,"ifferreira@dgrm.mm.gov.pt"]
[null,null,null,null,null,null,null,"MAR-01.04.02-FEAMP-0014","FACULDADE DE CIENCIAS DA UNIVERSIDADE DE LISBOA","RESTAURA2020","DGRM",7477221,609822.85,609822.85,457367.14,152455.70999999996,"2018-04-01","2021-03-31",null,null,null,"ifferreira@dgrm.mm.gov.pt"]
[null,null,null,null,null,null,null,"MAR-01.04.02-FEAMP-0015","UNIVERSIDADE DO ALGARVE","REDAMP - Desenho de uma rede de areas marinhas protegidas","DGRM",7090437,154317.97,149333.31,111999.98,37333.33,"2016-12-09","2017-03-03",null,null,null,"ifferreira@dgrm.mm.gov.pt"]
[null,null,null,null,null,null,null,"MAR-01.04.02-FEAMP-0016","INSTITUTO PORTUGUÊS DO MAR E DA ATMOSFERA IP","Avaliação e monotorização das comunidades bentónicas","DGRM",7956586,317421.34999999998,317421.34999999998,238066.01,79355.339999999967,"2019-01-01","2020-12-31",null,null,null,"ifferreira@dgrm.mm.gov.pt"]
[null,null,null,null,null,null,null,"MAR-01.04.02-FEAMP-0018","UNIVERSIDADE DO ALGARVE","Potenciar a proteção e revitalização da biodiversidade marinha","DGRM",7090437,332808.61,332808.61,249606.46,83202.149999999994,"2018-04-01","2021-03-31",null,null,null,"ifferreira@dgrm.mm.gov.pt"]
[null,null,null,null,null,null,null,"MAR-01.04.02-FEAMP-0019","UNIVERSIDADE DE AVEIRO","Reabilitação de zonas contaminadas da ria de Aveiro através da recol. com moliço","DGRM",7430371,92122,92122,69091.5,23030.5,"2019-01-01","2020-12-31",null,null,null,"ifferreira@dgrm.mm.gov.pt"]
[null,null,null,null,null,null,null,"MAR-01.04.02-FEAMP-0020","UNIVERSIDADE DE AVEIRO","BIOPRADARIA - Restauracao, gestao e conservacao da biodiversidade recursos biol.","DGRM",7430371,366920,366920,275190,91730,"2018-06-01","2021-04-03",null,null,null,"ifferreira@dgrm.mm.gov.pt"]
[null,null,null,null,null,null,null,"MAR-01.04.02-FEAMP-0021","INSTITUTO DAS FLORESTAS E CONSEVAÇÃO DA NATUREZA, IP RAM","Criação de recife artificial no Porto Santo","SRMP",8846207,409763.6,391412.6,293559.45,97853.149999999965,"2016-01-22","2018-10-31",null,null,null,"adiantamento.fatura.inv@ifap.pt"]
[null,null,null,null,null,null,null,"MAR-01.04.02-FEAMP-0022","INSTITUTO DAS FLORESTAS E CONSEVAÇÃO DA NATUREZA, IP RAM","Criação de recife artificial no parque natural marinho do Cabo Girão","SRMP",8846207,521176,504531,284427.75,94809.25,"2018-01-29","2019-12-31",null,null,null,"adiantamento.fatura.inv@ifap.pt"]
[null,null,null,null,null,null,null,"MAR-01.04.02-FEAMP-0023","SPEA-SOCIEDADE PORTUGUESA PARA O ESTUDO DAS AVES","MEDAVES PESCA","DGRM",7513211,260085.83,260085.83,195064.37,65021.459999999992,"2018-07-01","2020-06-30",null,null,null,"ifferreira@dgrm.mm.gov.pt"]
[null,null,null,null,null,null,null,"MAR-01.04.02-FEAMP-0024","UNIVERSIDADE DO PORTO","F Ciências U.P. - SARDINOMICS","DGRM",7513563,705055.04,705055.04,528791.28,176263.76,"2019-01-01","2021-12-31",null,null,null,"ifferreira@dgrm.mm.gov.pt"]
[null,null,null,null,null,null,null,"MAR-01.04.02-FEAMP-0025","UNIVERSIDADE DO PORTO","Universidade do Porto / ICBAS - RecBio","DGRM",7513563,537671.5,537671.5,403253.63,134417.87,"2018-07-01","2021-06-30",null,null,null,"ifferreira@dgrm.mm.gov.pt"]
[null,null,null,null,null,null,null,"MAR-01.04.02-FEAMP-0026","UNIVERSIDADE DE COIMBRA","Restauro de Sapais Estuarinos vom vista à sustentabilidade -","DGRM",5233282,332963.52,332963.52,249722.64,83240.88,"2019-01-01","2020-12-31",null,null,null,"ifferreira@dgrm.mm.gov.pt"]
[null,null,null,null,null,null,null,"MAR-01.04.02-FEAMP-0029","UNIVERSIDADE DO ALGARVE","HIPPOSAVE - Plano de ação para a recuperação das populações de cavalos-marinhos da Ria Formosa","DGRM",7090437,517746.29,517746.29,388309.72,129436.57,"2020-01-01","2021-07-31",null,null,null,"ifferreira@dgrm.mm.gov.pt"]
[null,null,null,null,null,null,null,"MAR-01.05.01-FEAMP-0001","DOCAPESCA - PORTOS E LOTAS, S. A.","Aquisição de Equip. que beneficiem as cond. de desembarque, atracação e acesso","DRAPALG",7282212,315000,293841.11,220380.83,73460.28,"2016-10-03","2018-07-31",null,null,null,"Mar2020-ap@drapalg.min-agricultura.pt"]
[null,null,null,null,null,null,null,"MAR-01.05.01-FEAMP-0003","DOCAPESCA - PORTOS E LOTAS, S. A.","APETRECHAMENTO DE APOIO À PESCA - FIGUEIRA DA FOZ","DRAPC",7282212,15750,10494.58,7870.94,2623.6400000000003,"2016-10-03","2018-07-31",null,null,null,"diav@drapc.gov.pt"]
[null,null,null,null,null,null,null,"MAR-01.05.01-FEAMP-0005","DOCAPESCA - PORTOS E LOTAS, S. A.","Aquisição de equipamentos que beneficiem as condições de desembarque, atracação","DRAPC",7282212,360000,360000,270000,90000,"2016-11-03","2018-12-31",null,null,null,"diav@drapc.gov.pt"]
[null,null,null,null,null,null,null,"MAR-01.05.01-FEAMP-0006","DOCAPESCA - PORTOS E LOTAS, S. A.","Reabilitação da Rampa Varadouro - Ericeira","DRAPLVT",7282212,345226.44,317437.8,238078.35,79359.449999999983,"2016-01-07","2017-02-16",null,null,null,"decisoesmar2020@draplvt.gov.pt"]
[null,null,null,null,null,null,null,"MAR-01.05.01-FEAMP-0007","DOCAPESCA - PORTOS E LOTAS, S. A.","Docapesca - Melhoria da Eficiência Energética e Segurança nos Portos de Pesca","DRAPN",7282212,110203.12,110203.12,56204.75,18734.910000000003,"2016-10-03","2018-07-31",null,null,null,"adelaide.inacio@drapnorte.gov.pt"]
[null,null,null,null,null,null,null,"MAR-01.05.01-FEAMP-0008","APL - Administração do Porto de Lisboa, S A","Reabilitação do Pontão Digama do Porto de Pesca da Trafaria","DRAPLVT",8857735,182925,181509.58,136132.19,45377.389999999985,"2016-05-17","2018-03-31",null,null,null,"decisoesmar2020@draplvt.gov.pt"]
[null,null,null,null,null,null,null,"MAR-01.05.01-FEAMP-0009","DOCAPESCA - PORTOS E LOTAS, S. A.","Docapesca - Req. Edificio da Lota e Rampa - Prt.Psc Angeiras","DRAPN",7282212,424242.14,394345.71,295759.28000000003,98586.43,"2016-12-02","2018-09-06",null,null,null,"adelaide.inacio@drapnorte.gov.pt"]
[null,null,null,null,null,null,null,"MAR-01.05.01-FEAMP-0010","DOCAPESCA - PORTOS E LOTAS, S. A.","Requalificação do Sistema de Captação de Água Salgada -Porto de Pesca de Peniche","DRAPLVT",7282212,198754.34,198754.34,149065.76,49688.579999999987,"2016-12-02","2020-06-30",null,null,null,"decisoesmar2020@draplvt.gov.pt"]
[null,null,null,null,null,null,null,"MAR-01.05.01-FEAMP-0011","DOCAPESCA - PORTOS E LOTAS, S. A.","Requalificação Porto Pesca Tavira","DRAPALG",7282212,998462,998462,748846.5,249615.5,"2016-12-02","2020-12-18",null,null,null,"Mar2020-ap@drapalg.min-agricultura.pt"]
[null,null,null,null,null,null,null,"MAR-01.05.01-FEAMP-0014","DOCAPESCA - PORTOS E LOTAS, S. A.","Apetrechamento de Apoio à Pesca - Sines","DRAPAL",7282212,61270,50636.54,34778.720000000001,11592.900000000001,"2017-07-10","2018-07-31",null,null,null,0]
[null,null,null,null,null,null,null,"MAR-01.05.01-FEAMP-0018","DOCAPESCA - PORTOS E LOTAS, S. A.","Prolongamento do Quebra Mar interior do porto de Peniche","DRAPLVT",7282212,1911232.67,1092032.9099999999,819024.68,273008.22999999986,"2018-12-12","2020-08-30",null,null,null,"decisoesmar2020@draplvt.gov.pt"]
[null,null,null,null,null,null,null,"MAR-01.05.01-FEAMP-0019","A.P.A.R.A. - ASSOCIAÇÃO DE PESCA ARTESANAL DA REGIÃO DE AVEIRO","APARA - PLANO DE CRESCIMENTO","DRAPC",7544372,228758,205856,115794,38598,"2016-12-01","2017-12-31",null,null,null,"diav@drapc.gov.pt"]
[null,null,null,null,null,null,null,"MAR-01.05.01-FEAMP-0023","ASSOCIAÇÃO PRÓ-MAIOR SEGURANÇA DOS HOMENS DO MAR","PRÓ-MAIOR - Armazéns Aprestos Povoa de Varzim","DRAPN",7188092,6500000,6500000,4875000,1625000,"2016-07-18","2016-10-07",null,null,null,"adelaide.inacio@drapnorte.gov.pt"]
[null,null,null,null,null,null,null,"MAR-01.05.01-FEAMP-0030","SECRETARIA REGIONAL DE MAR E PESCAS","Reperfilamento do cais do Porto de Pesca do Caniçal","SRMP",10361525,1058691.6000000001,1058691.6000000001,794018.7,264672.90000000014,"2015-10-01","2021-06-30",null,null,null,{"$f":"VLOOKUP(K452,S:T,2,FALSE)","v":"adiantamento.fatura.inv@ifap.pt"}]
[null,null,null,null,null,null,null,"MAR-01.05.01-FEAMP-0032","DIREÇÃO REGIONAL DAS PESCAS","Oficina de embarcações do núcleo de pescas do porto da Praia da Vitória","SRMP",7991621,270378.63,270377.93,202783.45,67594.479999999981,"2016-11-17","2017-12-31",null,null,null,"adiantamento.fatura.inv@ifap.pt"]
[null,null,null,null,null,null,null,"MAR-01.05.01-FEAMP-0035","DIREÇÃO REGIONAL DAS PESCAS","Instalação de grua no porto de pesca dos Biscoitos","SRMP",7991621,68652.399999999994,62394.27,46795.7,15598.57,"2016-09-27","2017-12-31",null,null,null,"adiantamento.fatura.inv@ifap.pt"]
[null,null,null,null,null,null,null,"MAR-01.05.01-FEAMP-0038","DIREÇÃO REGIONAL DAS PESCAS","Melhoramento das condições de operacionalidade do porto de Santa Cruz da Gracios","SRMP",7991621,626404.31999999995,626404.31999999995,469803.24,156601.07999999996,"2016-08-01","2019-07-31",null,null,null,"adiantamento.fatura.inv@ifap.pt"]
[null,null,null,null,null,null,null,"MAR-01.05.01-FEAMP-0041","DOCAPESCA - PORTOS E LOTAS, S. A.","Docapesca - Pt. Matosinhos - Defensas, Escadas e Cabeços de Amarração","DRAPN",7282212,50000,50000,37500,12500,"2017-05-02","2019-06-30",null,null,null,"adelaide.inacio@drapnorte.gov.pt"]
[null,null,null,null,null,null,null,"MAR-01.05.01-FEAMP-0042","DIRECÇÃO GERAL DE RECURSOS NATURAIS, SEGURANÇA E SERVIÇOS MARÍTIMOS","RECUPERAÇÃO DO QUEBRA MAR DO PORTO DA ERICEIRA","DRAPLVT",8171291,3485820,1744543.48,1308407.6100000001,436135.86999999988,"2018-08-01","2020-02-28",null,null,null,"decisoesmar2020@draplvt.gov.pt"]
[null,null,null,null,null,null,null,"MAR-01.05.01-FEAMP-0044","DOCAPESCA - PORTOS E LOTAS, S. A.","Reabilitação do pavimento do cais de descarga Porto de Pesca de Quarteira","DRAPALG",7282212,220000,211000,158250,52750,"2017-06-03","2018-07-31",null,null,null,"Mar2020-ap@drapalg.min-agricultura.pt"]
[null,null,null,null,null,null,null,"MAR-01.05.01-FEAMP-0045","DIRECÇÃO GERAL DE RECURSOS NATURAIS, SEGURANÇA E SERVIÇOS MARÍTIMOS","Recuperação do molhe nascente e dragagem acessória da barra dos portos Tavira","DRAPALG",8171291,1293736.6100000001,806602.03,604951.52,201650.51,"2016-10-05","2017-12-31",null,null,null,"Mar2020-ap@drapalg.min-agricultura.pt"]
[null,null,null,null,null,null,null,"MAR-01.05.01-FEAMP-0046","DOCAPESCA - PORTOS E LOTAS, S. A.","Docapesca, S.A. - Porto Vila Praia de Âncora","DRAPN",7282212,150000,133220,99915,33305,"2017-07-03","2018-12-31",null,null,null,"adelaide.inacio@drapnorte.gov.pt"]
[null,null,null,null,null,null,null,"MAR-01.05.01-FEAMP-0047","DIRECÇÃO GERAL DE RECURSOS NATURAIS, SEGURANÇA E SERVIÇOS MARÍTIMOS","MELHORIA DAS CONDIÇÕES DE SEGURANÇA DO PORTO DA NAZARÉ","DRAPLVT",8171291,2594000,1136520,852390,284130,"2019-04-01","2020-12-31",null,null,null,"decisoesmar2020@draplvt.gov.pt"]
[null,null,null,null,null,null,null,"MAR-01.05.01-FEAMP-0050","DOCAPESCA - PORTOS E LOTAS, S. A.","Requalificacao do edificio da lota - pavimentos e caleiras - Porto Olhao","DRAPALG",7282212,149751.5,146525.82,109894.37,36631.450000000012,"2017-09-03","2019-12-31",null,null,null,"Mar2020-ap@drapalg.min-agricultura.pt"]
[null,null,null,null,null,null,null,"MAR-01.05.01-FEAMP-0051","DOCAPESCA - PORTOS E LOTAS, S. A.","Montagem de plataforma flutuante de apoio a pesca - Sagres","DRAPALG",7282212,125000,112960,84720,28240,"2017-09-03","2018-12-31",null,null,null,"Mar2020-ap@drapalg.min-agricultura.pt"]
[null,null,null,null,null,null,null,"MAR-01.05.01-FEAMP-0052","DOCAPESCA - PORTOS E LOTAS, S. A.","Construção de Novas Captações, Bombagem e Tratamento de Àgua Salgada - Sesimbra","DRAPLVT",7282212,243523,183287.91,137465.93,45821.98000000001,"2017-11-03","2019-11-29",null,null,null,"decisoesmar2020@draplvt.gov.pt"]
[null,null,null,null,null,null,null,"MAR-01.05.01-FEAMP-0056","DOCAPESCA - PORTOS E LOTAS, S. A.","Melhoria da Eficiência Ambiental Energética - Porto Pesca Sustentável da Nazaré","DRAPLVT",7282212,799950,610500,457875,152625,"2017-10-01","2019-10-01",null,null,null,"decisoesmar2020@draplvt.gov.pt"]
[null,null,null,null,null,null,null,"MAR-01.05.01-FEAMP-0057","DOCAPESCA - PORTOS E LOTAS, S. A.","Apetrechamento de Apoio à Pesca - Nazaré","DRAPLVT",7282212,15690,14211,10658.25,3552.75,"2017-09-03","2018-09-30",null,null,null,"decisoesmar2020@draplvt.gov.pt"]
[null,null,null,null,null,null,null,"MAR-01.05.01-FEAMP-0058","DOCAPESCA - PORTOS E LOTAS, S. A.","Apetrechamento de Apoio à Pesca - Aveiro","DRAPC",7282212,45000,39980,29985,9995,"2017-09-03","2018-12-31",null,null,null,"diav@drapc.gov.pt"]
[null,null,null,null,null,null,null,"MAR-01.05.01-FEAMP-0059","DOCAPESCA - PORTOS E LOTAS, S. A.","Reabilitação dos Furos de Captação e Sistema de Bombagem e Tratamento de Água","DRAPC",7282212,139304.48000000001,139304.48000000001,104478.36,34826.12000000001,"2015-09-03","2019-06-30",null,null,null,"diav@drapc.gov.pt"]
[null,null,null,null,null,null,null,"MAR-01.05.01-FEAMP-0061","MUNICIPIO DE OLHÃO","Requalificação e valorização da rampa de acesso a embarcações no Porto de Olhão","DRAPALG",7080934,30681.7,30681.7,23011.279999999999,7670.4200000000019,"2017-06-08","2018-05-02",null,null,null,"Mar2020-ap@drapalg.min-agricultura.pt"]
[null,null,null,null,null,null,null,"MAR-01.05.01-FEAMP-0062","MUNICIPIO DE OLHÃO","Requalificação dos apoios de pesca na Fuzeta","DRAPALG",7080934,21083.4,21083.4,15812.55,5270.8500000000022,"2017-05-01","2017-09-30",null,null,null,"Mar2020-ap@drapalg.min-agricultura.pt"]
[null,null,null,null,null,null,null,"MAR-01.05.01-FEAMP-0063","DOCAPESCA - PORTOS E LOTAS, S. A.","Reabilitação das redes de fornecimento de água e electricidade - Porto Portimão","DRAPALG",7282212,119805.63,118784.01,89088.01,29696,"2017-10-02","2018-12-31",null,null,null,"Mar2020-ap@drapalg.min-agricultura.pt"]
[null,null,null,null,null,null,null,"MAR-01.05.01-FEAMP-0064","DOCAPESCA - PORTOS E LOTAS, S. A.","Reabilitação da lota da Fuseta","DRAPALG",7282212,349611.5,349611.5,262208.63,87402.87,"2017-10-01","2019-03-31",null,null,null,"Mar2020-ap@drapalg.min-agricultura.pt"]
[null,null,null,null,null,null,null,"MAR-01.05.01-FEAMP-0065","MUNICÍPIO DA MURTOSA","Requalificação do Cais da Cova do Chegado","DRAPC",7392037,198050.02,154174.38,115630.79,38543.590000000011,"2017-11-30","2017-12-27",null,null,null,"diav@drapc.gov.pt"]
[null,null,null,null,null,null,null,"MAR-01.05.01-FEAMP-0066","MUNICÍPIO DA MURTOSA","MOLHE NO PORTO DE ABRIGO DA TORREIRA","DRAPC",7392037,403915.95,400654.32,300490.74,100163.58000000002,"2016-10-21","2018-07-31",null,null,null,"diav@drapc.gov.pt"]
[null,null,null,null,null,null,null,"MAR-01.05.01-FEAMP-0074","DIREÇÃO REGIONAL DAS PESCAS","Melhoria das condições operacionais e de segurança do porto do Topo, S. Jorge","DSPEP",7991621,6423920,6423920,4817940,1605980,"2015-08-01","2021-03-31",null,null,null,"info.mar2020@azores.gov.pt"]
[null,null,null,null,null,null,null,"MAR-01.05.01-FEAMP-0076","APROPESCA ORGANIZAÇÃO DE PRODUTORES DA PESCA ARTESANAL","APROPESCA - Aq. Dornas e Contentores","DRAPN",5169841,106529.8,106529.8,59923.01,19974.340000000004,"2018-11-29","2019-04-22",null,null,null,"adelaide.inacio@drapnorte.gov.pt"]
[null,null,null,null,null,null,null,"MAR-01.05.01-FEAMP-0077","APROPESCA ORGANIZAÇÃO DE PRODUTORES DA PESCA ARTESANAL","APROPESCA - Aq. e Fornecimento de Isca","DRAPN",5169841,256824,200000,150000,50000,"2019-09-16","2020-05-18",null,null,null,"adelaide.inacio@drapnorte.gov.pt"]
[null,null,null,null,null,null,null,"MAR-01.05.01-FEAMP-0078","DOCAPESCA - PORTOS E LOTAS, S. A.","Plataforma Flutuante - Porto de Pesca de Peniche","DRAPLVT",7282212,60000,57270,42952.5,14317.5,"2018-06-03","2019-04-08",null,null,null,"decisoesmar2020@draplvt.gov.pt"]
[null,null,null,null,null,null,null,"MAR-01.05.01-FEAMP-0079","DOCAPESCA - PORTOS E LOTAS, S. A.","Reabilitação de Armazéns de Aprestos - Porto Pesca de Sesimbra","DRAPLVT",7282212,49843.59,49026.47,36769.85,12256.620000000003,"2018-06-04","2018-11-30",null,null,null,"decisoesmar2020@draplvt.gov.pt"]
[null,null,null,null,null,null,null,"MAR-01.05.01-FEAMP-0080","Municipio de Mafra","Aquisição de Guincho Hidráulico","DRAPLVT",7499417,63765.05,63765.05,47823.79,15941.260000000002,"2019-03-15","2019-03-31",null,null,null,"decisoesmar2020@draplvt.gov.pt"]
[null,null,null,null,null,null,null,"MAR-01.05.01-FEAMP-0082","OPCENTRO-COOPERATIVA DA PESCA GERAL DE CENTRO C.R.L.","Aquisição de Contentores Isotérmicos e Inox","DRAPLVT",4913857,89300,64448,36252,12084,"2018-04-01","2018-12-04",null,null,null,"decisoesmar2020@draplvt.gov.pt"]
[null,null,null,null,null,null,null,"MAR-01.05.01-FEAMP-0083","MUNICÍPIO DE TORRES VEDRAS","Requalificação do Porto de Pesca Local da Assenta","DRAPLVT",7379153,188501.9,108880.25,81660.19,27220.059999999998,"2018-07-01","2020-07-30",null,null,null,"decisoesmar2020@draplvt.gov.pt"]
[null,null,null,null,null,null,null,"MAR-01.05.01-FEAMP-0085","União de Freguesias de Santa Marinha e são Pedro da Afurada","AFURADA - Posto de Controlo e Registo de Pescado","DRAPN",9173131,153021.39000000001,153021.39000000001,114766.04,38255.35000000002,"2018-07-10","2020-12-14",null,null,null,"adelaide.inacio@drapnorte.gov.pt"]
[null,null,null,null,null,null,null,"MAR-01.05.01-FEAMP-0086","ASSOCIAÇÃO MÚTUA DOS ARMADORES DE PESCA DE ANGEIRAS - MAPA","Apoio a Atividade de Pesca Tradicional em Matosinhos","DRAPN",7677157,196690,181928,81867.600000000006,27289.199999999997,"2018-02-08","2018-03-12",null,null,null,"adelaide.inacio@drapnorte.gov.pt"]
[null,null,null,null,null,null,null,"MAR-01.05.01-FEAMP-0090","MUNICÍPIO DE AVEIRO","Núcleo de apoio à pesca de S. Jacinto","DRAPC",7167246,358380.82,266666.67,200000,66666.669999999984,"2018-05-30","2019-08-31",null,null,null,"diav@drapc.gov.pt"]
[null,null,null,null,null,null,null,"MAR-01.05.01-FEAMP-0096","LOTAÇOR-SERVIÇO DE LOTAS DOS AÇORES S.A.","Fornecimento e montagem de central de gelo Rabo de Peixe","DSPEP",7091046,365000,349898.23999999999,262423.67999999999,87474.559999999998,"2018-11-02","2020-04-14",null,null,null,"info.mar2020@azores.gov.pt"]
[null,null,null,null,null,null,null,"MAR-01.05.01-FEAMP-0098","LOTAÇOR-SERVIÇO DE LOTAS DOS AÇORES S.A.","Beneficiação de câmaras frio, silo e máq. gelo posto recolha Ribeira Quente","DSPEP",7091046,68298,68298,51223.5,17074.5,"2018-12-03","2019-09-18",null,null,null,"info.mar2020@azores.gov.pt"]
[null,null,null,null,null,null,null,"MAR-01.05.01-FEAMP-0099","SECRETARIA REGIONAL DO MAR E DAS PESCA","Construção casas de aprestos e posto recolha","SRMP",8578875,190033.47,183014.46,137260.85,45753.609999999986,"2016-08-01","2019-12-31",null,null,null,"adiantamento.fatura.inv@ifap.pt"]
[null,null,null,null,null,null,null,"MAR-01.05.01-FEAMP-0107","APROPESCA ORGANIZAÇÃO DE PRODUTORES DA PESCA ARTESANAL","Investimentos em Portos e Lotas","DRAPN",5169841,145509,118300,66543.75,22181.25,"2019-10-21","2020-12-15",null,null,null,"adelaide.inacio@drapnorte.gov.pt"]
[null,null,null,null,null,null,null,"MAR-01.05.01-FEAMP-0111","DOCAPESCA - PORTOS E LOTAS, S. A.","Pavilhão de Apoio à Descarga e Acondicionamento de Pescado","DRAPLVT",7282212,700000,400000,300000,100000,"2018-11-05","2018-12-31",null,null,null,"decisoesmar2020@draplvt.gov.pt"]
[null,null,null,null,null,null,null,"MAR-01.05.01-FEAMP-0112","DOCAPESCA - PORTOS E LOTAS, S. A.","Sistema Venda em Lota, Rastreabilidade e Estatística - Projeto Piloto","DRAPLVT",7282212,300000,300000,225000,75000,"2019-05-01","2019-10-31",null,null,null,"decisoesmar2020@draplvt.gov.pt"]
[null,null,null,null,null,null,null,"MAR-01.05.01-FEAMP-0113","DOCAPESCA - PORTOS E LOTAS, S. A.","Melhoria da Eficiência Energética","DRAPLVT",7282212,100000,90620,50973.74,16991.250000000007,"2018-11-05","2018-12-31",null,null,null,"decisoesmar2020@draplvt.gov.pt"]
[null,null,null,null,null,null,null,"MAR-01.05.01-FEAMP-0115","DOCAPESCA - PORTOS E LOTAS, S. A.","Requalificação do Sistema de Captação de Água Salgada, filtragem e tratamento Prévio à Distribuição às Pontes Cais","DRAPN",7282212,253200,253200,189900,63300,"2018-11-05","2018-12-31",null,null,null,"adelaide.inacio@drapnorte.gov.pt"]
[null,null,null,null,null,null,null,"MAR-01.05.01-FEAMP-0116","DOCAPESCA - PORTOS E LOTAS, S. A.","Remodelação Geral da Rede de Distribuição de Energia","DRAPN",7282212,86180,86180,64635,21545,"2019-12-02","2021-01-31",null,null,null,"adelaide.inacio@drapnorte.gov.pt"]
[null,null,null,null,null,null,null,"MAR-01.05.01-FEAMP-0120","COOPERATIVA DE PRODUTORES DE PEIXE DO CENTRO LITORAL CRL","Aquisição de contentores isotérmicos para transporte de pescado","DRAPC",5628165,409610,274911,154637.44,51545.81,"2019-11-21","2020-07-30",null,null,null,"diav@drapc.gov.pt"]
[null,null,null,null,null,null,null,"MAR-01.05.01-FEAMP-0121","DOCAPESCA - PORTOS E LOTAS, S. A.","Parque de Apoio aos Armadores de Pesca, no Porto de Pesca de Lagos.","DRAPALG",7282212,175000,175000,131250,43750,"2019-01-01","2019-12-31",null,null,null,"Mar2020-ap@drapalg.min-agricultura.pt"]
[null,null,null,null,null,null,null,"MAR-01.05.01-FEAMP-0123","COOPERATIVA DE PRODUTORES DE PEIXE DO CENTRO LITORAL CRL","Aquisição de 30 empilhadores para descarga de pescado","DRAPC",5628165,683442,380732,214161.75,71387.25,"2019-11-21","2020-12-31",null,null,null,"diav@drapc.gov.pt"]
[null,null,null,null,null,null,null,"MAR-01.05.01-FEAMP-0126","DOCAPESCA - PORTOS E LOTAS, S. A.","Melhoria da Eficiência Energética","DRAPLVT",7282212,189500,170500,127875,42625,"2019-06-10","2020-10-12",null,null,null,"decisoesmar2020@draplvt.gov.pt"]
[null,null,null,null,null,null,null,"MAR-01.05.01-FEAMP-0127","VIDAS NAVEGANTES LDA","Modernização de instalações terrestres (armazém de aprestos) no Porto da Figueira da Foz","DRAPC",7660171,51344,36620.85,13732.83,4577.6099999999988,"2019-01-07","2019-12-31",null,null,null,"diav@drapc.gov.pt"]
[null,null,null,null,null,null,null,"MAR-01.05.01-FEAMP-0129","DOCAPESCA - PORTOS E LOTAS, S. A.","Reabilitação do Edifício da Lota - Quarteira","DRAPALG",7282212,599930.43999999994,299965.21999999997,224973.92,74991.299999999959,"2018-11-16","2020-01-30",null,null,null,"Mar2020-ap@drapalg.min-agricultura.pt"]
[null,null,null,null,null,null,null,"MAR-01.05.01-FEAMP-0131","DOCAPESCA - PORTOS E LOTAS, S. A.","Melhoria da Eficiência Energética - Portos do Algarve","DRAPALG",7282212,450000,388000,291000,97000,"2019-06-03","2020-09-14",null,null,null,"Mar2020-ap@drapalg.min-agricultura.pt"]
[null,null,null,null,null,null,null,"MAR-01.05.01-FEAMP-0133","PESCAXICO - SOCIEDADE DE PESCAS, LDA","Modernização de instalações terrestres ( armazém de aprestos) no Porto de Pesca da Figueira da Foz.","DRAPC",7213006,25672,17558.97,6584.62,2194.87,"2019-01-07","2019-07-15",null,null,null,"diav@drapc.gov.pt"]
[null,null,null,null,null,null,null,"MAR-01.05.01-FEAMP-0134","FRANCISPESCA - SOCIEDADE DE PESCA, LDA.","Modernização de instalações terrestres ( armazém de aprestos) no Porto de Pesca da Figueira da Foz","DRAPC",7541787,25672,17558.97,6584.62,2194.87,"2019-01-07","2019-07-15",null,null,null,"diav@drapc.gov.pt"]
[null,null,null,null,null,null,null,"MAR-01.05.01-FEAMP-0138","SECRETARIA REGIONAL DE MAR E PESCAS","Remodelação do varadouro do Paul do Mar","SRMP",10361525,254167.91,254167.91,190625.94,63541.97,"2017-09-01","2021-06-30",null,null,null,"adiantamento.fatura.inv@ifap.pt"]
[null,null,null,null,null,null,null,"MAR-01.05.01-FEAMP-0139","APSS- ADMINISTRAÇÃO DOS PORTOS DE SETÚBAL E SESIMBRA SA","Construção da Ponte-Cais nº 4 no Porto de Sesimbra","DRAPLVT",7227761,3250000,3250000,2437500,812500,"2019-05-01","2021-03-31",null,null,null,"decisoesmar2020@draplvt.gov.pt"]
[null,null,null,null,null,null,null,"MAR-01.05.01-FEAMP-0141","MUNICÍPIO DA LOURINHÃ","Reposição de Quebra-mar no Portinho de Porto das Barcas","DRAPLVT",7376731,273276.5,252692.46,189519.35,63173.109999999986,"2018-12-26","2020-06-08",null,null,null,"decisoesmar2020@draplvt.gov.pt"]
[null,null,null,null,null,null,null,"MAR-01.05.01-FEAMP-0142","POLIS LITORAL SUDOESTE, S.A. ","Beneficiação e Requalificação do Portinho da Arrifana","DRAPALG",7698084,608850,597780,448335,149445,"2019-03-20","2019-03-27",null,null,null,"Mar2020-ap@drapalg.min-agricultura.pt"]
[null,null,null,null,null,null,null,"MAR-01.05.01-FEAMP-0149","DOCAPESCA - PORTOS E LOTAS, S. A.","Melhoria das condições de segurança e de trabalho em portos e lotas","DRAPALG",7282212,212108.35,212108.35,159081.28,53027.070000000007,"2020-03-18","2020-12-31",null,null,null,"Mar2020-ap@drapalg.min-agricultura.pt"]
[null,null,null,null,null,null,null,"MAR-01.05.01-FEAMP-0150","DIRECÇÃO GERAL DE RECURSOS NATURAIS, SEGURANÇA E SERVIÇOS MARÍTIMOS","EQUIPAMENTOS DE PROTEÇÃO INDIVIDUAL – COVID-19","DRAPLVT",8171291,386051.25,386051.25,289538.44,96512.81,"2020-04-24","2020-12-31",null,null,null,"decisoesmar2020@draplvt.gov.pt"]
[null,null,null,null,null,null,null,"MAR-01.05.01-FEAMP-0152","ASSOCIAÇÃO NACIONAL PEQUENA PESCA DO CERCO","Aquisição de equipamentos com vista à mitigação do contágio do COVID-19","DRAPN",10379852,1570,1568.25,705.71,235.24,"2020-04-01","2020-12-31",null,null,null,"adelaide.inacio@drapnorte.gov.pt"]
[null,null,null,null,null,null,null,"MAR-01.05.01-FEAMP-0153","ASSOCIAÇÃO DE ARMADORES DE PESCA DA FUZETA - AAPF","Segurança à bordo das embarcações - COVID 19","DRAPALG",8383174,5640,5635.5,2535.98,845.32000000000016,"2020-07-01","2020-12-31",null,null,null,"Mar2020-ap@drapalg.min-agricultura.pt"]
[null,null,null,null,null,null,null,"MAR-01.05.01-FEAMP-0154","LOTAÇOR-SERVIÇO DE LOTAS DOS AÇORES S.A.","Aquisição de equipamentos e materiais para proteção e segurança dos operadores do setor da pesca em portos, lotas, postos de recolha e locais de desembarque da Região Autónoma dos Açores, no âmbito da pandemia COVID19","DSPEP",7091046,150014.35999999999,134884.15,101163.11,33721.039999999994,"2020-04-29","2020-09-29",null,null,null,"info.mar2020@azores.gov.pt"]
[null,null,null,null,null,null,null,"MAR-01.05.01-FEAMP-0159","DOCAPESCA - PORTOS E LOTAS, S. A.","Melhoria das condições de segurança e de trabalho nos portos de pesca","DGRM",7282212,437319,400000,300000,100000,"2020-12-07","2020-12-31",null,null,null,"ifferreira@dgrm.mm.gov.pt"]
[null,null,null,null,null,null,null,"MAR-01.05.01-FEAMP-0162","LOTAÇOR-SERVIÇO DE LOTAS DOS AÇORES S.A.","Fornecimento e Montagem de uma Central de produção e distribuição de gelo para o Porto de Pesca de Vila do Porto, ilha de Santa Maria","DSPEP",7091046,360000,360000,270000,90000,"2021-02-08","2022-06-30",null,null,null,"info.mar2020@azores.gov.pt"]
[null,null,null,null,null,null,null,"MAR-01.05.02-FEAMP-0004","DOCAPESCA - PORTOS E LOTAS, S. A.","DOCAPESCA - Apetrechamento de Apoio à Pesca - Matosinhos","DRAPLVT",7282212,21000,10500,7875,2625,"2016-10-03","2018-07-31",null,null,null,"decisoesmar2020@draplvt.gov.pt"]
[null,null,null,null,null,null,null,"MAR-01.05.02-FEAMP-0020","ARTESANALPESCA-ORGANIZACAO DE PRODUTORES DE PESCA CRL","Melhoria do acondicionamento do Pescado","DRAPLVT",4912912,101297,92297.3,51917.24,17305.739999999998,"2016-01-01","2017-11-06",null,null,null,{"$f":"VLOOKUP(K516,S:T,2,FALSE)","v":"decisoesmar2020@draplvt.gov.pt"}]
[null,null,null,null,null,null,null,"MAR-01.05.02-FEAMP-0021","UNIÃO DE FREGUESIAS DE MONCARAPACHO E FUSETA","Melhoria das condições de descarga e acesso ao cais de desembarque da pesca","DRAPALG",8862961,96715.91,96715.91,72536.929999999993,24178.98000000001,"2017-02-01","2019-06-30",null,null,null,"Mar2020-ap@drapalg.min-agricultura.pt"]
[null,null,null,null,null,null,null,"MAR-01.05.02-FEAMP-0022","UNIÃO DE FREGUESIAS DE MONCARAPACHO E FUSETA","Montagem de carro de alagem e guincho, na rampa de acesso, para as embarcações","DRAPALG",8862961,53246.7,53246.7,39935.03,13311.669999999998,"2017-02-01","2019-06-30",null,null,null,"Mar2020-ap@drapalg.min-agricultura.pt"]
[null,null,null,null,null,null,null,"MAR-01.05.02-FEAMP-0024","POLIS LITORAL NORTE - SOC. REQUALIF. E VALORIZAÇÃO DO LITORAL NORTE, S.A","POLIS Lit. Norte - Mododernização do Cais de Caminha","DRAPN",8866781,880271.73,880271.73,660203.80000000005,220067.92999999993,"2014-03-01","2019-11-30",null,null,null,"adelaide.inacio@drapnorte.gov.pt"]
[null,null,null,null,null,null,null,"MAR-01.05.02-FEAMP-0025","POLIS LITORAL NORTE - SOC. REQUALIF. E VALORIZAÇÃO DO LITORAL NORTE, S.A","POLIS Lit. Norte - Estaleiro Cabedelo - Viana do Castelo","DRAPN",8866781,371534.02,371534.02,278650.52,92883.5,"2015-10-01","2020-08-31",null,null,null,"adelaide.inacio@drapnorte.gov.pt"]
[null,null,null,null,null,null,null,"MAR-01.05.02-FEAMP-0026","POLIS LITORAL NORTE - SOC. REQUALIF. E VALORIZAÇÃO DO LITORAL NORTE, S.A","POLIS Lit Norte - Prt. Psc Castelo Neiva","DRAPN",8866781,2150918.71,2150918.71,1613189.04,537729.66999999993,"2016-07-01","2020-09-30",null,null,null,"adelaide.inacio@drapnorte.gov.pt"]
[null,null,null,null,null,null,null,"MAR-01.05.02-FEAMP-0027","POLIS LITORAL NORTE - SOC. REQUALIF. E VALORIZAÇÃO DO LITORAL NORTE, S.A","POLIS Lit. Norte - Doca de Pesca de Esposende","DRAPN",8866781,1092240,1092240,819180,273060,"2016-07-18","2016-10-07",null,null,null,"adelaide.inacio@drapnorte.gov.pt"]
[null,null,null,null,null,null,null,"MAR-01.05.02-FEAMP-0028","POLIS LITORAL NORTE - SOC. REQUALIF. E VALORIZAÇÃO DO LITORAL NORTE, S.A","POLIS Lit. Norte - Portinho da Apúlia","DRAPN",8866781,716782.5,716782.5,537586.88,179195.62,"2016-11-01","2018-12-31",null,null,null,"adelaide.inacio@drapnorte.gov.pt"]
[null,null,null,null,null,null,null,"MAR-01.05.02-FEAMP-0037","LOTAÇOR-SERVIÇO DE LOTAS DOS AÇORES S.A.","Aquisição de equipamentos para o entreposto frigorífico de Ponta Delgada","DSPEP",7091046,1148200,757962.01,568471.51,189490.5,"2017-05-15","2018-05-30",null,null,null,"info.mar2020@azores.gov.pt"]
[null,null,null,null,null,null,null,"MAR-01.05.02-FEAMP-0040","OLHAOPESCA - ORGANIZACAO DE PRODUTORES DE PESCA DO ALGARVE CRL","Aquisição de equipamentos que beneficiem as condições de desembarque de produtos","DRAPALG",5826466,72243.8,72243.8,40637.14,13545.71,"2017-07-01","2018-08-31",null,null,null,"Mar2020-ap@drapalg.min-agricultura.pt"]
[null,null,null,null,null,null,null,"MAR-01.05.02-FEAMP-0049","PROPEIXE O.P.- COOP.DE PRODUTORES DE PEIXE DO NORTE CRL","Propeixe - Aquisição de Empilhadores e Dornas","DRAPN",4907002,1687242,1672177,940599.56,313533.18999999994,"2016-06-30","2019-09-30",null,null,null,"adelaide.inacio@drapnorte.gov.pt"]
[null,null,null,null,null,null,null,"MAR-01.05.02-FEAMP-0070","ASSOCIAÇÃO DE MORADORES DA ILHA DA CULATRA","Aquisição de contentores para guarda de artes e aprestos de pesca - Culatra","DRAPALG",7397263,18389.2,18033.240000000002,13524.93,4508.3100000000013,"2017-06-01","2018-06-30",null,null,null,"Mar2020-ap@drapalg.min-agricultura.pt"]
[null,null,null,null,null,null,null,"MAR-01.05.02-FEAMP-0072","OLHAOPESCA - ORGANIZACAO DE PRODUTORES DE PESCA DO ALGARVE CRL","Aquisição de equipamentos que beneficiem as condições de desembarque","DRAPALG",5826466,289443.59999999998,229001.4,128813.29,42937.759999999995,"2017-08-01","2018-09-30",null,null,null,"Mar2020-ap@drapalg.min-agricultura.pt"]
[null,null,null,null,null,null,null,"MAR-01.05.02-FEAMP-0087","Municipio do Barreiro","Requalificação da Doca Seca","DRAPLVT",7974007,279685.90000000002,227046.8,170285.1,56761.699999999983,"2018-02-08","2018-03-12",null,null,null,"decisoesmar2020@draplvt.gov.pt"]
[null,null,null,null,null,null,null,"MAR-01.05.02-FEAMP-0088","MUNICÍPIO DE VILA DO BISPO","Aquisição de contentores no núcleo de pesca de Salema","DRAPALG",7379072,99605.4,99605.4,74704.05,24901.349999999991,"2018-06-01","2019-05-04",null,null,null,"Mar2020-ap@drapalg.min-agricultura.pt"]
[null,null,null,null,null,null,null,"MAR-01.05.02-FEAMP-0100","APROPESCA ORGANIZAÇÃO DE PRODUTORES DA PESCA ARTESANAL","Investimentos em Portos e Lotas","DRAPN",5169841,80591.89,80591.88,45332.94,15110.979999999996,"2019-03-01","2019-12-31",null,null,null,"adelaide.inacio@drapnorte.gov.pt"]
[null,null,null,null,null,null,null,"MAR-01.05.02-FEAMP-0102","SESIBAL-COOPERATIVA DE PESCAS DE SETUBAL,SESIMBRA E SINES CRL","Aquisição de um conjunto de equipamentos","DRAPLVT",4910607,52727.19,43727.8,24596.89,8198.9599999999991,"2019-01-02","2019-09-30",null,null,null,"decisoesmar2020@draplvt.gov.pt"]
[null,null,null,null,null,null,null,"MAR-01.05.02-FEAMP-0109","ARTESANALPESCA-ORGANIZACAO DE PRODUTORES DE PESCA CRL","Aquisição de equipamentos de movimentação de carga e  vasilhame","DRAPLVT",4912912,485707.76,400000,225000.01,74999.989999999991,"2019-02-15","2020-08-31",null,null,null,"decisoesmar2020@draplvt.gov.pt"]
[null,null,null,null,null,null,null,"MAR-01.05.02-FEAMP-0110","MUNICIPIO DE OLHÃO","Implantação e Instalação de Apoios de Pesca - Olhão","DRAPALG",7080934,180200,180200,135150,45050,"2018-10-08","2021-06-05",null,null,null,"Mar2020-ap@drapalg.min-agricultura.pt"]
[null,null,null,null,null,null,null,"MAR-01.05.02-FEAMP-0117","DOCAPESCA - PORTOS E LOTAS, S. A.","REABILITAÇÃO E APETRECHAMENTO DOS CAIS DE DESCARGA, ESTACIONAMENTO E ABASTECIMENTO","DRAPLVT",7282212,599895,400000,300000,100000,"2018-11-05","2018-12-31",null,null,null,"decisoesmar2020@draplvt.gov.pt"]
[null,null,null,null,null,null,null,"MAR-01.05.02-FEAMP-0137","POLIS LITORAL SUDOESTE, S.A. "," Reparaçao do Cais  do Molhe Norte  de Abrigo do Portinho de Porto Covo","DRAPAL",7698084,202937.5,91439.85,68579.89,22859.960000000006,"2018-11-01","2020-08-28",null,null,null,0]
[null,null,null,null,null,null,null,"MAR-01.05.02-FEAMP-0148","DIREÇÃO REGIONAL DAS PESCAS","Melhoria das condições operacionais e de segurança do Núcleo de Pescas do Porto da Madalena","SRMP",7991621,1222908.9099999999,1071982.6000000001,803986.95,267995.65000000014,"2016-01-01","2021-12-31",null,null,null,"adiantamento.fatura.inv@ifap.pt"]
[null,null,null,null,null,null,null,"MAR-01.05.03-FEAMP-0002","DOCAPESCA - PORTOS E LOTAS, S. A.","Apetrechamento de apoios à pesca - Algarve","DRAPALG",7282212,163708.18,123155.26,92366.45,30788.809999999998,"2016-10-03","2018-12-31",null,null,null,"Mar2020-ap@drapalg.min-agricultura.pt"]
[null,null,null,null,null,null,null,"MAR-01.05.03-FEAMP-0029","SECRETARIA REGIONAL DE MAR E PESCAS","Remodelação do posto de receção de pescado do Porto Moniz","SRMP",10361525,298665.40999999997,294597.21999999997,220947.92,73649.299999999959,"2014-09-01","2018-12-31",null,null,null,"adiantamento.fatura.inv@ifap.pt"]
[null,null,null,null,null,null,null,"MAR-01.05.03-FEAMP-0036","LOTAÇOR-SERVIÇO DE LOTAS DOS AÇORES S.A.","Empreitada de ampliação e fornecimento e montagem de equi. frig. lota S. Mateus","DSPEP",7091046,69857.52,60138.42,45103.82,15034.599999999999,"2017-03-06","2017-10-13",null,null,null,"info.mar2020@azores.gov.pt"]
[null,null,null,null,null,null,null,"MAR-01.05.03-FEAMP-0039","LOTAÇOR-SERVIÇO DE LOTAS DOS AÇORES S.A.","Prest serviços p/ elab proj exec, fisc e emp melhoramento amp entreposto Velas","DSPEP",7091046,1108200,1049597.8999999999,787198.43,262399.46999999986,"2016-10-24","2020-06-30",null,null,null,"info.mar2020@azores.gov.pt"]
[null,null,null,null,null,null,null,"MAR-01.05.03-FEAMP-0054","DOCAPESCA - PORTOS E LOTAS, S. A.","Reabilitação da Lota da Costa da Caparica","DRAPLVT",7282212,379724.35,271016.64,203262.48,67754.16,"2017-10-03","2020-04-17",null,null,null,"decisoesmar2020@draplvt.gov.pt"]
[null,null,null,null,null,null,null,"MAR-01.05.03-FEAMP-0069","DOCAPESCA - PORTOS E LOTAS, S. A.","Edificação e infraestruturas de apoio à descarga da sardinha","DRAPAL",7282212,597150,597150,447862.5,149287.5,"2017-10-03","2018-12-31",null,null,null,0]
[null,null,null,null,null,null,null,"MAR-01.05.03-FEAMP-0075","LOTAÇOR-SERVIÇO DE LOTAS DOS AÇORES S.A.","Aquisição 15 marcadores pneumáticos p/ marcação de pescado c/ etiqueta, p/ RAA","DSPEP",7091046,12180,12180,9135,3045,"2017-10-23","2017-12-30",null,null,null,"info.mar2020@azores.gov.pt"]
[null,null,null,null,null,null,null,"MAR-01.05.03-FEAMP-0093","SECRETARIA REGIONAL DE MAR E PESCAS","Reabilitação da Lota do Funchal","SRMP",10361525,5551849.2199999997,5551849.2199999997,4163886.92,1387962.2999999998,"2016-10-01","2020-12-31",null,null,null,"adiantamento.fatura.inv@ifap.pt"]
[null,null,null,null,null,null,null,"MAR-01.05.03-FEAMP-0094","LOTAÇOR-SERVIÇO DE LOTAS DOS AÇORES S.A.","Aquisição de sistema rastreabilidade e identificação de tamanho e calibre","DSPEP",7091046,69318,69318,51988.5,17329.5,"2018-05-24","2020-01-31",null,null,null,"info.mar2020@azores.gov.pt"]
[null,null,null,null,null,null,null,"MAR-01.05.03-FEAMP-0095","LOTAÇOR-SERVIÇO DE LOTAS DOS AÇORES S.A.","Fornecimento Equip. Movimentação de Carga p/ Entreposto de PDL","DSPEP",7091046,170000,103515.7,77636.78,25878.92,"2018-10-20","2019-10-31",null,null,null,"info.mar2020@azores.gov.pt"]
[null,null,null,null,null,null,null,"MAR-01.05.03-FEAMP-0145","SECRETARIA REGIONAL DE MAR E PESCAS","Remodelação da Lota do Caniçal fase I - Unidade externa de gelo","SRMP",10361525,1423850.34,1423850.34,1067887.76,355962.58000000007,"2017-12-01","2021-09-30",null,null,null,"adiantamento.fatura.inv@ifap.pt"]
[null,null,null,null,null,null,null,"MAR-01.05.03-FEAMP-0146","LOTAÇOR-SERVIÇO DE LOTAS DOS AÇORES S.A.","Fiscalização e Empreitada de requalificação do entreposto frigorífico da Horta, ilha do Faial","DSPEP",7091046,3600000,3600000,2700000,900000,"2019-06-01","2021-12-01",null,null,null,"info.mar2020@azores.gov.pt"]
[null,null,null,null,null,null,null,"MAR-01.05.03-FEAMP-0147","LOTAÇOR-SERVIÇO DE LOTAS DOS AÇORES S.A.","Aquisição de 13.000 caixas de transporte/acondicionamento de pescado para as Lotas da Região Autónoma dos Açores","DSPEP",7091046,64600,64600,48450,16150,"2019-11-25","2020-06-25",null,null,null,"info.mar2020@azores.gov.pt"]
[null,null,null,null,null,null,null,"MAR-01.05.03-FEAMP-0157","LOTAÇOR-SERVIÇO DE LOTAS DOS AÇORES S.A.","Elaboração do Projeto, Revisão do Projeto, Fiscalização e Empreitada de Requalificação e Modernização do Entreposto Frigorífico de Vila do Porto, Ilha de Santa Maria","DSPEP",7091046,1391551,1391551,1043663.25,347887.75,"2018-03-26","2022-09-01",null,null,null,"info.mar2020@azores.gov.pt"]
[null,null,null,null,null,null,null,"MAR-01.05.03-FEAMP-0160","LOTAÇOR-SERVIÇO DE LOTAS DOS AÇORES S.A.","Elaboração do Projeto, Fiscalização e Empreitada de Requalificação e Modernização do Entreposto Frigorífico das Lajes, ilha das Flores","DSPEP",7091046,671000,671000,503250,167750,"2018-03-26","2022-09-20",null,null,null,"info.mar2020@azores.gov.pt"]
[null,null,null,null,null,null,null,"MAR-01.05.03-FEAMP-0161","LOTAÇOR-SERVIÇO DE LOTAS DOS AÇORES S.A.","Remodelação e Modernização dos Equipamentos de frio de apoio ao Posto de Recolha de Água de Pau, ilha de S. Miguel","DSPEP",7091046,70000,70000,52500,17500,"2021-01-25","2021-12-31",null,null,null,"info.mar2020@azores.gov.pt"]
[null,null,null,null,null,null,null,"MAR-01.05.03-FEAMP-0163","LOTAÇOR-SERVIÇO DE LOTAS DOS AÇORES S.A.","Aquisição de Equipamentos para os Entreposos Frigoríficos da Horta, Madalena e Vila do Porto","DSPEP",7091046,486300,486300,364725,121575,"2021-02-01","2022-06-30",null,null,null,"info.mar2020@azores.gov.pt"]
[null,null,null,null,null,null,null,"MAR-01.05.03-FEAMP-0164","LOTAÇOR-SERVIÇO DE LOTAS DOS AÇORES S.A.","Revisão do Projeto de Execução, Fiscalização e Empreitada de Requalificação do Entreposto Frigorífico da Madalena, Ilha do Pico","DSPEP",7091046,6161155,6161155,4620866.25,1540288.75,"2020-10-06","2023-12-30",null,null,null,"info.mar2020@azores.gov.pt"]
[null,null,null,null,null,null,null,"MAR-01.05.04-FEAMP-0015","MUNICÍPIO DE ÍLHAVO","Recuperação dos armazéns de aprestos do cais de abrigo para pesca artesanal","DRAPC",7558267,31412.04,31412.04,23559.03,7853.010000000002,"2017-11-15","2018-07-31",null,null,null,"diav@drapc.gov.pt"]
[null,null,null,null,null,null,null,"MAR-01.05.04-FEAMP-0016","MUNICÍPIO DE ÍLHAVO","Recuperação de Estruturas Flutuantes do Cais dos Pescadores da Costa Nova","DRAPC",7558267,135699,133812.89000000001,100359.67,33453.220000000016,"2016-09-01","2019-09-30",null,null,null,"diav@drapc.gov.pt"]
[null,null,null,null,null,null,null,"MAR-01.05.04-FEAMP-0043","DIRECÇÃO GERAL DE RECURSOS NATURAIS, SEGURANÇA E SERVIÇOS MARÍTIMOS","DGRM - Abrigo Zona Piscatoria de Angeiras","DRAPN",8171291,4766250,4766250,3574687.5,1191562.5,"2018-07-01","2020-12-31",null,null,null,"adelaide.inacio@drapnorte.gov.pt"]
[null,null,null,null,null,null,null,"MAR-01.05.04-FEAMP-0071","DOCAPESCA - PORTOS E LOTAS, S. A.","Fornecimento e montagem de cais flutuante para apoio de pesca - Ilha da Culatra","DRAPALG",7282212,314480,241900,181425,60475,"2017-09-03","2020-05-15",null,null,null,"Mar2020-ap@drapalg.min-agricultura.pt"]
[null,null,null,null,null,null,null,"MAR-01.05.04-FEAMP-0118","MUNICÍPIO DE ÍLHAVO","Construção de rampa de acesso para as embarcações no cais de abrigo para a pesca artesanal na zona da Mota, Gafanha da Encarnação","DRAPC",7558267,92303.18,92303.18,69227.39,23075.789999999994,"2019-06-01","2020-05-31",null,null,null,"diav@drapc.gov.pt"]
[null,null,null,null,null,null,null,"MAR-01.05.04-FEAMP-0136","POLIS LITORAL SUDOESTE, S.A. ","Recuperação dos Arrumos de Aprestos de Pesca  no Portinho da Lapa das Pombas","DRAPAL",7698084,121760,119493.83,89620.37,29873.460000000006,"2018-12-01","2020-12-31",null,null,null,0]
[null,null,null,null,null,null,null,"MAR-01.05.04-FEAMP-0155","ASSOCIAÇÃO PRÓ-MAIOR SEGURANÇA DOS HOMENS DO MAR","MITIGAÇÃO DO CONTÁGIO DOS PESCADORES À PROPAGAÇÃO DO COVID-19","DRAPN",7188092,121966.11,118864.41,53488.99,17829.659999999996,"2020-03-18","2020-12-31",null,null,null,"adelaide.inacio@drapnorte.gov.pt"]
[null,null,null,null,null,null,null,"MAR-02.01.01-FEAMP-0004","INSTITUTO POLITÉCNICO DE LEIRIA","OURICEIRA AQUA","DRAPLVT",7163701,285094.52,284990.90999999997,213743.19,71247.719999999972,"2016-07-18","2016-10-07",null,null,null,"decisoesmar2020@draplvt.gov.pt"]
[null,null,null,null,null,null,null,"MAR-02.01.01-FEAMP-0013","MIRABILIS - AQUACULTURA SUSTENTÁVEL, LDA.","ANGULATA I&D - Inovação na Produção de Ostra Portuguesa em Maternidade","DRAPALG",8859123,98240.12,98240.12,36840.019999999997,12280,"2017-01-01","2020-01-31",null,null,null,"Mar2020-ap@drapalg.min-agricultura.pt"]
[null,null,null,null,null,null,null,"MAR-02.01.01-FEAMP-0014","UNIVERSIDADE DO ALGARVE","Desenvolvimento de um peixe de aquacultura","DRAPALG",7090437,486120.27,484222.78,363167.09,121055.69,"2017-11-01","2021-03-18",null,null,null,"Mar2020-ap@drapalg.min-agricultura.pt"]
[null,null,null,null,null,null,null,"MAR-02.01.01-FEAMP-0018","UNIVERSIDADE DE AVEIRO","BIODEPURA - Desenvolvimento de metodologias de  depuração de moluscos bivalves","DRAPC",7430371,430001.46,396119.11,297089.33,99029.77999999997,"2016-07-18","2016-10-07",null,null,null,"diav@drapc.gov.pt"]
[null,null,null,null,null,null,null,"MAR-02.01.01-FEAMP-0019","UNIVERSIDADE DE AVEIRO","MAXIAQUA - maximização estratégias controlo parasita em aquacultura","DRAPC",7430371,375586.28,345179.21,258884.42,86294.790000000008,"2018-01-01","2020-10-20",null,null,null,"diav@drapc.gov.pt"]
[null,null,null,null,null,null,null,"MAR-02.01.01-FEAMP-0022","UNIVERSIDADE DE AVEIRO","Identificação e avaliação de zonas estuarinas e lagunares","DRAPC",7430371,330544.09999999998,308285.89,231214.42,77071.47,"2016-07-18","2016-10-07",null,null,null,"diav@drapc.gov.pt"]
[null,null,null,null,null,null,null,"MAR-02.01.01-FEAMP-0023","FACULDADE DE CIENCIAS DA UNIVERSIDADE DE LISBOA","UROFEED","DRAPLVT",7477221,590499.48,590376.49,442782.37,147594.12,"2017-10-01","2020-09-26",null,null,null,"decisoesmar2020@draplvt.gov.pt"]
[null,null,null,null,null,null,null,"MAR-02.01.01-FEAMP-0025","UNIVERSIDADE DE AVEIRO","DETECAO AUTOMATICA DE MICROALGAS TOXICAS","DRAPC",7430371,250702.99,211237.24,158427.93,52809.31,"2018-01-01","2020-12-31",null,null,null,"diav@drapc.gov.pt"]
[null,null,null,null,null,null,null,"MAR-02.01.01-FEAMP-0031","UNIVERSIDADE DE AVEIRO","AquaHeal - Modulação Microbiana em Aquaculturas com Sistema de Recirculação","DRAPC",7430371,405932,358129.91999999998,268597.45,89532.469999999972,"2016-07-18","2016-10-07",null,null,null,"diav@drapc.gov.pt"]
[null,null,null,null,null,null,null,"MAR-02.01.01-FEAMP-0038","UNIVERSIDADE DE AVEIRO","AquaMMin: Desenvolvimento dum sistema de aquacultura modular","DRAPC",7430371,1590888.37,1269868.6100000001,952401.46,317467.15000000014,"2018-01-01","2020-09-30",null,null,null,"diav@drapc.gov.pt"]
[null,null,null,null,null,null,null,"MAR-02.01.01-FEAMP-0039","INSTITUTO SUPERIOR TECNICO","PHYCOSPT","DRAPLVT",7507791,1444149.15,1309608.8899999999,982206.67,327402.21999999986,"2018-06-01","2021-05-31",null,null,null,"decisoesmar2020@draplvt.gov.pt"]
[null,null,null,null,null,null,null,"MAR-02.01.01-FEAMP-0040","INSTITUTO SUPERIOR TECNICO","FOULINGLESS","DRAPLVT",7507791,780692.64,770091.14,577568.36,192522.78000000003,"2018-06-01","2021-05-31",null,null,null,"decisoesmar2020@draplvt.gov.pt"]
[null,null,null,null,null,null,null,"MAR-02.01.01-FEAMP-0041","INSTITUTO SUPERIOR TECNICO","Cage4PTSea","DRAPLVT",7507791,762550.66,702010.81,526508.11,175502.70000000007,"2017-10-01","2021-05-31",null,null,null,"decisoesmar2020@draplvt.gov.pt"]
[null,null,null,null,null,null,null,"MAR-02.01.01-FEAMP-0042","UNIVERSIDADE NOVA DE LISBOA","INOVA4AQUA","DRAPLVT",9026322,749546,548233.79,411175.34,137058.45000000001,"2017-01-01","2019-12-13",null,null,null,"decisoesmar2020@draplvt.gov.pt"]
[null,null,null,null,null,null,null,"MAR-02.01.01-FEAMP-0045","INSTITUTO PORTUGUÊS DO MAR E DA ATMOSFERA IP","SNMB - INOV","DRAPLVT",7956586,1315412.28,1454695.32,1091021.49,363673.83000000007,"2016-10-07","2020-08-01",null,null,null,"decisoesmar2020@draplvt.gov.pt"]
[null,null,null,null,null,null,null,"MAR-02.01.01-FEAMP-0047","INSTITUTO PORTUGUÊS DO MAR E DA ATMOSFERA IP","AQUAMAX","DRAPLVT",7956586,907228.56,881418.92,661064.19999999995,220354.72000000009,"2016-12-01","2019-11-30",null,null,null,"decisoesmar2020@draplvt.gov.pt"]
[null,null,null,null,null,null,null,"MAR-02.01.01-FEAMP-0049","INSTITUTO SUPERIOR TECNICO","PISCISMOD","DRAPLVT",7507791,493889.98,488467.58,366350.69,122116.89000000001,"2016-07-18","2016-10-07",null,null,null,"decisoesmar2020@draplvt.gov.pt"]
[null,null,null,null,null,null,null,"MAR-02.01.01-FEAMP-0050","FACULDADE DE CIENCIAS DA UNIVERSIDADE DE LISBOA","CRASSOREAB","DRAPLVT",7477221,355697.45,353414.35,265060.76,88353.589999999967,"2017-11-01","2020-10-31",null,null,null,{"$f":"VLOOKUP(K580,S:T,2,FALSE)","v":"decisoesmar2020@draplvt.gov.pt"}]
[null,null,null,null,null,null,null,"MAR-02.01.01-FEAMP-0051","FACULDADE DE CIENCIAS DA UNIVERSIDADE DE LISBOA","AQUASADO","DRAPLVT",7477221,469226.3,465097.75,348823.31,116274.44,"2017-09-01","2020-12-31",null,null,null,"decisoesmar2020@draplvt.gov.pt"]
[null,null,null,null,null,null,null,"MAR-02.01.01-FEAMP-0052","FACULDADE DE CIENCIAS DA UNIVERSIDADE DE LISBOA","NEWCUMBER","DRAPLVT",7477221,499359.83,486908.03,365181.03,121727,"2017-09-01","2020-10-31",null,null,null,"decisoesmar2020@draplvt.gov.pt"]
[null,null,null,null,null,null,null,"MAR-02.01.01-FEAMP-0053","UNIVERSIDADE DO ALGARVE","SEPIACUL - Optimização de tecnologia de cultivo do choco, Sepia officinalis","DRAPALG",7090437,526495.78,342357.31,256767.99,85589.32,"2017-11-01","2020-09-15",null,null,null,"Mar2020-ap@drapalg.min-agricultura.pt"]
[null,null,null,null,null,null,null,"MAR-02.01.01-FEAMP-0054","UNIVERSIDADE DO ALGARVE","HIPPONUTRE - Cultivo de Cavalo marinho, Hippocampus guttulatos","DRAPALG",7090437,235357.34,223258.48,167443.85999999999,55814.620000000024,"2017-11-01","2021-05-15",null,null,null,"Mar2020-ap@drapalg.min-agricultura.pt"]
[null,null,null,null,null,null,null,"MAR-02.01.01-FEAMP-0057","UNIVERSIDADE DO ALGARVE","OSTEOMAR - Novos compostos marinhos como fonte nutricional","DRAPALG",7090437,269449.19,269449.19,202086.89,67362.299999999988,"2016-07-18","2016-10-07",null,null,null,"Mar2020-ap@drapalg.min-agricultura.pt"]
[null,null,null,null,null,null,null,"MAR-02.01.01-FEAMP-0058","UNIVERSIDADE DO ALGARVE","ALGASOLE-Desenvolvimento e implementacao de alimentos suplementados em macroalga","DRAPALG",7090437,427275.81,427275.81,320456.86,106818.95000000001,"2016-07-18","2016-10-07",null,null,null,"Mar2020-ap@drapalg.min-agricultura.pt"]
[null,null,null,null,null,null,null,"MAR-02.01.01-FEAMP-0059","UNIVERSIDADE DO ALGARVE","REPROF1: Condicionamento de individuos F1 de linguado senegales","DRAPALG",7090437,273493.96000000002,273493.96000000002,205120.47,68373.49000000002,"2017-11-01","2021-05-31",null,null,null,"Mar2020-ap@drapalg.min-agricultura.pt"]
[null,null,null,null,null,null,null,"MAR-02.01.01-FEAMP-0060","INSTITUTO PORTUGUÊS DO MAR E DA ATMOSFERA IP","AIM - Inovação e Valorização da Aquacultura de Invertebrados Marinhos","DRAPALG",7956586,715335.74,639159.05000000005,479369.29,159789.76000000007,"2017-06-01","2020-06-30",null,null,null,"Mar2020-ap@drapalg.min-agricultura.pt"]
[null,null,null,null,null,null,null,"MAR-02.01.01-FEAMP-0064","UNIVERSIDADE DO ALGARVE","SERINOVA: Bases para implementacao de uma nova especie na aquacultura em Portuga","DRAPALG",7090437,426434.56,426434.56,319825.91999999998,106608.64000000001,"2017-11-01","2021-07-31",null,null,null,"Mar2020-ap@drapalg.min-agricultura.pt"]
[null,null,null,null,null,null,null,"MAR-02.01.01-FEAMP-0066","INSTITUTO PORTUGUÊS DO MAR E DA ATMOSFERA IP","DIVERSIAQUA - Diversificação, Inovação e Desenvolvimento da Aquacultura em Port.","DRAPALG",7956586,1787925,1461953.85,1095372.58,365124.18999999994,"2016-02-01","2020-07-21",null,null,null,"Mar2020-ap@drapalg.min-agricultura.pt"]
[null,null,null,null,null,null,null,"MAR-02.01.01-FEAMP-0084","INSTITUTO POLITÉCNICO DE LEIRIA","SEAWEEDFEEDS","DRAPLVT",7163701,360535.33,315796.34999999998,236847.27,78949.079999999987,"2017-07-18","2020-12-31",null,null,null,"decisoesmar2020@draplvt.gov.pt"]
[null,null,null,null,null,null,null,"MAR-02.01.01-FEAMP-0087","INSTITUTO POLITÉCNICO DE VIANA DO CASTELO","IPVC - Prod. Int. Râ Rana Perezi","DRAPN",7170724,743485.17,743485.17,557613.88,185871.29000000004,"2017-01-02","2019-12-31",null,null,null,"adelaide.inacio@drapnorte.gov.pt"]
[null,null,null,null,null,null,null,"MAR-02.01.01-FEAMP-0093","AQUAZOR-AQUICULTURA E BIOTECNOLOGIAS MARINHAS DOS AÇORES, S.A.","Cultura Offshore de Algas, ECO Algae, Porto Martins, Terceira","DSPEP",8836944,234777,219689.4,140052,46683.989999999991,"2016-12-22","2020-10-20",null,null,null,"info.mar2020@azores.gov.pt"]
[null,null,null,null,null,null,null,"MAR-02.01.01-FEAMP-0094","AQUAZOR-AQUICULTURA E BIOTECNOLOGIAS MARINHAS DOS AÇORES, S.A.","Cultura Offshore de Algas, ECO Algae, Ribeira Quente Lote B","DSPEP",8836944,216623,209840.11,133773.07,44591.01999999999,"2016-12-22","2020-10-20",null,null,null,"info.mar2020@azores.gov.pt"]
[null,null,null,null,null,null,null,"MAR-02.01.01-FEAMP-0095","AQUAZOR-AQUICULTURA E BIOTECNOLOGIAS MARINHAS DOS AÇORES, S.A.","Cultura Offshore de Algas, ECO Algae, Ribeira Quente Lote A","DSPEP",8836944,232083,228893.84,145919.82,48639.94,"2016-12-22","2020-10-20",null,null,null,"info.mar2020@azores.gov.pt"]
[null,null,null,null,null,null,null,"MAR-02.01.01-FEAMP-0096","AQUAZOR-AQUICULTURA E BIOTECNOLOGIAS MARINHAS DOS AÇORES, S.A.","Cultura Offshore de Algas, ECO Algae, Feteira, Faial","DSPEP",8836944,235622.99,209319.24,133441.01999999999,44480.330000000016,"2016-12-22","2020-10-20",null,null,null,"info.mar2020@azores.gov.pt"]
[null,null,null,null,null,null,null,"MAR-02.01.01-FEAMP-0099","AQUAZOR-AQUICULTURA E BIOTECNOLOGIAS MARINHAS DOS AÇORES, S.A.","Laboratório de Ficologia - Estudo, Reprodução e Cultura de Macroalgas","DSPEP",8836944,237171,233427.17,148809.82999999999,49603.260000000009,"2017-03-01","2021-06-19",null,null,null,"info.mar2020@azores.gov.pt"]
[null,null,null,null,null,null,null,"MAR-02.01.01-FEAMP-0106","MUNICÍPIO DE FIGUEIRÓ DOS VINHOS","Adaptação Posto Aquícola  Campelo p/ criação experimental  trutas assilvestradas","DRAPC",7497024,1081747.73,1081747.73,811310.8,270436.92999999993,"2019-05-01","2021-08-13",null,null,null,"diav@drapc.gov.pt"]
[null,null,null,null,null,null,null,"MAR-02.01.01-FEAMP-0107","INSTITUTO HIDROGRÁFICO","AQUIMAR","DRAPLVT",8991296,812467.82,810717.82,608038.38,202679.43999999994,"2018-08-01","2021-05-15",null,null,null,"decisoesmar2020@draplvt.gov.pt"]
[null,null,null,null,null,null,null,"MAR-02.01.01-FEAMP-0110","SUSTAINABLE OCEAN SUPPLEMENTS, LDA.","VET-AXN","DRAPLVT",9026314,937146.5,929146.5,348429.95,116143.31,"2017-01-01","2019-12-31",null,null,null,"decisoesmar2020@draplvt.gov.pt"]
[null,null,null,null,null,null,null,"MAR-02.01.01-FEAMP-0111","UNIVERSIDADE DO PORTO","Faculdade de Ciencias U.P. - InovFeed","DRAPN",7513563,389050.03,388075.64,291056.73,97018.910000000033,"2018-01-01","2020-12-31",null,null,null,"adelaide.inacio@drapnorte.gov.pt"]
[null,null,null,null,null,null,null,"MAR-02.01.01-FEAMP-0116","SEAENTIA-FOOD, LDA.","SEAENTIA-FOOD, Lda - Prod. de Corvina","DRAPLVT",9025512,698751.42,565443.93999999994,212041.5,70680.479999999981,"2018-05-22","2021-07-24",null,null,null,"decisoesmar2020@draplvt.gov.pt"]
[null,null,null,null,null,null,null,"MAR-02.01.01-FEAMP-0135","AQUAZOR-AQUICULTURA E BIOTECNOLOGIAS MARINHAS DOS AÇORES, S.A.","Aquicultura Atlantic Fish em IMTC c/ macro-algas, APA Ribeira Quente B","DSPEP",8836944,760919.47,760919.47,485086.17,161695.38000000006,"2017-02-01","2021-06-19",null,null,null,"info.mar2020@azores.gov.pt"]
[null,null,null,null,null,null,null,"MAR-02.01.01-FEAMP-0136","AQUAZOR-AQUICULTURA E BIOTECNOLOGIAS MARINHAS DOS AÇORES, S.A.","Mater-Aqua Unidade de Reprodução e Pré- Engorda de Peixes","DSPEP",8836944,695849.32,695849.32,443603.95,147867.97000000003,"2017-11-15","2021-09-03",null,null,null,"info.mar2020@azores.gov.pt"]
[null,null,null,null,null,null,null,"MAR-02.01.01-FEAMP-0139","MARISLAND - MADEIRA MARICULTURE, LDA","Produção de juvenis de pargo capelo","SRMP",8193182,298719.45,298719.45,112019.8,37339.930000000008,"2018-01-01","2020-12-31",null,null,null,"adiantamento.fatura.inv@ifap.pt"]
[null,null,null,null,null,null,null,"MAR-02.01.01-FEAMP-0175","INSTITUTO PORTUGUÊS DO MAR E DA ATMOSFERA IP","DIVERSIAQUA II","DRAPALG",7956586,1301906.08,1266092.03,949569.03,316523,"2019-07-01","2020-06-30",null,null,null,"Mar2020-ap@drapalg.min-agricultura.pt"]
[null,null,null,null,null,null,null,"MAR-02.01.02-FEAMP-0043","INSTITUTO PORTUGUÊS DO MAR E DA ATMOSFERA IP","SNMB-MONITOR","DRAPLVT",7956586,3154580.49,2944296.68,2208222.5099999998,736074.17000000039,"2016-01-01","2020-07-21",null,null,null,"decisoesmar2020@draplvt.gov.pt"]
[null,null,null,null,null,null,null,"MAR-02.01.02-FEAMP-0061","INSTITUTO PORTUGUÊS DO MAR E DA ATMOSFERA IP","SNMB Sul - Gestão das zonas de produção de moluscos bivalves da região algarvia.","DRAPALG",7956586,989183.66,744258.95,558194.21,186064.74,"2016-01-01","2020-07-21",null,null,null,"Mar2020-ap@drapalg.min-agricultura.pt"]
[null,null,null,null,null,null,null,"MAR-02.01.02-FEAMP-0098","SOCIEDADE PISCICULTORA FARENSE, LDA.","Piscicultura dos Sapais - Ria Formosa","DRAPALG",7519277,32500,32500,12187.5,4062.5,"2016-06-23","2019-12-31",null,null,null,"Mar2020-ap@drapalg.min-agricultura.pt"]
[null,null,null,null,null,null,null,"MAR-02.01.02-FEAMP-0176","INSTITUTO PORTUGUÊS DO MAR E DA ATMOSFERA IP","Gestão das zonas de produção de invertebrados marinhos da região algarvia _ SNMB-SUL 2","DRAPALG",7956586,388615.7,375875.46,281907.01,93968.450000000012,"2019-03-01","2020-06-30",null,null,null,"Mar2020-ap@drapalg.min-agricultura.pt"]
[null,null,null,null,null,null,null,"MAR-02.01.02-FEAMP-0177","INSTITUTO PORTUGUÊS DO MAR E DA ATMOSFERA IP","COMPETITIVIDADE E DESENVOLVIMENTO SUSTENTADO PARA O SECTOR DOS MOLUSCOS BIVALVES EM PORTUGAL CONTINENTAL - SNMB-MONIT II","DRAPLVT",7956586,1209711.96,1208075.1200000001,906057.96,302017.16000000015,"2019-03-01","2020-06-30",null,null,null,"decisoesmar2020@draplvt.gov.pt"]
[null,null,null,null,null,null,null,"MAR-02.01.02-FEAMP-0212","INSTITUTO PORTUGUÊS DO MAR E DA ATMOSFERA IP","Produção de invertebrados marinhos na região algarvia: Gestão e apoio à competitividade do sector","DRAPALG",7956586,468222.42,468222.42,351167.13,117055.28999999998,"2020-07-01","2021-12-31",null,null,null,"Mar2020-ap@drapalg.min-agricultura.pt"]
[null,null,null,null,null,null,null,"MAR-02.01.02-FEAMP-0213","INSTITUTO PORTUGUÊS DO MAR E DA ATMOSFERA IP","SNMB MONIT III - CONTRIBUTO PARA O DESENVOLVIMENTO SUSTENTADO DA MOLISCICULTURA EM PORTUGAL","DRAPC",7956586,2947883.79,2947883.79,2210915.33,736968.46,"2020-07-01","2021-12-31",null,null,null,"diav@drapc.gov.pt"]
[null,null,null,null,null,null,null,"MAR-02.01.03-FEAMP-0006","ALBERTO DA CRUZ FERREIRA","Modernização da Piscicultura Adeiro Velho I","DRAPC",4855713,98928.7,98928.7,37098.26,12366.089999999997,"2016-09-01","2018-03-31",null,null,null,"diav@drapc.gov.pt"]
[null,null,null,null,null,null,null,"MAR-02.01.03-FEAMP-0009","MARVELLOUS WAVE - ACTIVIDADES AQUÍCOLAS, S.A.","Unidade Ostreícola da Marvellous Wave","DRAPLVT",8184507,1121422.49,974829.85,365561.21,121853.71999999997,"2016-08-19","2020-04-29",null,null,null,"decisoesmar2020@draplvt.gov.pt"]
[null,null,null,null,null,null,null,"MAR-02.01.03-FEAMP-0010","TESTA & CUNHAS, SA","Construção e instalação no mar dos blocos 2 e 3 da Algarve Offshore Seashells.","DRAPALG",7067984,481374.46,457308.87,171490.86,57163.610000000015,"2017-01-01","2019-12-31",null,null,null,"Mar2020-ap@drapalg.min-agricultura.pt"]
[null,null,null,null,null,null,null,"MAR-02.01.03-FEAMP-0017","SOCIEDADE POR QUOTAS","Criação de Nova Unidade de Depuração AKIDELMAR","DRAPLVT",8858762,2909901.15,2020461.16,757673.17,252557.70999999996,"2015-10-19","2020-01-31",null,null,null,"decisoesmar2020@draplvt.gov.pt"]
[null,null,null,null,null,null,null,"MAR-02.01.03-FEAMP-0021","EDULIS - COMÉRCIO DE PEIXE E MARISCO, LDA","Unidade EDULIS","DRAPALG",8861702,604627.42000000004,603983.23,226493.72,75497.899999999994,"2014-04-01","2020-03-31",null,null,null,"Mar2020-ap@drapalg.min-agricultura.pt"]
[null,null,null,null,null,null,null,"MAR-02.01.03-FEAMP-0028","LUSOAMOREIRAS - SOCIEDADE IMOBILIÁRIA, S.A.","BIOFAT.PT","DRAPLVT",8862632,16415023,13000000,4875000,1625000,"2017-01-01","2020-12-17",null,null,null,"decisoesmar2020@draplvt.gov.pt"]
[null,null,null,null,null,null,null,"MAR-02.01.03-FEAMP-0030","MANUEL FILIPE FREITAS REBELO","TRUTIUCULTURA de MONTALEGRE","DRAPN",5177697,69750,66775,25040.63,8346.869999999999,"2016-10-03","2020-10-06",null,null,null,"adelaide.inacio@drapnorte.gov.pt"]
[null,null,null,null,null,null,null,"MAR-02.01.03-FEAMP-0032","QUINTA DO SALMAO COMERCIO PEIXE. LDA","QUINTA do SALMÃO - Pisões - Montalegre","DRAPN",7073114,96942.64,96942.64,36353.49,12117.830000000002,"2017-12-01","2020-08-02",null,null,null,"adelaide.inacio@drapnorte.gov.pt"]
[null,null,null,null,null,null,null,"MAR-02.01.03-FEAMP-0033","FALCAMAR-COMERCIO DE MARISCOS,LDA","FALCAMAR, Lda - Depuradora Bivalves Frescos","DRAPN",8377927,169864.38,169864.38,63699.14,21233.050000000003,"2016-01-01","2020-04-18",null,null,null,"adelaide.inacio@drapnorte.gov.pt"]
[null,null,null,null,null,null,null,"MAR-02.01.03-FEAMP-0036","SAFIESTELA - SUSTAINABLE AQUA FARMING INVESTMENTS, S. A.","SAFIESTELA, S.A - Maternidade de Linguado","DRAPN",7775593,245909.83,235234.12,88212.84,29404.270000000004,"2016-01-01","2020-06-26",null,null,null,"adelaide.inacio@drapnorte.gov.pt"]
[null,null,null,null,null,null,null,"MAR-02.01.03-FEAMP-0037","AQUAGOMA - PRODUTOS DO RIO E MAR LDA","AQUAGOMA - Aquicultura Rio Lima","DRAPN",8855407,710684.99,671265.2,251724.49,83908.160000000033,"2017-10-01","2020-07-30",null,null,null,"adelaide.inacio@drapnorte.gov.pt"]
[null,null,null,null,null,null,null,"MAR-02.01.03-FEAMP-0046","IRMÃOS GONÇALVES TEIXEIRA - EMPRESA DE PESCA LDA.","Modernização de Exploração Aquicola","DRAPALG",7256644,99335.54,46263.3,17348.75,5782.91,"2016-11-01","2018-12-31",null,null,null,"Mar2020-ap@drapalg.min-agricultura.pt"]
[null,null,null,null,null,null,null,"MAR-02.01.03-FEAMP-0048","GUALTER MARISCOS, LDA","Modernização de Exploração Aquicola","DRAPALG",8900137,423388.71,189289.29,70983.490000000005,23661.159999999989,"2016-11-01","2020-03-31",null,null,null,"Mar2020-ap@drapalg.min-agricultura.pt"]
[null,null,null,null,null,null,null,"MAR-02.01.03-FEAMP-0055","GERAÇÃO EM VOGA LDA","Projeto de Desenvolvimento e Dinamização da Produção de Ostra em Tavira","DRAPALG",8854764,99154.34,77451.789999999994,29044.43,9681.4700000000012,"2014-02-01","2019-12-31",null,null,null,"Mar2020-ap@drapalg.min-agricultura.pt"]
[null,null,null,null,null,null,null,"MAR-02.01.03-FEAMP-0062","RELÍQUIAS DA PAISAGEM - UNIPESSOAL LDA","Relíquias da Paisagem - Equipamento básico e de transporte","DRAPALG",8861145,67514.91,52047.99,19518,6506,"2016-10-10","2018-10-10",null,null,null,"Mar2020-ap@drapalg.min-agricultura.pt"]
[null,null,null,null,null,null,null,"MAR-02.01.03-FEAMP-0063","ESSÊNCIA SELVAGEM, LDA.","Essência Selvagem - Equipamento Básico","DRAPALG",8861532,36150.730000000003,36150.730000000003,13556.53,4518.8399999999983,"2017-01-01","2019-12-31",null,null,null,"Mar2020-ap@drapalg.min-agricultura.pt"]
[null,null,null,null,null,null,null,"MAR-02.01.03-FEAMP-0068","BIVALSADO, LDA","Complexo Anjos de Menezes-Fâlcoa-Cabral","DRAPLVT",8860745,211673.66,204948.09,76855.539999999994,25618.510000000009,"2015-01-01","2019-07-30",null,null,null,"decisoesmar2020@draplvt.gov.pt"]
[null,null,null,null,null,null,null,"MAR-02.01.03-FEAMP-0069","BIVALMAR - ORGANIZAÇÃO DE PRODUTORES, CRL","Centro de Expedição de Moluscos Bivalves","DRAPLVT",7359721,51239.4,3900,1462.5,487.5,"2017-01-02","2019-12-31",null,null,null,"decisoesmar2020@draplvt.gov.pt"]
[null,null,null,null,null,null,null,"MAR-02.01.03-FEAMP-0070","EXPORSADO-COMÉRCIO E INDÚSTRIA DE PRODUTOS DO MAR, SA","PORTOCEAN","DRAPLVT",8862922,2945805,2682103,1005788.64,335262.87,"2017-06-26","2021-01-26",null,null,null,"decisoesmar2020@draplvt.gov.pt"]
[null,null,null,null,null,null,null,"MAR-02.01.03-FEAMP-0071","AQUALVOR - ACTIVIDADES EM AQUACULTURA LDA","Modernização e Otimização dos Sistemas Produtivos","DRAPALG",7471197,273781.90999999997,159181.24,59693,19897.669999999998,"2016-01-01","2019-02-28",null,null,null,"Mar2020-ap@drapalg.min-agricultura.pt"]
[null,null,null,null,null,null,null,"MAR-02.01.03-FEAMP-0072","EMÁQUA - EMPREENDIMENTOS DE AQUACULTURA, S.A.","EMAQUA - Modernização e capacitação do estabelecimento - Aquacultura Espargueira","DRAPALG",7470205,208544.44,170728.02,64023.1,21341.030000000006,"2014-01-01","2019-09-30",null,null,null,"Mar2020-ap@drapalg.min-agricultura.pt"]
[null,null,null,null,null,null,null,"MAR-02.01.03-FEAMP-0073","SOCIEDADE PISCICULTORA FARENSE, LDA.","Recuperação, modernização e reativação da Piscicultura dos Sapais","DRAPALG",7519277,1351296,1280963.7,480361.49,160120.5,"2015-01-01","2019-12-31",null,null,null,"Mar2020-ap@drapalg.min-agricultura.pt"]
[null,null,null,null,null,null,null,"MAR-02.01.03-FEAMP-0074","PISCICULTURA DO VALE DA LAMA LDA","Capacitação e modernização do Estabelecimento - Sulmar","DRAPALG",7471182,339275,198135.82,74300.990000000005,24767,"2016-01-01","2018-12-31",null,null,null,"Mar2020-ap@drapalg.min-agricultura.pt"]
[null,null,null,null,null,null,null,"MAR-02.01.03-FEAMP-0080","NASHARYBA - PRODUÇÃO E COMÉRCIO DE PEIXE, LDA","Intervenção estrutural para início do novo ciclo","DRAPC",8181784,499065.01,370974.76,139115.54999999999,46371.850000000006,"2016-10-07","2019-11-30",null,null,null,"diav@drapc.gov.pt"]
[null,null,null,null,null,null,null,"MAR-02.01.03-FEAMP-0081","SILVIA PERRUCA PADINHA","Aquisição de material de apoio à atividade","DRAPALG",8377692,37232.080000000002,7650.35,2868.89,956.29,"2016-07-18","2016-10-07",null,null,null,"Mar2020-ap@drapalg.min-agricultura.pt"]
[null,null,null,null,null,null,null,"MAR-02.01.03-FEAMP-0086","JOSE MANUEL PRATA LDA","Modernização do Centro de Depuração e de Expedição de Bivalves -José M. Prata","DRAPALG",7081013,147593,114845,43066.879999999997,14355.620000000003,"2016-01-01","2019-08-22",null,null,null,"Mar2020-ap@drapalg.min-agricultura.pt"]
[null,null,null,null,null,null,null,"MAR-02.01.03-FEAMP-0097","CPDA - COMPANHIA PORTUGUESA DE ALGAS, UNIPESSOAL, LDA.","5 Essencia Spirulina Azores - Produção de Spirulina, Graciosa","DSPEP",8914106,292416.26,292416.26,164484.17000000001,54828.039999999979,"2016-02-01","2020-06-30",null,null,null,"info.mar2020@azores.gov.pt"]
[null,null,null,null,null,null,null,"MAR-02.01.03-FEAMP-0103","AQUABAÍA - SOCIEDADE DE AQUACULTURA DAS ILHAS LDª","Modernização e ampliação da unidade produtiva da Ribeira Brava","SRMP",8972604,1236744.1200000001,1224200.95,459075.36,153025.12,"2017-04-01","2020-03-31",null,null,null,"adiantamento.fatura.inv@ifap.pt"]
[null,null,null,null,null,null,null,"MAR-02.01.03-FEAMP-0105","STOLT SEA FARM (PORTUGAL) S.A.","Ampliação das instalaçãoes de aquicultura na Praia da Tocha","DRAPC",7470082,9661538.5800000001,9660301.5800000001,2173567.85,724522.62000000011,"2018-10-15","2020-10-15",null,null,null,"diav@drapc.gov.pt"]
[null,null,null,null,null,null,null,"MAR-02.01.03-FEAMP-0108","NEPTUNPEARL, LDA.","Instalação de aquicultura em Setúbal - Reserva Natural do Estuário do Sado","DRAPLVT",9026063,246503.46,167372.03,62764.52,20921.500000000007,"2017-01-01","2019-05-31",null,null,null,"decisoesmar2020@draplvt.gov.pt"]
[null,null,null,null,null,null,null,"MAR-02.01.03-FEAMP-0112","OYSTERWORLD, LDA","Complexo das marinhas de Canes e Alcacarenha e Cobelos","DRAPLVT",8215984,2157400.17,1629406.37,611027.39,203675.79999999993,"2018-04-03","2021-06-21",null,null,null,{"$f":"VLOOKUP(K644,S:T,2,FALSE)","v":"decisoesmar2020@draplvt.gov.pt"}]
[null,null,null,null,null,null,null,"MAR-02.01.03-FEAMP-0115","VIVEIROS RIO MIRA, LIMITADA","Viveiros Rio Mira","DRAPN",9022556,499879.18,468133,175549.88,58516.619999999995,"2017-09-15","2020-12-31",null,null,null,"adelaide.inacio@drapnorte.gov.pt"]
[null,null,null,null,null,null,null,"MAR-02.01.03-FEAMP-0120","FRANCISCO PIRES AVELELAS","Capacidade produtiva no cultivo das ostras-do-pacífico","DRAPC",9025334,37040,34446,12917.25,4305.75,"2018-02-01","2019-08-31",null,null,null,"diav@drapc.gov.pt"]
[null,null,null,null,null,null,null,"MAR-02.01.03-FEAMP-0121","AQUA PRIME, LDA.","Expansão da área produtiva e melhoramento do cultivo do molusco bivalve Crassost","DRAPALG",8216875,49893.69,36831.9,13811.97,4603.99,"2017-10-10","2019-06-30",null,null,null,"Mar2020-ap@drapalg.min-agricultura.pt"]
[null,null,null,null,null,null,null,"MAR-02.01.03-FEAMP-0125","OCEANO FRESCO, S. A.","MATERNIDADE DE BIVALVES - OCEANO FRESCO","DRAPLVT",9016416,2531742.56,2226880.7999999998,835080.3,278360.10999999987,"2017-09-18","2020-12-31",null,null,null,"decisoesmar2020@draplvt.gov.pt"]
[null,null,null,null,null,null,null,"MAR-02.01.03-FEAMP-0126","AQUACRIA PISCÍCOLAS, S.A.","MELHORIA DO SISTEMA DE RECIRCULAÇÃO DE ÁGUA","DRAPC",7184071,506430.27,506430.27,189911.36,63303.780000000028,"2017-07-25","2017-10-19",null,null,null,"diav@drapc.gov.pt"]
[null,null,null,null,null,null,null,"MAR-02.01.03-FEAMP-0131","RICARDO JOSÉ PERRUCA LOPES","Substituição de motor propulsor e material de apoio à atividade","DRAPALG",9038702,15088.3,12266.91,4600.1000000000004,1533.3599999999997,"2017-10-20","2019-12-31",null,null,null,"Mar2020-ap@drapalg.min-agricultura.pt"]
[null,null,null,null,null,null,null,"MAR-02.01.03-FEAMP-0132","PAULA ISABEL DOS SANTOS PERRUCA LOPES","Substituição de motor propulsor e material de apoio à atividade","DRAPALG",9038733,13839.08,12143.09,4553.66,1517.8900000000003,"2017-10-20","2019-12-31",null,null,null,"Mar2020-ap@drapalg.min-agricultura.pt"]
[null,null,null,null,null,null,null,"MAR-02.01.03-FEAMP-0133","SEMENTE SALTITANTE, LDA.","Instalação de maternidade de bivalves em sistema indoor e de recirculação","DRAPALG",9025802,204392,204392,76647.009999999995,25548.990000000005,"2018-09-01","2020-06-30",null,null,null,"Mar2020-ap@drapalg.min-agricultura.pt"]
[null,null,null,null,null,null,null,"MAR-02.01.03-FEAMP-0134","ROTA GREGA, LDA.","Armona Fish Farms","DRAPALG",8991153,5118074.45,4973886.49,1865207.44,621735.81000000006,"2018-01-02","2021-06-30",null,null,null,"Mar2020-ap@drapalg.min-agricultura.pt"]
[null,null,null,null,null,null,null,"MAR-02.01.03-FEAMP-0141","BIVALSETE, LDA","Desenvolvimento Unidade Aquicola","DRAPLVT",7723803,99854,84885.3,31831.99,10610.66,"2018-02-12","2021-02-11",null,null,null,"decisoesmar2020@draplvt.gov.pt"]
[null,null,null,null,null,null,null,"MAR-02.01.03-FEAMP-0142","ACUINOVA - ACTIVIDADES PISCÍCOLAS, S.A.","Modernização do sistema de alimentação","DRAPC",7334077,1824721.8,1640144.6,615054.27,205018.08999999997,"2019-01-02","2019-02-28",null,null,null,"diav@drapc.gov.pt"]
[null,null,null,null,null,null,null,"MAR-02.01.03-FEAMP-0145","FINISTERRA, S.A.","FINISTERRA SA - Aumento da capacidade instalada e modernização do método produtivo","DRAPALG",7641614,1993110.63,1866884.94,700081.86,233360.62,"2016-03-01","2021-01-04",null,null,null,"Mar2020-ap@drapalg.min-agricultura.pt"]
[null,null,null,null,null,null,null,"MAR-02.01.03-FEAMP-0146","SAFIESTELA - SUSTAINABLE AQUA FARMING INVESTMENTS, S. A.","SAFIESTELA, SA - AMPLIAÇÂO DA MATERNIDADE DE LINGUADO","DRAPN",7775593,2695697.34,2044847.18,460090.62,153363.53000000003,"2018-10-30","2021-05-31",null,null,null,"adelaide.inacio@drapnorte.gov.pt"]
[null,null,null,null,null,null,null,"MAR-02.01.03-FEAMP-0147","CASTRO & CABERO, LDA","MODTRUMINHO2019","DRAPN",7073106,47218.86,39728.06,14898.03,4965.9999999999982,"2018-09-04","2020-12-31",null,null,null,"adelaide.inacio@drapnorte.gov.pt"]
[null,null,null,null,null,null,null,"MAR-02.01.03-FEAMP-0148","ACUINOVA - ACTIVIDADES PISCÍCOLAS, S.A.","Maternidade de peixes marinhos","DRAPC",7334077,5328479.57,3998038.28,1499264.53,499754.83000000007,"2019-05-01","2021-12-31",null,null,null,"diav@drapc.gov.pt"]
[null,null,null,null,null,null,null,"MAR-02.01.03-FEAMP-0149","ACUINOVA - ACTIVIDADES PISCÍCOLAS, S.A.","Unidade de Engorda de Linguado","DRAPC",7334077,8394095.9100000001,4000000,1500000,500000,"2019-05-01","2021-12-31",null,null,null,"diav@drapc.gov.pt"]
[null,null,null,null,null,null,null,"MAR-02.01.03-FEAMP-0150","VOLTAR AO MAR,LDA","PAVILHÃO VOLTAR AO MAR ","DRAPC",8862705,487208.91,339134.1,127175.29,42391.759999999995,"2019-09-01","2021-08-31",null,null,null,"diav@drapc.gov.pt"]
[null,null,null,null,null,null,null,"MAR-02.01.03-FEAMP-0151","ALGAPLUS - PRODUÇÃO E COMERCIALIZAÇÃO DE ALGAS E SEUS DERIVADOS, LDA","IMTA BIO ALGASePEIXE","DRAPC",7910735,414492,375606.42,140852.41,46950.799999999988,"2018-08-16","2020-12-31",null,null,null,"diav@drapc.gov.pt"]
[null,null,null,null,null,null,null,"MAR-02.01.03-FEAMP-0154","VIVEIROS RIO MIRA, LIMITADA","RONCANITO 2022","DRAPAL",9022556,686724,308600.24,115725.09,38575.03,"2019-03-01","2022-02-28",null,null,null,0]
[null,null,null,null,null,null,null,"MAR-02.01.03-FEAMP-0156","ALVOSTRAL - PRODUÇÃO E COMERCIALIZAÇÃO DE BIVALVES LDA","Alvostral - Investimentos Produtivos","DRAPALG",9142353,1204429.51,777258.4,291471.92,97157.280000000028,"2014-01-14","2021-02-20",null,null,null,"Mar2020-ap@drapalg.min-agricultura.pt"]
[null,null,null,null,null,null,null,"MAR-02.01.03-FEAMP-0157","BIVALVIA - MARISCOS DA FORMOSA, LDA.","Reforço da capacidade produtiva de ostra de pré-engorda","DRAPALG",7692017,235445.2,87449.75,32793.660000000003,10931.219999999994,"2017-01-01","2020-12-31",null,null,null,"Mar2020-ap@drapalg.min-agricultura.pt"]
[null,null,null,null,null,null,null,"MAR-02.01.03-FEAMP-0159","JORGE DANIEL BRANCO SERRA","Investimento produtivo Jorge Serra","DRAPALG",7075121,9696.26,8749.27,3280.99,1093.6599999999999,"2017-01-31","2019-12-31",null,null,null,"Mar2020-ap@drapalg.min-agricultura.pt"]
[null,null,null,null,null,null,null,"MAR-02.01.03-FEAMP-0160","MARÍLIA BENEDITO MARTINS LOPES","Melhorar a qualidade e aumentar a Produção de ostras","DRAPALG",9321243,14350.04,11778.76,4417.04,1472.3500000000004,"2018-12-20","2020-08-31",null,null,null,"Mar2020-ap@drapalg.min-agricultura.pt"]
[null,null,null,null,null,null,null,"MAR-02.01.03-FEAMP-0162","JOAQUIM MANUEL BRAVO DOMINGOS","Aquisição mesas ostreícolas","DRAPALG",9325202,15000,11718.25,4394.3500000000004,1464.7799999999997,"2019-04-01","2019-12-31",null,null,null,"Mar2020-ap@drapalg.min-agricultura.pt"]
[null,null,null,null,null,null,null,"MAR-02.01.03-FEAMP-0165","MIGUEL FILIPE BUCHINHO LOPES","Viveiro de Aquacultura","DRAPALG",9325507,23718,23641.95,8865.74,2955.24,"2019-02-22","2020-05-31",null,null,null,"Mar2020-ap@drapalg.min-agricultura.pt"]
[null,null,null,null,null,null,null,"MAR-02.01.03-FEAMP-0166","AQUALVOR - ACTIVIDADES EM AQUACULTURA LDA","Aqualvor - Modernização da piscicultura e implementação de modelização térmica","DRAPALG",7471197,493422.48,384451.88,144169.47,48056.48000000001,"2019-01-01","2021-12-31",null,null,null,"Mar2020-ap@drapalg.min-agricultura.pt"]
[null,null,null,null,null,null,null,"MAR-02.01.03-FEAMP-0168","VIVEIROS DA ESPARGUEIRA ACTIVIDADES DE AQUACULTURA LDA ","Aquicultura 4.0: Novo paradigma de criação de dourada e robalo em esteiro","DRAPALG",7475705,2630570.2000000002,2466045.04,924766.89,308255.64,"2018-06-03","2020-12-31",null,null,null,"Mar2020-ap@drapalg.min-agricultura.pt"]
[null,null,null,null,null,null,null,"MAR-02.01.03-FEAMP-0169","GERAÇÃO EM VOGA LDA","Produção Diversificada Ostra Portuguesa","DRAPALG",8854764,98504,75819,28432.13,9477.369999999999,"2019-02-01","2020-09-30",null,null,null,"Mar2020-ap@drapalg.min-agricultura.pt"]
[null,null,null,null,null,null,null,"MAR-02.01.03-FEAMP-0170","PISCICULTURA DO VALE DA LAMA LDA","PVL - Incremento da capacidade instalada por incorporação de soluções de modulação térmica e estabilização da rede elétrica","DRAPALG",7471182,398416.32,335560.08,125835.05,41944.999999999985,"2017-01-01","2021-12-31",null,null,null,"Mar2020-ap@drapalg.min-agricultura.pt"]
[null,null,null,null,null,null,null,"MAR-02.01.03-FEAMP-0171","PMA-AQUACULTURA, LDA","Diversificação Produtiva","DRAPALG",9321107,88696.02,88168.09,33063.040000000001,11021.010000000002,"2019-08-01","2020-12-31",null,null,null,"Mar2020-ap@drapalg.min-agricultura.pt"]
[null,null,null,null,null,null,null,"MAR-02.01.03-FEAMP-0173","PURO MAR - UNIPESSOAL, LDA","Mar Salgado - Produção de Bivalves","DRAPALG",8783936,3124725,3091221,1159207.8799999999,386402.62000000011,"2019-01-22","2021-06-30",null,null,null,"Mar2020-ap@drapalg.min-agricultura.pt"]
[null,null,null,null,null,null,null,"MAR-02.01.03-FEAMP-0181","JOÃO ALBERTO DA CRUZ SARES","Diversificação de produção","DRAPALG",9586244,37111.14,34016.980000000003,12756.37,4252.1200000000008,"2020-02-01","2021-06-30",null,null,null,"Mar2020-ap@drapalg.min-agricultura.pt"]
[null,null,null,null,null,null,null,"MAR-02.01.03-FEAMP-0182","HUMBERTO ANTÓNIO COSTA DO NASCIMENTO","Cultivo de amêijoa boa em “viveiros” localizados na zona intertidal","DRAPALG",9557202,10450,10450,3918.75,1306.25,"2020-01-31","2020-12-31",null,null,null,"Mar2020-ap@drapalg.min-agricultura.pt"]
[null,null,null,null,null,null,null,"MAR-02.01.03-FEAMP-0183","ANTÓNIO GUALDINO COSTA DO NASCIMENTO","Crescimento e engorda de ostras em “viveiros” localizados na zona intertidal","DRAPALG",7091851,6198,6164.96,2311.87,770.61999999999989,"2020-01-31","2020-12-31",null,null,null,"Mar2020-ap@drapalg.min-agricultura.pt"]
[null,null,null,null,null,null,null,"MAR-02.01.03-FEAMP-0184","SILVIA PERRUCA PADINHA","DESCARBONIZAÇÃO DA ATIVIDADE DE AQUICULTURA","DRAPALG",8377692,35000,35000,13125,4375,"2020-09-01","2021-12-31",null,null,null,"Mar2020-ap@drapalg.min-agricultura.pt"]
[null,null,null,null,null,null,null,"MAR-02.01.03-FEAMP-0185","MARVELLOUS WAVE - ACTIVIDADES AQUÍCOLAS, S.A.","Aquanostra_Investimentos Produtivos","DRAPLVT",8184507,527814.21,340719.32,127769.75,42589.920000000013,"2020-11-01","2023-01-01",null,null,null,"decisoesmar2020@draplvt.gov.pt"]
[null,null,null,null,null,null,null,"MAR-02.01.03-FEAMP-0186","OYSTERWORLD, LDA","Oysterworld_Investimentos Produtivos","DRAPLVT",8215984,2155686.14,1966356.14,737383.55,245794.5199999999,"2021-01-01","2023-12-31",null,null,null,"decisoesmar2020@draplvt.gov.pt"]
[null,null,null,null,null,null,null,"MAR-02.01.03-FEAMP-0188","BRUNO MIGUEL FERREIRA DA SILVA","Otimização da capacidade produtiva e melhoria das condições de trabalho no cultivo da Ostra-do-Pacífico (Crassostrea gigas)","DRAPC",7527675,97981.54,93979.13,35242.19,11747.379999999997,"2020-01-01","2021-12-31",null,null,null,"diav@drapc.gov.pt"]
[null,null,null,null,null,null,null,"MAR-02.01.03-FEAMP-0189","AQUALVOR - ACTIVIDADES EM AQUACULTURA LDA","Aquamarim - Construção de nova unidade piscícola em Olhão","DRAPN",7471197,1223645.24,1223645.24,458866.98,152955.65000000002,"2020-12-31","2023-01-01",null,null,null,"adelaide.inacio@drapnorte.gov.pt"]
[null,null,null,null,null,null,null,"MAR-02.01.03-FEAMP-0191","ACUINOVA - ACTIVIDADES PISCÍCOLAS, S.A.","MODERNIZAÇÃO DA PRODUÇÃO DE PREGADO","DRAPC",7334077,3992059.03,3991474.3,1496802.88,498934.27,"2020-07-01","2022-12-31",null,null,null,"diav@drapc.gov.pt"]
[null,null,null,null,null,null,null,"MAR-02.01.03-FEAMP-0192","ALEXANDRE JOSÉ MONTEIRO DE SOUSA","Investimento barco e mortor . - Produção de Amêijoa boa","DRAPALG",10350214,10676.4,10676.4,4003.65,1334.5499999999997,"2020-09-30","2022-09-30",null,null,null,"Mar2020-ap@drapalg.min-agricultura.pt"]
[null,null,null,null,null,null,null,"MAR-02.01.03-FEAMP-0193","OSTRA RIBEIRO LDA","Ostra Ribeiro - Reforço da Capacidade Produtiva e Modernização da Ostreícultura","DRAPLVT",9584686,868156.71,845720.42,317145.17,105715.04999999999,"2019-02-25","2023-04-30",null,null,null,"decisoesmar2020@draplvt.gov.pt"]
[null,null,null,null,null,null,null,"MAR-02.01.03-FEAMP-0194","EXPORSADO-COMÉRCIO E INDÚSTRIA DE PRODUTOS DO MAR, SA","Exporsado - Investimentos Produtivos ","DRAPLVT",8862922,2313461.98,2204453.89,826670.22,275556.73,"2020-11-01","2023-10-31",null,null,null,"decisoesmar2020@draplvt.gov.pt"]
[null,null,null,null,null,null,null,"MAR-02.01.03-FEAMP-0197","ALVOSTRAL - PRODUÇÃO E COMERCIALIZAÇÃO DE BIVALVES LDA","Alvostral - Investimentos Produtivos ","DRAPALG",9142353,445307.54,354715.05,133018.15,44339.380000000005,"2020-12-31","2023-12-30",null,null,null,"Mar2020-ap@drapalg.min-agricultura.pt"]
[null,null,null,null,null,null,null,"MAR-02.01.03-FEAMP-0198","PISCICULTURA DO VALE DA LAMA LDA","Biomarim - Construção de nova unidade piscícola em Olhão","DRAPN",7471182,1386491.35,1385588.81,519595.82,173198.59000000003,"2020-12-31","2023-12-30",null,null,null,"adelaide.inacio@drapnorte.gov.pt"]
[null,null,null,null,null,null,null,"MAR-02.01.03-FEAMP-0199","EPISÓDIO VERTICAL, LDA","Implementação de uma Unidade Industrial sustentável para produção de microalgas ","DRAPAL",9436247,4609849,4000000,1500000.03,499999.97,"2020-07-01","2022-06-30",null,null,null,0]
[null,null,null,null,null,null,null,"MAR-02.01.03-FEAMP-0201","HERDADE DO PINHEIRO, S.A.","Estabelecimento de Ostras ","DRAPAL",85943,297424.62,234221.87,87833.23,29277.710000000006,"2018-06-14","2020-12-31",null,null,null,0]
[null,null,null,null,null,null,null,"MAR-02.01.03-FEAMP-0203","FALCAMAR-COMERCIO DE MARISCOS,LDA","MODERNIZAÇÃO DA UNIDADE DE PROCESSAMENTO DA DEPURADORA DE BIVALVES FRESCOS DE LABRUGE","DRAPN",8377927,2133883.41,2133883.41,800206.32,266735.41000000003,"2020-08-01","2021-12-31",null,null,null,"adelaide.inacio@drapnorte.gov.pt"]
[null,null,null,null,null,null,null,"MAR-02.01.03-FEAMP-0208","OCEANO FRESCO, S. A.","Apoio Específico Inerente ao Surto de COVID-19","DRAPLVT",9016416,16066.68,16066.68,6025.01,2008.33,"2020-04-01","2020-12-31",null,null,null,"decisoesmar2020@draplvt.gov.pt"]
[null,null,null,null,null,null,null,"MAR-02.01.03-FEAMP-0209","ACUINOVA - ACTIVIDADES PISCÍCOLAS, S.A.","Melhoria das condições de trabalho e de segurança na Acuinova","DRAPC",7334077,64579.15,39015.58,14630.86,4876.9500000000007,"2020-03-18","2020-12-31",null,null,null,"diav@drapc.gov.pt"]
[null,null,null,null,null,null,null,"MAR-02.02.01-FEAMP-0004","FACULDADE DE CIENCIAS DA UNIVERSIDADE DE LISBOA","Protectlnvad - Proteção contra Invasões em Sistemas Aquícolas Costeiros","DRAPLVT",7477221,512469.67,506974.48,380230.87,126743.60999999999,"2019-01-01","2021-10-31",null,null,null,"decisoesmar2020@draplvt.gov.pt"]
[null,null,null,null,null,null,null,"MAR-02.02.01-FEAMP-0005","FACULDADE DE CIENCIAS DA UNIVERSIDADE DE LISBOA","AQUA-PROSPECT – Prospecção de áreas de Aquacultura livres de Toxinas e Contaminantes Emergentes","DRAPLVT",7477221,460164.58,450635.11,337976.44,112658.66999999998,"2020-04-01","2023-12-31",null,null,null,"decisoesmar2020@draplvt.gov.pt"]
[null,null,null,null,null,null,null,"MAR-02.04.02-FEAMP-0003","CANAL DO PEIXE - ACTIVIDADES PISCÍCOLAS, SA","APOIO COVID","DRAPC",7556887,46408.12,46408.12,34806.089999999997,11602.030000000006,"2020-03-01","2020-07-08",null,null,null,"diav@drapc.gov.pt"]
[null,null,null,null,null,null,null,"MAR-02.04.02-FEAMP-0004","BIVALVIA - MARISCOS DA FORMOSA, LDA.","Compensar a quebra das vendas causada pelo corona virus COVID-19","DRAPALG",7692017,7186.14,7186.14,5389.61,1796.5300000000007,"2020-03-01","2020-07-09",null,null,null,"Mar2020-ap@drapalg.min-agricultura.pt"]
[null,null,null,null,null,null,null,"MAR-02.04.02-FEAMP-0006","GERAÇÃO EM VOGA LDA","Pedido de apoio - compensação aos aquicultores pela suspensão ou redução temporária da produção e das vendas - consequência do surto de Covid-19 ","DRAPALG",8854764,32152.720000000001,32152.720000000001,24114.54,8038.18,"2020-03-01","2020-06-30",null,null,null,"Mar2020-ap@drapalg.min-agricultura.pt"]
[null,null,null,null,null,null,null,"MAR-02.04.02-FEAMP-0007","NUNO JORGE DOS SANTOS DO Ó PEREIRA","Pedido de apoio - compensação aos aquicultores pela suspensão ou redução da produção e vendas - consequência do surto de covid19.","DRAPALG",9341537,397.5,397.5,298.13,99.37,"2020-03-01","2020-06-30",null,null,null,"Mar2020-ap@drapalg.min-agricultura.pt"]
[null,null,null,null,null,null,null,"MAR-02.04.02-FEAMP-0009","AQUACRIA PISCICOLAS, SA","Compensação pela Suspensão/Redução temporária de Produção/Vendas em consequência do COVID-19","DRAPC",7184071,85525.02,85525.02,64143.77,21381.250000000007,"2020-03-01","2020-06-30",null,null,null,"diav@drapc.gov.pt"]
[null,null,null,null,null,null,null,"MAR-02.04.02-FEAMP-0013","FRANCISCO MARIA HERMÍNIO","Pedido de apoio - compensação aos aquicultores pela suspensão ou redução temporária da produção e das vendas - consequência do surto de Covid-19 ","DRAPALG",7087226,405,405,303.75,101.25,"2019-03-01","2020-06-30",null,null,null,"Mar2020-ap@drapalg.min-agricultura.pt"]
[null,null,null,null,null,null,null,"MAR-02.04.02-FEAMP-0014","BIVAQUA - BIVALVES DA COSTA NOVA LDA","Apoio à Suspensão Temporária da Colheita de Moluscos Cultivados por Motivos de Saúde Pública do Programa MAR2020","DRAPC",7194525,18346.02,18346.02,13759.52,4586.5,"2020-03-01","2020-06-30",null,null,null,"diav@drapc.gov.pt"]
[null,null,null,null,null,null,null,"MAR-02.04.02-FEAMP-0015","DANIEL NUNES DOS SANTOS","Pedido de apoio - compensação aos aquicultores pela suspensão ou redução temporária da produção e das vendas - consequência do surto de Covid-19","DRAPALG",7965507,6507.76,6507.76,4880.82,1626.9400000000005,"2020-03-01","2020-06-30",null,null,null,"Mar2020-ap@drapalg.min-agricultura.pt"]
[null,null,null,null,null,null,null,"MAR-02.04.02-FEAMP-0017","HUMBERTO ANTÓNIO COSTA DO NASCIMENTO","Quebra superior a 40% - Humberto Nascimento","DRAPALG",9557202,1003,1003,752.25,250.75,"2020-03-01","2020-07-31",null,null,null,"Mar2020-ap@drapalg.min-agricultura.pt"]
[null,null,null,null,null,null,null,"MAR-02.04.02-FEAMP-0020","LUÍS FERNANDO MELO DOS SANTOS","Pedido de apoio - compensação aos aquicultores pela suspensão ou redução temporária da produção e das vendas - consequência do surto de Covid-19 ","DRAPALG",7077642,1210,1210,907.5,302.5,"2020-03-01","2020-07-31",null,null,null,"Mar2020-ap@drapalg.min-agricultura.pt"]
[null,null,null,null,null,null,null,"MAR-02.04.02-FEAMP-0021","VALTER MANUEL NETO DE OLIVEIRA","Pedido de apoio - compensação aos aquicultores pela suspensão ou redução temporária da produção e das vendas - consequência do surto de Covid-19 ","DRAPALG",10421796,12130.44,12130.44,9097.83,3032.6100000000006,"2020-03-01","2020-06-30",null,null,null,"Mar2020-ap@drapalg.min-agricultura.pt"]
[null,null,null,null,null,null,null,"MAR-02.04.02-FEAMP-0022","MUGEN - CONSULTORES, S. A.","Apoio à suspenção temporária da colheita de moluscos cultivados por motivos de saúde pública","DRAPC",10424407,4972,4972,3729,1243,"2020-03-01","2020-06-30",null,null,null,{"$f":"VLOOKUP(K708,S:T,2,FALSE)","v":"diav@drapc.gov.pt"}]
[null,null,null,null,null,null,null,"MAR-02.04.02-FEAMP-0024","JORGE DANIEL BRANCO SERRA","Pedido de apoio - compensação aos aquicultores pela suspensão ou redução temporária da produção e das vendas - consequência do surto de Covid-19 ","DRAPALG",7075121,2229.3000000000002,2229.3000000000002,1671.98,557.32000000000016,"2020-03-01","2020-06-30",null,null,null,"Mar2020-ap@drapalg.min-agricultura.pt"]
[null,null,null,null,null,null,null,"MAR-02.04.02-FEAMP-0028","ANTÓNIO CARLOS DE SÁ MARTINS","Compensação pela quebra de vendas resultante da pandemia","DRAPC",10414154,4072.74,4072.74,3054.56,1018.1799999999998,"2020-03-01","2020-06-30",null,null,null,"diav@drapc.gov.pt"]
[null,null,null,null,null,null,null,"MAR-02.04.02-FEAMP-0029","ANTÓNIO GUALDINO COSTA DO NASCIMENTO","Quebra Superior a 40% da faturação - Ostras - Amêijoa Boa","DRAPALG",7091851,642.5,642.5,481.88,160.62,"2020-03-01","2020-06-30",null,null,null,"Mar2020-ap@drapalg.min-agricultura.pt"]
[null,null,null,null,null,null,null,"MAR-02.04.02-FEAMP-0031","JOSE MANUEL PRATA LDA","Quebra Superior a 25% - José Manuel Prata, Lda","DRAPALG",7081013,34534.160000000003,34534.160000000003,25900.62,8633.5400000000045,"2020-03-01","2020-06-30",null,null,null,"Mar2020-ap@drapalg.min-agricultura.pt"]
[null,null,null,null,null,null,null,"MAR-02.04.02-FEAMP-0037","MÁRIO ALEXANDRE MARTINS PANCADAS CORREIA","Quebra Superior a 40% da faturação - Amêijoa Boa","DRAPALG",10424953,7076,7076,5307,1769,"2020-03-01","2020-06-30",null,null,null,"Mar2020-ap@drapalg.min-agricultura.pt"]
[null,null,null,null,null,null,null,"MAR-02.04.02-FEAMP-0038","ILÍDIO JOSÉ DUARTE DOS SANTOS","Quebra de produção superior a 40% - Ilídio Santos","DRAPALG",10426213,5693,5693,4269.75,1423.25,"2020-03-01","2020-06-30",null,null,null,"Mar2020-ap@drapalg.min-agricultura.pt"]
[null,null,null,null,null,null,null,"MAR-02.04.02-FEAMP-0039","RUI PEDRO PRATA VIEGAS","Quebra da produção superior a 40% - Rui Pedro Prata Viegas","DRAPALG",10425121,2429,2429,1821.75,607.25,"2020-03-01","2020-06-30",null,null,null,"Mar2020-ap@drapalg.min-agricultura.pt"]
[null,null,null,null,null,null,null,"MAR-02.04.02-FEAMP-0040","RUI HUMBERTO VENTURA VIEGAS","Quebra na produção superior a 40% - Rui Viegas","DRAPALG",10425113,1315,1315,986.25,328.75,"2020-03-01","2020-06-30",null,null,null,"Mar2020-ap@drapalg.min-agricultura.pt"]
[null,null,null,null,null,null,null,"MAR-02.04.02-FEAMP-0041","SILVIA PERRUCA PADINHA","Suspensão ou Redução Temporária da Produção de SILVIA PADINHA","DRAPALG",8377692,5061.76,5061.76,3796.32,1265.44,"2020-03-01","2020-06-30",null,null,null,"Mar2020-ap@drapalg.min-agricultura.pt"]
[null,null,null,null,null,null,null,"MAR-02.04.02-FEAMP-0042","SOFIA SANCHO TEIXEIRA","Quebra no valor da produção superior a 40% - Sofia Sancho Teixeira","DRAPALG",10426302,5830.1,5830.1,4372.58,1457.5200000000004,"2020-03-01","2020-07-31",null,null,null,"Mar2020-ap@drapalg.min-agricultura.pt"]
[null,null,null,null,null,null,null,"MAR-02.04.02-FEAMP-0043","LUÍS DOMINGOS MARTINS","Quebra superior a 40% - Luís Domingos Martins","DRAPALG",10426453,7602.3,7602.3,5701.73,1900.5700000000006,"2020-03-01","2020-06-30",null,null,null,"Mar2020-ap@drapalg.min-agricultura.pt"]
[null,null,null,null,null,null,null,"MAR-02.04.02-FEAMP-0044","ELISIÁRIO GODINHO RAPOSO","Quebra Superior a 40% - Elisiário Godinho Raposo","DRAPALG",10420812,12559.22,12559.22,9419.42,3139.7999999999993,"2020-03-02","2020-06-30",null,null,null,"Mar2020-ap@drapalg.min-agricultura.pt"]
[null,null,null,null,null,null,null,"MAR-02.04.02-FEAMP-0045","NELSON FILIPE CIPRIANO TOUPEIRO","Quebra superior a 40% - Nelson Filipe Cipriano Toupeiro","DRAPALG",10426387,1800,1800,1350,450,"2020-03-01","2020-06-30",null,null,null,"Mar2020-ap@drapalg.min-agricultura.pt"]
[null,null,null,null,null,null,null,"MAR-02.04.02-FEAMP-0046","PISCICULTURA DO VALE DA LAMA LDA","Compensação aos Aquicultores pela Redução temporária da Vendas ","DRAPALG",7471182,49573.97,49573.97,37180.480000000003,12393.489999999998,"2020-03-01","2020-06-30",null,null,null,"Mar2020-ap@drapalg.min-agricultura.pt"]
[null,null,null,null,null,null,null,"MAR-02.04.02-FEAMP-0047","ACUINOVA - ACTIVIDADES PISCÍCOLAS, S.A.","Compensação sobre as perdas resultante da pandemia COVID-19","DRAPC",7334077,1697556.88,1697556.88,1273167.6599999999,424389.22,"2020-03-01","2020-06-30",null,null,null,"diav@drapc.gov.pt"]
[null,null,null,null,null,null,null,"MAR-02.04.02-FEAMP-0049","SILVINA MARIA CASIMIRO SANTOS RAMOS","Compensação pela redução do volume de negócios ","DRAPALG",7080516,1129.57,1129.57,847.18,282.39,"2020-03-01","2020-06-30",null,null,null,"Mar2020-ap@drapalg.min-agricultura.pt"]
[null,null,null,null,null,null,null,"MAR-02.04.02-FEAMP-0052","ANTÓNIO JOSÉ VINGADO TOUPEIRO","Quebra Superior a 40% da faturação - Amêijoa Boa","DRAPALG",7655123,1815,1815,1361.25,453.75,"2020-03-01","2020-06-30",null,null,null,"Mar2020-ap@drapalg.min-agricultura.pt"]
[null,null,null,null,null,null,null,"MAR-02.04.02-FEAMP-0053","JOÃO FRANCISCO DOS REIS","Quebra superior a 40% - João Francisco Dos Reis","DRAPALG",10426542,625,625,468.75,156.25,"2020-03-01","2020-06-30",null,null,null,"Mar2020-ap@drapalg.min-agricultura.pt"]
[null,null,null,null,null,null,null,"MAR-02.04.02-FEAMP-0054","JOSÉ MANUEL PAIXÃO LEZINHO","Quebra Superior a 40% da faturação - Amêijoa Boa","DRAPALG",7091232,435,435,326.25,108.75,"2020-03-01","2020-06-30",null,null,null,"Mar2020-ap@drapalg.min-agricultura.pt"]
[null,null,null,null,null,null,null,"MAR-02.04.02-FEAMP-0055","AQUA PRIME, LDA","Apoio à Suspensão Temporária da Colheita de Moluscos Cultivados por Motivos de Saúde Pública do programa MAR2020","DRAPALG",8216875,8427.9,8427.9,6320.93,2106.9699999999993,"2020-03-01","2020-06-30",null,null,null,"Mar2020-ap@drapalg.min-agricultura.pt"]
[null,null,null,null,null,null,null,"MAR-02.04.02-FEAMP-0056","WILSON SANCHO TEIXEIRA","Quebra superior a 40% - Wilson Sancho Teixeira","DRAPALG",10426503,10621.72,10621.72,7966.29,2655.4299999999994,"2020-03-01","2020-08-01",null,null,null,"Mar2020-ap@drapalg.min-agricultura.pt"]
[null,null,null,null,null,null,null,"MAR-02.04.02-FEAMP-0057","RELÍQUIAS DA PAISAGEM - UNIPESSOAL LDA","Quebra Superior a 40% da faturação - Relíquias da Paisagem","DRAPALG",8861145,15382.34,15382.34,11536.76,3845.58,"2020-03-01","2020-06-30",null,null,null,"Mar2020-ap@drapalg.min-agricultura.pt"]
[null,null,null,null,null,null,null,"MAR-02.04.02-FEAMP-0058","NEPTUNPEARL, LDA.","Ostras Neptun - COVID-19","DRAPLVT",9026063,14238.06,14238.06,10678.55,3559.51,"2020-03-01","2020-08-01",null,null,null,"decisoesmar2020@draplvt.gov.pt"]
[null,null,null,null,null,null,null,"MAR-02.04.02-FEAMP-0062","OSTRA RIBEIRO LDA","Compensação aos Aquicultores pela Redução temporária da Vendas ","DRAPLVT",9584686,34385.56,34385.56,25789.17,8596.39,"2020-03-01","2020-06-30",null,null,null,"decisoesmar2020@draplvt.gov.pt"]
[null,null,null,null,null,null,null,"MAR-02.04.02-FEAMP-0064","CARLOS JOSÉ DELFINO BARBEIRO","Quebra Superior a 40% da faturação - Amêijoa Boa","DRAPALG",8365393,650.5,650.5,487.88,162.62,"2020-03-01","2020-06-30",null,null,null,"Mar2020-ap@drapalg.min-agricultura.pt"]
[null,null,null,null,null,null,null,"MAR-02.04.02-FEAMP-0065","CANAL DO PEIXE - ACTIVIDADES PISCÍCOLAS, SA","MEDIDA SAUDE PUBLICA","DRAPC",7556887,30529.34,30529.34,22897.01,7632.3300000000017,"2020-10-01","2021-01-12",null,null,null,"diav@drapc.gov.pt"]
[null,null,null,null,null,null,null,"MAR-02.04.02-FEAMP-0066","ATLANTIK FISH - PESCADO DE MAR LDA","Compensação aos Aquicultores","DRAPALG",7460072,30839.64,30839.64,23129.73,7709.91,"2020-10-01","2020-12-31",null,null,null,"Mar2020-ap@drapalg.min-agricultura.pt"]
[null,null,null,null,null,null,null,"MAR-02.04.02-FEAMP-0067","MUGEN - CONSULTORES, S. A.","Apoio à suspensão temporária da colheita de moluscos cultivados, por motivos de saúde pública","DRAPC",10424407,3699.43,3699.43,2774.57,924.85999999999967,"2020-10-01","2021-01-31",null,null,null,"diav@drapc.gov.pt"]
[null,null,null,null,null,null,null,"MAR-02.04.02-FEAMP-0068","EXPORSADO-COMÉRCIO E INDÚSTRIA DE PRODUTOS DO MAR, SA","Compensação da quebra de vendas causada pela pandemia da COVID-19","DRAPLVT",8862922,125874.32,125874.32,94405.74,31468.58,"2020-10-01","2021-12-31",null,null,null,"decisoesmar2020@draplvt.gov.pt"]
[null,null,null,null,null,null,null,"MAR-02.04.02-FEAMP-0069","PEDRO MIGUEL FERREIRA CARDOSO","Compensação aos aquicultores","DRAPC",10485575,25489.84,25489.84,19117.38,6372.4599999999991,"2020-10-01","2021-03-01",null,null,null,"diav@drapc.gov.pt"]
[null,null,null,null,null,null,null,"MAR-02.04.02-FEAMP-0070","PEDRO MIGUEL DOS SANTOS PEREIRA","Criação e venda de Amêijoas ","DRAPC",7264895,25142.5,25142.5,18856.88,6285.619999999999,"2020-10-01","2021-01-19",null,null,null,"diav@drapc.gov.pt"]
[null,null,null,null,null,null,null,"MAR-02.04.02-FEAMP-0072","BIVAQUA - BIVALVES DA COSTA NOVA LDA","Apoio à Suspensão Temporária da Colheita de Moluscos Cultivados por Motivos de Saúde Pública","DRAPC",7194525,158512.85999999999,158512.85999999999,118884.65,39628.209999999992,"2020-10-01","2021-01-31",null,null,null,"diav@drapc.gov.pt"]
[null,null,null,null,null,null,null,"MAR-02.04.02-FEAMP-0073","OSTRA RIBEIRO LDA","Compensação aos Aquicultores pela Redução temporária da Vendas","DRAPLVT",9584686,55070.66,55070.66,41303,13767.660000000003,"2020-10-01","2021-03-31",null,null,null,"decisoesmar2020@draplvt.gov.pt"]
[null,null,null,null,null,null,null,"MAR-02.04.02-FEAMP-0074","SILVIA PERRUCA PADINHA","Suspensão ou Redução Temporária da Produção de SILVIA PADINHA","DRAPALG",8377692,6919.34,6919.34,5189.51,1729.83,"2020-10-01","2020-12-31",null,null,null,"Mar2020-ap@drapalg.min-agricultura.pt"]
[null,null,null,null,null,null,null,"MAR-02.04.02-FEAMP-0075","QUINTA DO SALMAO COMERCIO PEIXE. LDA","Compensação quebra facturação COVID19 ","DRAPN",7073114,73683.14,73683.14,55262.36,18420.78,"2020-10-01","2021-01-22",null,null,null,"adelaide.inacio@drapnorte.gov.pt"]
[null,null,null,null,null,null,null,"MAR-02.04.02-FEAMP-0076","CASTRO & CABERO, LDA","Compensação quebra facturação COVID19 ","DRAPN",7073106,21724.57,21724.57,16293.43,5431.1399999999994,"2020-10-01","2021-01-22",null,null,null,"adelaide.inacio@drapnorte.gov.pt"]
[null,null,null,null,null,null,null,"MAR-02.04.02-FEAMP-0078","BRUNO MIGUEL FERREIRA DA SILVA","P02M04 Medidas de Saúde Pública","DRAPC",7527675,21425.200000000001,21425.200000000001,16068.9,5356.3000000000011,"2020-10-01","2021-02-15",null,null,null,"diav@drapc.gov.pt"]
[null,null,null,null,null,null,null,"MAR-02.04.02-FEAMP-0079","SAFIESTELA - SUSTAINABLE AQUA FARMING INVESTMENTS, S. A.","Compensação pela Suspensão/Redução temporária de Produção/Vendas em consequência do COVID-19","DRAPN",7775593,29106.97,29106.97,21830.23,7276.7400000000016,"2020-10-01","2020-12-31",null,null,null,"adelaide.inacio@drapnorte.gov.pt"]
[null,null,null,null,null,null,null,"MAR-02.04.02-FEAMP-0080","BRÁULIO DA CRUZ GUERREIRO","Suspensão ou Redução Temporária da Produção de BRAULIO GUERREIRO","DRAPALG",10489905,2549,2549,1911.75,637.25,"2020-10-01","2020-12-31",null,null,null,"Mar2020-ap@drapalg.min-agricultura.pt"]
[null,null,null,null,null,null,null,"MAR-02.04.02-FEAMP-0081","IVO MANUEL DA CRUZ VALENTE","Compensação pela quebra de vendas resultante da pandemia","DRAPC",10486234,21634.66,21634.66,16226,5408.66,"2020-10-01","2021-01-30",null,null,null,"diav@drapc.gov.pt"]
[null,null,null,null,null,null,null,"MAR-02.04.02-FEAMP-0083","RELÍQUIAS DA PAISAGEM - UNIPESSOAL LDA","Quebra na faturação superior a 40% ","DRAPALG",8861145,7777.54,7777.54,5833.15,1944.3900000000003,"2020-10-01","2020-12-31",null,null,null,"Mar2020-ap@drapalg.min-agricultura.pt"]
[null,null,null,null,null,null,null,"MAR-02.04.02-FEAMP-0084","JOSÉ FRANCISCO SILVA GUERREIRO","Suspensão ou Redução Temporária da Produção de JOSÉ FRANCISCO GUERREIRO","DRAPALG",7091537,279.25,279.25,209.44,69.81,"2020-10-01","2020-12-31",null,null,null,"Mar2020-ap@drapalg.min-agricultura.pt"]
[null,null,null,null,null,null,null,"MAR-02.04.02-FEAMP-0085","JOSÉ PEDRO RODRIGUES HERMÍNIO","Pedido de apoio - redução de produção e vendas - Covid19","DRAPALG",10488384,225.33,225.33,169,56.330000000000013,"2020-10-01","2020-12-31",null,null,null,"Mar2020-ap@drapalg.min-agricultura.pt"]
[null,null,null,null,null,null,null,"MAR-02.04.02-FEAMP-0087","CARLOS ALBERTO DA CONCEIÇÃO MARTINS","Pedido de apoio - redução de produção e vendas - Covid19","DRAPALG",7280534,11686.6,11686.6,8764.9500000000007,2921.6499999999996,"2021-10-01","2021-12-31",null,null,null,"Mar2020-ap@drapalg.min-agricultura.pt"]
[null,null,null,null,null,null,null,"MAR-02.04.02-FEAMP-0089","AQUA PRIME, LDA","Apoio à Suspensão Temporária da Colheita de Moluscos Cultivados por Motivos de Saúde Pública do programa MAR2020","DRAPALG",8216875,11570.68,11570.68,8678.01,2892.67,"2020-10-01","2020-12-31",null,null,null,"Mar2020-ap@drapalg.min-agricultura.pt"]
[null,null,null,null,null,null,null,"MAR-02.04.02-FEAMP-0090","NEPTUNPEARL, LDA."," Ostras Neptun - COVID-19 2.0","DRAPLVT",9026063,12422.2,12422.2,9316.65,3105.5500000000011,"2020-10-01","2020-12-31",null,null,null,"decisoesmar2020@draplvt.gov.pt"]
[null,null,null,null,null,null,null,"MAR-02.04.02-FEAMP-0091","DINA MARIA DOS SANTOS PEREIRA","Suspensão ou Redução Temporária da Produção de DINA PEREIRA","DRAPALG",10494864,233.33,233.33,175,58.330000000000013,"2020-10-01","2020-12-31",null,null,null,"Mar2020-ap@drapalg.min-agricultura.pt"]
[null,null,null,null,null,null,null,"MAR-02.04.02-FEAMP-0092","LAURE CATHERINE SIEGFRIEDT","Compensação pela quebra de faturaçâo devido à pandemia","DRAPC",10485513,13175,13175,9881.25,3293.75,"2020-10-01","2021-02-10",null,null,null,"diav@drapc.gov.pt"]
[null,null,null,null,null,null,null,"MAR-02.04.02-FEAMP-0094","LUDGERO MANUEL DE SOUSA RUSSO"," Quebra na faturação superior a 40% ","DRAPALG",10495426,781.34,781.34,586.01,195.33000000000004,"2020-10-01","2020-12-31",null,null,null,"Mar2020-ap@drapalg.min-agricultura.pt"]
[null,null,null,null,null,null,null,"MAR-02.04.02-FEAMP-0096","MARIA MADALENA DOS SANTOS MENAU DA CONCEIÇÃO","Suspensão ou Redução Temporária da Produção de MARIA MADALENA CONCEIÇÃO","DRAPALG",10495191,859.34,859.34,644.51,214.83000000000004,"2020-10-01","2020-12-31",null,null,null,"Mar2020-ap@drapalg.min-agricultura.pt"]
[null,null,null,null,null,null,null,"MAR-02.04.02-FEAMP-0097","MANUEL MARÇALO HELIODORO SERODIO","Pedido de apoio - compensação aos aquicultores pela suspensão ou redução temporária da produção e das vendas - consequência do surto de Covid-19","DRAPALG",7091576,2988.66,2988.66,2241.5,747.15999999999985,"2020-10-01","2020-12-31",null,null,null,"Mar2020-ap@drapalg.min-agricultura.pt"]
[null,null,null,null,null,null,null,"MAR-02.04.02-FEAMP-0098","AGUARELATROPICAL - AQUICULTURA DE OSTRAS, LDA","Compensação aos Aquicultores em consequência do pandemia Covid-19","DRAPC",8862446,16110.16,16110.16,12082.62,4027.5399999999991,"2020-10-01","2020-12-31",null,null,null,"diav@drapc.gov.pt"]
[null,null,null,null,null,null,null,"MAR-02.04.02-FEAMP-0099","CLAUDIO EMANUEL GOMES MANSO","Pedido de apoio - compensação aos aquicultores pela suspensão ou redução temporária da produção e das vendas - consequência do surto de Covid-19 ","DRAPALG",10496356,3750,3750,2812.5,937.5,"2020-10-01","2020-12-31",null,null,null,"Mar2020-ap@drapalg.min-agricultura.pt"]
[null,null,null,null,null,null,null,"MAR-02.04.02-FEAMP-0101","ANA MARIA BAROA MANJUA GUERREIRO","Pedido de apoio - compensação aos aquicultores pela suspensão ou redução temporária da produção e das vendas - consequência do surto de Covid-19","DRAPALG",10496236,4605.34,4605.34,3454.01,1151.33,"2020-10-01","2020-12-31",null,null,null,"Mar2020-ap@drapalg.min-agricultura.pt"]
[null,null,null,null,null,null,null,"MAR-02.04.02-FEAMP-0102","ALVOSTRAL - PRODUÇÃO E COMERCIALIZAÇÃO DE BIVALVES LDA","Apoio à Suspensão Temporária da Colheita de Moluscos Cultivados por Motivos de Saúde Pública","DRAPALG",9142353,98710.720000000001,98710.720000000001,74033.039999999994,24677.680000000008,"2020-10-01","2020-12-31",null,null,null,"Mar2020-ap@drapalg.min-agricultura.pt"]
[null,null,null,null,null,null,null,"MAR-02.04.02-FEAMP-0103","MARIA PERES MATIAS","Quebra na faturação superior a 40% ","DRAPALG",7093536,17437.66,17437.66,13078.25,4359.41,"2020-10-01","2020-12-31",null,null,null,"Mar2020-ap@drapalg.min-agricultura.pt"]
[null,null,null,null,null,null,null,"MAR-02.04.02-FEAMP-0104","DANIEL NUNES DOS SANTOS","Pedido de Apoio - Compensação pela suspensão ou redução temporária da produção e das vendas - consequência do surto de Covid-19","DRAPALG",7965507,6741.34,6741.34,5056.01,1685.33,"2020-10-01","2020-12-31",null,null,null,"Mar2020-ap@drapalg.min-agricultura.pt"]
[null,null,null,null,null,null,null,"MAR-02.05.01-FEAMP-0001","INSTITUTO PORTUGUÊS DO MAR E DA ATMOSFERA IP","LABVIVOS","DRAPLVT",7956586,417969,417942.22,313456.67,104485.54999999999,"2019-01-01","2020-12-31",null,null,null,"decisoesmar2020@draplvt.gov.pt"]
[null,null,null,null,null,null,null,"MAR-02.05.01-FEAMP-0003","OSTRASELECT ALGARVE, LDA","OSTRASELECT Algarve - Compensação Financeira por mortalidade excecional","DRAPALG",8206447,48720.959999999999,48720.959999999999,36540.720000000001,12180.239999999998,"2015-07-01","2015-10-31",null,null,null,"Mar2020-ap@drapalg.min-agricultura.pt"]
[null,null,null,null,null,null,null,"MAR-02.05.01-FEAMP-0004","INSTITUTO PORTUGUÊS DO MAR E DA ATMOSFERA IP","SAÚDE E BEM ESTAR ANIMAL DAS POPULAÇÕES AQUÍCOLAS","DRAPLVT",7956586,297519.61,297519.61,223139.71,74379.899999999994,"2017-01-01","2019-12-31",null,null,null,"decisoesmar2020@draplvt.gov.pt"]
[null,null,null,null,null,null,null,"MAR-02.05.01-FEAMP-0005","ACÁCIO JOSÉ GUERREIRO SIMÕES","Compensação por mortalidade viveiro Alvor - Vale da lama","DRAPALG",8898786,14202.74,14202.74,10652.06,3550.6800000000003,"2015-09-15","2015-12-31",null,null,null,"Mar2020-ap@drapalg.min-agricultura.pt"]
[null,null,null,null,null,null,null,"MAR-02.05.01-FEAMP-0006","MANUEL LUIS NEVES DA SILVA","Mortalidade das ostras nos viveiros H2-Andorinha-Flamingo","DRAPALG",8924275,27572.03,27572.03,20679.02,6893.0099999999984,"2015-07-15","2015-12-31",null,null,null,"Mar2020-ap@drapalg.min-agricultura.pt"]
[null,null,null,null,null,null,null,"MAR-02.05.01-FEAMP-0007","CARLA ISABEL DA CRUZ PRATA","Mortalidade massiva de ameijoa Lameirão - Ria Formosa","DRAPALG",8920591,13511.92,13511.92,10133.94,3377.9799999999996,"2015-10-10","2017-10-31",null,null,null,"Mar2020-ap@drapalg.min-agricultura.pt"]
[null,null,null,null,null,null,null,"MAR-02.05.01-FEAMP-0008","JOSE MANUEL PRATA LDA","Mortalidade massiva ameijoa Lameirão/Ponta Lava Ria Formosa","DRAPALG",7081013,47640.160000000003,47640.160000000003,35730.120000000003,11910.04,"2015-10-10","2017-10-31",null,null,null,{"$f":"VLOOKUP(K772,S:T,2,FALSE)","v":"Mar2020-ap@drapalg.min-agricultura.pt"}]
[null,null,null,null,null,null,null,"MAR-02.05.01-FEAMP-0009","INSTITUTO PORTUGUÊS DO MAR E DA ATMOSFERA IP","SAÚDEeAQUA - Prevenção e bem estar em aquacultura marinha","DRAPALG",7956586,563569.99,563569.99,422677.5,140892.49,"2018-12-14","2021-09-16",null,null,null,"Mar2020-ap@drapalg.min-agricultura.pt"]
[null,null,null,null,null,null,null,"MAR-02.05.01-FEAMP-0010","FACULDADE DE MEDICINA VETERINÁRIA","MONITORIZAÇÃO SANITÁRIA DE BIVALVES","DRAPLVT",7185573,321559.27,198802.55,149101.91,49700.639999999985,"2018-05-27","2020-12-31",null,null,null,"decisoesmar2020@draplvt.gov.pt"]
[null,null,null,null,null,null,null,"MAR-02.05.01-FEAMP-0011","OCTÁVIO MANUEL DOS REIS PARREIRA","Narceja e Pardal - Compensação suspenção temporária da actividade","DRAPALG",7092394,21967.99,21967.99,16475.990000000002,5492,"2015-07-01","2018-03-31",null,null,null,"Mar2020-ap@drapalg.min-agricultura.pt"]
[null,null,null,null,null,null,null,"MAR-02.05.01-FEAMP-0012","UNIVERSIDADE DO ALGARVE","WELLFISH - Estabelecimento de biomarcadores de bem estar","DRAPALG",7090437,745982.85,745982.85,559487.13,186495.71999999997,"2018-01-01","2021-05-20",null,null,null,"Mar2020-ap@drapalg.min-agricultura.pt"]
[null,null,null,null,null,null,null,"MAR-02.05.01-FEAMP-0013","INSTITUTO POLITÉCNICO DE LEIRIA","Be4AQUAHEALTH","DRAPLVT",7163701,626362.22,590928.05000000005,443196.05,147732.00000000006,"2018-11-01","2021-10-30",null,null,null,"decisoesmar2020@draplvt.gov.pt"]
[null,null,null,null,null,null,null,"MAR-02.05.01-FEAMP-0014","ALVOSTRAL - PRODUÇÃO E COMERCIALIZAÇÃO DE BIVALVES LDA","Mortalidade Massiva de bivalves","DRAPALG",9142353,3906.85,3906.85,2930.14,976.71,"2015-07-01","2015-12-31",null,null,null,"Mar2020-ap@drapalg.min-agricultura.pt"]
[null,null,null,null,null,null,null,"MAR-02.05.01-FEAMP-0015","GILBERTO JOSÉ GONÇALVES FERNANDES","Mortalidade Massiva de bivalves","DRAPALG",7334715,169564.93,169564.93,127173.7,42391.229999999996,"2015-10-31","2017-04-22",null,null,null,"Mar2020-ap@drapalg.min-agricultura.pt"]
[null,null,null,null,null,null,null,"MAR-02.05.01-FEAMP-0016","BERNARDINO DE SOUSA GIL","Mortalidade de amêijoa-boa na Ria Formosa - OLH2","DRAPALG",7071614,810.73,810.73,608.04999999999995,202.68000000000006,"2017-08-01","2019-01-22",null,null,null,"Mar2020-ap@drapalg.min-agricultura.pt"]
[null,null,null,null,null,null,null,"MAR-02.05.01-FEAMP-0017","JOÃO FERNANDES DOS SANTOS","Mortalidade de amêijoa-boa na zona de produção do Lameirão - Ria Formosa","DRAPALG",8929887,17763.78,17763.78,13322.84,4440.9399999999987,"2015-10-10","2017-04-01",null,null,null,"Mar2020-ap@drapalg.min-agricultura.pt"]
[null,null,null,null,null,null,null,"MAR-02.05.01-FEAMP-0018","LUÍS FERNANDO MELO DOS SANTOS","Mortalidade de amêijoa-boa na zona de produção do Lameirão - Ria Formosa","DRAPALG",7077642,5475.95,5475.95,4106.96,1368.9899999999998,"2015-10-31","2017-10-31",null,null,null,"Mar2020-ap@drapalg.min-agricultura.pt"]
[null,null,null,null,null,null,null,"MAR-02.05.01-FEAMP-0019","JOÃO LUÍS VIEGAS ANDRÉS","Mortalidade de amêijoa-boa na zona de produção do Lameirão - Ria Formosa","DRAPALG",7106783,9649.73,9649.73,7237.3,2412.4299999999994,"2015-10-10","2017-04-01",null,null,null,"Mar2020-ap@drapalg.min-agricultura.pt"]
[null,null,null,null,null,null,null,"MAR-02.05.01-FEAMP-0021","FRANCISCO DOS SANTOS MARÇAL CALERES","Pedido de apoio à mortalidade de ameijoa boa na zona de produção de Marchil - Ri","DRAPALG",7090863,7308,7308,5481,1827,"2015-10-31","2017-04-22",null,null,null,"Mar2020-ap@drapalg.min-agricultura.pt"]
[null,null,null,null,null,null,null,"MAR-02.05.01-FEAMP-0022","MARIA ISABEL BELCHIOR CALERES","Pedido de apoio à mortalidade de ameijoa boa na zona de produção de Marchil - Ri","DRAPALG",7091112,3581.36,3581.36,2686.02,895.34000000000015,"2015-10-31","2017-04-22",null,null,null,"Mar2020-ap@drapalg.min-agricultura.pt"]
[null,null,null,null,null,null,null,"MAR-02.05.01-FEAMP-0023","JOSÉ MARCOS MATIAS FLORÊNCIO","Pedido de apoio à mortalidade de ameijoa boa na zona de produção do Lameirão","DRAPALG",9146745,1930.68,1930.68,1448.01,482.67000000000007,"2015-10-31","2017-04-22",null,null,null,"Mar2020-ap@drapalg.min-agricultura.pt"]
[null,null,null,null,null,null,null,"MAR-02.05.01-FEAMP-0024","FRANCISCO MARIA HERMÍNIO","Mortalidade de amêijoa-boa na zona de produção do Lameirão - Ria Formosa","DRAPALG",7087226,5969.34,5969.34,4477.01,1492.33,"2015-10-31","2017-04-22",null,null,null,"Mar2020-ap@drapalg.min-agricultura.pt"]
[null,null,null,null,null,null,null,"MAR-02.05.01-FEAMP-0025","ANTÓNIO FERNANDO  DE SOUSA","Mortalidade de amêijoa-boa na zona de produção do Lameirão - Ria Formosa","DRAPALG",8930071,4808.22,4808.22,3606.17,1202.0500000000002,"2015-10-31","2017-04-22",null,null,null,"Mar2020-ap@drapalg.min-agricultura.pt"]
[null,null,null,null,null,null,null,"MAR-02.05.01-FEAMP-0026","JOSÉ EDUARDO PALMIRA MARTINS","Mortalidade de amêijoa-boa na zona de produção do Lameirão - Ria Formosa","DRAPALG",7075001,2875.68,2875.68,2156.7600000000002,718.91999999999962,"2015-10-31","2017-04-22",null,null,null,"Mar2020-ap@drapalg.min-agricultura.pt"]
[null,null,null,null,null,null,null,"MAR-02.05.01-FEAMP-0028","ANTÓNIO JOAQUIM DOS ANJOS","Mortalidade massiva de ameijoa boa na zona de produção do Lameirão","DRAPALG",7083074,907.4,907.4,680.55,226.85000000000002,"2015-10-31","2017-04-22",null,null,null,"Mar2020-ap@drapalg.min-agricultura.pt"]
[null,null,null,null,null,null,null,"MAR-02.05.01-FEAMP-0029","ELEUTÉRIO JOSÉ GONÇALVES","Mortalidade massiva de ameijoa boa na zona de produção de Marchil","DRAPALG",7083275,6961.32,6961.32,5220.99,1740.33,"2015-10-31","2017-04-22",null,null,null,"Mar2020-ap@drapalg.min-agricultura.pt"]
[null,null,null,null,null,null,null,"MAR-02.05.01-FEAMP-0030","JOSÉ FERNANDES PEREIRA","Mortalidade de amêijoa-boa na zona de produção do Lameirão - Ria Formosa","DRAPALG",9165495,7285.32,7285.32,5463.99,1821.33,"2015-10-31","2017-04-22",null,null,null,"Mar2020-ap@drapalg.min-agricultura.pt"]
[null,null,null,null,null,null,null,"MAR-02.05.01-FEAMP-0031","EUGÉNIA MARIA GALHARDO SILVA RUSSO","Episódio Mortalidade Fortaleza Olh2 2018","DRAPALG",9264976,10152.49,10152.49,7614.37,2538.12,"2018-09-03","2020-02-24",null,null,null,"Mar2020-ap@drapalg.min-agricultura.pt"]
[null,null,null,null,null,null,null,"MAR-02.05.01-FEAMP-0033","EDUARDO ALBERTO PEREIRA SOARES","Episódio Mortalidade ostra Março 2018","DRAPALG",8166587,8093.7,8093.7,6070.28,2023.42,"2018-04-05","2020-03-18",null,null,null,"Mar2020-ap@drapalg.min-agricultura.pt"]
[null,null,null,null,null,null,null,"MAR-02.05.01-FEAMP-0034","VITOR MANUEL MOREIRA JOAQUIM","Apoio à mortalidade, pagamento de compensação financeira","DRAPALG",9326824,381378.74,381378.74,286034.06,95344.68,"2018-06-30","2020-06-18",null,null,null,"Mar2020-ap@drapalg.min-agricultura.pt"]
[null,null,null,null,null,null,null,"MAR-02.05.01-FEAMP-0035","FORMOSA, COOPERATIVA DE VIVEIRISTAS RIA FORMOSA, CRL ","Episódio Mortalidade Fuzeta 2018","DRAPALG",7482261,36590.300000000003,36590.300000000003,27442.73,9147.5700000000033,"2018-09-15","2020-03-07",null,null,null,"Mar2020-ap@drapalg.min-agricultura.pt"]
[null,null,null,null,null,null,null,"MAR-02.05.01-FEAMP-0036","RICARDO VICENTE DE JESUS RAIMUNDO","Episódio Mortalidade Fortaleza Olh2 2018","DRAPALG",9331736,18603.62,18603.62,13952.72,4650.8999999999996,"2018-08-10","2020-01-31",null,null,null,"Mar2020-ap@drapalg.min-agricultura.pt"]
[null,null,null,null,null,null,null,"MAR-02.05.01-FEAMP-0037","VITOR MANUEL MOREIRA JOAQUIM","Apoio à mortalidade, pagamento de compensação financeira","DRAPALG",9326824,240308.38,240308.38,180231.29,60077.09,"2015-09-01","2020-01-24",null,null,null,"Mar2020-ap@drapalg.min-agricultura.pt"]
[null,null,null,null,null,null,null,"MAR-02.05.01-FEAMP-0039","NUNO JORGE DOS SANTOS DO Ó PEREIRA","Episódio Mortalidade Fortaleza 2018","DRAPALG",9341537,10565.75,10565.75,7924.31,2641.4399999999996,"2018-08-01","2020-01-22",null,null,null,"Mar2020-ap@drapalg.min-agricultura.pt"]
[null,null,null,null,null,null,null,"MAR-02.05.01-FEAMP-0040","MOINHO DOS ILHEUS LDA","Episódio Mortalidade ostra Agosto 2018","DRAPALG",7767856,34950.65,34950.65,26212.99,8737.66,"2018-10-10","2020-03-18",null,null,null,"Mar2020-ap@drapalg.min-agricultura.pt"]
[null,null,null,null,null,null,null,"MAR-02.05.01-FEAMP-0041","MÁRIO ELISEU BRANCO SERRA","Episódio Mortalidade Fortaleza Olh2 2018","DRAPALG",7085212,14435.51,14435.51,10826.63,3608.880000000001,"2018-08-01","2020-01-22",null,null,null,"Mar2020-ap@drapalg.min-agricultura.pt"]
[null,null,null,null,null,null,null,"MAR-02.05.01-FEAMP-0042","PAULA CRISTINA MARTINS GONÇALVES CORREIA","Episódio Mortalidade Fuzeta 2018","DRAPALG",9342541,2894.79,2894.79,2171.09,723.69999999999982,"2018-09-17","2020-03-09",null,null,null,"Mar2020-ap@drapalg.min-agricultura.pt"]
[null,null,null,null,null,null,null,"MAR-02.05.01-FEAMP-0043","JOSÉ MANUEL NORTE COLUCAS","Episódio Mortalidade Amêijoa Boa - Alto da Farroba 2017","DRAPALG",7716513,18288.490000000002,18288.490000000002,13716.37,4572.1200000000008,"2017-08-01","2020-01-23",null,null,null,"Mar2020-ap@drapalg.min-agricultura.pt"]
[null,null,null,null,null,null,null,"MAR-02.05.01-FEAMP-0044","JOAO MIGUEL DOS REIS RODRIGUES","Episódio Mortalidade Fortaleza Olh2 2018","DRAPALG",7078831,5960.96,5960.96,4470.72,1490.2399999999998,"2018-08-01","2020-01-22",null,null,null,"Mar2020-ap@drapalg.min-agricultura.pt"]
[null,null,null,null,null,null,null,"MAR-02.05.01-FEAMP-0045","JOSÉ MANUEL GOMES","Episódio Mortalidade Fortaleza Olh2 2018","DRAPALG",9364513,6860.22,6860.22,5145.17,1715.0500000000002,"2018-09-01","2020-02-22",null,null,null,"Mar2020-ap@drapalg.min-agricultura.pt"]
[null,null,null,null,null,null,null,"MAR-02.05.01-FEAMP-0046","PAULA ISABEL DOS SANTOS PERRUCA LOPES","Pedido de apoio para mortalidade de amêijoa-boa na Ria Formosa - zona de produção OLH2","DRAPALG",9038733,4494.08,4494.08,3370.56,1123.52,"2018-08-01","2020-01-22",null,null,null,"Mar2020-ap@drapalg.min-agricultura.pt"]
[null,null,null,null,null,null,null,"MAR-02.05.01-FEAMP-0047","ANA PAULA DE ALEXANDRIA BAPTISTA SOUSA","Episódio Mortalidade Fuzeta 2018","DRAPALG",8851062,8784.99,8784.99,6588.74,2196.25,"2018-10-01","2020-03-23",null,null,null,"Mar2020-ap@drapalg.min-agricultura.pt"]
[null,null,null,null,null,null,null,"MAR-02.05.01-FEAMP-0049","NUNO MIGUEL SILVA RUSSO","Episódio Mortalidade Garganta Olh4 2019","DRAPALG",7668062,22884.82,22884.82,17163.62,5721.2000000000007,"2019-08-20","2021-08-08",null,null,null,"Mar2020-ap@drapalg.min-agricultura.pt"]
[null,null,null,null,null,null,null,"MAR-02.05.01-FEAMP-0050","LUCÍLIO SILVA RUSSO","Episódio Mortalidade Garganta Olh4 2019","DRAPALG",8834326,31748.65,31748.65,23811.49,7937.16,"2019-08-20","2021-08-08",null,null,null,"Mar2020-ap@drapalg.min-agricultura.pt"]
[null,null,null,null,null,null,null,"MAR-02.05.01-FEAMP-0051","EDUARDO JOSÉ DE MENDONÇA PEREIRA","Episódio Mortalidade Fuzeta 2019","DRAPALG",7146672,64504.11,64504.11,48378.080000000002,16126.029999999999,"2019-05-14","2020-11-03",null,null,null,"Mar2020-ap@drapalg.min-agricultura.pt"]
[null,null,null,null,null,null,null,"MAR-02.05.01-FEAMP-0052","UNIVERSIDADE DO ALGARVE","BIOIMMUNE - Antimicrobianos naturais e pirexia como estratégias alternativas ao uso de antibióticos na prevenção de patógenos em aquacultura","DRAPALG",7090437,98869,97869.01,73401.759999999995,24467.25,"2020-01-01","2021-12-31",null,null,null,"Mar2020-ap@drapalg.min-agricultura.pt"]
[null,null,null,null,null,null,null,"MAR-02.05.01-FEAMP-0053","GUALTER MARISCOS, LDA","Apoio Mortalidade Amêijoa Boa - Fortaleza - 2019","DRAPALG",8900137,195021.37,195021.37,146266.03,48755.34,"2019-05-28","2020-11-17",null,null,null,"Mar2020-ap@drapalg.min-agricultura.pt"]
[null,null,null,null,null,null,null,"MAR-02.05.01-FEAMP-0054","JOSE MANUEL PRATA","Apoio Mortalidade Amêijoa Boa - Fortaleza - 2019","DRAPALG",7081021,43595.01,43595.01,32696.26,10898.750000000004,"2019-05-28","2020-11-17",null,null,null,"Mar2020-ap@drapalg.min-agricultura.pt"]
[null,null,null,null,null,null,null,"MAR-02.05.01-FEAMP-0055","JOSE MANUEL PRATA LDA","Apoio Mortalidade Amêijoa Boa - Fortaleza - 2019","DRAPALG",7081013,57205.97,57205.97,42904.480000000003,14301.489999999998,"2019-05-20","2020-11-09",null,null,null,"Mar2020-ap@drapalg.min-agricultura.pt"]
[null,null,null,null,null,null,null,"MAR-02.05.01-FEAMP-0056","CRISTINA MARIA DA CRUZ PRATA VIEGAS","Apoio Mortalidade Amêijoa Boa - Fortaleza - 2019","DRAPALG",9358176,36986.300000000003,36986.300000000003,27739.73,9246.5700000000033,"2019-05-20","2020-11-09",null,null,null,"Mar2020-ap@drapalg.min-agricultura.pt"]
[null,null,null,null,null,null,null,"MAR-02.05.01-FEAMP-0057","ESTELA DA CONCEIÇÃO DA CRUZ","Apoio Mortalidade Amêijoa Boa - Fortaleza - 2019","DRAPALG",9358137,40932,40932,30699,10233,"2019-05-28","2020-11-17",null,null,null,"Mar2020-ap@drapalg.min-agricultura.pt"]
[null,null,null,null,null,null,null,"MAR-02.05.01-FEAMP-0058","RIA DEL PRATA, LDA","Apoio Mortalidade Amêijoa Boa - Fortaleza - 2019","DRAPALG",8899445,23918.3,23918.3,17938.73,5979.57,"2019-05-28","2020-11-17",null,null,null,"Mar2020-ap@drapalg.min-agricultura.pt"]
[null,null,null,null,null,null,null,"MAR-02.05.01-FEAMP-0060","SOFIA ALEXANDRA ROMBA DO SACRAMENTO TEIXEIRA","Apoio Mortalidade Amêijoa Boa - Fortaleza - 2019","DRAPALG",10355633,38847.449999999997,38847.449999999997,29135.59,9711.8599999999969,"2019-05-28","2020-11-17",null,null,null,"Mar2020-ap@drapalg.min-agricultura.pt"]
[null,null,null,null,null,null,null,"MAR-02.05.01-FEAMP-0061","HÉLDER JOSÉ GONÇALVES TEIXEIRA","Apoio Mortalidade Amêijoa Boa - Fortaleza - 2019","DRAPALG",10361877,119823.78,119823.78,89867.839999999997,29955.940000000002,"2019-05-28","2020-11-17",null,null,null,"Mar2020-ap@drapalg.min-agricultura.pt"]
[null,null,null,null,null,null,null,"MAR-02.05.01-FEAMP-0062","GUALTER JOSÉ GONÇALVES TEIXEIRA","Apoio Mortalidade Amêijoa Boa - Fortaleza - 2019","DRAPALG",7089272,28088.880000000001,28088.880000000001,21066.66,7022.2200000000012,"2019-05-28","2020-11-17",null,null,null,"Mar2020-ap@drapalg.min-agricultura.pt"]
[null,null,null,null,null,null,null,"MAR-02.05.01-FEAMP-0063","FRANCISCO MANUEL DOS ANJOS ROSA","Apoio Mortalidade Amêijoa Boa - Fortaleza - 2019","DRAPALG",9390135,6297.33,6297.33,4723,1574.33,"2019-05-28","2020-11-17",null,null,null,"Mar2020-ap@drapalg.min-agricultura.pt"]
[null,null,null,null,null,null,null,"MAR-02.05.01-FEAMP-0064","EUGÉNIA MARIA GALHARDO SILVA RUSSO","Apoio Mortalidade Amêijoa Boa - Fortaleza - 2019","DRAPALG",9264976,94206.080000000002,94206.080000000002,70654.559999999998,23551.520000000004,"2019-05-10","2020-10-30",null,null,null,"Mar2020-ap@drapalg.min-agricultura.pt"]
[null,null,null,null,null,null,null,"MAR-02.05.01-FEAMP-0065","FRANCISCO JOSÈ AFONSO GRAÇA","Apoio Mortalidade Amêijoa Boa - Fortaleza - 2019","DRAPALG",7278021,15799.87,15799.87,11849.9,3949.9700000000012,"2019-05-28","2020-11-17",null,null,null,"Mar2020-ap@drapalg.min-agricultura.pt"]
[null,null,null,null,null,null,null,"MAR-02.05.01-FEAMP-0066","PMA-AQUACULTURA, LDA","Apoio Mortalidade Amêijoa Boa - tavira - Maio de 2019","DRAPALG",9321107,283255.89,283255.89,212441.92,70813.97,"2019-06-12","2020-12-02",null,null,null,"Mar2020-ap@drapalg.min-agricultura.pt"]
[null,null,null,null,null,null,null,"MAR-02.05.01-FEAMP-0067","ADELAIDE DA CONCEIÇÃO DIMAS HENRIQUE CHARRÃO CORREIA","Apoio Mortalidade Amêijoa Boa - Fortaleza - 2019","DRAPALG",7407035,6212.71,6212.71,4659.53,1553.1800000000003,"2019-05-28","2020-11-17",null,null,null,"Mar2020-ap@drapalg.min-agricultura.pt"]
[null,null,null,null,null,null,null,"MAR-02.05.01-FEAMP-0068","FRANCISCO PIRES AVELELAS","Compensação pela suspensão temporária da actividade","DRAPC",9025334,16223.45,16223.45,12167.59,4055.8600000000006,"2020-05-27","2021-01-21",null,null,null,"diav@drapc.gov.pt"]
[null,null,null,null,null,null,null,"MAR-02.05.01-FEAMP-0069","ANTÓNIO CARLOS DE SÁ MARTINS","Compensação pela suspensão temporária da actividade","DRAPC",10414154,4852.71,4852.71,3639.54,1213.17,"2019-12-17","2020-08-12",null,null,null,"diav@drapc.gov.pt"]
[null,null,null,null,null,null,null,"MAR-02.05.01-FEAMP-0070","JOÃO CARLOS GUERREIRO DE JESUS","Mortalidade Amêijoa Boa - Fortaleza Maio 2020","DRAPALG",7076646,16895.34,16895.34,12671.51,4223.83,"2020-06-09","2021-11-30",null,null,null,"Mar2020-ap@drapalg.min-agricultura.pt"]
[null,null,null,null,null,null,null,"MAR-02.05.01-FEAMP-0071","MÁRIO ALEXANDRE MARTINS PANCADAS CORREIA","Apoio à Mortalidade de Amêijoa-boa - Lameira - 2020","DRAPALG",10424953,8630.1299999999992,8630.1299999999992,6472.6,2157.5299999999988,"2020-08-04","2022-01-25",null,null,null,"Mar2020-ap@drapalg.min-agricultura.pt"]
[null,null,null,null,null,null,null,"MAR-02.05.01-FEAMP-0072","JOÃO CARLOS GUERREIRO DE JESUS","Mortalidade Ostra - OLH5 - Agosto 2019","DRAPALG",7076646,8323.18,8323.18,6242.39,2080.79,"2020-08-11","2021-04-07",null,null,null,"Mar2020-ap@drapalg.min-agricultura.pt"]
[null,null,null,null,null,null,null,"MAR-02.05.01-FEAMP-0073","BIVALVIA - MARISCOS DA FORMOSA, LDA.","Excepcional mortalidade em massa","DRAPC",7692017,50836.9,50836.9,38127.68,12709.220000000001,"2020-12-11","2021-12-10",null,null,null,"diav@drapc.gov.pt"]
[null,null,null,null,null,null,null,"MAR-02.05.01-FEAMP-0074","ARISTIDES AUGUSTO SEVERINO LOPES","Mortalidade Amêijoa Boa OLH5 2020","DRAPALG",10423331,37591.74,37591.74,28193.81,9397.9299999999967,"2020-07-23","2022-01-13",null,null,null,"Mar2020-ap@drapalg.min-agricultura.pt"]
[null,null,null,null,null,null,null,"MAR-02.05.01-FEAMP-0075","ARISTIDES AUGUSTO SEVERINO LOPES","Mortalidade Amêijoa Boa 2019","DRAPALG",10423331,12516.65,12516.65,9387.49,3129.16,"2019-05-22","2020-11-11",null,null,null,"Mar2020-ap@drapalg.min-agricultura.pt"]
[null,null,null,null,null,null,null,"MAR-02.05.01-FEAMP-0076","JOSÉ EDUARDO DE JESUS GOMES","Apoio à Mortalidade de Amêijoa-boa - Gemidos - 2020","DRAPALG",10461534,4068.49,4068.49,3051.37,1017.1199999999999,"2020-08-04","2022-01-25",null,null,null,"Mar2020-ap@drapalg.min-agricultura.pt"]
[null,null,null,null,null,null,null,"MAR-02.05.01-FEAMP-0077","LUÍS FERNANDO MELO DOS SANTOS","Mortalidade Amêijioa Boa - Lameirão OLH5","DRAPALG",7077642,13776.17,13776.17,10332.129999999999,3444.0400000000009,"2020-08-28","2022-02-18",null,null,null,"Mar2020-ap@drapalg.min-agricultura.pt"]
[null,null,null,null,null,null,null,"MAR-02.05.01-FEAMP-0078","JOÃO FERNANDES DOS SANTOS","Mortalidade Amêijoa boa - Lameirão 2020","DRAPALG",8929887,19162.349999999999,19162.349999999999,14371.76,4790.5899999999983,"2020-08-28","2022-02-18",null,null,null,{"$f":"VLOOKUP(K836,S:T,2,FALSE)","v":"Mar2020-ap@drapalg.min-agricultura.pt"}]
[null,null,null,null,null,null,null,"MAR-02.05.01-FEAMP-0079","CARLOS JOSÉ DELFINO BARBEIRO","Mortalidade Amêijoa Boa - Ponta da Lava 2020","DRAPALG",8365393,3552.16,3552.16,2664.12,888.04,"2020-11-09","2022-05-02",null,null,null,"Mar2020-ap@drapalg.min-agricultura.pt"]
[null,null,null,null,null,null,null,"MAR-02.05.01-FEAMP-0080","VITOR MANUEL MOREIRA JOAQUIM","Apoio a mortalidade - Compensação","DRAPALG",9326824,167931.69,167931.69,125948.77,41982.92,"2020-06-28","2021-05-10",null,null,null,"Mar2020-ap@drapalg.min-agricultura.pt"]
[null,null,null,null,null,null,null,"MAR-02.05.01-FEAMP-0081","RICARDO VICENTE DE JESUS RAIMUNDO","Mortalidade Fortaleza 2019","DRAPALG",9331736,12598.84,12598.84,9449.1299999999992,3149.7100000000009,"2020-02-01","2020-11-17",null,null,null,"Mar2020-ap@drapalg.min-agricultura.pt"]
[null,null,null,null,null,null,null,"MAR-02.05.01-FEAMP-0082","MARIA DEONILDE DO CARMO BAPTISTA","Mortalidade Amêijoa Boa - Anixa -  Junho 2012","DRAPALG",7086486,3057.54,3057.54,2293.16,764.38000000000011,"2019-07-02","2020-12-22",null,null,null,"Mar2020-ap@drapalg.min-agricultura.pt"]
[null,null,null,null,null,null,null,"MAR-02.05.01-FEAMP-0083","JOSÉ MARCOS MATIAS FLORÊNCIO","Mortalidade Amêijoa Boa Lameirão - 2020","DRAPALG",9146745,38043.620000000003,38043.620000000003,28532.720000000001,9510.9000000000015,"2020-09-02","2022-02-23",null,null,null,"Mar2020-ap@drapalg.min-agricultura.pt"]
[null,null,null,null,null,null,null,"MAR-02.05.01-FEAMP-0084","JOÃO LUIS VIEGAS ANDRES","Mortalidade Amêijoa Boa - Lameirão 2020","DRAPALG",7106783,55641.94,55641.94,41731.46,13910.480000000003,"2020-08-28","2022-02-18",null,null,null,"Mar2020-ap@drapalg.min-agricultura.pt"]
[null,null,null,null,null,null,null,"MAR-02.05.01-FEAMP-0085","JOSÉ MANUEL GOMES","Mortalidade Amêijoa Boa - Fortaleza - 2020","DRAPALG",9364513,9270.44,9270.44,6952.83,2317.6100000000006,"2020-07-23","2022-01-13",null,null,null,"Mar2020-ap@drapalg.min-agricultura.pt"]
[null,null,null,null,null,null,null,"MAR-02.05.01-FEAMP-0086","BIVALVIA - MARISCOS DA FORMOSA, LDA.","Excepcional mortalidade em massa","DRAPALG",7692017,71598.58,71598.58,53698.94,17899.64,"2020-11-11","2021-11-05",null,null,null,"Mar2020-ap@drapalg.min-agricultura.pt"]
[null,null,null,null,null,null,null,"MAR-02.05.01-FEAMP-0087","CARLOS ALBERTO DA CONCEIÇÃO MARTINS","Mortalidade Ostra - Alcorão 2020","DRAPALG",7280534,676.67,676.67,507.5,169.16999999999996,"2020-11-03","2021-11-02",null,null,null,"Mar2020-ap@drapalg.min-agricultura.pt"]
[null,null,null,null,null,null,null,"MAR-02.05.01-FEAMP-0089","RICARDO JORGE DA CRUZ RAIMUNDO","Mortalidade Amêijoa boa - Fortaleza 2019","DRAPALG",10373623,3215.59,3215.59,2411.69,803.90000000000009,"2019-05-28","2020-11-17",null,null,null,"Mar2020-ap@drapalg.min-agricultura.pt"]
[null,null,null,null,null,null,null,"MAR-02.05.01-FEAMP-0090","MANUEL ROSA COSTA BOTEQUILHA","Mortalidade Amêijoa boa - Fuzeta 2019","DRAPALG",9425184,3461.43,3461.43,2596.0700000000002,865.35999999999967,"2019-08-08","2021-01-28",null,null,null,"Mar2020-ap@drapalg.min-agricultura.pt"]
[null,null,null,null,null,null,null,"MAR-02.05.01-FEAMP-0091","LIGÓRIO DIONÍSIO DO CARMO","Mortalidade de Amêijoa Boa - Fortaleza 2019","DRAPALG",9379443,2100.33,2100.33,1575.25,525.07999999999993,"2019-05-23","2020-11-12",null,null,null,"Mar2020-ap@drapalg.min-agricultura.pt"]
[null,null,null,null,null,null,null,"MAR-02.05.01-FEAMP-0092","RAFAEL MANJUA AMARO","Compensação Mortalidade e repovoamento","DRAPALG",10457745,6330.09,6330.09,4747.57,1582.5200000000004,"2020-08-25","2022-02-15",null,null,null,"Mar2020-ap@drapalg.min-agricultura.pt"]
[null,null,null,null,null,null,null,"MAR-02.05.01-FEAMP-0093","FRANCISCO PIRES AVELELAS","Compensação pela suspensão temporária da atividade dos produtores","DRAPC",9025334,29360.11,29360.11,22020.080000000002,7340.0299999999988,"2021-01-14","2021-09-10",null,null,null,"diav@drapc.gov.pt"]
[null,null,null,null,null,null,null,"MAR-02.05.01-FEAMP-0094","MARIA PERES MATIAS","Apoio à Mortalidade de Amêijoa-boa - Lameirão - 2020","DRAPALG",7093536,21256.14,21256.14,15942.11,5314.0299999999988,"2021-01-01","2022-02-28",null,null,null,"Mar2020-ap@drapalg.min-agricultura.pt"]
[null,null,null,null,null,null,null,"MAR-02.05.01-FEAMP-0095","ELISIÁRIO GODINHO RAPOSO","Apoio à Mortalidade de Amêijoa-boa - Lameirão e Pernada da Cruz - 2020","DRAPALG",10420812,63592.52,63592.52,47694.39,15898.129999999997,"2020-09-07","2022-02-28",null,null,null,"Mar2020-ap@drapalg.min-agricultura.pt"]
[null,null,null,null,null,null,null,"MAR-03.01.01-FEAMP-0009","DIRECÇÃO GERAL DE RECURSOS NATURAIS, SEGURANÇA E SERVIÇOS MARÍTIMOS","Missões de controlo, inspeção da pesca e das atividades conexas","DGRM",8171291,4148101,4148101,3733290.9,414810.10000000009,"2014-01-01","2020-12-31",null,null,null,"ifferreira@dgrm.mm.gov.pt"]
[null,null,null,null,null,null,null,"MAR-03.01.01-FEAMP-0010","SECRETARIA REGIONAL DE MAR E PESCAS","Implementação e Consolidação do Plano de Ação na Madeira (CAPM+CVMAR)","DGRM",10361525,1474000,424441.51,381997.36,42444.150000000023,"2015-01-01","2017-12-31",null,null,null,"ifferreira@dgrm.mm.gov.pt"]
[null,null,null,null,null,null,null,"MAR-03.01.01-FEAMP-0011","SECRETARIA REGIONAL DO MAR CIÊNCIA E TECNOLOGIA","Implementação do Plano de Ação do Sistema Nacional de Controlo das Pescas","DGRM",8578875,1904289.97,1904289.97,1713860.97,190429,"2015-01-01","2019-08-30",null,null,null,"ifferreira@dgrm.mm.gov.pt"]
[null,null,null,null,null,null,null,"MAR-03.01.01-FEAMP-0015","MINISTERIO DA DEFESA NACIONAL - MARINHA","Apoio planeamento, execução e controlo, da fiscalização pesca - SIFICAP","DGRM",5650563,1397904,1397904,1258113.6000000001,139790.39999999991,"2020-02-01","2021-12-31",null,null,null,"ifferreira@dgrm.mm.gov.pt"]
[null,null,null,null,null,null,null,"MAR-03.01.01-FEAMP-0018","DIRECÇÃO GERAL DE RECURSOS NATURAIS, SEGURANÇA E SERVIÇOS MARÍTIMOS","Sistemas registo e transmissao de dados, cruzamento dados, analise de risco, e","DGRM",8171291,6145710.4299999997,6145710.4299999997,5531139.3899999997,614571.04,"2014-01-01","2023-06-30",null,null,null,"ifferreira@dgrm.mm.gov.pt"]
[null,null,null,null,null,null,null,"MAR-03.01.01-FEAMP-0019","DIRECÇÃO GERAL DE RECURSOS NATURAIS, SEGURANÇA E SERVIÇOS MARÍTIMOS","Certificacao de Processos de Controlo e Inspecao das Pescas","DGRM",8171291,219900,138682.51,124814.26,13868.250000000015,"2018-01-01","2020-12-31",null,null,null,"ifferreira@dgrm.mm.gov.pt"]
[null,null,null,null,null,null,null,"MAR-03.01.01-FEAMP-0020","DIRECÇÃO GERAL DE RECURSOS NATURAIS, SEGURANÇA E SERVIÇOS MARÍTIMOS","Recuperação de Processos de contraordenação","DGRM",8171291,44280,44280,39852,4428,"2017-01-01","2019-12-31",null,null,null,"ifferreira@dgrm.mm.gov.pt"]
[null,null,null,null,null,null,null,"MAR-03.01.01-FEAMP-0021","DIRECÇÃO GERAL DE RECURSOS NATURAIS, SEGURANÇA E SERVIÇOS MARÍTIMOS","Formação de Inspetores de Pescas da Autoridade Nacional da Pesca","DGRM",8171291,1001243,540959,486863.1,54095.900000000023,"2018-01-01","2020-12-31",null,null,null,"ifferreira@dgrm.mm.gov.pt"]
[null,null,null,null,null,null,null,"MAR-03.01.01-FEAMP-0022","SECRETARIA REGIONAL DO MAR CIÊNCIA E TECNOLOGIA","Acompanhamento, vigilância e gestão eletrónica- Videovigilância Áreas Costeiras","DGRM",8578875,81120,81080.33,72972.3,8108.0299999999988,"2018-01-01","2020-12-31",null,null,null,"ifferreira@dgrm.mm.gov.pt"]
[null,null,null,null,null,null,null,"MAR-03.01.01-FEAMP-0025","SECRETARIA REGIONAL DE MAR E PESCAS","CVMAR +","DGRM",8590586,156388.12,156388.12,140749.31,15638.809999999998,"2018-01-01","2021-12-31",null,null,null,"ifferreira@dgrm.mm.gov.pt"]
[null,null,null,null,null,null,null,"MAR-03.01.01-FEAMP-0027","SECRETARIA REGIONAL DO MAR CIÊNCIA E TECNOLOGIA","“Programa de Formação dos Inspetores de Pescas da Inspeção Regional das Pescas dos Açores”","DGRM",8578875,69275.38,69275.38,62347.839999999997,6927.5400000000081,"2019-01-01","2020-12-31",null,null,null,"ifferreira@dgrm.mm.gov.pt"]
[null,null,null,null,null,null,null,"MAR-03.01.01-FEAMP-0028","DIRECÇÃO GERAL DE RECURSOS NATURAIS, SEGURANÇA E SERVIÇOS MARÍTIMOS","Sistema de monitorização de navios por satélite (VMS, Vessel Monitoring System)","DGRM",8171291,415740,415740,374166,41574,"2020-03-01","2023-01-31",null,null,null,"ifferreira@dgrm.mm.gov.pt"]
[null,null,null,null,null,null,null,"MAR-03.01.01-FEAMP-0029","SECRETARIA REGIONAL DO MAR CIÊNCIA E TECNOLOGIA","Acompanhamento, vigilância e gestão eletrónica - Radares","DGRM",8578875,83722,80526,72473.399999999994,8052.6000000000058,"2021-01-01","2023-06-30",null,null,null,"ifferreira@dgrm.mm.gov.pt"]
[null,null,null,null,null,null,null,"MAR-03.01.02-FEAMP-0014","MINISTERIO DA DEFESA NACIONAL - MARINHA","Modernização de meios de acostagem de navios patrulha","DGRM",5650563,2209400,2209400,1546580,662820,"2016-10-01","2021-12-31",null,null,null,"ifferreira@dgrm.mm.gov.pt"]
[null,null,null,null,null,null,null,"MAR-03.01.02-FEAMP-0016","MINISTERIO DA DEFESA NACIONAL - MARINHA","Modernização de meios de vigilância e comunicações de navios patrulha","DGRM",5650563,4971349.33,4971349.33,3479944.53,1491404.8000000003,"2016-10-01","2021-12-31",null,null,null,"ifferreira@dgrm.mm.gov.pt"]
[null,null,null,null,null,null,null,"MAR-03.01.02-FEAMP-0017","MINISTERIO DA DEFESA NACIONAL - MARINHA","Modernização das embarcações de fiscalização","DGRM",5650563,1801950,1094092.6000000001,765864.82,328227.78000000014,"2017-01-01","2018-12-31",null,null,null,"ifferreira@dgrm.mm.gov.pt"]
[null,null,null,null,null,null,null,"MAR-03.02.01-FEAMP-000001","INSTITUTO PORTUGUÊS DO MAR E DA ATMOSFERA IP","Programa Nacional de Amostragem Biológica - PNAB/DCF","DGRM",7956586,6910998.71,5235007.78,4188006.22,1047001.56,"2014-01-01","2016-12-31",null,null,null,"ifferreira@dgrm.mm.gov.pt"]
[null,null,null,null,null,null,null,"MAR-03.02.01-FEAMP-0002","DIRECÇÃO GERAL DE RECURSOS NATURAIS, SEGURANÇA E SERVIÇOS MARÍTIMOS","PROGRAMA NACIONAL DE RECOLHA DE DADOS","DGRM",8171291,417387.27,319803.38,255842.7,63960.679999999993,"2014-01-01","2016-12-31",null,null,null,"ifferreira@dgrm.mm.gov.pt"]
[null,null,null,null,null,null,null,"MAR-03.02.01-FEAMP-0003","IMAR - INSTITUTO DO MAR","Programa Nacional de Recolha de Dados da Pesca - IMAR/Açores","DGRM",7369023,1079143.3899999999,732822.01,586257.61,146564.40000000002,"2014-01-01","2017-09-30",null,null,null,"ifferreira@dgrm.mm.gov.pt"]
[null,null,null,null,null,null,null,"MAR-03.02.01-FEAMP-0004","SECRETARIA REGIONAL DE MAR E PESCAS","Recolha de dados no quadro da PCP(2014-2016) - Madeira","DGRM",10361525,348851.88,347205.48,275022.53000000003,68755.629999999946,"2014-01-01","2016-12-31",null,null,null,"ifferreira@dgrm.mm.gov.pt"]
[null,null,null,null,null,null,null,"MAR-03.02.01-FEAMP-0005","SECRETARIA REGIONAL DO MAR CIÊNCIA E TECNOLOGIA","Recolha de dados no âmbito da PCP - Açores","DGRM",8578875,37627.379999999997,29199.09,23359.279999999999,5839.8100000000013,"2014-01-01","2016-12-31",null,null,null,"ifferreira@dgrm.mm.gov.pt"]
[null,null,null,null,null,null,null,"MAR-03.02.01-FEAMP-0006","DIRECÇÃO GERAL DE RECURSOS NATURAIS, SEGURANÇA E SERVIÇOS MARÍTIMOS","Programa Nacional de Recolha de Dados","DGRM",8171291,1435584,1435584,1148467.2,287116.80000000005,"2017-01-01","2021-12-31",null,null,null,"ifferreira@dgrm.mm.gov.pt"]
[null,null,null,null,null,null,null,"MAR-03.02.01-FEAMP-0007","INSTITUTO PORTUGUÊS DO MAR E DA ATMOSFERA IP","Programa Nacional de Amostragem Biológica- PNAB/DCF","DGRM",7956586,9212890.7599999998,9212890.7599999998,7370312.6100000003,1842578.1499999994,"2017-01-01","2019-12-31",null,null,null,"ifferreira@dgrm.mm.gov.pt"]
[null,null,null,null,null,null,null,"MAR-03.02.01-FEAMP-0008","IMAR - INSTITUTO DO MAR","Recolha de Dados 2017","DGRM",7369023,284212.77,201888.39,161510.71,40377.680000000022,"2017-01-01","2017-12-31",null,null,null,"ifferreira@dgrm.mm.gov.pt"]
[null,null,null,null,null,null,null,"MAR-03.02.01-FEAMP-0009","DIRECÇÃO GERAL DE RECURSOS NATURAIS, SEGURANÇA E SERVIÇOS MARÍTIMOS","Programa Nacional de Recolha de dados 2020-2021","DGRM",8171291,691574.41,618762.56999999995,495010.05,123752.51999999996,"2020-01-01","2023-06-30",null,null,null,"ifferreira@dgrm.mm.gov.pt"]
[null,null,null,null,null,null,null,"MAR-03.02.01-FEAMP-0011","DIREÇÃO REGIONAL DAS PESCAS","Programa Nacional de Recolha de Dados","DGRM",7991621,505962.79,467123.64,373698.91,93424.73000000004,"2017-01-01","2019-12-31",null,null,null,"ifferreira@dgrm.mm.gov.pt"]
[null,null,null,null,null,null,null,"MAR-03.02.01-FEAMP-0013","SECRETARIA REGIONAL DE MAR E PESCAS","PNRD (Madeira)","DGRM",8590586,362751.45,362663.51,290130.81,72532.700000000012,"2017-01-01","2019-12-31",null,null,null,"ifferreira@dgrm.mm.gov.pt"]
[null,null,null,null,null,null,null,"MAR-03.02.01-FEAMP-0015","INSTITUTO PORTUGUÊS DO MAR E DA ATMOSFERA IP","PROGRAMA NACIONAL DE AMOSTRAGEM BIOLÓGICA – PNAB/DCF","DGRM",7956586,7416718.6600000001,7416718.6600000001,5933374.9800000004,1483343.6799999997,"2020-01-01","2021-12-31",null,null,null,"ifferreira@dgrm.mm.gov.pt"]
[null,null,null,null,null,null,null,"MAR-04.01.01-FEAMP-0001","COMUNIDADE INTERMUNICIPAL DO ALTO MINHO","AP - GAL Litoral Norte","Estrutura de Apoio Técnico da Autoridade de Gestão do MAR2020",7525703,25000,24977.41,21230.799999999999,3746.6100000000006,"2015-07-01","2016-09-30",null,null,null,"geral@mar2020.pt"]
[null,null,null,null,null,null,null,"MAR-04.01.01-FEAMP-0002","ÁREA METROPOLITANA DO PORTO","AP - GAL Litoral Norte AMP","Estrutura de Apoio Técnico da Autoridade de Gestão do MAR2020",8836905,25000,24999.75,21249.79,3749.9599999999991,"2014-11-16","2016-12-31",null,null,null,"geral@mar2020.pt"]
[null,null,null,null,null,null,null,"MAR-04.01.01-FEAMP-0003","COMUNIDADE INTERMUNICIPAL DA REGIÃO DE AVEIRO","AP - GAL Região de Aveiro","Estrutura de Apoio Técnico da Autoridade de Gestão do MAR2020",7354526,25000,25000,21250,3750,"2016-02-01","2016-10-31",null,null,null,"geral@mar2020.pt"]
[null,null,null,null,null,null,null,"MAR-04.01.01-FEAMP-00004","AD ELO ASSOCIAÇÃO DE DESENVOLVIMENTO LOCAL DA BAIRRADA E MONDEGO","AP - GAL Mondego Mar","Estrutura de Apoio Técnico da Autoridade de Gestão do MAR2020",7165093,25000,23723.3,20164.810000000001,3558.489999999998,"2014-11-16","2016-08-31",null,null,null,"geral@mar2020.pt"]
[null,null,null,null,null,null,null,"MAR-04.01.01-FEAMP-00005","ADAE - ASSOCIAÇÃO DE DESENVOLVIMENTO DA ALTA ESTREMADURA","AP - GAL ADAE MAR","DRAPC",7169021,25000,24695.75,20991.39,3704.3600000000006,"2015-08-01","2016-07-30",null,null,null,"diav@drapc.gov.pt"]
[null,null,null,null,null,null,null,"MAR-04.01.01-FEAMP-00006","ADEPE-ASSOCIAÇÃO PARA O DESENVOLVIMENTO DE PENICHE","AP - GAL Oeste","Estrutura de Apoio Técnico da Autoridade de Gestão do MAR2020",7338206,25000,25000,21250,3750,"2014-11-16","2016-08-20",null,null,null,"geral@mar2020.pt"]
[null,null,null,null,null,null,null,"MAR-04.01.01-FEAMP-0007","MUNICÍPIO DE TORRES VEDRAS","AP - GAL ecoMar","Estrutura de Apoio Técnico da Autoridade de Gestão do MAR2020",7379153,25000,21562.09,18327.78,3234.3100000000013,"2014-12-01","2016-07-20",null,null,null,"geral@mar2020.pt"]
[null,null,null,null,null,null,null,"MAR-04.01.01-FEAMP-00008","A2S - ASSOCIAÇÃO PARA O DESENVOLVIMENTO SUSTENTÁVEL DA REGIÃO SALOIA","AP - GAL Ericeira/ Cascais","Estrutura de Apoio Técnico da Autoridade de Gestão do MAR2020",8590717,25000,24996.27,21246.83,3749.4399999999987,"2015-01-23","2016-07-31",null,null,null,"geral@mar2020.pt"]
[null,null,null,null,null,null,null,"MAR-04.01.01-FEAMP-00009","ADREPES-ASSOCIAÇÃO DE DESENVOLVIMENTO REGIONAL DA PENÍNSULA DE SETÚBAL","AP - GAL ADREPES Costeiro","Estrutura de Apoio Técnico da Autoridade de Gestão do MAR2020",7169303,25000,24999.99,21249.99,3750,"2014-02-01","2016-07-20",null,null,null,"geral@mar2020.pt"]
[null,null,null,null,null,null,null,"MAR-04.01.01-FEAMP-00010","ADL - ASSOCIAÇÃO DE DESENVOLVIMENTO DO LITORAL ALENTEJANO","AP - GAL Litoral Alentejano","Estrutura de Apoio Técnico da Autoridade de Gestão do MAR2020",7168942,25000,24983.06,21235.61,3747.4500000000007,"2014-11-16","2016-07-20",null,null,null,"geral@mar2020.pt"]
[null,null,null,null,null,null,null,"MAR-04.01.01-FEAMP-00011","AGÊNCIA DE DESENVOLVIMENTO DO BARLAVENTO - ASSOCIAÇÃO","AP - GAL Barlavento do Algarve","Estrutura de Apoio Técnico da Autoridade de Gestão do MAR2020",7356854,25000,25000,21250,3750,"2014-11-16","2016-07-30",null,null,null,"geral@mar2020.pt"]
[null,null,null,null,null,null,null,"MAR-04.01.01-FEAMP-0012","MUNICIPIO DE OLHÃO","AP - GAL Sotavento do Algarve","Estrutura de Apoio Técnico da Autoridade de Gestão do MAR2020",7080934,25000,24998.25,21248.51,3749.7400000000016,"2015-06-01","2016-07-30",null,null,null,"geral@mar2020.pt"]
[null,null,null,null,null,null,null,"MAR-04.01.01-FEAMP-0013","ARDE-ASSOCIAÇÃO REGIONAL PARA O DESENVOLVIMENTO","Apoio Preparatório da Associação Regional para o Desenvolvimento (ARDE)","DSPEP",7180912,9971,9971,8475.35,1495.6499999999996,"2016-08-01","2017-12-31",null,null,null,"info.mar2020@azores.gov.pt"]
[null,null,null,null,null,null,null,"MAR-04.01.01-FEAMP-0014","ASDEPR-ASSOCIAÇÃO PARA O DESENVOLVIMENTO E PRODUÇÃO RURAL","Apoio Preparatório da Associação p/ Desenvolvimento e Promoção Rural (ASDEPR)","DSPEP",7158874,14160,14160,12036,2124,"2017-08-03","2017-12-31",null,null,null,"info.mar2020@azores.gov.pt"]
[null,null,null,null,null,null,null,"MAR-04.01.01-FEAMP-0015","GRATER - ASSOCIAÇÃO DE DESENVOLVIMENTO REGIONAL","Apoio Preparatório da Associação de Desenvolvimento Regional (GRATER)","DSPEP",7177337,14526.3,14526.3,12347.36,2178.9399999999987,"2017-07-10","2017-12-31",null,null,null,"info.mar2020@azores.gov.pt"]
[null,null,null,null,null,null,null,"MAR-04.01.01-FEAMP-0016","MARAÇORESORIENTAL-ASSOCIAÇÃO DE DESENVOLVIMENTO COSTEIRO","Apoio Preparatório da Associação de Desenvolvimento Costeiro (MARAÇORESORIENTAL)","DSPEP",9030173,20000,20000,17000,3000,"2017-09-08","2020-05-29",null,null,null,"info.mar2020@azores.gov.pt"]
[null,null,null,null,null,null,null,"MAR-04.01.01-FEAMP-0017","ADELIAÇOR (ASSOCIAÇÃO PARA O DESENVOLVIMENTO LOCAL DE ILHAS DOS AÇORES)","Apoio Preparatório Associação p/ Desenvolvimento Local Ilhas Açores (ADELIAÇOR)","DSPEP",7158897,2911,2910.99,2474.34,436.64999999999964,"2017-10-01","2017-11-15",null,null,null,"info.mar2020@azores.gov.pt"]
[null,null,null,null,null,null,null,"MAR-04.03.01-FEAMP-0001","MUNICIPIO DE SINES","Estação Náutica de Sines","DRAPAL",7492971,340820.7,172416.21,146553.78,25862.429999999993,"2019-06-01","2021-02-20",null,null,null,0]
[null,null,null,null,null,null,null,"MAR-04.03.01-FEAMP-0003","Município de Alcácer do Sal","Conservação e Restauro do Galeão Pinto Luísa","DRAPAL",8143213,140835,114499.91,97324.92,17174.990000000005,"2017-11-02","2018-12-31",null,null,null,0]
[null,null,null,null,null,null,null,"MAR-04.03.01-FEAMP-0006","NUMEN, LDA","Casa D Avó Dalina","ADELO",7748751,177279.79,168437.22,71585.83,12632.789999999994,"2017-10-16","2017-12-15",null,null,null,{"$f":"VLOOKUP(K900,S:T,2,FALSE)","v":"geral@adelo.pt"}]
[null,null,null,null,null,null,null,"MAR-04.03.01-FEAMP-0007","UNIVERSIDADE DE COIMBRA","AlgaDepur - Aquacultura Multi-trófica Integrada como veículo de sustentabilidade","ADELO",5233282,276550.83,208835.89,177510.51,31325.380000000005,"2018-10-01","2021-03-31",null,null,null,"geral@adelo.pt"]
[null,null,null,null,null,null,null,"MAR-04.03.01-FEAMP-0008","UNIVERSIDADE DE COIMBRA","OTIMO - Otimização dos processos de produção de Ouriço-do-mar","ADELO",5233282,260974.94,202942.01,172500.71,30441.300000000017,"2018-10-01","2021-03-31",null,null,null,"geral@adelo.pt"]
[null,null,null,null,null,null,null,"MAR-04.03.01-FEAMP-0009","MUNICÍPIO DA FIGUEIRA DA FOZ","Reconstrução do Cais de Acostagem do Cabedelo","ADELO",7596641,98875.39,78016,66313.600000000006,11702.399999999994,"2018-12-21","2019-12-31",null,null,null,"geral@adelo.pt"]
[null,null,null,null,null,null,null,"MAR-04.03.01-FEAMP-0011","Bork You, Lda.","Projeto de expansão da atividade de turismo náutico da Bork You em Sesimbra","ADREPES",7820334,89925.33,86598.720000000001,44165.35,7793.8899999999994,"2018-01-01","2019-12-31",null,null,null,"natalia.henriques@adrepes.pt"]
[null,null,null,null,null,null,null,"MAR-04.03.01-FEAMP-0012","ASSOCIAÇÃO DOS ARMADORES DA PESCA ARTESANAL E LOCAL DO CENTRO E SUL","Expansão do Cabaz do Peixe","ADREPES",7607625,30568.35,30568.35,15589.86,2751.1499999999978,"2018-01-04","2018-09-04",null,null,null,"natalia.henriques@adrepes.pt"]
[null,null,null,null,null,null,null,"MAR-04.03.01-FEAMP-0013","MECOMAR - COMÉRCIO E PRODUÇÃO DE PEIXES E MARISCOS, LDA","Mecomar 2018","ADREPES",7616261,199084.21,194958.04,82857.179999999993,14621.850000000006,"2015-12-10","2018-12-31",null,null,null,"natalia.henriques@adrepes.pt"]
[null,null,null,null,null,null,null,"MAR-04.03.01-FEAMP-0014","Cipreia - Formação e Mergulho, Lda.","Uma nova Cipreia","ADREPES",7576501,199060.75,191185.98,81254.039999999994,14338.950000000012,"2018-01-01","2019-03-19",null,null,null,"natalia.henriques@adrepes.pt"]
[null,null,null,null,null,null,null,"MAR-04.03.01-FEAMP-0015","VERTENTE NATURAL - ACTIVIDADES ECOLÓGICAS E CULTURAIS, LDA.","Turismar - Turismo náutico e da natureza","ADREPES",7399695,148976.12,145456.01,74182.559999999998,13091.040000000008,"2015-06-09","2019-09-30",null,null,null,"natalia.henriques@adrepes.pt"]
[null,null,null,null,null,null,null,"MAR-04.03.01-FEAMP-0016","BOATCENTER - SERVIÇOS E ATIVIDADES NÁUTICAS, S.A.","Boatcenter - Plano integrado de aquisição de equipamento","ADREPES",9034291,191663.28,191544.3,84939.36,14989.289999999994,"2016-04-21","2020-10-01",null,null,null,"natalia.henriques@adrepes.pt"]
[null,null,null,null,null,null,null,"MAR-04.03.01-FEAMP-0017","Salina Greens - Produção e Comercialização de Halófitas e Seus Derivados, Unipessoal, Lda.","Desenvolvimento de novos produtos em salinas","ADREPES",9028313,89851.58,63089.79,32175.79,5678.0800000000017,"2017-09-15","2017-11-30",null,null,null,"natalia.henriques@adrepes.pt"]
[null,null,null,null,null,null,null,"MAR-04.03.01-FEAMP-0018","ARTESANALPESCA-ORGANIZACAO DE PRODUTORES DE PESCA CRL","Modernização/automação da linha de embalamento e congelação de pelágicos","DRAPLVT",4912912,196040,196030,83312.75,14702.25,"2017-12-19","2020-09-18",null,null,null,"decisoesmar2020@draplvt.gov.pt"]
[null,null,null,null,null,null,null,"MAR-04.03.01-FEAMP-0021","FOLLOW SENSATIONS UNIPESSOAL LDA","Bolhas Tours Experience","ADREPES",9035255,93482.89,93403.39,47635.74,8406.3000000000029,"2017-07-26","2020-08-31",null,null,null,"natalia.henriques@adrepes.pt"]
[null,null,null,null,null,null,null,"MAR-04.03.01-FEAMP-0024","Nosso Tejo, Lda","Passeios maritímo-turísticos do Porto Brandão","ADREPES",9041704,199350,199350,84723.75,14951.25,"2018-04-01","2020-09-14",null,null,null,"natalia.henriques@adrepes.pt"]
[null,null,null,null,null,null,null,"MAR-04.03.01-FEAMP-0025","Ensaios e Diálogos, Associação","Projeto TransforMar","ADREPES",9039036,12840,12840,5457,963,"2017-01-01","2020-01-30",null,null,null,"natalia.henriques@adrepes.pt"]
[null,null,null,null,null,null,null,"MAR-04.03.01-FEAMP-0027","MUNICÍPIO DE CASTRO MARIM","Salineiro - Uma profissão","SOTAVENTO",7492843,71032.5,65682,55829.7,9852.3000000000029,"2016-05-23","2018-12-31",null,null,null,"rpestana@cm-olhao.pt"]
[null,null,null,null,null,null,null,"MAR-04.03.01-FEAMP-0029","A.P.A.R.A. - ASSOCIAÇÃO DE PESCA ARTESANAL DA REGIÃO DE AVEIRO","Recuperação e modernização de estruturas, equipamentos e infraestruturas","DRAPC",7544372,155085.46,144686.74,73790.240000000005,13021.809999999998,"2017-09-02","2018-11-30",null,null,null,"diav@drapc.gov.pt"]
[null,null,null,null,null,null,null,"MAR-04.03.01-FEAMP-0031","MUNICÍPIO DE AVEIRO","Ecomuseu Marinha da Troncalhada","DRAPC",7167246,45146.01,26429.16,22464.79,3964.369999999999,"2017-08-07","2019-05-31",null,null,null,"diav@drapc.gov.pt"]
[null,null,null,null,null,null,null,"MAR-04.03.01-FEAMP-0034","PASSEIODISSEIA, LDA","Expansão das atividades maritimo-turísticas no Barlavento","BARLAVENTO",8114152,383977,287257.34000000003,73250.62,12926.580000000002,"2018-07-05","2020-06-30",null,null,null,"geral@ad-barlavento.pt"]
[null,null,null,null,null,null,null,"MAR-04.03.01-FEAMP-0037","OCEAN4FUN - ATIVIDADES MARÍTIMO-TURÍSTICAS, LDA","Dinamização de novas atividades marítimo-turísticas no Barlavento","BARLAVENTO",9032365,331483.95,278234.51,70949.8,12520.550000000003,"2017-10-27","2020-05-31",null,null,null,"geral@ad-barlavento.pt"]
[null,null,null,null,null,null,null,"MAR-04.03.01-FEAMP-0041","AUGUSTO TOMÉ PENELA","Turismo Maritimo","DRAPC",8619955,36625.370000000003,27727.33,11784.13,2079.5500000000011,"2019-02-01","2020-09-30",null,null,null,"diav@drapc.gov.pt"]
[null,null,null,null,null,null,null,"MAR-04.03.01-FEAMP-0042","MUNICIPIO DE OLHÃO","Zonas Balneares Limpas","DRAPALG",7080934,273184.02,273184.02,232206.42,40977.600000000006,"2018-03-01","2019-12-31",null,null,null,"Mar2020-ap@drapalg.min-agricultura.pt"]
[null,null,null,null,null,null,null,"MAR-04.03.01-FEAMP-0044","MUNICIPIO DE TAVIRA","Roteiros de Pesca de Santa Luzia - Rota do Polvo e Rota do Atum","DRAPALG",7158174,169966.38,169966.38,144471.42000000001,25494.959999999992,"2019-07-29","2021-03-31",null,null,null,"Mar2020-ap@drapalg.min-agricultura.pt"]
[null,null,null,null,null,null,null,"MAR-04.03.01-FEAMP-0051","MOMENTOS DINÂMICOS, UNIPESSOAL LDA","Momentos Mais Dinâmicos em Albufeira","BARLAVENTO",7753125,167516.69,144495.15,42987.31,7586,"2015-06-26","2019-10-31",null,null,null,"geral@ad-barlavento.pt"]
[null,null,null,null,null,null,null,"MAR-04.03.01-FEAMP-0052"," DREAM WAVE - ACT MARIT-TUR, LDA","Expansão e Inovação da Atividade Marítimo-Turística","BARLAVENTO",8009536,154608,141981.87,42239.61,7454.0500000000029,"2018-03-01","2019-10-15",null,null,null,"geral@ad-barlavento.pt"]
[null,null,null,null,null,null,null,"MAR-04.03.01-FEAMP-0053","Bom Dia - Actividades Maritimas Lda.","Bom Dia-Tradição, Crescimento e Eficiência Energética","BARLAVENTO",8068121,99698.82,44387.6,18864.740000000002,3329.0699999999997,"2018-01-15","2019-12-31",null,null,null,"geral@ad-barlavento.pt"]
[null,null,null,null,null,null,null,"MAR-04.03.01-FEAMP-0058","SEALIFE - ACTIVIDADES MARÍTIMO TURÍSTICAS, LDA","Sealife - Mais Conhecimento, Mais Valor","BARLAVENTO",9038814,150383.04000000001,130991.18,38969.89,6877.0400000000009,"2018-02-01","2019-06-30",null,null,null,"geral@ad-barlavento.pt"]
[null,null,null,null,null,null,null,"MAR-04.03.01-FEAMP-0066","MUNICIPIO DE PENICHE","Valorização Paisagistica  do Naufrágio do Navio San Pedro de Alcantara","DRAPLVT",7335904,145139.25,145139.25,123368.36,21770.89,"2018-08-28","2021-01-28",null,null,null,"decisoesmar2020@draplvt.gov.pt"]
[null,null,null,null,null,null,null,"MAR-04.03.01-FEAMP-0069","MUNICÍPIO DA LOURINHÃ","Orientação no Mar","DRAPLVT",7376731,102326.16,92864.25,78934.61,13929.64,"2019-04-26","2020-02-06",null,null,null,"decisoesmar2020@draplvt.gov.pt"]
[null,null,null,null,null,null,null,"MAR-04.03.01-FEAMP-0070","MUNICÍPIO DA LOURINHÃ","Recuperação da Praia do Areal Sul - Praia da Areia Branca","DRAPLVT",7376731,261377.3,125632.3,106787.46,18844.839999999997,"2015-10-23","2021-03-31",null,null,null,"decisoesmar2020@draplvt.gov.pt"]
[null,null,null,null,null,null,null,"MAR-04.03.01-FEAMP-0072","MUNICÍPIO DA LOURINHÃ","Requalificação dos Postos de Turismo da Lourinhã e da Praia da Areia Branca","ecoMAR",7376731,84749.63,18308.82,15562.5,2746.3199999999997,"2018-08-01","2019-09-30",null,null,null,"geral@ecocoast.pt"]
[null,null,null,null,null,null,null,"MAR-04.03.01-FEAMP-0074","Rotas do Sal - Actividades de Animação Ambiental e Turismo da Natureza, Lda","Aquisição de Embarcação","ADL",7529105,396022,375000,158960.63,28051.869999999995,"2017-11-03","2017-12-22",null,null,null,"adl.alentejano@mail.telepac.pt"]
[null,null,null,null,null,null,null,"MAR-04.03.01-FEAMP-0077","CPSI - Comunidade Portuária de Sines","Documentário - Sines e o Mar","ADL",9137201,75774.149999999994,42041.4,28588.15,5044.9700000000012,"2017-07-01","2019-12-31",null,null,null,"adl.alentejano@mail.telepac.pt"]
[null,null,null,null,null,null,null,"MAR-04.03.01-FEAMP-0079","Clube Fluvial Odemirense","Requalificação do Centro Náutico de Odemira","ADL",7694515,435121.8,200000,85000,15000,"2019-08-08","2021-02-07",null,null,null,"adl.alentejano@mail.telepac.pt"]
[null,null,null,null,null,null,null,"MAR-04.03.01-FEAMP-0081","SINES TECNOPOLO - ASSOCIAÇÃO CENTRO DE INCUBAÇÃO DE BASE TECNOLÓGICA VASCO DA GAMA","AQUA + Programa de capacitação de Atores Ligadas ao meio aquático","DRAPAL",8123166,222180.7,86375.86,58735.59,10365.100000000006,"2017-12-22","2021-03-18",null,null,null,0]
[null,null,null,null,null,null,null,"MAR-04.03.01-FEAMP-0082","Grupo do Almargem, SA","Requalificação dos Apoios de Praia de Melides e Santo André","ADL",5720511,203723.35,33353.01,14175.03,2501.4799999999977,"2020-01-01","2021-12-31",null,null,null,"adl.alentejano@mail.telepac.pt"]
[null,null,null,null,null,null,null,"MAR-04.03.01-FEAMP-0083","TROIACRUZE NAVEGAÇÃO COSTEIRA DE CRUZEIRO, LDª","Preservação do Património","ADL",7577005,197646,138655.81,58928.72,10399.190000000002,"2019-02-01","2021-02-01",null,null,null,"adl.alentejano@mail.telepac.pt"]
[null,null,null,null,null,null,null,"MAR-04.03.01-FEAMP-0086","MUNICÍPIO DE ODEMIRA","Plano Estratégico e Operacional de Valorização do Rio Mira","ADL",7389581,87222.83,15498,13173.3,2324.7000000000007,"2018-06-26","2019-12-31",null,null,null,"adl.alentejano@mail.telepac.pt"]
[null,null,null,null,null,null,null,"MAR-04.03.01-FEAMP-0087","MUNICÍPIO DE ODEMIRA","Dinamização e Valorização do Turismo Náutico do Mira","ADL",7389581,548929.32999999996,374042.84,317936.40999999997,56106.430000000051,"2017-07-28","2020-11-30",null,null,null,"adl.alentejano@mail.telepac.pt"]
[null,null,null,null,null,null,null,"MAR-04.03.01-FEAMP-0088","Luis Manuel Guisado Mateus - Comércio de Peixe e Marisco, Unipessoal, Lda.","Aquisição de aquário para crustáceos","ADL",9137514,7500,5000,2125,375,"2018-02-26","2019-12-31",null,null,null,"adl.alentejano@mail.telepac.pt"]
[null,null,null,null,null,null,null,"MAR-04.03.01-FEAMP-0090","Emoções do Atlântico, Lda.","Mais Emoções - Sado Emotion","ADL",9137584,181770.83,169563.83,72064.639999999999,12717.289999999994,"2018-11-30","2020-11-30",null,null,null,"adl.alentejano@mail.telepac.pt"]
[null,null,null,null,null,null,null,"MAR-04.03.01-FEAMP-0091","EPO - Centro Escolar e Empresarial do Sudoeste Alentejano","Guia da Natureza no Sudoeste Alentejano","DRAPAL",8833613,64999.71,47496.21,20185.89,3562.2200000000012,"2019-05-01","2021-01-31",null,null,null,0]
[null,null,null,null,null,null,null,"MAR-04.03.01-FEAMP-0092","MUNICÍPIO DE TORRES VEDRAS","PRIMEIRA ONDA","DRAPLVT",7379153,191878,169236.89,143851.35999999999,25385.530000000028,"2019-03-28","2020-12-15",null,null,null,"decisoesmar2020@draplvt.gov.pt"]
[null,null,null,null,null,null,null,"MAR-04.03.01-FEAMP-0093","MUNICÍPIO DE TORRES VEDRAS","Implementação da ISO 13009:2015 nas praias Centro e Fisica","DRAPLVT",7379153,12112.55,12112.55,10295.66,1816.8899999999994,"2017-08-26","2021-09-21",null,null,null,"decisoesmar2020@draplvt.gov.pt"]
[null,null,null,null,null,null,null,"MAR-04.03.01-FEAMP-0094","MUNICÍPIO DE TORRES VEDRAS","Reserva Natural Local Foz Azul - Àrea Marinha Protegida de Torres Vedras","DRAPLVT",7379153,46532.68,5678.24,4826.5,851.73999999999978,"2019-03-19","2020-05-31",null,null,null,"decisoesmar2020@draplvt.gov.pt"]
[null,null,null,null,null,null,null,"MAR-04.03.01-FEAMP-0096","R.A.B - Aluguer de Embarcações de Recreio, Lda","Reforço da Competitividade do Turismo","SOTAVENTO",9032895,175263.22,175263.22,74486.87,13144.740000000005,"2016-11-17","2020-07-15",null,null,null,"rpestana@cm-olhao.pt"]
[null,null,null,null,null,null,null,"MAR-04.03.01-FEAMP-0097","Mário Manuel Belo Pedro","QUINTA QUANTA - Aproveitamento dos recursos marinhos autóctones da região centro","ADEPE",9142523,38779.71,31546.17,13407.13,2365.9600000000009,"2018-07-01","2020-06-30",null,null,null,"galpescaoeste@adepe.pt"]
[null,null,null,null,null,null,null,"MAR-04.03.01-FEAMP-0101","INSTITUTO POLITÉCNICO DE LEIRIA","LIMO DO CAIS -  Exploração sustentada dos recursos endógenos S. Martinho Porto","ADEPE",7163701,55741.36,55398.19,47088.46,8309.7300000000032,"2019-04-04","2021-12-31",null,null,null,"galpescaoeste@adepe.pt"]
[null,null,null,null,null,null,null,"MAR-04.03.01-FEAMP-0103","Manuel Cláudiio da Conceição Mestre","MANUEL MESTRE - PASSEIOS MARÍTIMO - TURÍSTICOS - CULATRA","SOTAVENTO",9145614,46570.73,46570.73,19792.560000000001,3492.8099999999977,"2018-05-01","2021-05-31",null,null,null,"rpestana@cm-olhao.pt"]
[null,null,null,null,null,null,null,"MAR-04.03.01-FEAMP-0105","FANTASTIKSPIRIT - Actividades MArítimas, SA","FANTASTIKSPIRIT - Criação empresa de passeios marítimo-turísticos e degustação","SOTAVENTO",9147466,398500,210000,89250,15750,"2018-04-01","2020-12-31",null,null,null,"rpestana@cm-olhao.pt"]
[null,null,null,null,null,null,null,"MAR-04.03.01-FEAMP-0106","INSTITUTO POLITÉCNICO DE LEIRIA","PAS - Paté de Percebe com Amora Silvestre","ADEPE",7163701,48077.78,45146.86,38374.83,6772.0299999999988,"2019-03-01","2021-02-28",null,null,null,"galpescaoeste@adepe.pt"]
[null,null,null,null,null,null,null,"MAR-04.03.01-FEAMP-0109","Tavares & Guerreiro, Lda","Reforço da Competitividade do Turismo","SOTAVENTO",9150662,635000,398000,152032.01999999999,26829.180000000022,"2019-10-07","2020-12-31",null,null,null,"rpestana@cm-olhao.pt"]
[null,null,null,null,null,null,null,"MAR-04.03.01-FEAMP-0111","INSTITUTO POLITÉCNICO DE LEIRIA","SMART FISH - Restauração Sustentável","ADEPE",7163701,47928.21,52821.440000000002,44898.23,7923.2099999999991,"2019-02-25","2021-02-10",null,null,null,"galpescaoeste@adepe.pt"]
[null,null,null,null,null,null,null,"MAR-04.03.01-FEAMP-0113","SALT & SEA, Unipessoal, Lda","SALT & SEA - Criação de empresa de passeios marítimo-turísticos","SOTAVENTO",9145943,442388.78,437109.39,157459.92000000001,27787.039999999979,"2018-01-07","2019-11-30",null,null,null,"rpestana@cm-olhao.pt"]
[null,null,null,null,null,null,null,"MAR-04.03.01-FEAMP-0122","ZESENGO - Explorações Hoteleiras, SA","ZESENGO Diversificação, Passeios Marítimo-Turísticos Experiências Gastronómicas","SOTAVENTO",9150646,382769.14,323468.81,137474.25,24260.160000000003,"2018-01-01","2021-06-30",null,null,null,"rpestana@cm-olhao.pt"]
[null,null,null,null,null,null,null,"MAR-04.03.01-FEAMP-0124","TEJO RIBEIRINHO - IMPORTAÇÃO E COMÉRCIO DE PEIXES E MARISCOS, LDA","Depósito de Crustáceos","ADEPE",8220215,67650,52400,22270,3930,"2018-01-15","2019-12-31",null,null,null,"galpescaoeste@adepe.pt"]
[null,null,null,null,null,null,null,"MAR-04.03.01-FEAMP-0125","TEJO RIBEIRINHO - IMPORTAÇÃO E COMÉRCIO DE PEIXES E MARISCOS, LDA","Centro de Expedição","ADEPE",8220215,30538.38,22553.02,9585.0400000000009,1691.4799999999996,"2018-01-01","2019-12-31",null,null,null,"galpescaoeste@adepe.pt"]
[null,null,null,null,null,null,null,"MAR-04.03.01-FEAMP-0126","LENDAS AO VENTO, LDA","Aquisição de 3 embarcações solares para operação em Tavira-Olhão","SOTAVENTO",9141736,191949.82,158912.66,67537.91,11918.449999999997,"2018-02-01","2021-03-01",null,null,null,"rpestana@cm-olhao.pt"]
[null,null,null,null,null,null,null,"MAR-04.03.01-FEAMP-0128","INSTITUTO POLITÉCNICO DE LEIRIA","MACAU - Diversidadeda macroalgal reserva natural das berlengas e costa adjacente","ADEPE",7163701,49812.34,49812.34,42340.49,7471.8499999999985,"2019-03-18","2021-01-31",null,null,null,"galpescaoeste@adepe.pt"]
[null,null,null,null,null,null,null,"MAR-04.03.01-FEAMP-0141","VIAMAR - Sociedade de Viagens Peniche-Berlenga, Lda","MODERNIZAÇÃO/ REQUALIFICAÇÃO DA VIAMAR","ADEPE",9156295,36470.379999999997,27321.95,11611.83,2049.1499999999996,"2018-03-01","2020-02-15",null,null,null,"galpescaoeste@adepe.pt"]
[null,null,null,null,null,null,null,"MAR-04.03.01-FEAMP-0142","Alexandre Miguel Franco Carinhas","G3 STORE SURFCENTER","ADEPE",9156144,32623.05,26522.799999999999,11272.19,1989.2099999999991,"2018-01-01","2020-06-30",null,null,null,"galpescaoeste@adepe.pt"]
[null,null,null,null,null,null,null,"MAR-04.03.01-FEAMP-0143","Fábrica da Igreja Paroquial da Freguesia da Nossa Senhora da Conceição de Salir do Porto","REABILITAÇÃO E BENEFICIAÇÃO DE EDIFÍCIO DESTINADO A CULTO CATÓLICO","ADEPE",9165545,115198.18,115198.18,78334.759999999995,13823.779999999999,"2019-10-29","2021-03-29",null,null,null,"galpescaoeste@adepe.pt"]
[null,null,null,null,null,null,null,"MAR-04.03.01-FEAMP-0147","JUSTDIVE - ACTIVIDADES MARITIMAS, LDA","JUSTDIVE - UpGrate I","ADEPE",9158681,24239.07,24239.07,10301.61,1817.9300000000003,"2018-05-01","2021-02-01",null,null,null,"galpescaoeste@adepe.pt"]
[null,null,null,null,null,null,null,"MAR-04.03.01-FEAMP-0148","JUSTDIVE - ACTIVIDADES MARITIMAS, LDA","JUSTDIVE - UpGrate II","ADEPE",9158681,29383,29383,12487.78,2203.7199999999993,"2019-06-05","2021-02-01",null,null,null,"galpescaoeste@adepe.pt"]
[null,null,null,null,null,null,null,"MAR-04.03.01-FEAMP-0154","Instituto de Conservação da Natureza e das Florestas, I.P.","Porta das Berlengas / Biosfera","ADEPE",7962285,141690.9,133112.56,113145.68,19966.880000000005,"2019-04-08","2021-03-01",null,null,null,{"$f":"VLOOKUP(K964,S:T,2,FALSE)","v":"galpescaoeste@adepe.pt"}]
[null,null,null,null,null,null,null,"MAR-04.03.01-FEAMP-0155","MUNICIPIO DA NAZARÉ","Museu do Peixe Seco","ADEPE",7227641,162225.64000000001,159781.67000000001,135814.42000000001,23967.25,"2016-08-22","2019-01-24",null,null,null,"galpescaoeste@adepe.pt"]
[null,null,null,null,null,null,null,"MAR-04.03.01-FEAMP-0156","Associação de Nadadores Salvadores de Grândola - Seagull Rescue","Capacitação da Seagull Rescue","ADL",9138227,64851.27,64081.63,27234.7,4806.119999999999,"2018-06-01","2020-08-31",null,null,null,"adl.alentejano@mail.telepac.pt"]
[null,null,null,null,null,null,null,"MAR-04.03.01-FEAMP-0157","Ginásio Clube Naval de Faro","Construção de Ponte Pedonal - Doca de Faro","SOTAVENTO",9186746,179678.4,179678.4,76363.320000000007,13475.87999999999,"2018-01-01","2019-03-31",null,null,null,"rpestana@cm-olhao.pt"]
[null,null,null,null,null,null,null,"MAR-04.03.01-FEAMP-0158","Good Moments - Indústria Criativa de Cultura e Alimentação Tradicional, Lda","Faro Story Spot - A Cidade e a Ria","SOTAVENTO",9148102,483246.26,463979.61,130816.74,23085.300000000003,"2017-10-02","2018-01-31",null,null,null,"rpestana@cm-olhao.pt"]
[null,null,null,null,null,null,null,"MAR-04.03.01-FEAMP-0161","SUMMERWARRIOR, Lda","Aquisição de 3 embarcações solares - Ria Formosa Olhão","SOTAVENTO",9152026,175037,149477,63527.73,11210.769999999997,"2018-03-31","2020-12-10",null,null,null,"rpestana@cm-olhao.pt"]
[null,null,null,null,null,null,null,"MAR-04.03.01-FEAMP-0167","Life Culture, Unipessoal, Lda","GSGL Surf Academy by Inês Tralha","ecoMAR",9144522,37899.67,32256.12,13708.86,2419.1999999999989,"2018-01-01","2019-03-31",null,null,null,"geral@ecocoast.pt"]
[null,null,null,null,null,null,null,"MAR-04.03.01-FEAMP-0168","Sunday Oasis, Unipessoal, Lda","Surf Camp 360 - referência para o turismo de mar Local","ecoMAR",9157372,70114.399999999994,10756.5,4571.53,806.74000000000069,"2017-06-22","2020-05-09",null,null,null,"geral@ecocoast.pt"]
[null,null,null,null,null,null,null,"MAR-04.03.01-FEAMP-0170","UNIVERSIDADE NOVA DE LISBOA","Ondas do Oeste e Cultura Oceânica","ecoMAR",9026322,62986.01,39397.9,33488.22,5909.68,"2019-01-01","2020-12-31",null,null,null,"geral@ecocoast.pt"]
[null,null,null,null,null,null,null,"MAR-04.03.01-FEAMP-0171","Freguesia de A dos Cunhados e Maceira","Passadiço das Escarpas, Concelho de Torres Vedras","ecoMAR",9139923,157919.85999999999,156274.74,132833.53,23441.209999999992,"2019-02-01","2019-10-31",null,null,null,"geral@ecocoast.pt"]
[null,null,null,null,null,null,null,"MAR-04.03.01-FEAMP-0172","INSTITUTO POLITÉCNICO DE LEIRIA","ELITIST - Especialização em Turismo Subaquático","ADEPE",7163701,125437.08,125437.08,106621.52,18815.559999999998,"2019-03-15","2021-02-21",null,null,null,"galpescaoeste@adepe.pt"]
[null,null,null,null,null,null,null,"MAR-04.03.01-FEAMP-0173","INSTITUTO POLITÉCNICO DE LEIRIA","INOVAÇÃO COM TRADIÇÃO para um consumo sustentável","ADEPE",7163701,25575.74,25201.25,21421.06,3780.1899999999987,"2019-06-01","2021-05-31",null,null,null,"galpescaoeste@adepe.pt"]
[null,null,null,null,null,null,null,"MAR-04.03.01-FEAMP-0174","MUNICIPIO DE PENICHE","Criação da Marca Rendas de Bilros de Peniche","DRAPLVT",7335904,36900,18437.7,15672.05,2765.6500000000015,"2018-08-01","2019-06-30",null,null,null,"decisoesmar2020@draplvt.gov.pt"]
[null,null,null,null,null,null,null,"MAR-04.03.01-FEAMP-0175","MUNICIPIO DE PENICHE","Capital da Onda - Rebranding: Estudo de Mercado e Plano de Marketing","DRAPLVT",7335904,49200,27700,23545,4155,"2019-07-15","2020-12-31",null,null,null,"decisoesmar2020@draplvt.gov.pt"]
[null,null,null,null,null,null,null,"MAR-04.03.01-FEAMP-0177","INSTITUTO POLITÉCNICO DE LEIRIA","ProValgas@Oeste: Promoção e valorização das algas para uma alimentação saudável","ADEPE",7163701,27948.12,27700,23544.99,4155.0099999999984,"2019-06-01","2021-05-31",null,null,null,"galpescaoeste@adepe.pt"]
[null,null,null,null,null,null,null,"MAR-04.03.01-FEAMP-0178","INSTITUTO POLITÉCNICO DE LEIRIA","Especialização em Mergulho Cientifico (SCI-DIVE)","ADEPE",7163701,125410.69,125410.69,106599.09,18811.600000000006,"2019-04-01","2021-03-21",null,null,null,"galpescaoeste@adepe.pt"]
[null,null,null,null,null,null,null,"MAR-04.03.01-FEAMP-0182","REAL-SOCIEDADE ARQUEOLÓGICA LUSITANA","Arte e Música-Património Material e Imaterial-Costa,Mar,Rios e Águas Int.","ADL",9194815,43742.1,43742.1,29744.63,5249.0499999999993,"2017-11-03","2017-12-22",null,null,null,"adl.alentejano@mail.telepac.pt"]
[null,null,null,null,null,null,null,"MAR-04.03.01-FEAMP-0188","MUNICÍPIO DE ÍLHAVO","Estação Náutica do Município de Ílhavo: Projeto piloto para a Região de Aveiro","Região de Aveiro",7558267,67650,67650,57502.5,10147.5,"2019-01-15","2020-11-30",null,null,null,"gac@regiaodeaveiro.pt"]
[null,null,null,null,null,null,null,"MAR-04.03.01-FEAMP-0189","Sporting Clube de Aveiro","Navegadores de palmo e meio (NPM) - Ria na Escola","Região de Aveiro",9236833,26464.36,26294.71,11175.26,1972.1000000000004,"2019-07-01","2021-06-30",null,null,null,"gac@regiaodeaveiro.pt"]
[null,null,null,null,null,null,null,"MAR-04.03.01-FEAMP-0190","MUNICÍPIO DE ÍLHAVO","Navio Museu Santo André: Museografia, Beneficiacão e Reabilitacão","Região de Aveiro",7558267,584250,584250,424951.32,74991.409999999974,"2019-02-01","2020-10-30",null,null,null,"gac@regiaodeaveiro.pt"]
[null,null,null,null,null,null,null,"MAR-04.03.01-FEAMP-0191","MUNICÍPIO DE ÍLHAVO","Notoriedade da Ostra produzida no Município de Ílhavo e na Ria de Aveiro","Região de Aveiro",7558267,52275,52275,44433.75,7841.25,"2019-02-01","2020-11-30",null,null,null,"gac@regiaodeaveiro.pt"]
[null,null,null,null,null,null,null,"MAR-04.03.01-FEAMP-0192","MUNICÍPIO DE ÍLHAVO","Formação para o Mar e para a Ria de Aveiro: Vela para Todos","Região de Aveiro",7558267,66265.8,66265.8,56325.93,9939.8700000000026,"2019-01-02","2020-12-20",null,null,null,"gac@regiaodeaveiro.pt"]
[null,null,null,null,null,null,null,"MAR-04.03.01-FEAMP-0193","CÂMARA MUNICIPAL DE VAGOS","Centro de Promoção e Desenvolvimento de Desportos Náuticos (Surf e Canoagem)","Região de Aveiro",7505312,164118.96,160358.34,136304.59,24053.75,"2018-02-12","2021-03-31",null,null,null,"gac@regiaodeaveiro.pt"]
[null,null,null,null,null,null,null,"MAR-04.03.01-FEAMP-0194","MUNICÍPIO DA MURTOSA","Marina na Torreira","Região de Aveiro",7392037,989435.8,989435.8,356424.46,62898.429999999993,"2018-11-01","2020-10-31",null,null,null,"gac@regiaodeaveiro.pt"]
[null,null,null,null,null,null,null,"MAR-04.03.01-FEAMP-0195","MUNICÍPIO DA MURTOSA","Ampliação e Remodelação do Estaleiro Museu da Praia do Monte Branco","Região de Aveiro",7392037,179044.6,179044.6,152187.91,26856.690000000002,"2019-11-19","2020-12-31",null,null,null,"gac@regiaodeaveiro.pt"]
[null,null,null,null,null,null,null,"MAR-04.03.01-FEAMP-0196","CÂMARA MUNICIPAL DE VAGOS","Centro Náutico e Piscatório da Praia da Vagueira","Região de Aveiro",7505312,803607.2,803607.2,424935.43,74988.609999999986,"2019-11-14","2021-05-30",null,null,null,"gac@regiaodeaveiro.pt"]
[null,null,null,null,null,null,null,"MAR-04.03.01-FEAMP-0201","Espaço de Experiências, Lda.","Migração para Motores Eléctricos nas Embarcações Tradicionais - Esp Experiências","Região de Aveiro",9232352,171708,171708,72975.899999999994,12878.100000000006,"2018-01-01","2019-08-31",null,null,null,"gac@regiaodeaveiro.pt"]
[null,null,null,null,null,null,null,"MAR-04.03.01-FEAMP-0203","IncrivelOdisseia - Marítimo-Turísticos, Lda.","Migração para Motores Eléctricos nas Embarcações Tradicionais -Incrível Odisseia","Região de Aveiro",9228203,205843.5,205843.5,77191.31,25730.440000000002,"2017-12-27","2019-12-26",null,null,null,"gac@regiaodeaveiro.pt"]
[null,null,null,null,null,null,null,"MAR-04.03.01-FEAMP-0206","FEDRAVE - FUNDAÇÃO PARA O ESTUDO E DESENVOLVIMENTO DA REGIÃO DE AVEIRO","Formação/Qualificação/Certificação Tripulantes Emb Marítimo-Turísticas Ria Aveir","Região de Aveiro",7557314,123506.94,95411.56,48659.9,8587.0400000000009,"2019-10-01","2021-04-30",null,null,null,"gac@regiaodeaveiro.pt"]
[null,null,null,null,null,null,null,"MAR-04.03.01-FEAMP-0208","AGUARELATROPICAL - AQUICULTURA DE OSTRAS LDA","Marinha Passagem - Atividades Turísticas","Região de Aveiro",8862446,179455.75,179455.75,91522.43,16151.020000000004,"2018-01-01","2019-12-31",null,null,null,"gac@regiaodeaveiro.pt"]
[null,null,null,null,null,null,null,"MAR-04.03.01-FEAMP-0211","PALMAYACHTS LDA","Turismo Náutico no concelho de Cascais","A2S",7685547,437394,424611.4,169704.43,29947.839999999997,"2017-10-02","2018-04-02",null,null,null,"geral@a2s.pt"]
[null,null,null,null,null,null,null,"MAR-04.03.01-FEAMP-0214","SailCascais, Lda","Dinamização de vela na zona de Cascais","A2S",9188366,189959.7,167788.04,71309.929999999993,12584.11,"2018-07-01","2020-12-31",null,null,null,"geral@a2s.pt"]
[null,null,null,null,null,null,null,"MAR-04.03.01-FEAMP-0215","WE SURF, LDA","Aumento da atratividade turística","A2S",9189613,21115.759999999998,10921.56,4641.67,819.10999999999967,"2018-09-26","2021-03-25",null,null,null,"geral@a2s.pt"]
[null,null,null,null,null,null,null,"MAR-04.03.01-FEAMP-0220","Municipio de Mafra","Festival Internacional do Ouriço do Mar da Ericeira","DRAPLVT",7499417,45510,41820,35547,6273,"2016-01-01","2019-03-30",null,null,null,"decisoesmar2020@draplvt.gov.pt"]
[null,null,null,null,null,null,null,"MAR-04.03.01-FEAMP-0221","MUNICIPIO DE CASCAIS","Requalificação da Embarcação Estou para Ver","DRAPLVT",7383383,519410.39,493626.07,419582.16,74043.910000000033,"2019-03-01","2020-12-31",null,null,null,"decisoesmar2020@draplvt.gov.pt"]
[null,null,null,null,null,null,null,"MAR-04.03.01-FEAMP-0223","MUNICIPIO DE CASCAIS","Food Lab Cantina Cascais","DRAPLVT",7383383,57488.4,20239.099999999999,17203.240000000002,3035.8599999999969,"2018-09-01","2019-10-31",null,null,null,"decisoesmar2020@draplvt.gov.pt"]
[null,null,null,null,null,null,null,"MAR-04.03.01-FEAMP-0227","MUNICIPIO DE MIRA","Reabilitação e Modernização do Mercado da Praia de Mira","DRAPC",7387937,440922.89,148416.93,126154.39,22262.539999999994,"2019-03-08","2021-06-07",null,null,null,"diav@drapc.gov.pt"]
[null,null,null,null,null,null,null,"MAR-04.03.01-FEAMP-0228","MUNICIPIO DE MIRA","Dinamização da Praia de Mira - Uma Aldeia de Mar","DRAPC",7387937,64653.72,64653.72,54955.66,9698.0599999999977,"2019-10-15","2021-05-09",null,null,null,"diav@drapc.gov.pt"]
[null,null,null,null,null,null,null,"MAR-04.03.01-FEAMP-0229","MUNICIPIO DE MIRA","Requalificação e Revitalização dos Viveiros na Praia de Mira","DRAPC",7387937,354454.12,354454.12,301286.01,53168.109999999986,"2019-08-05","2021-05-09",null,null,null,"diav@drapc.gov.pt"]
[null,null,null,null,null,null,null,"MAR-04.03.01-FEAMP-0231","MUNICÍPIO DA FIGUEIRA DA FOZ","Cais Ancoradouro em Vila Verde","ADELO",7596641,92219.25,74184.100000000006,63056.49,11127.610000000008,"2019-06-27","2020-05-01",null,null,null,"geral@adelo.pt"]
[null,null,null,null,null,null,null,"MAR-04.03.01-FEAMP-0232","MUNICÍPIO DA FIGUEIRA DA FOZ","Centro de Observação de Avifauna das Lagoas da Vela e Braças - Infraestruturas e","ADELO",7596641,184469.25,115524.45,98195.78,17328.669999999998,"2019-08-02","2020-12-12",null,null,null,"geral@adelo.pt"]
[null,null,null,null,null,null,null,"MAR-04.03.01-FEAMP-0234","Município de Cantanhede","Arte Xávega - Praia da Tocha: Conteúdos, Promoção, Divulgação e Comunicação","ADELO",7386845,154302.62,105728.22,89869,15859.220000000001,"2019-07-29","2020-12-31",null,null,null,"geral@adelo.pt"]
[null,null,null,null,null,null,null,"MAR-04.03.01-FEAMP-0235","INOVA-EMPRESA DE DESENVOLVIMENTO ECONOMICO E SOCIAL DE CANTANHEDE-EM,S.A.","Praia da Tocha é Património, é Qualidade, é Ambiente","ADELO",7001645,204376.8,117052,99494.2,17557.800000000003,"2018-01-01","2020-09-30",null,null,null,"geral@adelo.pt"]
[null,null,null,null,null,null,null,"MAR-04.03.01-FEAMP-0241","Jornada do Vento, Lda.","Viana Beach Center","Litoral Norte",9166123,399661.05,382460.69,162545.82,28684.549999999988,"2017-03-01","2019-12-31",null,null,null,"veronica.lima@cim-altominho.pt"]
[null,null,null,null,null,null,null,"MAR-04.03.01-FEAMP-0242","Rui Pereira - Comércio de Motas e Peixe, Unipessoal, Lda.","Lampreias a bordo","Litoral Norte",9201187,19585.16,16940.96,7199.92,1270.5699999999997,"2018-12-01","2020-12-01",null,null,null,"veronica.lima@cim-altominho.pt"]
[null,null,null,null,null,null,null,"MAR-04.03.01-FEAMP-0249","MUNICIPIO DA PRAIA DA VITÓRIA","Roteiro de mergulho recreativo, durf e body board","DSPEP",7463097,12456.26,9131.26,6597.33,1164.2399999999998,"2019-02-28","2021-12-31",null,null,null,"info.mar2020@azores.gov.pt"]
[null,null,null,null,null,null,null,"MAR-04.03.01-FEAMP-0250","MUNICIPIO DA PRAIA DA VITÓRIA","Parque aquático insuflável","DSPEP",7463097,13661,12970,9370.83,1653.67,"2019-02-28","2021-12-31",null,null,null,"info.mar2020@azores.gov.pt"]
[null,null,null,null,null,null,null,"MAR-04.03.01-FEAMP-0251","MUNICIPIO DE ANGRA DO HEROÍSMO","Formações para a comunidade piscatória","DSPEP",7558712,4230,4230,3056.18,539.32000000000016,"2019-03-01","2020-02-29",null,null,null,"info.mar2020@azores.gov.pt"]
[null,null,null,null,null,null,null,"MAR-04.03.01-FEAMP-0253","PRAIA CULTURAL - COOPERATIVA DE INTERESSE PÚBLICO E DE RESPONSABILIDADE ","PROJETO: CONHECE A BAÍA DA PRAIA DA VITÓRIA","GRATER",7626955,8081.3,7266.67,5250.17,926.5,"2019-02-28","2019-12-31",null,null,null,"grater@grater.pt"]
[null,null,null,null,null,null,null,"MAR-04.03.01-FEAMP-0256","SÉRGIO MANUEL DOS SANTOS ALVES","Bravio Seafood","GRATER",9320804,46570.04,46570.04,33646.86,5937.6699999999983,"2019-06-01","2019-12-31",null,null,null,"grater@grater.pt"]
[null,null,null,null,null,null,null,"MAR-04.03.01-FEAMP-0257","EMANUEL DA SILVA RAIMUNDO","Coasteering, Kayaks e SUP na exploração da aventura marítima","GRATER",9313843,17466.36,17466.36,12619.45,2226.9599999999991,"2019-02-28","2019-12-31",null,null,null,"grater@grater.pt"]
[null,null,null,null,null,null,null,"MAR-04.03.01-FEAMP-0259","OCTOPUS ACTIVIDADES NÁUTICAS LDA","Modernização, diversificação e valorização ambiental da empresa Octopus","GRATER",9314251,22803.03,21494.95,15530.1,2740.6099999999988,"2019-02-28","2020-12-24",null,null,null,"grater@grater.pt"]
[null,null,null,null,null,null,null,"MAR-04.03.01-FEAMP-0262","ASSOCIAÇÃO PRÓ-MAIOR SEGURANÇA DOS HOMENS DO MAR","MODERNIZAÇÃO DAS INSTALAÇÕES DA SEDE DA APMSHM","AMP",7188092,149386.82999999999,149386.82999999999,114280.92,20167.229999999996,"2018-06-04","2020-12-31",null,null,null,"gallitoralnorte@amp.pt"]
[null,null,null,null,null,null,null,"MAR-04.03.01-FEAMP-0263","ANA DE JESUS VIANA","AQUISIÇÃO DE ARMÁRIO DE CONSERVAÇÃO DE PESCADO AQUISIÇÃO DE VEICULO PARA TRANSPORTE DE PESCADO FRESCO ","DRAPN",9350092,20263.669999999998,18478.25,7853.26,1385.869999999999,"2019-03-01","2020-11-30",null,null,null,"adelaide.inacio@drapnorte.gov.pt"]
[null,null,null,null,null,null,null,"MAR-04.03.01-FEAMP-0274","MUNICÍPIO DE TORRES VEDRAS","Centro Interpretativo da Reserva Natural Local Foz Azul ","DRAPLVT",7379153,126123.04,126123.04,107204.58,18918.459999999992,"2020-03-02","2021-12-31",null,null,null,"decisoesmar2020@draplvt.gov.pt"]
[null,null,null,null,null,null,null,"MAR-04.03.01-FEAMP-0275","MÓNICA SOARES CARVALHO, UNIPESSOAL LDA","Santa Cruz Dive House","ecoMAR",9326557,435396.9,435396.9,169981.13,29996.669999999984,"2020-10-30","2021-12-21",null,null,null,"geral@ecocoast.pt"]
[null,null,null,null,null,null,null,"MAR-04.03.01-FEAMP-0276","FREGUESIA DA SILVEIRA","Passadiço da Praia Azul","ecoMAR",9351427,158470,158470,134699.5,23770.5,"2020-06-01","2021-03-31",null,null,null,"geral@ecocoast.pt"]
[null,null,null,null,null,null,null,"MAR-04.03.01-FEAMP-0286","MUNICÍPIO DE ALMADA","Valorização da Pesca Artesanal e instalação do Museu Vivo da Arte-xávega na Costa de Caparica","ADREPES",7975951,350000,299989.33,254990.94,44998.390000000014,"2019-07-01","2021-06-30",null,null,null,"natalia.henriques@adrepes.pt"]
[null,null,null,null,null,null,null,"MAR-04.03.01-FEAMP-0287","UNIVERSIDADE NOVA DE LISBOA","Embaixadores pelo Mar","ADREPES",9026322,212307.32,175512.17,149185.35,26326.820000000007,"2019-10-01","2021-10-01",null,null,null,"natalia.henriques@adrepes.pt"]
[null,null,null,null,null,null,null,"MAR-04.03.01-FEAMP-0288","MUNICIPIO DE ALCOCHETE","Valorização dos recursos naturais do Município de Alcochete","ADREPES",7368267,39426.17,25807.99,21936.79,3871.2000000000007,"2019-12-02","2020-12-31",null,null,null,"natalia.henriques@adrepes.pt"]
[null,null,null,null,null,null,null,"MAR-04.03.01-FEAMP-0289","WAVES&KANGAROOS - UNIPESSOAL","Abertura da Atlantic Coast Surf School","ecoMAR",9384371,101965.87,66220.23,28143.599999999999,4966.5200000000041,"2019-03-06","2019-06-14",null,null,null,"geral@ecocoast.pt"]
[null,null,null,null,null,null,null,"MAR-04.03.01-FEAMP-0291","POENTAPETECÍVEL UNIPESSOAL, LDA","Turismo no Mar da Lourinhã","ecoMAR",9383994,75263.38,62374.04,26508.97,4678.0499999999993,"2019-10-01","2020-12-31",null,null,null,"geral@ecocoast.pt"]
[null,null,null,null,null,null,null,"MAR-04.03.01-FEAMP-0292","3FIN, LDA","UpRise Surf School - Operador Maritimo Turístico","ecoMAR",9361066,76644.27,20524.39,8722.8799999999992,1539.3200000000015,"2019-06-01","2021-05-31",null,null,null,"geral@ecocoast.pt"]
[null,null,null,null,null,null,null,"MAR-04.03.01-FEAMP-0294","EUROPEIA ID - ASSOCIAÇÃO PARA A INVESTIGAÇÃO EM DESIGN, MARKETING E COM.","BLUE CIRCULAR POSTBRANDING PROJECT","A2S",7501306,49994.98,44021.55,29934.66,5282.5799999999981,"2019-12-16","2021-12-15",null,null,null,"geral@a2s.pt"]
[null,null,null,null,null,null,null,"MAR-04.03.01-FEAMP-0296","GAIVOTA TAGARELA - UNIPESSOAL LDA","Modernização da Gaivota Tagarela","A2S",9321227,25026.6,23776.62,10105.06,1783.25,"2019-06-01","2020-06-01",null,null,null,{"$f":"VLOOKUP(K1028,S:T,2,FALSE)","v":"geral@a2s.pt"}]
[null,null,null,null,null,null,null,"MAR-04.03.01-FEAMP-0297","ROGER ALCÍDIO DE MELO E VARGAS","Comercialização de pescado online","ADELIAÇOR",8453733,42455.87,41559.58,30026.799999999999,5298.84,"2019-10-01","2022-08-01",null,null,null,"adeliacor@sapo.pt"]
[null,null,null,null,null,null,null,"MAR-04.03.01-FEAMP-0300","VARADOURO PESCAS, LDA","Peixaria fixa, ambulante e online","ADELIAÇOR",8821442,44198,44048,31824.68,5616.1200000000026,"2019-07-01","2021-04-30",null,null,null,"adeliacor@sapo.pt"]
[null,null,null,null,null,null,null,"MAR-04.03.01-FEAMP-0301","SEAEXPERT SERVIÇOS E CONSULTADORIA NA AREA DE PESCAS LDA","Aquisição de equipamentos para manuseamento de Algas Marinhas","ADELIAÇOR",7609864,32508.95,29004.95,20956.080000000002,3698.1299999999974,"2019-07-01","2021-07-30",null,null,null,"adeliacor@sapo.pt"]
[null,null,null,null,null,null,null,"MAR-04.03.01-FEAMP-0308","VARADOURO PESCAS, LDA","Expansão e Inovação das Atividades da Varadouro Pescas","ADELIAÇOR",8821442,67183.64,67183.64,48540.18,8565.9099999999962,"2020-01-01","2021-04-30",null,null,null,"adeliacor@sapo.pt"]
[null,null,null,null,null,null,null,"MAR-04.03.01-FEAMP-0311","MUNICIPIO DE VALENÇA","Aldeias de Mar S. Pedro da Torre","Litoral Norte",7964825,201075.22,201075.22,170913.94,30161.279999999999,"2018-12-21","2019-03-15",null,null,null,"veronica.lima@cim-altominho.pt"]
[null,null,null,null,null,null,null,"MAR-04.03.01-FEAMP-0314","FEELVIANA - HOTELARIA, LDA","Desenvolvimento de actividades náuticas - Feelviana","Litoral Norte",9203743,352567.14,337878.84,143598.54,25340.919999999984,"2018-10-19","2020-10-28",null,null,null,"veronica.lima@cim-altominho.pt"]
[null,null,null,null,null,null,null,"MAR-04.03.01-FEAMP-0318","MÁRIO DANIEL LEITÃO UNIPESSOAL LDA","Explorar Viana do Castelo","Litoral Norte",9333461,122420.81,118820.81,50498.85,8911.5600000000049,"2019-06-01","2020-12-31",null,null,null,"veronica.lima@cim-altominho.pt"]
[null,null,null,null,null,null,null,"MAR-04.03.01-FEAMP-0322","TRINCAPEIXE-INDÚSTRIA COMÉRCIO PROD.ALIMENTARES FRESCOS E CONGELADOS,LDA","Modernização Estabelecimento Docapesca","Litoral Norte",8847884,99048.49,89939.13,38224.129999999997,6745.4400000000023,"2020-01-06","2021-12-31",null,null,null,"veronica.lima@cim-altominho.pt"]
[null,null,null,null,null,null,null,"MAR-04.03.01-FEAMP-0325","CAMARA MUNICIPAL DE CAMINHA","Recuperação e Valorização do Forte da Lagarteira","Litoral Norte",7385304,208468.74,208468.74,177198.43,31270.309999999998,"2019-05-01","2019-06-28",null,null,null,"veronica.lima@cim-altominho.pt"]
[null,null,null,null,null,null,null,"MAR-04.03.01-FEAMP-0326","MUNICIPIO DE ESPOSENDE","Aldeia de Mar - Esposende","Litoral Norte",7329834,179295.84,179295.84,152401.47,26894.369999999995,"2019-05-01","2019-06-28",null,null,null,"veronica.lima@cim-altominho.pt"]
[null,null,null,null,null,null,null,"MAR-04.03.01-FEAMP-0327","MUNICIPIO DE VIANA DO CASTELO","Valorização da Aldeia de Mar - Ribeira de Viana ","Litoral Norte",7388852,188076.36,188076.36,159864.91,28211.449999999983,"2019-05-01","2019-06-28",null,null,null,"veronica.lima@cim-altominho.pt"]
[null,null,null,null,null,null,null,"MAR-04.03.01-FEAMP-0328","MUNICIPIO DE VIANA DO CASTELO","Valorização da Aldeia de Mar - Castelo de Neiva","Litoral Norte",7388852,199671.95,199671.95,169721.16,29950.790000000008,"2019-05-01","2019-06-28",null,null,null,"veronica.lima@cim-altominho.pt"]
[null,null,null,null,null,null,null,"MAR-04.03.01-FEAMP-0332","CAMARA MUNICIPAL DE MATOSINHOS","Gestão da Estação Náutica de Matosinhos: Criação da Plataforma e Aplicação","DRAPN",7494521,81795,81795,69525.75,12269.25,"2019-04-26","2021-03-26",null,null,null,"adelaide.inacio@drapnorte.gov.pt"]
[null,null,null,null,null,null,null,"MAR-04.03.01-FEAMP-0333","CAMARA MUNICIPAL DE MATOSINHOS"," Campanhas de Divulgação do Turismo gastronómico em Matosinhos","DRAPN",7494521,121155,121155,102981.75,18173.25,"2019-04-26","2021-03-26",null,null,null,"adelaide.inacio@drapnorte.gov.pt"]
[null,null,null,null,null,null,null,"MAR-04.03.01-FEAMP-0334","CAMARA MUNICIPAL DE MATOSINHOS","“Mercados Locais: Otimização de Espaços, Divulgação e Promoção de atividades","DRAPN",7494521,144604.35,110556.74,93973.23,16583.510000000009,"2019-04-26","2021-03-26",null,null,null,"adelaide.inacio@drapnorte.gov.pt"]
[null,null,null,null,null,null,null,"MAR-04.03.01-FEAMP-0335","CÂMARA MUNICIPAL DE VILA DO CONDE","Cais para apoio a atividades fluviais no Rio Ave","DRAPN",7493003,88017.1,88017.1,74814.539999999994,13202.560000000012,"2019-06-01","2019-10-31",null,null,null,"adelaide.inacio@drapnorte.gov.pt"]
[null,null,null,null,null,null,null,"MAR-04.03.01-FEAMP-0336","CÂMARA MUNICIPAL DE VILA DO CONDE","BENEFICIAÇÃO DE PASSADIÇOS E ACESSOS ÀS PRAIAS -  FREGUESIA DE ÁRVORE","DRAPN",7493003,141881,141881,120598.85,21282.149999999994,"2019-05-01","2019-09-30",null,null,null,"adelaide.inacio@drapnorte.gov.pt"]
[null,null,null,null,null,null,null,"MAR-04.03.01-FEAMP-0337","CÂMARA MUNICIPAL DE VILA DO CONDE","Reabilitação do Mercado de Caxinas - Fase 1","DRAPN",7493003,106000,106000,90100,15900,"2019-10-01","2019-12-31",null,null,null,"adelaide.inacio@drapnorte.gov.pt"]
[null,null,null,null,null,null,null,"MAR-04.03.01-FEAMP-0338","MUNICIPIO DA PÓVOA DE VARZIM","MERCADO MUNICIPAL DA PÓVOA DE VARZIM – COMERCIALIZAÇÃO DE PRODUTOS DA PESCA","DRAPN",7648734,63570.63,63570.63,54035.040000000001,9535.5899999999965,"2019-09-02","2020-03-31",null,null,null,"adelaide.inacio@drapnorte.gov.pt"]
[null,null,null,null,null,null,null,"MAR-04.03.01-FEAMP-0339","MUNICIPIO DA PÓVOA DE VARZIM","MAR PARA TODOS","DRAPN",7648734,322918.61,219977.69,186981.04,32996.649999999994,"2020-01-06","2020-12-31",null,null,null,"adelaide.inacio@drapnorte.gov.pt"]
[null,null,null,null,null,null,null,"MAR-04.03.01-FEAMP-0340","MUNICIPIO DA PÓVOA DE VARZIM","PÓVOA DE VARZIM - MEMÓRIAS DO MAR","DRAPN",7648734,129245.31,38888.239999999998,33055,5833.239999999998,"2020-01-02","2020-12-31",null,null,null,"adelaide.inacio@drapnorte.gov.pt"]
[null,null,null,null,null,null,null,"MAR-04.03.01-FEAMP-0342","JUNTA DE FREGUESIA DA LOMBA DA MAIA","Recuperação de Moinho de Àgua","MARAÇORESORIENTAL",8736266,49924,49924,36070.089999999997,6365.3100000000049,"2019-08-01","2021-07-30",null,null,null,"gal.acoresoriental@gmail.com"]
[null,null,null,null,null,null,null,"MAR-04.03.01-FEAMP-0343","FREGUESIA DE FENAIS DE AJUDA","Requalificação e sinalização do Portinho dos Fenais da Ajuda","MARAÇORESORIENTAL",8146633,40860,40860,29521.35,5209.6500000000015,"2019-07-01","2021-09-30",null,null,null,"gal.acoresoriental@gmail.com"]
[null,null,null,null,null,null,null,"MAR-04.03.01-FEAMP-0344","CPA - COOPERATIVA DE PESCA AÇORIANA, OP, CRL","Aquisição de Viatura de Mercadorias","MARAÇORESORIENTAL",9285446,34154.92,34154.92,24676.93,4354.75,"2019-08-01","2020-12-31",null,null,null,"gal.acoresoriental@gmail.com"]
[null,null,null,null,null,null,null,"MAR-04.03.01-FEAMP-0348","A PONTE NORTE-COOPERATIVA DE ENSINO E DESENVOLVIMENTO DA RIBEIRA GRANDE,"," Família+","MARAÇORESORIENTAL",9284892,10500,10500,7586.26,1338.75,"2019-01-06","2021-03-31",null,null,null,"gal.acoresoriental@gmail.com"]
[null,null,null,null,null,null,null,"MAR-04.03.01-FEAMP-0349","FREGUESIA DE RABO DE PEIXE","Acções de sensibilização e formação para a limpeza do espaço público","MARAÇORESORIENTAL",8743011,33972.480000000003,27363.62,19770.22,3488.8600000000006,"2020-03-01","2021-09-30",null,null,null,"gal.acoresoriental@gmail.com"]
[null,null,null,null,null,null,null,"MAR-04.03.01-FEAMP-0352","MANUEL DUARTE DE ESTRELA SOUSA-CABEÇA DE CASAL DA HERANÇA DE","Pesca-Turismo","MARAÇORESORIENTAL",9189482,6795,4120,1751,309,"2019-05-31","2021-12-31",null,null,null,"gal.acoresoriental@gmail.com"]
[null,null,null,null,null,null,null,"MAR-04.03.01-FEAMP-0354","AQUA - COOPERATIVA PARA O DESENVOLVIMENTO SUSTENTÁVEL DO MAR, CRL","Aqua","MARAÇORESORIENTAL",9383777,3016,3016,2179.06,384.53999999999996,"2019-11-01","2021-10-31",null,null,null,"gal.acoresoriental@gmail.com"]
[null,null,null,null,null,null,null,"MAR-04.03.01-FEAMP-0355","CLUBE NAVAL RABO DE PEIXE","Pesca Turismo - Catalisador de Mudança","MARAÇORESORIENTAL",9358764,75747.289999999994,15029.51,10858.82,1916.2600000000002,"2020-01-01","2021-12-31",null,null,null,"gal.acoresoriental@gmail.com"]
[null,null,null,null,null,null,null,"MAR-04.03.01-FEAMP-0357","VIDAÇOR - ASSOCIAÇÃO DE DESENVOLVIMENTO COMUNITÁRIO","Sinalização de itinerário relacionado com o espaço marítimo na Vila de Rabo de Peixe","MARAÇORESORIENTAL",9363823,25505.200000000001,9759.68,7051.37,1244.3499999999995,"2020-01-01","2022-06-30",null,null,null,"gal.acoresoriental@gmail.com"]
[null,null,null,null,null,null,null,"MAR-04.03.01-FEAMP-0358","VIDAÇOR - ASSOCIAÇÃO DE DESENVOLVIMENTO COMUNITÁRIO","Acção de sensibilização ambiental para a comunidade piscatória de Rabo de Peixe","MARAÇORESORIENTAL",9363823,10248.129999999999,7906.72,5712.6,1008.1099999999997,"2020-03-01","2022-06-30",null,null,null,"gal.acoresoriental@gmail.com"]
[null,null,null,null,null,null,null,"MAR-04.03.01-FEAMP-0359","FREGUESIA DE RIBEIRINHA","TRILHO E ACESSO A PRAIA ZONA DE SURF - PRAINHAS RIBEIRINHA","MARAÇORESORIENTAL",8731497,46900,46900,33885.25,5979.75,"2019-05-27","2021-09-30",null,null,null,"gal.acoresoriental@gmail.com"]
[null,null,null,null,null,null,null,"MAR-04.03.01-FEAMP-0363","MUNICIPIO DE VILA NOVA DE CERVEIRA","Valorização Económica, Social e Turística da Praia da Lenta e da sua Envolvente","DRAPN",7540486,230922.52,201101.43,170936.22,30165.209999999992,"2020-01-01","2020-12-31",null,null,null,"adelaide.inacio@drapnorte.gov.pt"]
[null,null,null,null,null,null,null,"MAR-04.03.01-FEAMP-0366","CLUBE NÁUTICO DE S. MARTINHO DO PORTO","REABILITAÇÃO, VALORIZAÇÃO E PERSERVAÇÃO DA BAÍA E PORTO DE SÃO MARTINHO DO PORTO","ADEPE",9144576,184600.86,182630.39999999999,155235.84,27394.559999999998,"2020-01-02","2020-05-26",null,null,null,"galpescaoeste@adepe.pt"]
[null,null,null,null,null,null,null,"MAR-04.03.01-FEAMP-0368","FREGUESIA DE VIEIRA DE LEIRIA","Mercado das Peixeiras da Praia da Vieira","ADAE",9421983,47693.64,47693.64,40539.589999999997,7154.0500000000029,"2020-02-01","2020-12-31",null,null,null,"mar2020@adae.pt"]
[null,null,null,null,null,null,null,"MAR-04.03.01-FEAMP-0369","SUMMERCARAVEL LDA","FishChoice","ADAE",9413852,252237.29,249467.11,106023.53,18710.03,"2019-01-05","2020-10-14",null,null,null,"mar2020@adae.pt"]
[null,null,null,null,null,null,null,"MAR-04.03.01-FEAMP-0370","INSTITUTO POLITÉCNICO DE LEIRIA","COSMOS: Valorização biotecnológica da alga invasora Asparagopsis armata da costa de Peniche","ADEPE",7163701,56859.63,56859.63,48330.69,8528.9399999999951,"2020-09-01","2022-08-31",null,null,null,"galpescaoeste@adepe.pt"]
[null,null,null,null,null,null,null,"MAR-04.03.01-FEAMP-0371","FREGUESIA DE VIEIRA DE LEIRIA","Requalificação de edifício em Espaço CulturAvieira -Oficina de Artes","ADAE",9421983,55993.440000000002,55993.440000000002,47594.42,8399.0200000000041,"2020-02-01","2020-12-31",null,null,null,"mar2020@adae.pt"]
[null,null,null,null,null,null,null,"MAR-04.03.01-FEAMP-0372","FREGUESIA DE VIEIRA DE LEIRIA","Circuito de Arte Pública da Praia da Vieira","ADAE",9421983,44476.800000000003,44476.800000000003,37805.279999999999,6671.5200000000041,"2020-02-01","2020-12-31",null,null,null,"mar2020@adae.pt"]
[null,null,null,null,null,null,null,"MAR-04.03.01-FEAMP-0373","ASSOCIAÇÃO DE MORADORES E AMIGOS DO CASAL VENTOSO PRAIA DO PEDROGÃO","Incremento competitivo da AMA","ADAE",9422665,258497.37,119088.07,50612.44,8931.5999999999985,"2020-03-06","2022-03-05",null,null,null,"mar2020@adae.pt"]
[null,null,null,null,null,null,null,"MAR-04.03.01-FEAMP-0374","BÚSSULA SEM LIMITES - UNIPESSOAL, LDA","Reconstrução de Apoio de Praia – Praia do Pedrogão","ADAE",9142724,419687.96,415474.36,167994.98,29646.179999999993,"2019-01-25","2020-12-31",null,null,null,"mar2020@adae.pt"]
[null,null,null,null,null,null,null,"MAR-04.03.01-FEAMP-0377","HENRIQUE ANDRÉ DA SILVA NICOLAU ESTRELINHA","Moço do Peixe - Plataforma online de venda de peixe fresco","ADEPE",9406577,28550.46,27830.86,11828.12,2087.3099999999995,"2019-10-21","2020-10-21",null,null,null,"galpescaoeste@adepe.pt"]
[null,null,null,null,null,null,null,"MAR-04.03.01-FEAMP-0378","MIGUEL BENTO COSTA, UNIPESSOAL, LDA","Nova Oferta Viagens Nazaré","ADEPE",7575397,199553,199553,84810.03,14966.470000000001,"2020-01-01","2020-12-31",null,null,null,"galpescaoeste@adepe.pt"]
[null,null,null,null,null,null,null,"MAR-04.03.01-FEAMP-0379","JUSTDIVE - ACTIVIDADES MARITIMAS, LDA","JUST Dive PRO - Formação em Mergulho Profissional","ADEPE",9158681,60000,60000,25500,4500,"2020-01-01","2020-12-31",null,null,null,"galpescaoeste@adepe.pt"]
[null,null,null,null,null,null,null,"MAR-04.03.01-FEAMP-0380","INSTITUTO POLITÉCNICO DE LEIRIA","ProReMar – Produtos Alimentares com base em Recursos Marinhos","ADEPE",7163701,80689.7,80109.740000000005,68093.279999999999,12016.460000000006,"2020-09-01","2022-08-31",null,null,null,"galpescaoeste@adepe.pt"]
[null,null,null,null,null,null,null,"MAR-04.03.01-FEAMP-0381","CALÉ - INDÚSTRIA E COMÉRCIO, LDA","SuperBilros","ADEPE",9420515,49382.05,44199.63,18784.849999999999,3314.9700000000012,"2020-01-02","2020-12-31",null,null,null,"galpescaoeste@adepe.pt"]
[null,null,null,null,null,null,null,"MAR-04.03.01-FEAMP-0383","ALEXANDRE ANTÓNIO ALVES MARQUES","Gaivotas de São Martinho do Porto","ADEPE",9420813,21797.759999999998,21797.759999999998,9264.0499999999993,1634.83,"2019-08-12","2019-10-21",null,null,null,"galpescaoeste@adepe.pt"]
[null,null,null,null,null,null,null,"MAR-04.03.01-FEAMP-0385","HALIOTIS ACTIVIDADES MARITIMO TURISTICAS LDA","Reforço da Competitividade do Turismo","ADEPE",7548691,181497,153144,65086.2,11485.800000000003,"2019-08-12","2019-10-21",null,null,null,"galpescaoeste@adepe.pt"]
[null,null,null,null,null,null,null,"MAR-04.03.01-FEAMP-0386","INSTITUTO POLITÉCNICO DE LEIRIA","SeaFilm- Desenvolvimento de filme comestível para congelação sustentável de pescado","ADEPE",7163701,56928.7,56381.22,47924.04,8457.18,"2020-09-01","2022-08-31",null,null,null,"galpescaoeste@adepe.pt"]
[null,null,null,null,null,null,null,"MAR-04.03.01-FEAMP-0389","HALIOTIS ACTIVIDADES MARITIMO TURISTICAS LDA","Reforço da Competitividade do Turismo","ADEPE",7548691,199113.2,166843.20000000001,70908.36,12513.240000000005,"2019-08-12","2019-10-21",null,null,null,"galpescaoeste@adepe.pt"]
[null,null,null,null,null,null,null,"MAR-04.03.01-FEAMP-0393","MUNICIPIO DE LEIRIA","Valorização dos Recursos Naturais, Culturais e Identitários da Praia do Pedrogão","DRAPC",7398073,307211.87,290948.69,247306.39,43642.299999999988,"2019-06-15","2019-10-15",null,null,null,"diav@drapc.gov.pt"]
[null,null,null,null,null,null,null,"MAR-04.03.01-FEAMP-0394","MUNICIPIO DA MARINHA GRANDE","CENTRO INTERPRETATIVO DE ARTE XÁVEGA E CULTURA AVIEIRA","DRAPC",7394937,420192.45,419006.73,356155.72,62851.010000000009,"2020-01-01","2020-12-31",null,null,null,"diav@drapc.gov.pt"]
[null,null,null,null,null,null,null,"MAR-04.03.01-FEAMP-0401","MUNICIPIO DE ÓBIDOS","Lagoa de Óbidos - Reforço da Competitividade do Turismo ","DRAPLVT",7386041,59067.8,56667.8,48167.63,8500.1700000000055,"2020-01-02","2021-06-30",null,null,null,"decisoesmar2020@draplvt.gov.pt"]
[null,null,null,null,null,null,null,"MAR-04.03.01-FEAMP-0406","UNIVERSIDADE DE AVEIRO","Interferência de protetores solares na acumulação de biotoxinas marinhas em conquilha (Donax trunculus) e procura de alternativas “verdes”: inovação para a sustentabilidade ambiental e socioeconómica (SCREEN&TOXIN)","SOTAVENTO",7430371,132151.75,124367.1,105712.04,18655.060000000012,"2021-01-01","2022-12-31",null,null,null,"rpestana@cm-olhao.pt"]
[null,null,null,null,null,null,null,"MAR-04.03.01-FEAMP-0407","ASSOCIAÇÃO DE MORADORES DA ILHA DA CULATRA","AQUISIÇÃO DE EQUIPAMENTO DE APOIO Á ACTIVIDADE PISCATÓRIA / VIVEIRISTA","SOTAVENTO",7397263,121770,121770,98329.279999999999,17352.22,"2020-01-02","2020-11-30",null,null,null,"rpestana@cm-olhao.pt"]
[null,null,null,null,null,null,null,"MAR-04.03.01-FEAMP-0408","ASSOCIAÇÃO DE ARMADORES DE PESCA DA FUZETA - AAPF","Promoção do pescado fresco da Fuzeta","SOTAVENTO",8383174,11463.6,11463.6,9256.86,1633.5599999999995,"2020-10-01","2021-11-30",null,null,null,"rpestana@cm-olhao.pt"]
[null,null,null,null,null,null,null,"MAR-04.03.01-FEAMP-0409","MARÍLIA BENEDITO MARTINS LOPES","DESCARBONIZAÇÃO DA ATIVIDADE DE AQUICULTURA","SOTAVENTO",9321243,35000,35000,14875,2625,"2020-09-01","2021-09-30",null,null,null,"rpestana@cm-olhao.pt"]
[null,null,null,null,null,null,null,"MAR-04.03.01-FEAMP-0410","MUNICÍPIO DE FARO","Plataforma Digital da Estação Náutica de Faro","SOTAVENTO",7176365,23905.05,23905.05,20319.29,3585.7599999999984,"2020-09-01","2021-07-31",null,null,null,"rpestana@cm-olhao.pt"]
[null,null,null,null,null,null,null,"MAR-04.03.01-FEAMP-0412","RTV - ASSOCIAÇÃO PARA O ESTUDO E CONSERVAÇÃO DOS OCEANOS","Crescer pelo Mar","SOTAVENTO",9416502,124672.1,124672.1,100672.72,17765.78,"2020-01-01","2021-12-31",null,null,null,"rpestana@cm-olhao.pt"]
[null,null,null,null,null,null,null,"MAR-04.03.01-FEAMP-0414","ASSOCIAÇÃO DE MORADORES DA ILHA DA CULATRA","DESCARBONIZAÇÃO DA ATIVIDADE DE AQUICULTURA","SOTAVENTO",7397263,199936.5,199936.5,161448.73000000001,28490.949999999983,"2020-01-02","2021-12-31",null,null,null,"rpestana@cm-olhao.pt"]
[null,null,null,null,null,null,null,"MAR-04.03.01-FEAMP-0417","CAMARA MUNICIPAL DE MATOSINHOS","Formação e Valorização dos operadores de Pescado dos Mercados de Matoisinhos e Angeiras","DRAPN",7494521,89002.46,89002.46,75652.09,13350.37000000001,"2019-11-08","2021-10-08",null,null,null,"adelaide.inacio@drapnorte.gov.pt"]
[null,null,null,null,null,null,null,"MAR-04.03.01-FEAMP-0418","CLUBE FLUVIAL FILACONDENSE","Capacitação das Instalações do CFV para Captação de players internacionais ","AMP",9431447,819887.22,209451.7,142427.20000000001,25134.209999999992,"2019-03-31","2021-03-31",null,null,null,"gallitoralnorte@amp.pt"]
[null,null,null,null,null,null,null,"MAR-04.03.01-FEAMP-0424","PRAIA AMBIENTE EM","Concelho mais Bonito, Mar mais Limpo","DSPEP",7724787,25724,21800,15750.5,2779.5,"2020-02-02","2020-04-30",null,null,null,"info.mar2020@azores.gov.pt"]
[null,null,null,null,null,null,null,"MAR-04.03.01-FEAMP-0426","MBM ADVENTURES, UNIPESSOAL LDA","MBM Adventures","GRATER",10353785,49967.99,48361.11,34940.92,6166.0299999999988,"2020-02-03","2020-12-31",null,null,null,{"$f":"VLOOKUP(K1092,S:T,2,FALSE)","v":"grater@grater.pt"}]
[null,null,null,null,null,null,null,"MAR-04.03.01-FEAMP-0427","PRAIA CULTURAL - COOPERATIVA DE INTERESSE PÚBLICO E DE RESPONSABILIDADE ","Roteiro interpretativo da memória da pesca na Praia da Vitória","GRATER",7626955,6476,4761,3439.84,607.02,"2020-01-30","2020-12-31",null,null,null,"grater@grater.pt"]
[null,null,null,null,null,null,null,"MAR-04.03.01-FEAMP-0428","SHAWN ALEXANDRE CABRAL","Aquisição de equipamentos para actividade de animação marítimo turística na ilha Terceira.","GRATER",10350381,15927.26,14593.62,10543.89,1860.6900000000005,"2020-02-01","2020-12-31",null,null,null,"grater@grater.pt"]
[null,null,null,null,null,null,null,"MAR-04.03.01-FEAMP-0429","ROLANDO MANUEL DA SILVA OLIVEIRA","Abertura de atividade de animação marítimo-turistica, com enfoque em mergulho, na ilha Graciosa.","GRATER",10351217,61428.1,50000,36125,6375,"2020-02-02","2021-03-31",null,null,null,"grater@grater.pt"]
[null,null,null,null,null,null,null,"MAR-04.03.01-FEAMP-0430","RODRIGO HINTZE COMPRAS E VENDA DE BENS IMOBILIÁRIOS SOCIEDADE UNIPESSOAL","Diversificação da actividade turística","DSPEP",10352082,28395,25000,18062.5,3187.5,"2020-02-01","2020-12-31",null,null,null,"info.mar2020@azores.gov.pt"]
[null,null,null,null,null,null,null,"MAR-04.03.01-FEAMP-0431","CIPRIMAR, UNIPESSOAL LDA","Ciprimar","GRATER",10353182,55880.62,49957.67,36094.42,6369.5999999999985,"2020-02-03","2020-12-31",null,null,null,"grater@grater.pt"]
[null,null,null,null,null,null,null,"MAR-04.03.01-FEAMP-0433","MUNICÍPIO DE SANTA CRUZ DA GRACIOSA","Construção de Edifício de Apoio à Marina de Santa Cruz da Graciosa","DSPEP",7754674,139162.5,50000,36125,6375,"2020-09-01","2021-09-01",null,null,null,"info.mar2020@azores.gov.pt"]
[null,null,null,null,null,null,null,"MAR-04.03.01-FEAMP-0434","MUNICIPIO DA PRAIA DA VITÓRIA","Beneficiação dos Equipamentos Balneares das Praias da Praia da Vitória","DSPEP",7463097,13068.22,13068.22,9441.7999999999993,1666.1900000000005,"2020-01-30","2020-12-31",null,null,null,"info.mar2020@azores.gov.pt"]
[null,null,null,null,null,null,null,"MAR-04.03.01-FEAMP-0435","TZT - FLYING FISH AZORES, LDA","Planificação de marketing e redes sociais","GRATER",9259236,17690.560000000001,11838,8552.9599999999991,1509.3400000000001,"2020-01-06","2020-01-31",null,null,null,"grater@grater.pt"]
[null,null,null,null,null,null,null,"MAR-04.03.01-FEAMP-0436","TZT - FLYING FISH AZORES, LDA","Elaboração de conservas","GRATER",9259236,26288.34,19552.22,14126.48,2492.91,"2020-01-06","2020-12-31",null,null,null,"grater@grater.pt"]
[null,null,null,null,null,null,null,"MAR-04.03.01-FEAMP-0437","ALGAÇOR- ASSOCIAÇÃO PORTUGUESA DE APANHADORES E CONCENTRADORES DE ALGAS","Formação de Apanhadores e Mergulhadores","DSPEP",9439571,18000,15000,10837.5,1912.5,"2019-10-01","2020-05-31",null,null,null,"info.mar2020@azores.gov.pt"]
[null,null,null,null,null,null,null,"MAR-04.03.01-FEAMP-0438","UNIPROALGAS,UNIPESSOAL,LDA","Aquisição equipamentos","DSPEP",9418362,35549.800000000003,31146.75,22503.53,3971.2100000000028,"2019-10-17","2020-03-31",null,null,null,"info.mar2020@azores.gov.pt"]
[null,null,null,null,null,null,null,"MAR-04.03.01-FEAMP-0439","VALENTINO DA SILVA BENJAMIM- CABEÇA DE CASAL DA HERANÇA DE","Aquisição de Viatura de transporte com temperatura regulada","GRATER",9025187,30432.99,24227.11,17504.080000000002,3088.9599999999991,"2019-09-12","2020-09-30",null,null,null,"grater@grater.pt"]
[null,null,null,null,null,null,null,"MAR-04.03.01-FEAMP-0441","DOCA MARINHA - SOCIEDADE DE CONGELADOS E PESCADO, LDA","MELHORIA DO PROCESSO OPERACIONAL","ADREPES",7536183,398998,398998,169574.15,29924.850000000006,"2020-02-17","2020-12-31",null,null,null,"natalia.henriques@adrepes.pt"]
[null,null,null,null,null,null,null,"MAR-04.03.01-FEAMP-0442","CELIA CRISTINA MOTA OLIVEIRA","PEIXARIA MADE IN RABO DE PEIXE","MARAÇORESORIENTAL",10352035,37788.86,32407.38,23414.33,4131.9399999999987,"2020-07-15","2020-12-31",null,null,null,"gal.acoresoriental@gmail.com"]
[null,null,null,null,null,null,null,"MAR-04.03.01-FEAMP-0444","LUÍS MIGUEL HOMEM MARQUES DUARTE","Projecto de Animação Marítimo-Turística na Região de Sesimbra","ADREPES",10372384,26764.17,15798.93,6714.56,1184.9099999999999,"2020-03-15","2021-12-31",null,null,null,"natalia.henriques@adrepes.pt"]
[null,null,null,null,null,null,null,"MAR-04.03.01-FEAMP-0445","KAIROS - COOPERATIVA DE INCUBAÇÃO DE INICIATIVAS DE ECONOMIA SOLIDÁRIA C","Plano de Comunicação e Promoção de Cabaz Alimentar Mar e Terra - Fenais-a-Fenais","MARAÇORESORIENTAL",8766532,15845.01,12578.4,10691.64,1886.7600000000002,"2020-11-01","2021-05-31",null,null,null,"gal.acoresoriental@gmail.com"]
[null,null,null,null,null,null,null,"MAR-04.03.01-FEAMP-0447","LCPF - ULTRA AVENTURA SPORTS UNIPESSOAL LDA","Reforço e expansão da competitividade de ULTRA AVENTURA SPORTS","ADREPES",10354177,22933.85,22478.1,9553.2099999999991,1685.8600000000006,"2020-07-01","2020-12-31",null,null,null,"natalia.henriques@adrepes.pt"]
[null,null,null,null,null,null,null,"MAR-04.03.01-FEAMP-0448","FREGUESIA DE ACHADINHA","Recuperação do Moinho das Relvas e Trilho de Acesso","MARAÇORESORIENTAL",8344041,63599,63599,54059.15,9539.8499999999985,"2020-06-01","2021-12-31",null,null,null,"gal.acoresoriental@gmail.com"]
[null,null,null,null,null,null,null,"MAR-04.03.01-FEAMP-0449","TOMÁS DE SOUSA ANSELMO","Azores Boat Adventures","MARAÇORESORIENTAL",10365836,42890.9,42471.33,30685.54,5415.0899999999965,"2020-06-30","2021-12-31",null,null,null,"gal.acoresoriental@gmail.com"]
[null,null,null,null,null,null,null,"MAR-04.03.01-FEAMP-0451","MOFARPEIXE COMERCIO PEIXE, L.DA","Inovação Produtiva e Reforço da Competitividade da MOFARPEIXE","ADREPES",8259004,326735.09000000003,326735.09000000003,138862.42000000001,24505.129999999976,"2020-03-16","2020-12-31",null,null,null,"natalia.henriques@adrepes.pt"]
[null,null,null,null,null,null,null,"MAR-04.03.01-FEAMP-0456","AQUA - COOPERATIVA PARA O DESENVOLVIMENTO SUSTENTÁVEL DO MAR, CRL","Festival do Caldo de Peixe","MARAÇORESORIENTAL",9383777,53490.879999999997,30820,26197,4623,"2020-05-01","2021-11-30",null,null,null,"gal.acoresoriental@gmail.com"]
[null,null,null,null,null,null,null,"MAR-04.03.01-FEAMP-0459","AZZURRO, LDA","Criação e desenvolvimento de umMergulho Extended Range em Circuito Aberto e Circuito Fechado e Semi-fechado (Rebreathers) na Costa Norte da Ilha de S. Miguel.","MARAÇORESORIENTAL",9586847,109562.89,43272.71,31264.54,5517.260000000002,"2020-06-01","2023-12-31",null,null,null,"gal.acoresoriental@gmail.com"]
[null,null,null,null,null,null,null,"MAR-04.03.01-FEAMP-0460","ARTESANALPESCA-ORGANIZACAO DE PRODUTORES DE PESCA CRL","Automação linha embalamento pelágicos frescos","DRAPLVT",4912912,157826.04999999999,157582.39999999999,66972.52,11818.679999999993,"2019-09-20","2020-07-01",null,null,null,"decisoesmar2020@draplvt.gov.pt"]
[null,null,null,null,null,null,null,"MAR-04.03.01-FEAMP-0461","DOCAPESCA - PORTOS E LOTAS, S. A.","Posto de Registo e Transferência, Arranjos Exteriores e Reordenamento","A2S",7282212,121051.5,112091.5,95277.78,16813.72,"2020-06-01","2022-02-28",null,null,null,"geral@a2s.pt"]
[null,null,null,null,null,null,null,"MAR-04.03.01-FEAMP-0462","KAIROS - COOPERATIVA DE INCUBAÇÃO DE INICIATIVAS DE ECONOMIA SOLIDÁRIA C","Curso de Formação - Agentes Locais do Património Cultural, Natural e Social das Comunidades Piscatórias e Costeiras da costa norte de São Miguel","MARAÇORESORIENTAL",8766532,35820.14,28148.5,23926.23,4222.2700000000004,"2020-08-01","2020-12-31",null,null,null,"gal.acoresoriental@gmail.com"]
[null,null,null,null,null,null,null,"MAR-04.03.01-FEAMP-0463","UNIVERSIDADE DE COIMBRA","É Seco ou Fumado? - Produtos inovadores para a valorização do pescado","A2S",5233282,143428.15,109811.45,93339.75,16471.699999999997,"2020-07-01","2022-06-30",null,null,null,"geral@a2s.pt"]
[null,null,null,null,null,null,null,"MAR-04.03.01-FEAMP-0464","JOAQUIM JOSÉ ELIAS ROSALINO","Reforço da Competitividade do Turismo ","ADL",8140691,49659.99,44683.93,18990.669999999998,3351.3000000000029,"2020-10-01","2020-12-15",null,null,null,"adl.alentejano@mail.telepac.pt"]
[null,null,null,null,null,null,null,"MAR-04.03.01-FEAMP-0465","MOMENTOS DINÂMICOS, UNIPESSOAL LDA","MOMENTOS DE PARASAILING","BARLAVENTO",7753125,104307.36,101854.99,43288.37,7639.1299999999974,"2019-01-01","2020-12-31",null,null,null,"geral@ad-barlavento.pt"]
[null,null,null,null,null,null,null,"MAR-04.03.01-FEAMP-0466","MUNICÍPIO DE LAGOS","Conservação e Manutenção do Mercado de Peixe de Santo Amaro","DRAPALG",7402614,168657.27,168657.27,143358.68,25298.589999999997,"2019-10-21","2020-05-31",null,null,null,"Mar2020-ap@drapalg.min-agricultura.pt"]
[null,null,null,null,null,null,null,"MAR-04.03.01-FEAMP-0467"," DREAM WAVE - ACT MARIT-TUR, LDA","Reforço da frota da DREAMWAVE ","BARLAVENTO",8009536,327680,277179.32,117801.21,20788.449999999997,"2019-12-10","2021-02-01",null,null,null,"geral@ad-barlavento.pt"]
[null,null,null,null,null,null,null,"MAR-04.03.01-FEAMP-0468","OCEAN4FUN - ATIVIDADES MARÍTIMO-TURÍSTICAS, LDA","Diversificação da oferta da OCEAN4FUN","BARLAVENTO",9032365,62569.08,62569.08,26591.86,4692.68,"2019-08-31","2020-10-31",null,null,null,"geral@ad-barlavento.pt"]
[null,null,null,null,null,null,null,"MAR-04.03.01-FEAMP-0470","BLUEFLEET - ATIVIDADES TURÍSTICAS LDA","Aumento da frota da BLUEFLEET","BARLAVENTO",10377211,125971.36,63885.04,27151.14,4791.380000000001,"2020-01-20","2021-03-31",null,null,null,"geral@ad-barlavento.pt"]
[null,null,null,null,null,null,null,"MAR-04.03.01-FEAMP-0471","PASSEIODISSEIA, LDA","Expansão da DISCOVER TOURS - JETBOAT LAGOS","BARLAVENTO",8114152,172464,127682.93,54265.26,9576.2099999999991,"2019-03-27","2021-05-31",null,null,null,"geral@ad-barlavento.pt"]
[null,null,null,null,null,null,null,"MAR-04.03.01-FEAMP-0472","MUNICÍPIO DE PORTIMÃO","Musealização do Barco Portugal Primeiro","BARLAVENTO",7354623,621150,621150,424969.09,74994.549999999988,"2021-01-04","2023-01-04",null,null,null,"geral@ad-barlavento.pt"]
[null,null,null,null,null,null,null,"MAR-04.03.01-FEAMP-0473","MUNICÍPIO DE PORTIMÃO","Antiga Lota de Alvor - Espaço Polivalente","BARLAVENTO",7354623,283741.12,234005.28,198904.51,35100.76999999999,"2017-07-18","2021-12-28",null,null,null,"geral@ad-barlavento.pt"]
[null,null,null,null,null,null,null,"MAR-04.03.01-FEAMP-0474","CENTRO DE CIÊNCIAS DO MAR DO ALGARVE","Comunicação e ciência para uma AMPIC Inovadora","BARLAVENTO",7409073,199407,199348.1,169445.89,29902.209999999992,"2021-02-01","2023-01-31",null,null,null,"geral@ad-barlavento.pt"]
[null,null,null,null,null,null,null,"MAR-04.03.01-FEAMP-0476","UNIVERSIDADE DE COIMBRA","ValSargo: Valorização do Sargo da Costa Vicentina","BARLAVENTO",5233282,211670.6,78720,66912,11808,"2021-01-01","2022-12-31",null,null,null,"geral@ad-barlavento.pt"]
[null,null,null,null,null,null,null,"MAR-04.03.01-FEAMP-0477","FINISTERRA, S.A.","Finisterra – Reforço da Competitividade da Aquacultura","BARLAVENTO",7641614,390086,390086,165786.56,29256.440000000002,"2020-06-01","2022-12-31",null,null,null,"geral@ad-barlavento.pt"]
[null,null,null,null,null,null,null,"MAR-04.03.01-FEAMP-0480","UNIVERSIDADE DE COIMBRA","GreenFishingPort: Projecto-Piloto de Porto de pesca autossustentável","BARLAVENTO",5233282,189469.88,115005,97754.25,17250.75,"2021-01-01","2022-12-31",null,null,null,"geral@ad-barlavento.pt"]
[null,null,null,null,null,null,null,"MAR-04.03.01-FEAMP-0481","SOPROMAR - CENTRO NÁUTICO, LDª","Centro Náutico Sopromar | Novos Mercados","BARLAVENTO",10391184,413260.78,161625.5,68690.84,12121.910000000003,"2020-04-01","2020-12-31",null,null,null,"geral@ad-barlavento.pt"]
[null,null,null,null,null,null,null,"MAR-04.03.01-FEAMP-0482","MUNICIPIO DE ESPOSENDE","Armazém do gelo do Mercado Municipal de Esposende","DRAPN",7329834,63077.42,58819.68,49996.73,8822.9499999999971,"2020-07-15","2021-09-30",null,null,null,"adelaide.inacio@drapnorte.gov.pt"]
[null,null,null,null,null,null,null,"MAR-04.03.01-FEAMP-0483","FERNANDO MARIA DA SILVA","Melhoria das condições de transporte do pescado","ADL",7086045,22402.75,22402.75,9521.17,1680.2099999999991,"2020-06-16","2021-12-31",null,null,null,"adl.alentejano@mail.telepac.pt"]
[null,null,null,null,null,null,null,"MAR-04.03.01-FEAMP-0486","ROBERTO FRANCISCO CASTANHEIRA AROEIRA DA SILVA","Roberto Silva - Melhoria das condições de transporte do pescado","ADL",10380677,19390.97,19390.97,8241.16,1454.33,"2020-06-16","2021-12-31",null,null,null,"adl.alentejano@mail.telepac.pt"]
[null,null,null,null,null,null,null,"MAR-04.03.01-FEAMP-0488","CÂMARA MUNICIPAL DE VILA DO CONDE","Requalificação de Passadiços na Paisagem Protegida ","DRAPN",7493003,220296.3,220296.3,187251.85,33044.449999999983,"2020-08-01","2021-06-01",null,null,null,"adelaide.inacio@drapnorte.gov.pt"]
[null,null,null,null,null,null,null,"MAR-04.03.01-FEAMP-0490","LENDAS ALEATÓRIAS - LDA","Arrozal","ADL",10394445,85922.54,69026.8,29336.400000000001,5177.010000000002,"2020-12-01","2021-12-31",null,null,null,"adl.alentejano@mail.telepac.pt"]
[null,null,null,null,null,null,null,"MAR-04.03.01-FEAMP-0491","MUNICIPIO DE SINES","Roteiro Praias de Sines","DRAPAL",7492971,145354.04,145354.04,123550.94,21803.100000000006,"2020-01-01","2021-12-31",null,null,null,0]
[null,null,null,null,null,null,null,"MAR-04.03.01-FEAMP-0492","CAMARA MUNICIPAL DE MATOSINHOS","Passadiços da Orla Costeira - Matosinhos","DRAPN",7494521,2469556.5099999998,352941.18,300000.01,52941.169999999984,"2020-09-01","2022-03-01",null,null,null,"adelaide.inacio@drapnorte.gov.pt"]
[null,null,null,null,null,null,null,"MAR-04.03.01-FEAMP-0493","PAULO JORGE DA SILVA BATISTA","Reforço da pesca","ADL",7086165,30701.89,30701.89,13048.31,2302.6400000000012,"2020-07-01","2021-06-30",null,null,null,"adl.alentejano@mail.telepac.pt"]
[null,null,null,null,null,null,null,"MAR-04.03.01-FEAMP-0494","Município de Alcácer do Sal","CANT - Centro de Atividades Nauticas do Torrão","DRAPAL",8143213,261053.58,215464.68,183144.97,32319.709999999992,"2020-10-15","2021-12-31",null,null,null,0]
[null,null,null,null,null,null,null,"MAR-04.03.01-FEAMP-0498","UNIVERSIDADE CATÓLICA PORTUGUESA","ALGREEN – Valorização de espécies de algas invasoras da orla costeira dos concelhos de Matosinhos, Vila do Conde e Póvoa de Varzim","DRAPN",7213223,184990.89,178760.85,151946.74,26814.110000000015,"2020-10-01","2022-09-30",null,null,null,"adelaide.inacio@drapnorte.gov.pt"]
[null,null,null,null,null,null,null,"MAR-04.03.01-FEAMP-0503","MUNICIPIO DA PÓVOA DE VARZIM","VALORIZAÇÃO DAS MARGENS DO RIO ALTO","DRAPN",7648734,199657.8,199657.8,169709.13,29948.669999999984,"2020-07-01","2020-12-31",null,null,null,"adelaide.inacio@drapnorte.gov.pt"]
[null,null,null,null,null,null,null,"MAR-04.03.01-FEAMP-0504","MUNICIPIO DE ALBUFEIRA","Preservação e Conservação de Escadaria e Arriba da Praia do Peneco","BARLAVENTO",7498921,1062549.29,990060.66,424983.54,74997.090000000026,"2020-11-02","2021-04-30",null,null,null,"geral@ad-barlavento.pt"]
[null,null,null,null,null,null,null,"MAR-04.03.01-FEAMP-0505","MUNICÍPIO DE SILVES","Regeneração da Praia dos Pescadores de Armação de Pêra","BARLAVENTO",6206181,98113.52,87595.05,74455.789999999994,13139.260000000009,"2020-11-02","2021-06-30",null,null,null,"geral@ad-barlavento.pt"]
[null,null,null,null,null,null,null,"MAR-04.03.01-FEAMP-0506","TEIA D MPULSOS ASSOCIAÇÃO SOCIAL,CULTURAL E DESPORTIVA","EMA | Qualificação Escolar para o Meio Aquático","BARLAVENTO",10378036,250674.51,194927.23,165688.15,29239.080000000016,"2020-09-01","2022-08-31",null,null,null,"geral@ad-barlavento.pt"]
[null,null,null,null,null,null,null,"MAR-04.03.01-FEAMP-0509","BOATRIPS - ACTIVIDADES MARITIMO TURISTICAS,  LDA","Boatrips2020","BARLAVENTO",9151031,19796.91,16930,7195.25,1269.75,"2020-07-01","2020-09-30",null,null,null,"geral@ad-barlavento.pt"]
[null,null,null,null,null,null,null,"MAR-04.03.01-FEAMP-0515","WILDWATCH, UNIPESSOAL LDA","Aquisição de embarcação para observação de cetáceos","BARLAVENTO",10393554,89704.21,86450.31,36741.39,6483.7700000000041,"2019-11-15","2021-03-15",null,null,null,"geral@ad-barlavento.pt"]
[null,null,null,null,null,null,null,"MAR-04.03.01-FEAMP-0516","PAULO LUÍS MEDEIROS SOUSA","Paulo Luís Sousa - Atividades Marítimo Turísticas","MARAÇORESORIENTAL",10373503,67957.919999999998,67396.36,48693.88,8593.0400000000009,"2020-07-01","2020-07-31",null,null,null,"gal.acoresoriental@gmail.com"]
[null,null,null,null,null,null,null,"MAR-04.03.01-FEAMP-0519","FREGUESIA DE RABO DE PEIXE","Formar para a pesca ","MARAÇORESORIENTAL",8743011,19650.599999999999,11388.58,9680.2900000000009,1708.2899999999991,"2020-07-20","2020-12-31",null,null,null,"gal.acoresoriental@gmail.com"]
[null,null,null,null,null,null,null,"MAR-04.03.01-FEAMP-0520","MUNICIPIO DA RIBEIRA GRANDE","Feira Mar com Vida","MARAÇORESORIENTAL",7438803,65673.3,65673.3,55822.3,9851,"2020-08-10","2021-07-15",null,null,null,"gal.acoresoriental@gmail.com"]
[null,null,null,null,null,null,null,"MAR-04.03.01-FEAMP-0521","FREGUESIA DE RABO DE PEIXE","Rabo de Peixe - verde e azul","MARAÇORESORIENTAL",8743011,176312.88,150000,127500,22500,"2021-01-01","2021-06-30",null,null,null,"gal.acoresoriental@gmail.com"]
[null,null,null,null,null,null,null,"MAR-04.03.01-FEAMP-0522","D.C.PESCAS, LDA","CarrinhaOficina","MARAÇORESORIENTAL",6412052,87273.99,75503.960000000006,54551.6,9626.760000000002,"2020-12-01","2021-12-31",null,null,null,"gal.acoresoriental@gmail.com"]
[null,null,null,null,null,null,null,"MAR-04.03.01-FEAMP-0524","AQUA - COOPERATIVA PARA O DESENVOLVIMENTO SUSTENTÁVEL DO MAR, CRL","RESEMAR - Recolha Seletiva no Mar","MARAÇORESORIENTAL",9383777,20046,12623.64,10730.09,1893.5499999999993,"2020-10-01","2021-12-31",null,null,null,"gal.acoresoriental@gmail.com"]
[null,null,null,null,null,null,null,"MAR-04.03.01-FEAMP-0525","AQUA - COOPERATIVA PARA O DESENVOLVIMENTO SUSTENTÁVEL DO MAR, CRL"," Armazém ","MARAÇORESORIENTAL",9383777,99104.66,75000,63750,11250,"2020-10-01","2021-12-31",null,null,null,"gal.acoresoriental@gmail.com"]
[null,null,null,null,null,null,null,"MAR-04.03.01-FEAMP-0526","CLUBE NAVAL DE SANTA MARIA","FORMAÇÃO NÁUTICA PARA JOVENS","MARAÇORESORIENTAL",10373213,100000,85000,72250,12750,"2020-11-01","2021-08-31",null,null,null,{"$f":"VLOOKUP(K1156,S:T,2,FALSE)","v":"gal.acoresoriental@gmail.com"}]
[null,null,null,null,null,null,null,"MAR-04.03.01-FEAMP-0527","AQUA - COOPERATIVA PARA O DESENVOLVIMENTO SUSTENTÁVEL DO MAR, CRL","Peixe nos Açores","MARAÇORESORIENTAL",9383777,66080,55000,46750,8250,"2020-12-01","2022-07-31",null,null,null,"gal.acoresoriental@gmail.com"]
[null,null,null,null,null,null,null,"MAR-04.03.01-FEAMP-0529","PATRÍCIA CARLA DA COSTA PINTO","DO MAR À PORTA","MARAÇORESORIENTAL",10413085,18962.439999999999,18962.439999999999,13700.37,2417.7099999999991,"2020-11-01","2023-07-01",null,null,null,"gal.acoresoriental@gmail.com"]
[null,null,null,null,null,null,null,"MAR-04.03.01-FEAMP-0530","ATLANTAZOR, UNIPESSOAL, LDª","ATLANTAZOR BAR/RESTAURANTE","MARAÇORESORIENTAL",10369792,14658.05,14658.05,10590.45,1868.8899999999994,"2020-03-20","2023-07-01",null,null,null,"gal.acoresoriental@gmail.com"]
[null,null,null,null,null,null,null,"MAR-04.03.01-FEAMP-0531","MASCOTE ILHA AMARELA ,UNIPESSOAL LDA","Banquete Ilha Amarela","MARAÇORESORIENTAL",10374077,49649.68,48902.68,35332.199999999997,6235.0800000000017,"2020-08-01","2023-08-01",null,null,null,"gal.acoresoriental@gmail.com"]
[null,null,null,null,null,null,null,"MAR-04.03.01-FEAMP-0532","ASSOCIAÇÃO ESCRAVOS DA CADEÍNHA","Blues Bar/Restaurante","MARAÇORESORIENTAL",10373275,93076.41,88235.3,63750.02,11249.980000000003,"2020-08-01","2023-08-01",null,null,null,"gal.acoresoriental@gmail.com"]
[null,null,null,null,null,null,null,"MAR-04.03.01-FEAMP-0533","NUNO SÁ  - FOTOGRAFIA  E VÍDEO, UNIPESSOAL LDA","Concepção e produção de material informativo e promocional, em formato video, sobre a pesca de atum nos Açores para utilização em campanhas de sensibilização local","MARAÇORESORIENTAL",10420425,49687.42,43079.79,31125.17,5492.6500000000015,"2020-07-31","2021-03-01",null,null,null,"gal.acoresoriental@gmail.com"]
[null,null,null,null,null,null,null,"MAR-04.03.01-FEAMP-0535","MUNICÍPIO DE LAGOA, AÇORES","Projeto Náutica/0","MARAÇORESORIENTAL",7349517,99970.59,85000,72250,12750,"2021-01-01","2021-12-31",null,null,null,"gal.acoresoriental@gmail.com"]
[null,null,null,null,null,null,null,"MAR-04.03.01-FEAMP-0536","DETALHECRIM UNIPESSOAL LDA","Detalhalecrim Sea Tours","MARAÇORESORIENTAL",10423466,102000,88235.29,63750,11250,"2020-08-31","2023-07-31",null,null,null,"gal.acoresoriental@gmail.com"]
[null,null,null,null,null,null,null,"MAR-04.03.01-FEAMP-0537","ANPE - ASSOCIAÇÃO NAVAL DO PORTO DA ERICEIRA","aquisição de dois tratores","A2S",10413352,175150,175150,148877.5,26272.5,"2020-10-01","2021-03-31",null,null,null,"geral@a2s.pt"]
[null,null,null,null,null,null,null,"MAR-04.03.01-FEAMP-0539","ANÍBAL MALHEIRO RODRIGUES","Capacitaçao e inovação do mariscador Anibal Rodrigues","A2S",10421065,34849.5,34442.65,14638.13,2583.2000000000025,"2020-09-14","2021-11-30",null,null,null,"geral@a2s.pt"]
[null,null,null,null,null,null,null,"MAR-04.03.01-FEAMP-0540","JOÃO LUÍS DOS SANTOS SILVA","Capacitação do Mariscador João Silva","A2S",10421943,40827.89,39842.769999999997,16933.189999999999,2988.2000000000007,"2020-09-21","2021-09-30",null,null,null,"geral@a2s.pt"]
[null,null,null,null,null,null,null,"MAR-04.03.01-FEAMP-0541","MUNICIPIO DE CASCAIS","Valorização do Património Cultural e Marítimo do Cais de Aprestos de Cascais","DRAPLVT",7383383,186201.38,186201.38,158271.18,27930.200000000012,"2020-10-01","2021-09-30",null,null,null,"decisoesmar2020@draplvt.gov.pt"]
[null,null,null,null,null,null,null,"MAR-04.03.01-FEAMP-0546","MUNICÍPIO DA LOURINHÃ","Recuperação da Galeria Ripícola da Ribeira das Quebradas - Peralta","DRAPLVT",7376731,149990,149990,127491.5,22498.5,"2020-12-01","2021-06-02",null,null,null,"decisoesmar2020@draplvt.gov.pt"]
[null,null,null,null,null,null,null,"MAR-04.03.01-FEAMP-0567","TOMÁS DE CARVALHO BRETÃO E MELO MARTINS","Inovação na prestação serviços em atividades Maritimo-Turísticos","GRATER",10449815,46345.68,39276,28376.91,5007.6899999999987,"2021-01-01","2021-03-31",null,null,null,"grater@grater.pt"]
[null,null,null,null,null,null,null,"MAR-04.03.01-FEAMP-0568","EMANUEL SILVEIRA & FILHOS, ARMAZÉM DE FRIO, LDA","Modernizar e melhorar a atividade de transformação de pescado da empresa Emanuel Silveira e Filhos","GRATER",10419051,49293.35,47917.5,34620.400000000001,6109.4799999999959,"2020-10-16","2020-12-31",null,null,null,"grater@grater.pt"]
[null,null,null,null,null,null,null,"MAR-04.03.01-FEAMP-0570","MUNICIPIO DE ALCOBAÇA","Valorização e Reabilitação das Dunas em S.M. Porto","ADEPE",7339697,191504.67,174895.53,148661.20000000001,26234.329999999987,"2021-01-18","2021-06-30",null,null,null,"galpescaoeste@adepe.pt"]
[null,null,null,null,null,null,null,"MAR-04.03.01-FEAMP-0573","MUNICIPIO DE CALDAS DA RAINHA","Reconstrução e Reabilitação do Cais Palafítico e Observatório de Aves na Lagoa de Óbidos","ADEPE",7499433,238194.44,238194.44,202465.27,35729.170000000013,"2021-01-04","2021-12-30",null,null,null,"galpescaoeste@adepe.pt"]
[null,null,null,null,null,null,null,"MAR-04.03.01-FEAMP-0577","MUNICIPIO DE PENICHE","De Costa (En)Costa - Valorizar o património geológico no aspiring Geoparque Oeste - Litoral de Peniche","DRAPLVT",7335904,30750,30750,26137.5,4612.5,"2021-01-04","2021-12-31",null,null,null,"decisoesmar2020@draplvt.gov.pt"]
[null,null,null,null,null,null,null,"MAR-04.03.01-FEAMP-0578","MUNICIPIO DE PENICHE","Recuperação da Barca de Armação \"Júdice Fialho\"","DRAPLVT",7335904,28290,28290,24046.5,4243.5,"2021-01-04","2021-12-31",null,null,null,"decisoesmar2020@draplvt.gov.pt"]
[null,null,null,null,null,null,null,"MAR-04.03.01-FEAMP-0584","MUNICIPIO DA MARINHA GRANDE","CAIS FLUTUANTE NA FOZ DO RIO LIZ","DRAPC",7394937,46424.2,46424.2,39460.57,6963.6299999999974,"2020-04-20","2021-06-30",null,null,null,"diav@drapc.gov.pt"]
[null,null,null,null,null,null,null,"MAR-04.03.01-FEAMP-0589","FUNDAÇÃO GASPAR FRUTUOSO, FP","STORM – Projeto-piloto de implementação de um SisTema de mOnitorização de pRaias da ilha de São Miguel","MARAÇORESORIENTAL",8784464,99993.82,98131.82,83412.05,14719.770000000004,"2021-03-01","2023-09-30",null,null,null,"gal.acoresoriental@gmail.com"]
[null,null,null,null,null,null,null,"MAR-04.03.01-FEAMP-0594","FAT TUNA-COMERCIO DE PEIXE LDA","Ampliação e Inovação","MARAÇORESORIENTAL",8598365,111945.74,59494.92,42985.08,7585.5999999999985,"2020-01-01","2021-12-31",null,null,null,"gal.acoresoriental@gmail.com"]
[null,null,null,null,null,null,null,"MAR-04.03.01-FEAMP-0595","COOPERATIVA DE ECONOMIA SOLIDÁRIA PESCADORES DE RIBEIRA QUENTE CRL","ROcMi","MARAÇORESORIENTAL",9340372,47200,35000,29750,5250,"2021-04-01","2023-03-31",null,null,null,"gal.acoresoriental@gmail.com"]
[null,null,null,null,null,null,null,"MAR-05.01.01-FEAMP-000001","CAPA-COOPERATIVA DOS ARMADORES DA PESCA ARTESANAL CRL","Planos de produção e comercialização da CAPA","DGRM",5168965,41238.76,29920.67,16830.419999999998,5610.1400000000031,"2014-01-01","2016-12-31",null,null,null,"ifferreira@dgrm.mm.gov.pt"]
[null,null,null,null,null,null,null,"MAR-05.01.01-FEAMP-000002","APROPESCA ORGANIZAÇÃO DE PRODUTORES DA PESCA ARTESANAL","Planos de produção e comercialização da APROPESCA","DGRM",5169841,279732.73,225626.89,126915.57,42305.179999999993,"2014-01-01","2016-12-31",null,null,null,"ifferreira@dgrm.mm.gov.pt"]
[null,null,null,null,null,null,null,"MAR-05.01.01-FEAMP-000003","OPCENTRO-COOPERATIVA DA PESCA GERAL DE CENTRO C.R.L.","Planos de produção e de comercialização da OPCENTRO","DGRM",4913857,294863.52,209232.35,117693.44,39231.139999999985,"2014-01-01","2016-12-31",null,null,null,"ifferreira@dgrm.mm.gov.pt"]
[null,null,null,null,null,null,null,"MAR-05.01.01-FEAMP-000004","OLHAOPESCA - ORGANIZACAO DE PRODUTORES DE PESCA DO ALGARVE CRL","Planos de produção e comercialização da OLHÃOPESCA","DGRM",5826466,51879.74,50891.72,28626.61,9542.1999999999971,"2014-01-01","2016-12-31",null,null,null,"ifferreira@dgrm.mm.gov.pt"]
[null,null,null,null,null,null,null,"MAR-05.01.01-FEAMP-000005","ARTESANALPESCA-ORGANIZACAO DE PRODUTORES DE PESCA CRL","Planos de produção e comercialização da ARTESANALPESCA","DGRM",4912912,435152.05,393237.69,221196.25,73732.080000000016,"2014-01-01","2016-12-31",null,null,null,"ifferreira@dgrm.mm.gov.pt"]
[null,null,null,null,null,null,null,"MAR-05.01.01-FEAMP-000006","COOPERATIVA DE PRODUTORES DE PEIXE DO CENTRO LITORAL CRL","Planos de produção e comercialização da Centro Litoral","DGRM",5628165,96764.77,64340.36,36191.660000000003,12063.89,"2014-01-01","2016-12-31",null,null,null,"ifferreira@dgrm.mm.gov.pt"]
[null,null,null,null,null,null,null,"MAR-05.01.01-FEAMP-000007","VIANAPESCA-O.P.-COOPERATIVA DE PRODUTORES DE PEIXE DE VIANA DO CASTELO","Planos de produção e comercialização da VIANAPESCA","DGRM",5168957,222036.51,222036.51,124895.53,41631.839999999997,"2014-01-01","2016-12-31",null,null,null,"ifferreira@dgrm.mm.gov.pt"]
[null,null,null,null,null,null,null,"MAR-05.01.01-FEAMP-000010","PROPEIXE O.P.- COOP.DE PRODUTORES DE PEIXE DO NORTE CRL","Planos Produção e Comercialização da PROPEIXE","DGRM",4907002,381339.26,286697.27,161268.31,53756.09,"2014-01-01","2017-03-31",null,null,null,"ifferreira@dgrm.mm.gov.pt"]
[null,null,null,null,null,null,null,"MAR-05.01.01-FEAMP-000011","SESIBAL-COOPERATIVA DE PESCAS DE SETUBAL,SESIMBRA E SINES CRL","Planos de produção e de Comercialização da SESIBAL","DGRM",4910607,221439.87,176158.76,99089.71,33029.89999999998,"2014-01-01","2016-12-31",null,null,null,"ifferreira@dgrm.mm.gov.pt"]
[null,null,null,null,null,null,null,"MAR-05.01.01-FEAMP-0012","BIVALMAR - ORGANIZAÇÃO DE PRODUTORES, CRL","Plano de produção e comercialização da Bivalmar","DGRM",7359721,87795.34,49735.48,27976.3,9325.4200000000019,"2014-01-01","2016-12-31",null,null,null,"ifferreira@dgrm.mm.gov.pt"]
[null,null,null,null,null,null,null,"MAR-05.01.01-FEAMP-0013","A.P.A.R.A. - ASSOCIAÇÃO DE PESCA ARTESANAL DA REGIÃO DE AVEIRO","Plano de Produção e Comercialização Plurianual - 2014, 2015 e 2016","DGRM",7544372,214559.75,206386.01,114389.01,38129.660000000018,"2014-01-01","2018-04-30",null,null,null,"ifferreira@dgrm.mm.gov.pt"]
[null,null,null,null,null,null,null,"MAR-05.01.01-FEAMP-0014","CAPA-COOPERATIVA DOS ARMADORES DA PESCA ARTESANAL CRL","Planos de Produção e Comercialização dos anos 2017 e 2018","DGRM",5168965,23019.73,17513.79,9851.5300000000007,3283.84,"2017-01-01","2018-12-31",null,null,null,"ifferreira@dgrm.mm.gov.pt"]
[null,null,null,null,null,null,null,"MAR-05.01.01-FEAMP-0015","APROPESCA ORGANIZAÇÃO DE PRODUTORES DA PESCA ARTESANAL","APROPESCA  - Plano Prod. e Com. 2017 e 2018","DGRM",5169841,627600,243196.24,136798.31,45599.429999999993,"2017-01-01","2018-12-31",null,null,null,"ifferreira@dgrm.mm.gov.pt"]
[null,null,null,null,null,null,null,"MAR-05.01.01-FEAMP-0016","COOPERATIVA DE PRODUTORES DE PEIXE DO CENTRO LITORAL CRL","Melhoria da Rentabilidade Económica do produto da pesca e estabelização mercado","DGRM",5628165,288578.73,215319.37,121117.33,40372.439999999988,"2017-01-01","2018-12-31",null,null,null,"ifferreira@dgrm.mm.gov.pt"]
[null,null,null,null,null,null,null,"MAR-05.01.01-FEAMP-0017","ARTESANALPESCA-ORGANIZACAO DE PRODUTORES DE PESCA CRL","Plano de Produção e Comercialização para os anos de 2017 e 2018","DGRM",4912912,911731.74,903877.05,508430.86,169476.94000000006,"2017-01-01","2019-04-16",null,null,null,"ifferreira@dgrm.mm.gov.pt"]
[null,null,null,null,null,null,null,"MAR-05.01.01-FEAMP-0018","SESIBAL-COOPERATIVA DE PESCAS DE SETUBAL,SESIMBRA E SINES CRL","Planos de Produção e de Comercialização 2017-2018","DGRM",4910607,270207.5,237645.86,133676.20000000001,44558.729999999981,"2017-01-01","2018-12-31",null,null,null,"ifferreira@dgrm.mm.gov.pt"]
[null,null,null,null,null,null,null,"MAR-05.01.01-FEAMP-0020","A.P.A.R.A. - ASSOCIAÇÃO DE PESCA ARTESANAL DA REGIÃO DE AVEIRO","PREPARAÇÃO E EXECUÇÃO DOS PLANOS DE PRODUÇÃO E DE COMERCIALIZAÇÃO","DGRM",7544372,160579.59,148290.29,83413.39,27804.460000000006,"2017-01-01","2018-12-31",null,null,null,"ifferreira@dgrm.mm.gov.pt"]
[null,null,null,null,null,null,null,"MAR-05.01.01-FEAMP-0021","PROPEIXE O.P.- COOP.DE PRODUTORES DE PEIXE DO NORTE CRL","PROPEIXE - P.O. 2017 e 2018","DGRM",4907002,1031863.58,707470.36,397953.53,132651.16999999993,"2017-01-01","2019-03-31",null,null,null,"ifferreira@dgrm.mm.gov.pt"]
[null,null,null,null,null,null,null,"MAR-05.01.01-FEAMP-0023","VIANAPESCA-O.P.-COOPERATIVA DE PRODUTORES DE PEIXE DE VIANA DO CASTELO","VIANAPESCA o.p - P.O. 2017 / 2018","DGRM",5168957,232241.94,225504.37,126846.43,42282.140000000014,"2017-01-01","2020-06-30",null,null,null,"ifferreira@dgrm.mm.gov.pt"]
[null,null,null,null,null,null,null,"MAR-05.01.01-FEAMP-0026","BIVALMAR - ORGANIZAÇÃO DE PRODUTORES, CRL","Planos de Produção e Comercialização 2017 e 2018","DGRM",7359721,83474.42,56086.38,31548.63,10516.209999999995,"2017-01-01","2018-12-31",null,null,null,"ifferreira@dgrm.mm.gov.pt"]
[null,null,null,null,null,null,null,"MAR-05.01.01-FEAMP-0027","OPCENTRO-COOPERATIVA DA PESCA GERAL DE CENTRO C.R.L.","Planos de Produção e Comercialização","DGRM",4913857,293758.12,188357.36,105951.3,35317.090000000011,"2017-01-01","2019-07-15",null,null,null,"ifferreira@dgrm.mm.gov.pt"]
[null,null,null,null,null,null,null,"MAR-05.01.01-FEAMP-0028","BARLAPESCAS-COOPERATIVA DOS ARMADORES DE PESCA DO BARLAVENTO CRL","Planos de Produção e de Comercialização","DGRM",5021955,55867.9,50748.89,28546.25,9515.4199999999983,"2017-01-01","2019-02-28",null,null,null,"ifferreira@dgrm.mm.gov.pt"]
[null,null,null,null,null,null,null,"MAR-05.01.01-FEAMP-0029","OLHAOPESCA - ORGANIZACAO DE PRODUTORES DE PESCA DO ALGARVE CRL","Planos de Produção e Comercialização 2017/2018","DGRM",5826466,47002.82,36498.629999999997,20530.490000000002,6843.5,"2017-01-01","2018-12-31",null,null,null,"ifferreira@dgrm.mm.gov.pt"]
[null,null,null,null,null,null,null,"MAR-05.01.01-FEAMP-0030","CAPA-COOPERATIVA DOS ARMADORES DA PESCA ARTESANAL CRL","Preparação e execução dos planos de produção e comercialização da CAPA OP","DGRM",5168965,21544.82,18981.810000000001,10677.26,3559.09,"2019-01-01","2019-12-31",null,null,null,"ifferreira@dgrm.mm.gov.pt"]
[null,null,null,null,null,null,null,"MAR-05.01.01-FEAMP-0032","OLHAOPESCA - ORGANIZACAO DE PRODUTORES DE PESCA DO ALGARVE CRL","Plano de Produção e de Comercialização 2019","DGRM",5826466,37445.879999999997,31953.87,17974.09,5991.3600000000006,"2019-01-01","2019-12-31",null,null,null,"ifferreira@dgrm.mm.gov.pt"]
[null,null,null,null,null,null,null,"MAR-05.01.01-FEAMP-0035","BARLAPESCAS-COOPERATIVA DOS ARMADORES DE PESCA DO BARLAVENTO CRL","Planos de Produção e Comercialização","DGRM",5021955,168617.58,15560.63,8752.86,2917.619999999999,"2019-01-01","2019-12-31",null,null,null,"ifferreira@dgrm.mm.gov.pt"]
[null,null,null,null,null,null,null,"MAR-05.01.01-FEAMP-0037","ARTESANALPESCA-ORGANIZACAO DE PRODUTORES DE PESCA CRL","Plano de Produção e comercialização 2019","DGRM",4912912,587082.30000000005,476988.51,268306.02,89435.339999999967,"2019-01-01","2020-06-30",null,null,null,"ifferreira@dgrm.mm.gov.pt"]
[null,null,null,null,null,null,null,"MAR-05.01.01-FEAMP-0039","APROPESCA ORGANIZAÇÃO DE PRODUTORES DA PESCA ARTESANAL","Planos de Produção e Comercialização","DGRM",5169841,142281.93,140430.88,78992.37,26330.790000000008,"2019-01-01","2019-12-31",null,null,null,"ifferreira@dgrm.mm.gov.pt"]
[null,null,null,null,null,null,null,"MAR-05.01.01-FEAMP-0040","SESIBAL-COOPERATIVA DE PESCAS DE SETUBAL,SESIMBRA E SINES CRL","PLANOS DE PRODUÇÃO E COMERCIALIZAÇÃO 2019","DGRM",4910607,195110.39999999999,100193.72,56359.22,18786.399999999994,"2019-01-01","2019-12-31",null,null,null,"ifferreira@dgrm.mm.gov.pt"]
[null,null,null,null,null,null,null,"MAR-05.01.01-FEAMP-0042","OPCENTRO-COOPERATIVA DA PESCA GERAL DE CENTRO C.R.L.","Plano de Produção e Comercialização 2019","DGRM",4913857,331182.01,329182.38,185165.1,61721.69,"2019-01-01","2019-12-31",null,null,null,"ifferreira@dgrm.mm.gov.pt"]
[null,null,null,null,null,null,null,"MAR-05.01.01-FEAMP-0044","A.P.A.R.A. - ASSOCIAÇÃO DE PESCA ARTESANAL DA REGIÃO DE AVEIRO","Promover a comercialização e a transformação dos produtos da pesca e aquicultura","DGRM",7544372,165179.82999999999,94484.9,53147.76,17715.919999999991,"2019-01-01","2019-12-31",null,null,null,"ifferreira@dgrm.mm.gov.pt"]
[null,null,null,null,null,null,null,"MAR-05.01.01-FEAMP-0045","COOPERATIVA DE PRODUTORES DE PEIXE DO CENTRO LITORAL CRL","Plano de Produção e Comercialização 2019","DGRM",5628165,285432.5,279774.92,157373.4,52457.800000000017,"2019-01-01","2019-12-31",null,null,null,"ifferreira@dgrm.mm.gov.pt"]
[null,null,null,null,null,null,null,"MAR-05.01.01-FEAMP-0046","VIANAPESCA-O.P.-COOPERATIVA DE PRODUTORES DE PEIXE DE VIANA DO CASTELO","Plano de Produção e de Comercialização para 2019","DGRM",5168957,114496.63,109036.37,61333.15,20444.379999999997,"2019-01-01","2019-12-31",null,null,null,"ifferreira@dgrm.mm.gov.pt"]
[null,null,null,null,null,null,null,"MAR-05.01.01-FEAMP-0047","BIVALMAR - ORGANIZAÇÃO DE PRODUTORES, CRL","Preaparação e Execução dos Planos de Produção e Comercialização","DGRM",7359721,64251.040000000001,53276.84,29968.22,9989.4099999999962,"2019-01-01","2019-12-31",null,null,null,"ifferreira@dgrm.mm.gov.pt"]
[null,null,null,null,null,null,null,"MAR-05.01.01-FEAMP-0048","PROPEIXE O.P.- COOP.DE PRODUTORES DE PEIXE DO NORTE CRL","Planos de Produção e Comercialização para 2019 da Propeixe, OP","DGRM",4907002,460347.35,378394.2,212847.67,70949.22,"2019-01-01","2020-06-30",null,null,null,"ifferreira@dgrm.mm.gov.pt"]
[null,null,null,null,null,null,null,"MAR-05.01.01-FEAMP-0049","CAPA-COOPERATIVA DOS ARMADORES DA PESCA ARTESANAL CRL","Preparação e Execução dos Planos de produção e Comercialização da CAPA OP","DGRM",5168965,17500,12652.5,7117.04,2372.3499999999995,"2020-05-15","2020-06-15",null,null,null,"ifferreira@dgrm.mm.gov.pt"]
[null,null,null,null,null,null,null,"MAR-05.01.01-FEAMP-0050","PROPEIXE O.P.- COOP.DE PRODUTORES DE PEIXE DO NORTE CRL","Planos de Produção e Comercialização para 2020 da Propeixe, OP - Covid 19","DGRM",4907002,92790.73,35458.97,19945.71,6648.5600000000013,"2020-01-01","2020-12-31",null,null,null,"ifferreira@dgrm.mm.gov.pt"]
[null,null,null,null,null,null,null,"MAR-05.01.01-FEAMP-0051","OLHAOPESCA - ORGANIZACAO DE PRODUTORES DE PESCA DO ALGARVE CRL","Planos de Produção e de Comercialização ","DGRM",5826466,65776.12,65776.12,36999.08,12333.019999999997,"2020-01-01","2020-12-31",null,null,null,"ifferreira@dgrm.mm.gov.pt"]
[null,null,null,null,null,null,null,"MAR-05.01.01-FEAMP-0052","OPCENTRO-COOPERATIVA DA PESCA GERAL DE CENTRO C.R.L.","COVID","DGRM",4913857,28361.68,28361.68,15953.48,5317.7900000000009,"2020-01-01","2020-12-31",null,null,null,"ifferreira@dgrm.mm.gov.pt"]
[null,null,null,null,null,null,null,"MAR-05.01.01-FEAMP-0053","OLHAOPESCA - ORGANIZACAO DE PRODUTORES DE PESCA DO ALGARVE CRL","Plano de Produção e de Comercialização 2020 (Aquisição de materiais, equipamentos e serviços com vista à mitigação do contágio do COVID-19)","DGRM",5826466,6400,6400,3600,1200,"2020-05-26","2020-12-31",null,null,null,"ifferreira@dgrm.mm.gov.pt"]
[null,null,null,null,null,null,null,"MAR-05.01.01-FEAMP-0054","APROPESCA ORGANIZAÇÃO DE PRODUTORES DA PESCA ARTESANAL","PPC - COVID","DGRM",5169841,42538.7,41799.51,23512.23,7837.41,"2020-01-01","2020-12-31",null,null,null,{"$f":"VLOOKUP(K1220,S:T,2,FALSE)","v":"ifferreira@dgrm.mm.gov.pt"}]
[null,null,null,null,null,null,null,"MAR-05.01.01-FEAMP-0055","ARTESANALPESCA-ORGANIZACAO DE PRODUTORES DE PESCA CRL","Plano de Produção e Comercialização 2020","DGRM",4912912,1967827.17,1967827.17,1106903.56,368966.93999999994,"2020-01-01","2020-12-31",null,null,null,"ifferreira@dgrm.mm.gov.pt"]
[null,null,null,null,null,null,null,"MAR-05.01.01-FEAMP-0056","COOPERATIVA DE PRODUTORES DE PEIXE DO CENTRO LITORAL CRL","Plano Produção e Comerciaçização 2020","DGRM",5628165,4399.3599999999997,4399.3500000000004,2474.64,824.88000000000011,"2020-01-01","2020-12-31",null,null,null,"ifferreira@dgrm.mm.gov.pt"]
[null,null,null,null,null,null,null,"MAR-05.01.01-FEAMP-0058","OPCENTRO-COOPERATIVA DA PESCA GERAL DE CENTRO C.R.L.","Plano de Produção e Comercialização 2020","DGRM",4913857,339463.1,339463.1,190948.11,63649.25,"2020-01-01","2020-12-31",null,null,null,"ifferreira@dgrm.mm.gov.pt"]
[null,null,null,null,null,null,null,"MAR-05.01.01-FEAMP-0059","BARLAPESCAS-COOPERATIVA DOS ARMADORES DE PESCA DO BARLAVENTO CRL","Planos de Produção e Comercialização","DGRM",5021955,220598.76,198051.6,111404.03,37134.670000000013,"2020-01-01","2021-01-31",null,null,null,"ifferreira@dgrm.mm.gov.pt"]
[null,null,null,null,null,null,null,"MAR-05.01.01-FEAMP-0060","PROPEIXE O.P.- COOP.DE PRODUTORES DE PEIXE DO NORTE CRL","Planos de Produção e Comercialização para 2020 da Propeixe OP","DGRM",4907002,497787.23,473643.72,266424.81,88808.080000000016,"2020-01-01","2020-12-31",null,null,null,"ifferreira@dgrm.mm.gov.pt"]
[null,null,null,null,null,null,null,"MAR-05.01.01-FEAMP-0061","ASSOCIAÇÃO DOS PRODUTORES DE PESCA DO LITORAL NORTE . APPLN","Plano de Produção e Comercialização para 2020 - APPLN","DGRM",10441673,56335.29,56335.29,31688.61,10562.86,"2020-01-01","2020-12-31",null,null,null,"ifferreira@dgrm.mm.gov.pt"]
[null,null,null,null,null,null,null,"MAR-05.01.01-FEAMP-0062","CAPA-COOPERATIVA DOS ARMADORES DA PESCA ARTESANAL CRL","Preparação, Execução dos Planos de Produção e Comercialização da CAPA OP","DGRM",5168965,27538.14,27538.14,15490.21,5163.4000000000015,"2020-01-01","2020-12-31",null,null,null,"ifferreira@dgrm.mm.gov.pt"]
[null,null,null,null,null,null,null,"MAR-05.01.01-FEAMP-0063","SESIBAL-COOPERATIVA DE PESCAS DE SETUBAL,SESIMBRA E SINES CRL","PLANOS DE PRODUÇÃO E COMERCIALIZAÇÃO 2020","DGRM",4910607,305927.58,305762.81,171991.66,57330.47,"2020-01-01","2020-12-31",null,null,null,"ifferreira@dgrm.mm.gov.pt"]
[null,null,null,null,null,null,null,"MAR-05.01.01-FEAMP-0065","VIANAPESCA-O.P.-COOPERATIVA DE PRODUTORES DE PEIXE DE VIANA DO CASTELO","Plano de Produção e de Comercialização para 2020","DGRM",5168957,132327.92000000001,132327.92000000001,74434.47,24811.47,"2020-01-01","2021-01-31",null,null,null,"ifferreira@dgrm.mm.gov.pt"]
[null,null,null,null,null,null,null,"MAR-05.01.01-FEAMP-0066","COOPERATIVA DE PRODUTORES DE PEIXE DO CENTRO LITORAL CRL","Plano Produção e Comercialização 2020","DGRM",5628165,411317.07,411317.06,231366.07,77121.820000000007,"2020-01-01","2020-12-31",null,null,null,"ifferreira@dgrm.mm.gov.pt"]
[null,null,null,null,null,null,null,"MAR-05.01.01-FEAMP-0067","APROPESCA ORGANIZAÇÃO DE PRODUTORES DA PESCA ARTESANAL","Planos de Produção e Comercialização 2020","DGRM",5169841,179378.71,179378.71,100900.56,33633.489999999991,"2020-01-01","2020-12-31",null,null,null,"ifferreira@dgrm.mm.gov.pt"]
[null,null,null,null,null,null,null,"MAR-05.01.01-FEAMP-0068","BIVALMAR - ORGANIZAÇÃO DE PRODUTORES, CRL","Preparação e Execução dos Planos de Produção e Comercialização ","DGRM",7359721,59688.24,59688.24,33574.660000000003,11191.529999999999,"2020-01-01","2020-12-31",null,null,null,"ifferreira@dgrm.mm.gov.pt"]
[null,null,null,null,null,null,null,"MAR-05.01.01-FEAMP-0069","A.P.A.R.A. - ASSOCIAÇÃO DE PESCA ARTESANAL DA REGIÃO DE AVEIRO","Promover a comercialização e a transformação dos produtos da pesca e aquicultura ","DGRM",7544372,110518.31,110398.31,62099.06,20699.669999999998,"2020-01-01","2021-01-31",null,null,null,"ifferreira@dgrm.mm.gov.pt"]
[null,null,null,null,null,null,null,"MAR-05.02.01-FEAMP-0001","ALIF - ASSOCIAÇÃO DA INDÚSTRIA ALIMENTAR PELO FRIO","Participação de Portugal na ESE 2016 e 2017","DRAPLVT",7270516,725399.11,725399.11,326429.59999999998,108809.86000000004,"2015-07-29","2017-06-30",null,null,null,"decisoesmar2020@draplvt.gov.pt"]
[null,null,null,null,null,null,null,"MAR-05.02.01-FEAMP-0002","ASSOCIAÇÃO DOS COMERCIANTES DE PESCADO (ACOPE)","FEIRA SIAL PARIS - FRANÇA - 2016","DRAPLVT",7373477,162120.75,159585.34,71813.399999999994,23937.800000000003,"2015-12-01","2017-02-28",null,null,null,"decisoesmar2020@draplvt.gov.pt"]
[null,null,null,null,null,null,null,"MAR-05.02.01-FEAMP-0003","DOCAPESCA - PORTOS E LOTAS, S. A.","VALORIZAÇÃO DOS PRODUTOS DA PESCA E AQUACULTURA - DO BARCO AO PRATO","DRAPLVT",7282212,278500,229694.82,172271.12,57423.700000000012,"2016-01-01","2018-09-30",null,null,null,"decisoesmar2020@draplvt.gov.pt"]
[null,null,null,null,null,null,null,"MAR-05.02.01-FEAMP-0005","ALIF - ASSOCIAÇÃO DA INDÚSTRIA ALIMENTAR PELO FRIO","Feira Internacional ANUGA 2017 - Colónia - Alemanha","DRAPLVT",7270516,193496.36,170362.14,76662.960000000006,25554.319999999992,"2017-08-07","2017-12-31",null,null,null,"decisoesmar2020@draplvt.gov.pt"]
[null,null,null,null,null,null,null,"MAR-05.02.01-FEAMP-0007","ASSOCIAÇÃO DOS COMERCIANTES DE PESCADO (ACOPE)","Feira Internacional Seafood Expo North America  2017 em Boston","DRAPLVT",7373477,370216.27,328229.55,246172.16,82057.389999999985,"2016-12-23","2017-06-30",null,null,null,"decisoesmar2020@draplvt.gov.pt"]
[null,null,null,null,null,null,null,"MAR-05.02.01-FEAMP-0008","DOCAPESCA - PORTOS E LOTAS, S. A.","PARTICIPAÇÃO NA FEIRA SISAB 2017","DRAPLVT",7282212,54500,54328.22,40746.17,13582.050000000003,"2017-03-01","2017-05-31",null,null,null,"decisoesmar2020@draplvt.gov.pt"]
[null,null,null,null,null,null,null,"MAR-05.02.01-FEAMP-0009","DOCAPESCA - PORTOS E LOTAS, S. A.","VALORIZAÇÃO DOS PRODUTOS DA PESCA E AQUACULTURA - DO BARCO AO PRATO -  2017","DRAPLVT",7282212,406500,198821.78,149116.34,49705.440000000002,"2017-01-01","2020-01-31",null,null,null,"decisoesmar2020@draplvt.gov.pt"]
[null,null,null,null,null,null,null,"MAR-05.02.01-FEAMP-0012","ALIF - ASSOCIAÇÃO DA INDÚSTRIA ALIMENTAR PELO FRIO","PESCADO CONTROLADO IV","DRAPLVT",7270516,1299459.7,649729.85,487297.39,162432.45999999996,"2018-10-12","2021-12-31",null,null,null,"decisoesmar2020@draplvt.gov.pt"]
[null,null,null,null,null,null,null,"MAR-05.02.01-FEAMP-0013","DOCAPESCA - PORTOS E LOTAS, S. A.","Plano de Comunicação de Produtos da Pesca e da Aquacultura","DRAPLVT",7282212,61750,58682.68,44012.01,14670.669999999998,"2017-01-01","2020-01-31",null,null,null,"decisoesmar2020@draplvt.gov.pt"]
[null,null,null,null,null,null,null,"MAR-05.02.01-FEAMP-0014","DOCAPESCA - PORTOS E LOTAS, S. A.","Rede Nacional de Circuitos Curtos de Comercialização de Pescado","DRAPLVT",7282212,35000,35000,26250,8750,"2017-06-01","2020-01-31",null,null,null,"decisoesmar2020@draplvt.gov.pt"]
[null,null,null,null,null,null,null,"MAR-05.02.01-FEAMP-0015","DOCAPESCA - PORTOS E LOTAS, S. A.","INOVAÇÃO NOS PRODUTOS DA PESCA E AQUACULTURA","DRAPLVT",7282212,9500,9500,7125,2375,"2017-05-01","2019-04-30",null,null,null,"decisoesmar2020@draplvt.gov.pt"]
[null,null,null,null,null,null,null,"MAR-05.02.01-FEAMP-0016","LUGRADE-BACALHAU DE COIMBRA, S.A.","Realização de campanhas promocionais para os produtos da pesca (bacalhau)","DRAPC",7136743,179134.88,179134.87,67175.58,22391.849999999991,"2016-01-01","2019-12-31",null,null,null,"diav@drapc.gov.pt"]
[null,null,null,null,null,null,null,"MAR-05.02.01-FEAMP-0017","ALIF - ASSOCIAÇÃO DA INDÚSTRIA ALIMENTAR PELO FRIO","Feira Internacional Conxemar 2017","DRAPLVT",7270516,114764.93,92598,41669.1,13889.700000000004,"2017-05-02","2018-01-15",null,null,null,"decisoesmar2020@draplvt.gov.pt"]
[null,null,null,null,null,null,null,"MAR-05.02.01-FEAMP-0018","DOCAPESCA - PORTOS E LOTAS, S. A.","PORTUGAL É MAR","DRAPLVT",7282212,120600,59500,44625,14875,"2017-03-01","2020-02-15",null,null,null,"decisoesmar2020@draplvt.gov.pt"]
[null,null,null,null,null,null,null,"MAR-05.02.01-FEAMP-0020","DIRECÇÃO-GERAL DE POLÍTICA DO MAR","ESPAÇO DO MAR - O MELHOR PEIXE II","DRAPLVT",8013252,151014,49378.35,37033.760000000002,12344.589999999997,"2017-09-20","2017-12-31",null,null,null,"decisoesmar2020@draplvt.gov.pt"]
[null,null,null,null,null,null,null,"MAR-05.02.01-FEAMP-0022","ALIF - ASSOCIAÇÃO DA INDÚSTRIA ALIMENTAR PELO FRIO","Feiras Seafood Brussels 2018 e 2019 e Conxemar Lisboa 2019","DRAPLVT",7270516,1167204.3400000001,578466.35,260309.85,86769.959999999992,"2017-08-04","2019-12-31",null,null,null,"decisoesmar2020@draplvt.gov.pt"]
[null,null,null,null,null,null,null,"MAR-05.02.01-FEAMP-0025","ALIF - ASSOCIAÇÃO DA INDÚSTRIA ALIMENTAR PELO FRIO","Feira Internacional Tuttofood 2019 - Milão-Itália","DRAPLVT",7270516,167569.43,165545.25,74495.37,24831.78,"2018-01-01","2020-03-31",null,null,null,"decisoesmar2020@draplvt.gov.pt"]
[null,null,null,null,null,null,null,"MAR-05.02.01-FEAMP-0026","ALIF - ASSOCIAÇÃO DA INDÚSTRIA ALIMENTAR PELO FRIO","Feira Internacional Conxemar 2018 - Vigo-Espanha","DRAPLVT",7270516,119337.9,112221.49,50499.67,16833.22,"2018-01-01","2018-12-31",null,null,null,"decisoesmar2020@draplvt.gov.pt"]
[null,null,null,null,null,null,null,"MAR-05.02.01-FEAMP-0027","ASSOCIAÇÃO DOS COMERCIANTES DE PESCADO (ACOPE)","FEIRA SIAL PARIS 2018","DRAPLVT",7373477,229677.86,220823.53,99370.6,33123.51999999999,"2017-12-21","2019-07-31",null,null,null,"decisoesmar2020@draplvt.gov.pt"]
[null,null,null,null,null,null,null,"MAR-05.02.01-FEAMP-0028","DOCAPESCA - PORTOS E LOTAS, S. A.","Produção de Web-Docs sobre a Indústria Conserveira","DRAPLVT",7282212,74950,74950,56212.5,18737.5,"2018-08-01","2019-11-30",null,null,null,"decisoesmar2020@draplvt.gov.pt"]
[null,null,null,null,null,null,null,"MAR-05.02.01-FEAMP-0034","DOCAPESCA - PORTOS E LOTAS, S. A.","Campanha de Promoção do Carapau","DRAPLVT",7282212,324831.76,304984.96999999997,228738.73,76246.239999999962,"2018-03-01","2020-02-15",null,null,null,"decisoesmar2020@draplvt.gov.pt"]
[null,null,null,null,null,null,null,"MAR-05.02.01-FEAMP-0036","DOCAPESCA - PORTOS E LOTAS, S. A.","CAMPANHA DE RÁDIO - PESCADO PORTUGUÊS NOS SANTOS POPULARES","DRAPLVT",7282212,27594.74,13710.01,10282.51,3427.5,"2018-06-01","2020-02-15",null,null,null,"decisoesmar2020@draplvt.gov.pt"]
[null,null,null,null,null,null,null,"MAR-05.02.01-FEAMP-0038","ALIF - ASSOCIAÇÃO DA INDÚSTRIA ALIMENTAR PELO FRIO","Feira Internacional ANUGA 2019 - Colonia - Alemanha ","DRAPLVT",7270516,211736.06,184607.41,83073.350000000006,27691.099999999991,"2018-09-01","2020-01-31",null,null,null,"decisoesmar2020@draplvt.gov.pt"]
[null,null,null,null,null,null,null,"MAR-05.02.01-FEAMP-0041","ALIF - ASSOCIAÇÃO DA INDÚSTRIA ALIMENTAR PELO FRIO","O PEIXE É FIXE  - PARA CONSUMIDORES DE PALMO E MEIO! ","DRAPLVT",7270516,92803.4,92803.4,41761.53,13920.510000000002,"2018-10-22","2020-10-31",null,null,null,"decisoesmar2020@draplvt.gov.pt"]
[null,null,null,null,null,null,null,"MAR-05.02.01-FEAMP-0043","ASSOCIAÇÃO NACIONAL DOS INDUSTRIAIS DE CONSERVAS DE PEIXE","Vamos conservar o que é nosso","DRAPN",8471352,681490.89,681490.89,511118.17,170372.72000000003,"2020-03-01","2020-12-31",null,null,null,"adelaide.inacio@drapnorte.gov.pt"]
[null,null,null,null,null,null,null,"MAR-05.02.01-FEAMP-0044","ALIF - ASSOCIAÇÃO DA INDÚSTRIA ALIMENTAR PELO FRIO"," FEIRAS INTERNACIONAIS SEAFOOD BRUXELAS, SIAL PARIS E CONXEMAR VIGO 2020","DRAPLVT",7270516,691424.33,687167.08,309225.26,103075,"2020-02-01","2021-03-31",null,null,null,"decisoesmar2020@draplvt.gov.pt"]
[null,null,null,null,null,null,null,"MAR-05.02.03-FEAMP-0006","PENWAVE, LDA","PENWave","DRAPLVT",8844657,21600,21600,8100,2700,"2017-05-03","2019-04-30",null,null,null,"decisoesmar2020@draplvt.gov.pt"]
[null,null,null,null,null,null,null,"MAR-05.02.03-FEAMP-0019","GUIMARPEIXE - COMERCIO DE PRODUTOS ALIMENTARES,  S.A.","GUIMARPEIXE - Dsvlto de Nvs Mrcds Externos -  Benelux, FR, CH, GB e BR","DRAPN",7295046,270320,254020,95257.5,31752.5,"2017-07-14","2017-12-31",null,null,null,"adelaide.inacio@drapnorte.gov.pt"]
[null,null,null,null,null,null,null,"MAR-05.02.06-FEAMP-0023","SECRETARIA REGIONAL DO MAR CIÊNCIA E TECNOLOGIA","Conferência Mundial de Salto e Vara","SRMP",8578875,112607.8,84059.96,63044.98,21014.980000000003,"2017-07-14","2020-12-31",null,null,null,"adiantamento.fatura.inv@ifap.pt"]
[null,null,null,null,null,null,null,"MAR-05.02.06-FEAMP-0030","DIREÇÃO REGIONAL DAS PESCAS","I Fórum Internacional Socioecnómico das Pescas","SRMP",7991621,77441.17,57444.88,43083.66,14361.219999999994,"2018-01-14","2020-12-31",null,null,null,"adiantamento.fatura.inv@ifap.pt"]
[null,null,null,null,null,null,null,"MAR-05.02.07-FEAMP-0021","COFACO AÇORES - INDUSTRIA DE CONSERVAS S.A.","Estudo shopper de conservas de peixe","DSPEP",5613781,35500,35500,7987.5,2662.5,"2017-04-27","2018-12-31",null,null,null,"info.mar2020@azores.gov.pt"]
[null,null,null,null,null,null,null,"MAR-05.03.01-FEAMP-0002","Henrique Rodrigues Serra, Lda","Modernização do estabelecimento de processamento de pescado congelado","DRAPC",8845131,363816.57,339720.69,127395.27,42465.08,"2016-08-01","2016-12-31",null,null,null,"diav@drapc.gov.pt"]
[null,null,null,null,null,null,null,"MAR-05.03.01-FEAMP-0006","DOCA MARINHA - SOCIEDADE DE CONGELADOS E PESCADO, LDA","Modernização da Unidade DocaMarinha","DRAPLVT",7536183,1118384.1399999999,1066856.69,400071.49,133357.16000000003,"2014-06-20","2020-01-31",null,null,null,"decisoesmar2020@draplvt.gov.pt"]
[null,null,null,null,null,null,null,"MAR-05.03.01-FEAMP-0007","GELPEIXE-ALIMENTOS CONGELADOS S.A.","Ampliação da Unidade Gelpeixe","DRAPLVT",7149747,5166901.1500000004,5164345.2300000004,1936629.47,645543.15000000014,"2016-06-01","2020-12-31",null,null,null,"decisoesmar2020@draplvt.gov.pt"]
[null,null,null,null,null,null,null,"MAR-05.03.01-FEAMP-0008","Frigosto, Lda.","Ampliação da Unidade Frigosto","DRAPLVT",7182184,3604240.24,3136568.13,1176213.06,392071.01,"2016-07-18","2016-10-07",null,null,null,"decisoesmar2020@draplvt.gov.pt"]
[null,null,null,null,null,null,null,"MAR-05.03.01-FEAMP-0010","MACRO- FRIO - COMÉRCIO INTERNACIONAL DE PRODUTOS ALIMENTARES S.A.","MACRO-FRIO - 3º  Mod. Unid. Produtiva","DRAPN",7329196,2074244.66,2013573.97,755090.25,251696.75,"2016-02-10","2020-03-31",null,null,null,"adelaide.inacio@drapnorte.gov.pt"]
[null,null,null,null,null,null,null,"MAR-05.03.01-FEAMP-0013","Superfish - Produtos Alimentares, S A","Modernização da Unidade Superfish","DRAPLVT",8860881,757298.93,738009.52,276753.59000000003,92251.199999999953,"2016-11-01","2019-03-31",null,null,null,"decisoesmar2020@draplvt.gov.pt"]
[null,null,null,null,null,null,null,"MAR-05.03.01-FEAMP-0014","ALCIDES DOS SANTOS ANTUNES, LDA.","Criação de nova unidade produtiva para processamento produtos pesca aquicultura","DRAPC",7776097,4269277.72,4269277.72,1600979.16,533659.7100000002,"2016-07-18","2016-10-07",null,null,null,"diav@drapc.gov.pt"]
[null,null,null,null,null,null,null,"MAR-05.03.01-FEAMP-0017","SOGUIMA-COMÉRCIO E INDÚSTRIA ALIMENTAR, S.A.","SOGUIMA, S.A  - Modernização da Fábrica","DRAPN",7609021,4499668.68,4498505.33,1686939.5,562313.16999999993,"2016-07-18","2016-10-07",null,null,null,"adelaide.inacio@drapnorte.gov.pt"]
[null,null,null,null,null,null,null,"MAR-05.03.01-FEAMP-0019","COMDALGEL, Lda","Modernização da Unidade Industrial","DRAPC",7309273,1319375.17,1296625.95,486234.74,162078.24,"2017-01-02","2020-02-12",null,null,null,"diav@drapc.gov.pt"]
[null,null,null,null,null,null,null,"MAR-05.03.01-FEAMP-0020","MAR CABO - PRODUTOS CONGELADOS, LDA","MAR-CABO, Lda - Ampliação Unid. Produção","DRAPN",7966975,6251848.4299999997,6111066.6299999999,2291650.04,763883.33000000007,"2016-01-01","2019-12-31",null,null,null,"adelaide.inacio@drapnorte.gov.pt"]
[null,null,null,null,null,null,null,"MAR-05.03.01-FEAMP-0021","BEIRANOVA - INDÚSTRIA DE CONGELADOS SA","Unidade de preparação e transformação de pescado congelado","DRAPC",7183767,4586593.08,3106753.94,1165032.73,388344.24,"2014-04-11","2020-12-31",null,null,null,"diav@drapc.gov.pt"]
[null,null,null,null,null,null,null,"MAR-05.03.01-FEAMP-0025","COFISA-Conservas de Peixe da Figueira,SA","Modernização Fase 1 da Fábrica de Conservas de Peixe na Figueira da Foz","DRAPC",4997784,4820844.01,4820844.01,1807816.51,602605.49999999977,"2016-07-18","2016-10-07",null,null,null,"diav@drapc.gov.pt"]
[null,null,null,null,null,null,null,"MAR-05.03.01-FEAMP-0026","NI.FI.IR.-PESCADOS, SOCIEDADE UNIPESSOAL,LDA","NIFIR - Expanção - Aumento da cap. de conservação de congelados e efic. energ.","DRAPALG",7361712,1648173.39,1207143,452678.64,150892.87,"2016-07-18","2016-10-07",null,null,null,"Mar2020-ap@drapalg.min-agricultura.pt"]
[null,null,null,null,null,null,null,"MAR-05.03.01-FEAMP-0027","LUÍS SILVÉRIO E FILHOS, SA","Nova Unidade Luis Silvério","DRAPLVT",7105482,16067465.140000001,12867189.09,4825196.29,1608398.75,"2015-08-13","2020-01-31",null,null,null,"decisoesmar2020@draplvt.gov.pt"]
[null,null,null,null,null,null,null,"MAR-05.03.01-FEAMP-0028","SOUTH ATLANTIC CAPITAL, S.A.","Conserveira South Atlantic Capital","DRAPLVT",8227776,9782295.8800000008,9492423.3200000003,3559658.76,1186552.9100000001,"2015-07-01","2020-05-11",null,null,null,"decisoesmar2020@draplvt.gov.pt"]
[null,null,null,null,null,null,null,"MAR-05.03.01-FEAMP-0030","FIXE EM CASA, LDA","Unidade Fixe em Casa","DRAPLVT",7588703,496310.64,480929.15,180348.43,60116.149999999994,"2016-06-21","2020-11-01",null,null,null,"decisoesmar2020@draplvt.gov.pt"]
[null,null,null,null,null,null,null,"MAR-05.03.01-FEAMP-0032","CONGELAGOS - TRANSFORMAÇÃO E COMÉRCIO DE PRODUTOS ALIMENTARES SA","CONGELAGOS - Implementação de uma uni. transf. e proces. de pesc. e cefalópodes","DRAPALG",8849063,13458971.83,12999999.99,4875000,1625000,"2015-11-12","2020-07-13",null,null,null,"Mar2020-ap@drapalg.min-agricultura.pt"]
[null,null,null,null,null,null,null,"MAR-05.03.01-FEAMP-0033","ARTESANALPESCA-ORGANIZACAO DE PRODUTORES DE PESCA CRL","Ampliação da Unidade Artesanalpesca","DRAPLVT",4912912,1510231.7,1508606.22,565727.35,188575.78000000003,"2015-12-10","2020-03-05",null,null,null,"decisoesmar2020@draplvt.gov.pt"]
[null,null,null,null,null,null,null,"MAR-05.03.01-FEAMP-0038","FABRICA DE CONSERVAS A POVEIRA, S.A.","A POVEIRA - Otimização Proc. Produtivo","DRAPN",4914114,2633267.2599999998,2519385.59,944769.65,314923.21000000008,"2015-03-01","2020-03-31",null,null,null,"adelaide.inacio@drapnorte.gov.pt"]
[null,null,null,null,null,null,null,"MAR-05.03.01-FEAMP-0040","RAMIREZ & CA (FILHOS) S.A.","RAMIREZ, S.A - Aperfeiçoamento da Nv Unid. Fabril","DRAPN",4911947,2753292.61,2479581.33,929843.05,309947.67999999993,"2014-01-01","2020-11-11",null,null,null,{"$f":"VLOOKUP(K1284,S:T,2,FALSE)","v":"adelaide.inacio@drapnorte.gov.pt"}]
[null,null,null,null,null,null,null,"MAR-05.03.01-FEAMP-0044","LUGRADE-BACALHAU DE COIMBRA, S.A.","Investimento complementar - unidades de Taveira e Ponte de Vilela","DRAPC",7136743,2529844.41,2334737.37,875526.53,291842.16999999993,"2014-01-27","2020-12-31",null,null,null,"diav@drapc.gov.pt"]
[null,null,null,null,null,null,null,"MAR-05.03.01-FEAMP-0045","LITOFISH, LDA","Linha de Ultracongelação rápida e armazenamento de congelados","Estrutura de Apoio Técnico da Autoridade de Gestão do MAR2020",7332836,7118280.3499999996,6428367.1699999999,2410637.7000000002,803545.89999999991,"2016-07-18","2016-10-07",null,null,null,"geral@mar2020.pt"]
[null,null,null,null,null,null,null,"MAR-05.03.01-FEAMP-0049","TRICIA ANN BAGLIO ALKER","Azores Deepwater Crab Claws - Tricia Ann Baglio Alker","DSPEP",8926413,42136.95,12175.68,5935.65,1978.54,"2016-08-03","2019-12-31",null,null,null,"info.mar2020@azores.gov.pt"]
[null,null,null,null,null,null,null,"MAR-05.03.01-FEAMP-0050","EMPRESA FIGUEIRENSE DE PESCA, LDA","Fábrica de farinha de peixe","DRAPC",7066176,1170408.8,1114414.5900000001,417905.49,139301.81000000006,"2017-07-25","2017-10-19",null,null,null,"diav@drapc.gov.pt"]
[null,null,null,null,null,null,null,"MAR-05.03.01-FEAMP-0051","HARDY, Lda","HARDY, Lda - Defumagem de Salmão, Enguia e Truta (II)","DRAPN",8862261,204893.63,151294.03,56735.27,18911.760000000002,"2016-06-10","2020-06-18",null,null,null,"adelaide.inacio@drapnorte.gov.pt"]
[null,null,null,null,null,null,null,"MAR-05.03.01-FEAMP-0052","GENTILSABOR - INDÚSTRIA DE PRODUTOS ALIMENTARES, LDA.","Gentilsabor - Modernização Fábrica","DRAPN",7660484,389079.45,389079.45,145904.79999999999,48634.930000000022,"2017-07-25","2017-10-19",null,null,null,"adelaide.inacio@drapnorte.gov.pt"]
[null,null,null,null,null,null,null,"MAR-05.03.01-FEAMP-0053","GAIVOTAPRATEADA, LDA","Modernização e adaptação das instalações para o processamento de cefalópodes","DRAPC",8847621,821860.86,821735.86,308150.96999999997,102716.97000000003,"2014-01-01","2020-12-31",null,null,null,"diav@drapc.gov.pt"]
[null,null,null,null,null,null,null,"MAR-05.03.01-FEAMP-0054","MAR IBERICA SOC PRODUTOS ALIMENTARES SA","MAR-IBÉRICA, S.A","DRAPN",7096426,1440764.28,1439764.29,539911.64,179970.51,"2018-01-01","2019-12-31",null,null,null,"adelaide.inacio@drapnorte.gov.pt"]
[null,null,null,null,null,null,null,"MAR-05.03.01-FEAMP-0055","FRIPEX-SOCIEDADE DE CONSERVAÇÃO E COMÉRCIO DE PEIXE,LDA.","Fabricação de novo produto, melhoria das condições de laboração e aumento da ef.","Estrutura de Apoio Técnico da Autoridade de Gestão do MAR2020",7072006,479289.41,478225.41,179334.53,59778.179999999993,"2018-12-21","2019-12-31",null,null,null,"geral@mar2020.pt"]
[null,null,null,null,null,null,null,"MAR-05.03.01-FEAMP-0056","CAXAMAR - COMÉRCIO DE BACALHAU, LDA.","Modernização da unidade Caxamar","DRAPLVT",7560394,1147774.1200000001,1142029.1299999999,428260.93,142753.63999999996,"2014-11-26","2020-07-31",null,null,null,"decisoesmar2020@draplvt.gov.pt"]
[null,null,null,null,null,null,null,"MAR-05.03.01-FEAMP-0058","CONSERVEIRA DO ARADE, LDA.","Instalação do estabelecimento industrial de conservas de pescado","DRAPALG",8846173,388515.51,219395.77,82273.440000000002,27424.459999999992,"2015-01-21","2019-12-31",null,null,null,"Mar2020-ap@drapalg.min-agricultura.pt"]
[null,null,null,null,null,null,null,"MAR-05.03.01-FEAMP-0059","TRINCAPEIXE-INDÚSTRIA COMÉRCIO PROD.ALIMENTARES FRESCOS E CONGELADOS,LDA","Trincapeixe, Lda - Nova Unid. Ind. Prep. Pescado","DRAPN",8847884,717522.38,619604.82999999996,232351.83,77450.59,"2017-01-01","2020-03-31",null,null,null,"adelaide.inacio@drapnorte.gov.pt"]
[null,null,null,null,null,null,null,"MAR-05.03.01-FEAMP-0060","FAVORITEVELVET, LDA.","Construção de unidade de produção de transformação de marisco","DRAPLVT",8861636,1332235.6000000001,1224949.78,459356.18,153118.71000000002,"2015-01-01","2020-12-31",null,null,null,"decisoesmar2020@draplvt.gov.pt"]
[null,null,null,null,null,null,null,"MAR-05.03.01-FEAMP-0062","PINHAIS & CA LDA","PINHAIS & Cª, Lda - Ef. Energética","DRAPN",4911963,498305.87,451023.09,169133.67,56377.879999999976,"2017-03-01","2019-12-31",null,null,null,"adelaide.inacio@drapnorte.gov.pt"]
[null,null,null,null,null,null,null,"MAR-05.03.01-FEAMP-0066","COFISA-Conservas de Peixe da Figueira,SA","MODERNIZAÇÃO FASE 2 DA FÁBRICA DE CONSERVAS DE PEIXE DA FIGUEIRA","DRAPC",4997784,4118033.52,2602698.36,976011.9,325337.28999999992,"2017-05-29","2020-12-31",null,null,null,"diav@drapc.gov.pt"]
[null,null,null,null,null,null,null,"MAR-05.03.01-FEAMP-0068","PREFEITOS - Pré-Cozinhados, Lda","PREFEITOS, Lda - Unid. Ind. Pré-Cozinhados","DRAPN",9025833,2198508.4,2067160,775185,258395,"2017-07-25","2017-10-19",null,null,null,"adelaide.inacio@drapnorte.gov.pt"]
[null,null,null,null,null,null,null,"MAR-05.03.01-FEAMP-0069","Jolefilo - Produtos Alimentares, Lda","JOLEFILO, Lda - Unid Ind Pré-Cozinhados","DRAPN",8857832,2232277.12,1837967.83,689237.91,229745.96999999997,"2017-11-01","2020-02-28",null,null,null,"adelaide.inacio@drapnorte.gov.pt"]
[null,null,null,null,null,null,null,"MAR-05.03.01-FEAMP-0074","IRMAOS NORINHO, LDA.","CONSTRUÇÃO E INSTALAÇÃO DE ESTABELECIMENTO DE PREPARAÇÃO E CONGELAÇÃO DE ENGUIAS","DRAPC",7492151,698920.76,396627.76,148735.43,49578.47,"2017-04-02","2020-09-30",null,null,null,"diav@drapc.gov.pt"]
[null,null,null,null,null,null,null,"MAR-05.03.01-FEAMP-0076","FRIQUENTAL - INDUSTRIA E COMÉRCIO ALIMENTAR, LDA","NOVO ESTABELECIMENTO INDUSTRIAL DE CONGELAÇÃO E PREPARAÇÃO DE PESCADO","DRAPC",9016397,3502093.32,2622713.9,983517.73,327839.24,"2016-08-29","2020-12-31",null,null,null,"diav@drapc.gov.pt"]
[null,null,null,null,null,null,null,"MAR-05.03.01-FEAMP-0078","CONSERVEIRA DO SUL, S.A.","Modernização das linhas de transformação de produtos da pesca com a introdução d","DRAPALG",8207273,1233897.28,1232052.28,462019.62,154006.53000000003,"2017-11-02","2020-12-31",null,null,null,"Mar2020-ap@drapalg.min-agricultura.pt"]
[null,null,null,null,null,null,null,"MAR-05.03.01-FEAMP-0079","SOCIEDADE DE PESCAS PELÁGICAS, LDA.","Aumento da capacidade de produção","DRAPALG",8863001,255518.66,195100.08,73162.539999999994,24387.510000000009,"2014-06-12","2021-05-01",null,null,null,"Mar2020-ap@drapalg.min-agricultura.pt"]
[null,null,null,null,null,null,null,"MAR-05.03.01-FEAMP-0080","ABRANCONGELADOS-PRODUTOS ALIMENTARES, LDA","Reengenharia e Ampliação do Estabelecimento Industrial","DRAPLVT",7805466,2228419.94,2011074.47,754152.95,251384.30000000005,"2018-01-01","2020-12-18",null,null,null,"decisoesmar2020@draplvt.gov.pt"]
[null,null,null,null,null,null,null,"MAR-05.03.01-FEAMP-0081","Mundo dos Congelados - Comércio e Industria Produtos Alimentares,Lda","Aumento da capacidade produtiva e diversificação do produto","DRAPLVT",8860672,135354.68,116094.68,43535.51,14511.829999999994,"2017-07-25","2017-10-19",null,null,null,"decisoesmar2020@draplvt.gov.pt"]
[null,null,null,null,null,null,null,"MAR-05.03.01-FEAMP-0083","PDM - TRANSFORMAÇÃO E COMÉRCIO DE PESCADO, LDA.","Edificação de novo estabelecimento industrial processamento pescado Pico","DSPEP",9005507,6751623.0700000003,6751623.0700000003,3291416.26,1097138.7400000002,"2017-10-12","2019-06-28",null,null,null,"info.mar2020@azores.gov.pt"]
[null,null,null,null,null,null,null,"MAR-05.03.01-FEAMP-0085","PESCATUM - CONSERVAS E PESCA S.A.","Investimento na estrutura do edifício, instalações de frio e programa informátic","DSPEP",6410834,1650428.47,1650428.47,804583.88,268194.63,"2019-01-23","2020-12-31",null,null,null,"info.mar2020@azores.gov.pt"]
[null,null,null,null,null,null,null,"MAR-05.03.01-FEAMP-0086","FINISTERRA, S.A.","Finisterra SA - Unidade de Pasteurização: Verticalização da atividade, novos produtos, melhoria na sustentabilidade, eficiência e controlo de produção","DRAPALG",7641614,485811.03,398591.77,149471.93,49823.98000000001,"2018-01-02","2021-01-01",null,null,null,"Mar2020-ap@drapalg.min-agricultura.pt"]
[null,null,null,null,null,null,null,"MAR-05.03.01-FEAMP-0087","FRIJOBEL - INDÚSTRIA E COMÉRCIO ALIMENTAR, SA","Frijobel 2020 - Otimizar e crescer","DRAPC",7314475,2019032.5,2019032.46,757137.17,252379.05999999994,"2018-12-05","2019-02-28",null,null,null,"diav@drapc.gov.pt"]
[null,null,null,null,null,null,null,"MAR-05.03.01-FEAMP-0088","SEISOITOFISH - COMÉRCIO E INDÚSTRIA LDA","MODERNIZAÇÃO E AMPLIAÇÃO DA UNIDADE DE PROCESSAMENTO DE PESCADO CONGELADO COM AUMENTO DE CAPACIDADE","DRAPN",9287325,1134496.72,1126435.04,422413.15,140804.37,"2019-03-01","2020-12-31",null,null,null,"adelaide.inacio@drapnorte.gov.pt"]
[null,null,null,null,null,null,null,"MAR-05.03.01-FEAMP-0089","SOGUIMA-COMÉRCIO E INDÚSTRIA ALIMENTAR, S.A.","Transformação de subprodutos e criação de novos produtos com grande valor acrescentado","DRAPN",7609021,1134496.72,1126435.04,422413.15,140804.37,"2018-01-01","2020-12-31",null,null,null,"adelaide.inacio@drapnorte.gov.pt"]
[null,null,null,null,null,null,null,"MAR-05.03.01-FEAMP-0090","FRIGORÍFICOS DA ERMIDA - COMERCIALIZAÇÃO DE PRODUTOS ALIMENTARES, LDA.","Frigorificos da Ermida - Ampliação e Modernização","DRAPC",9312051,510530.56,505089.55,189408.6,63136.179999999993,"2018-12-01","2021-10-01",null,null,null,"diav@drapc.gov.pt"]
[null,null,null,null,null,null,null,"MAR-05.03.01-FEAMP-0091","GUIMARPEIXE - COMERCIO DE PRODUTOS ALIMENTARES,  S.A.","Expansão do Setor de Transformação e Melhoria dos Processos Produtivos","DRAPN",7295046,971149.19,675043.95,253141.5,84380.479999999981,"2019-03-01","2020-12-31",null,null,null,"adelaide.inacio@drapnorte.gov.pt"]
[null,null,null,null,null,null,null,"MAR-05.03.01-FEAMP-0092","1000MISTÉRIOS, LDA","JOSÉ GOURMET - indústria","DRAPN",9321096,743529.91,630966.9,236612.59,78870.860000000015,"2019-09-01","2021-08-31",null,null,null,"adelaide.inacio@drapnorte.gov.pt"]
[null,null,null,null,null,null,null,"MAR-05.03.01-FEAMP-0093","COELHO & DIAS SA","Projeto de modernização das unidades de Coimbrões e Guimarães","DRAPC",7084522,3550104.04,2666666.66,1000000.01,333333.33000000007,"2019-03-01","2021-04-30",null,null,null,"diav@drapc.gov.pt"]
[null,null,null,null,null,null,null,"MAR-05.03.01-FEAMP-0096","VIRGILIO C. MOREIRA LDA","Capacitação e Diversificação na Internacionalização","DRAPC",7758761,1823327.92,1335784.17,500919.06,166973.02999999997,"2014-01-01","2021-06-02",null,null,null,"diav@drapc.gov.pt"]
[null,null,null,null,null,null,null,"MAR-05.03.01-FEAMP-0097","NIGEL CONGELADORA JOSÉ NICOLAU LDA","Melhorar competitividade industrial e diferenciação no mercado.","DRAPLVT",7103096,1930197.1,1895889.01,710958.39,236986.12,"2018-01-01","2021-08-31",null,null,null,"decisoesmar2020@draplvt.gov.pt"]
[null,null,null,null,null,null,null,"MAR-05.03.01-FEAMP-0098","ESBAL - EMPRESA DE SECAGEM DE BACALHAU, SA","Modernização e ampliação do circuito produtivo - Esbal","DRAPC",9323497,444740.07,403627.13,151360.19,50453.380000000005,"2019-05-01","2021-04-30",null,null,null,"diav@drapc.gov.pt"]
[null,null,null,null,null,null,null,"MAR-05.03.01-FEAMP-0102","FASTER - PRODUTOS ALIMENTARES, LDA","Aumento da Capacidade Produtiva, Melhoria da Eficiência Energética e Reforço das Exportações","DRAPC",7312124,480964.5,314485.34000000003,117932.01,39310.67,"2018-11-01","2021-05-31",null,null,null,"diav@drapc.gov.pt"]
[null,null,null,null,null,null,null,"MAR-05.03.01-FEAMP-0104","MAREDEUS PORTUGAL, UNIPESSOAL LDA","Modernização do estabelecimento industrial de processamento de bacalhau MAREDEUS","DRAPAL",9305004,2350768.4,2342153.4700000002,878307.57,292769.17000000004,"2017-07-31","2020-12-31",null,null,null,0]
[null,null,null,null,null,null,null,"MAR-05.03.01-FEAMP-0105","OCEANIC, LDA","Ampliação do Estabelecimento Industrial e Reforço da capacidade Fisica e Técnica","DRAPAL",8172746,2100966.86,2087466.87,782800.11,260933.32999999996,"2019-03-01","2020-12-31",null,null,null,0]
[null,null,null,null,null,null,null,"MAR-05.03.01-FEAMP-0106","MAROLHÃO - PRODUTOS DA PESCA, LDA","Modernização do estabelecimento industrial de processamento de cefalópodes MAROLHÃO","DRAPALG",4914296,846858.05,799243.05,299716.17,99905.37,"2015-06-27","2019-12-31",null,null,null,"Mar2020-ap@drapalg.min-agricultura.pt"]
[null,null,null,null,null,null,null,"MAR-05.03.01-FEAMP-0107","CONSTANTINOS SA","Novo produto, ambiente, painéis fotovoltaicos, verticalização, inovação tecnológica, racionalidade de fluxos e modernização","DRAPC",7095431,2354274.33,1362348.8,510880.83,170293.57,"2019-03-31","2021-03-31",null,null,null,"diav@drapc.gov.pt"]
[null,null,null,null,null,null,null,"MAR-05.03.01-FEAMP-0108","LITORALFISH PESCADO CONGELADO,SA","Novo produto, eficiência energética painéis fotovoltaicos, verticalização, inovação tecnológica, racionalidade de fluxos e modernização","DRAPAL",8804792,1033818.57,887039.71,332639.90999999997,110879.93000000005,"2019-12-31","2021-12-31",null,null,null,0]
[null,null,null,null,null,null,null,"MAR-05.03.01-FEAMP-0110","GAIVOTAPRATEADA, LDA","MODERNIZAÇÃO DA UNIDADE DE PROCESSAMENTO DE CEFALÓPODES COM AUMENTO DE CAPACIDADE","DRAPC",8847621,501347.5,501347.5,188005.32,62668.429999999993,"2020-08-31","2022-08-31",null,null,null,"diav@drapc.gov.pt"]
[null,null,null,null,null,null,null,"MAR-05.03.01-FEAMP-0111","GIALMAR - PRODUTOS ALIMENTARES, SA","Expansão e modernização da atividade de congelação, transformação e embalamento de pescado","DRAPC",7193866,7076854.0800000001,2937848.49,999896.81,333298.84999999986,"2020-03-01","2021-12-31",null,null,null,"diav@drapc.gov.pt"]
[null,null,null,null,null,null,null,"MAR-05.03.01-FEAMP-0112","LACTIFOZ - PRODUTOS ALIMENTARES, LDA","Ampliação Capacidade Produtiva Estabelecimento Industrial","DRAPC",7290196,575693.85,524465.87,196674.71,65558.22,"2020-03-02","2021-12-31",null,null,null,"diav@drapc.gov.pt"]
[null,null,null,null,null,null,null,"MAR-05.03.01-FEAMP-0113","CONSERVAS PORTUGAL NORTE, LDA","MODERNIZAÇÃO DA UNIDADE DE PRODUÇÃO DE CONSERVAS DE PEIXE COM AUMENTO DE CAPACIDADE","DRAPN",4999067,1765798.5,1645786.5,617169.96,205723.29000000004,"2020-01-01","2022-12-31",null,null,null,"adelaide.inacio@drapnorte.gov.pt"]
[null,null,null,null,null,null,null,"MAR-05.03.01-FEAMP-0115","COPALÂNDIA, UNIPESSOAL, LDA","Instalação de uma indústria para produção de migas de bacalhau","DRAPN",10354757,682163.12,620465.81999999995,232674.69,77558.219999999972,"2020-02-28","2021-12-13",null,null,null,"adelaide.inacio@drapnorte.gov.pt"]
[null,null,null,null,null,null,null,"MAR-05.03.01-FEAMP-0116","SOCIEDADE POR QUOTAS","Akidelmar - Preparação, cozedura e congelação de moluscos e marisco","DRAPLVT",8858762,3838971.38,3089057.38,999927.88,333309.2699999999,"2020-09-01","2022-12-31",null,null,null,"decisoesmar2020@draplvt.gov.pt"]
[null,null,null,null,null,null,null,"MAR-05.03.01-FEAMP-0117","NORTESEA, LDA","Modernização da unidade industrial","DRAPN",8208206,974340.31,744027.89,279010.46999999997,93003.48000000004,"2020-03-01","2023-02-28",null,null,null,"adelaide.inacio@drapnorte.gov.pt"]
[null,null,null,null,null,null,null,"MAR-05.03.01-FEAMP-0118","LUGRADE-BACALHAU DE COIMBRA, S.A.","Aumento da eficiência e melhoria dos processos prodsutivos segurança nas 2 unidades de produção","DRAPC",7136743,358724.12,259622.49,97358.46,32452.799999999988,"2020-02-01","2022-12-31",null,null,null,"diav@drapc.gov.pt"]
[null,null,null,null,null,null,null,"MAR-05.03.01-FEAMP-0119","FREITASMAR - PRODUTOS ALIMENTARES, SA","Modernização Fábrica de Conservas de Peixe","DRAPALG",5922187,575234.85,575234.85,215713.08,71904.350000000006,"2020-01-08","2021-12-31",null,null,null,"Mar2020-ap@drapalg.min-agricultura.pt"]
[null,null,null,null,null,null,null,"MAR-05.03.01-FEAMP-0120","PORTIPESCA - COMÉRCIO GERAL DE PESCADO, LDA","Modernização e automatização do estabelecimento industrial de processamento de pescado PORTIPESCA","DRAPALG",8195985,417021.46,351798.73,131924.53,43974.84,"2019-01-01","2021-12-31",null,null,null,"Mar2020-ap@drapalg.min-agricultura.pt"]
[null,null,null,null,null,null,null,"MAR-05.03.01-FEAMP-0121","WAVES RHAPSODY, LDA","AROMA (Algas Rochas Oceano Mar Atlântico)","DRAPLVT",9313584,141226.75,139677.38,52379.08,17459.630000000005,"2020-03-02","2023-03-01",null,null,null,"decisoesmar2020@draplvt.gov.pt"]
[null,null,null,null,null,null,null,"MAR-05.03.01-FEAMP-0122","FABRICA DE CONSERVAS DA MURTOSA LDA","Projeto de modernização da COMUR","DRAPC",4911901,765849.58,745275.53,279478.38,93159.400000000023,"2019-02-06","2022-02-26",null,null,null,"diav@drapc.gov.pt"]
[null,null,null,null,null,null,null,"MAR-05.03.01-FEAMP-0123","ARTESANALPESCA-ORGANIZACAO DE PRODUTORES DE PESCA CRL","MODERNIZAÇÃO DO PROCESSAMENTO E TRANSFORMAÇÃO DE PESCADO DA ARTESANAL PESCA, CRL","DRAPLVT",4912912,1857224.5,1645768.12,617163.05000000005,205721.01,"2020-03-02","2021-08-31",null,null,null,"decisoesmar2020@draplvt.gov.pt"]
[null,null,null,null,null,null,null,"MAR-05.03.01-FEAMP-0124","CONGELAGOS - TRANSFORMAÇÃO E COMÉRCIO DE PRODUTOS ALIMENTARES SA","Congelagos - Projeto de Expansão da unidade dedicada ao processamento e congelação de pescado e cefalopodes com criação de novos produtos & processos e melhoria das capacidades instaladas","DRAPALG",8849063,1986921.23,1767415.54,662780.88,220926.89,"2020-12-31","2023-12-29",null,null,null,"Mar2020-ap@drapalg.min-agricultura.pt"]
[null,null,null,null,null,null,null,"MAR-05.03.01-FEAMP-0127","LURDES NARCISO-COMÉRCIO PRODUTOS ALIMENTARES-IMPORTAÇÃO EXPORTARÇÃO, LDA","Projeto de Remodelação/ Modernização da Lurdes Narciso","DRAPLVT",6413353,215628.85,171897.08,64461.46,21487.079999999994,"2019-01-01","2020-03-31",null,null,null,"decisoesmar2020@draplvt.gov.pt"]
[null,null,null,null,null,null,null,"MAR-05.03.01-FEAMP-0128","GIALMAR - PRODUTOS ALIMENTARES, SA","Melhorar a segurança, higiene,  saúde e condições de trabalho","Estrutura de Apoio Técnico da Autoridade de Gestão do MAR2020",7193866,59744.02,59744.02,22404.01,7468,"2020-03-18","2020-12-31",null,null,null,"geral@mar2020.pt"]
[null,null,null,null,null,null,null,"MAR-05.03.01-FEAMP-0129","LUÍS SILVÉRIO E FILHOS, SA","SEGURANÇA E SAÚDE SILVÉRIO e FILHOS","DRAPLVT",7105482,59848.800000000003,59112.15,22167.08,7389,"2020-03-18","2020-12-31",null,null,null,"decisoesmar2020@draplvt.gov.pt"]
[null,null,null,null,null,null,null,"MAR-05.03.01-FEAMP-0130","MERCAFISH-ENTERPRISE, LDA","AQUISIÇÃO DE MATERIAIS, EQUIPAMENTOS E SERVIÇOS COM VISTA À MITIGAÇÃO DO CONTÁGIO DO COVID-19","DRAPN",7202875,94387.1,58867.1,22075.17,7358.380000000001,"2020-03-18","2020-12-31",null,null,null,"adelaide.inacio@drapnorte.gov.pt"]
[null,null,null,null,null,null,null,"MAR-05.03.01-FEAMP-0131","CONGELAGOS - TRANSFORMAÇÃO E COMÉRCIO DE PRODUTOS ALIMENTARES SA","Congelagos - COVID-19 Proteção","DRAPALG",8849063,59976.95,58367.49,21887.83,7295.9199999999983,"2020-03-18","2020-12-31",null,null,null,"Mar2020-ap@drapalg.min-agricultura.pt"]
[null,null,null,null,null,null,null,"MAR-05.03.01-FEAMP-0132","VANIBRU - COMERCIO DE PRODUTOS ALIMENTARES, LDA","Apoios Específicos Inerentes ao Surto de COVID-19","DRAPN",9025357,61500,58255.85,21845.95,7281.98,"2020-03-18","2020-12-31",null,null,null,"adelaide.inacio@drapnorte.gov.pt"]
[null,null,null,null,null,null,null,"MAR-05.03.01-FEAMP-0133","ABRANCONGELADOS-PRODUTOS ALIMENTARES, LDA","Capacitação Surto Covid19","DRAPLVT",7805466,85223.32,54729.42,20523.560000000001,6841.16,"2020-04-01","2020-12-31",null,null,null,"decisoesmar2020@draplvt.gov.pt"]
[null,null,null,null,null,null,null,"MAR-05.03.01-FEAMP-0134","FRIQUENTAL - INDUSTRIA E COMÉRCIO ALIMENTAR, LDA","Proteção Covid19","DRAPC",9016397,59026.86,57026.86,21385.08,7128.3499999999985,"2020-03-18","2020-12-31",null,null,null,{"$f":"VLOOKUP(K1348,S:T,2,FALSE)","v":"diav@drapc.gov.pt"}]
[null,null,null,null,null,null,null,"MAR-05.03.01-FEAMP-0136","FABRICA DE CONSERVAS A POVEIRA, S.A.","Implementação de medidas no âmbito da Pandemia causada pela Covid19","DRAPN",4914114,62916.33,60000,22500,7500,"2020-03-18","2020-12-31",null,null,null,"adelaide.inacio@drapnorte.gov.pt"]
[null,null,null,null,null,null,null,"MAR-05.03.01-FEAMP-0137","SOUTH ATLANTIC CAPITAL, S.A.","Apoio COVID-19","DRAPLVT",8227776,21568.14,21566.639999999999,8087.49,2695.83,"2020-03-18","2020-12-31",null,null,null,"decisoesmar2020@draplvt.gov.pt"]
[null,null,null,null,null,null,null,"MAR-05.03.01-FEAMP-0138","SULMARÉ - EMPRESA DE PESCA LDA","Apoio para aquisição equipamentos proteção","DRAPLVT",7161041,57605.94,57605.94,21602.23,7200.7400000000016,"2020-03-18","2020-12-31",null,null,null,"decisoesmar2020@draplvt.gov.pt"]
[null,null,null,null,null,null,null,"MAR-05.03.01-FEAMP-0139","CONSERVEIRA DO SUL, S.A.","Aquisição de equipamentos e materiais  de proteção individual e de desinfeção","DRAPALG",8207273,12035.64,12035.64,4513.37,1504.4499999999998,"2020-04-16","2020-06-30",null,null,null,"Mar2020-ap@drapalg.min-agricultura.pt"]
[null,null,null,null,null,null,null,"MAR-05.03.01-FEAMP-0140","LITOFISH, LDA","Preparação Covid19","DRAPC",7332836,34054.400000000001,32754.400000000001,12282.9,4094.3000000000011,"2020-03-18","2020-12-31",null,null,null,"diav@drapc.gov.pt"]
[null,null,null,null,null,null,null,"MAR-05.03.01-FEAMP-0141","PORTIPESCA - COMÉRCIO GERAL DE PESCADO, LDA","Apoios Específicos Inerentes ao Surto de COVID-19","DRAPALG",8195985,11130.73,9794.27,3672.85,1224.2900000000004,"2020-03-18","2020-12-31",null,null,null,"Mar2020-ap@drapalg.min-agricultura.pt"]
[null,null,null,null,null,null,null,"MAR-05.03.01-FEAMP-0142","FRIJOBEL - INDÚSTRIA E COMÉRCIO ALIMENTAR, SA","Frijobel 2020-prevenir o COVID19","DRAPC",7314475,61262.5,35086.85,13157.59,4385.8600000000006,"2020-03-18","2020-12-31",null,null,null,"diav@drapc.gov.pt"]
[null,null,null,null,null,null,null,"MAR-05.03.01-FEAMP-0143","MAR IBERICA SOC PRODUTOS ALIMENTARES SA","Segurança COVID19","DRAPN",7096426,16988.439999999999,15706.12,5889.81,1963.2699999999995,"2020-03-18","2020-12-31",null,null,null,"adelaide.inacio@drapnorte.gov.pt"]
[null,null,null,null,null,null,null,"MAR-05.03.01-FEAMP-0144","RAMIREZ & CA (FILHOS) S.A.","Programa de proteção contra o codiv-19","DRAPN",4911947,50764.84,50764.84,19036.82,6345.5999999999985,"2020-03-18","2020-05-15",null,null,null,"adelaide.inacio@drapnorte.gov.pt"]
[null,null,null,null,null,null,null,"MAR-05.03.01-FEAMP-0145","VIRGILIO C. MOREIRA LDA","Apoio Investimento Covid19","DRAPC",7758761,58101.72,56101.72,21038.15,7012.7099999999991,"2020-03-18","2020-12-31",null,null,null,"diav@drapc.gov.pt"]
[null,null,null,null,null,null,null,"MAR-05.03.01-FEAMP-0146","FREITASMAR - PRODUTOS ALIMENTARES, SA","Implementação Medidas Controlo Qualidade para COVID-19","DRAPALG",5922187,58055.06,57156.800000000003,21433.81,7144.5999999999985,"2020-04-01","2020-12-31",null,null,null,"Mar2020-ap@drapalg.min-agricultura.pt"]
[null,null,null,null,null,null,null,"MAR-05.03.01-FEAMP-0147","NIGEL CONGELADORA JOSÉ NICOLAU LDA","Investimento para realização do plano de contigência do surto Covid-19 na indústria Alimentar","DRAPLVT",7103096,54316.44,54272.76,20352.310000000001,6784.0799999999981,"2020-03-18","2020-12-31",null,null,null,"decisoesmar2020@draplvt.gov.pt"]
[null,null,null,null,null,null,null,"MAR-05.03.01-FEAMP-0148","DELTAGEL - PRODUTOS ALIMENTARES, SA","Apoio específico inerente ao Surto de COVID-19","DRAPC",7285694,14689.93,14689.93,5508.74,1836.2300000000005,"2020-03-18","2020-12-31",null,null,null,"diav@drapc.gov.pt"]
[null,null,null,null,null,null,null,"MAR-05.03.01-FEAMP-0149","GELPEIXE-ALIMENTOS CONGELADOS S.A.","Minimização do risco de infecção e transmissão COVID-19","DRAPLVT",7149747,44806.05,42869.55,16076.09,5358.6899999999987,"2020-03-18","2020-12-31",null,null,null,"decisoesmar2020@draplvt.gov.pt"]
[null,null,null,null,null,null,null,"MAR-05.03.01-FEAMP-0150","ALGAPLUS - PRODUÇÃO E COMERCIALIZAÇÃO DE ALGAS E SEUS DERIVADOS, LDA","ALGASAFE","DRAPC",7910735,11329.32,9122.98,3421.16,1140.33,"2020-03-18","2020-12-31",null,null,null,"diav@drapc.gov.pt"]
[null,null,null,null,null,null,null,"MAR-05.03.01-FEAMP-0151","OCEANIC, LDA","Reforço equipamentos e materiais de higiene e saude para garantia das condições de trabalho","DRAPAL",8172746,39368.35,32258.35,12096.89,4032.2900000000009,"2020-03-31","2020-12-31",null,null,null,0]
[null,null,null,null,null,null,null,"MAR-05.03.01-FEAMP-0152","MAR CABO - PRODUTOS CONGELADOS, LDA","AQUISIÇÃO DE MATERIAIS, EQUIPAMENTOS E SERVIÇOS COM VISTA À MITIGAÇÃO DO CONTÁGIO DO COVID-19","DRAPN",7966975,59993.53,57973.52,21740.1,7246.6700000000019,"2020-03-18","2020-12-31",null,null,null,"adelaide.inacio@drapnorte.gov.pt"]
[null,null,null,null,null,null,null,"MAR-05.03.01-FEAMP-0153","LUGRADE-BACALHAU DE COIMBRA, S.A.","Adoção de necessárias medidas de prevenção e de proteção contra a Covid-19","DRAPC",7136743,20220.939999999999,8244.8700000000008,3091.86,1030.6199999999994,"2020-03-18","2020-12-31",null,null,null,"diav@drapc.gov.pt"]
[null,null,null,null,null,null,null,"MAR-05.03.01-FEAMP-0154","SEISOITOFISH - COMÉRCIO E INDÚSTRIA LDA","AQUISIÇÃO DE MATERIAIS, EQUIPAMENTOS E SERVIÇOS COM VISTA À MITIGAÇÃO DO CONTÁGIO DO COVID-19","DRAPN",9287325,16810.8,16537.98,6201.74,2067.25,"2020-03-18","2020-12-31",null,null,null,"adelaide.inacio@drapnorte.gov.pt"]
[null,null,null,null,null,null,null,"MAR-05.03.01-FEAMP-0155","CONSERVAS PORTUGAL NORTE, LDA","AQUISIÇÃO DE MATERIAIS, EQUIPAMENTOS E SERVIÇOS COM VISTA À MITIGAÇÃO DO CONTÁGIO DO COVID-19","DRAPN",4999067,41545.83,39966.769999999997,14987.64,4995.7999999999993,"2020-03-18","2020-12-31",null,null,null,"adelaide.inacio@drapnorte.gov.pt"]
[null,null,null,null,null,null,null,"MAR-05.03.01-FEAMP-0156","BRIOSA - CONSERVAS DE PESCADO LDA","AQUISIÇÃO DE MATERIAIS, EQUIPAMENTOS E SERVIÇOS COM VISTA À MITIGAÇÃO DO CONTÁGIO DO COVID-19","DRAPC",4911971,30564.14,23545.37,8829.52,2943.17,"2020-03-18","2020-12-31",null,null,null,"diav@drapc.gov.pt"]
[null,null,null,null,null,null,null,"MAR-05.03.01-FEAMP-0157","MAR LUSITANO - PRODUTOS ALIMENTARES, LDA","Apoio na segurança e higiene inerente ao surto Covid 19","DRAPC",7180204,81768.600000000006,15279.62,5729.88,1909.96,"2020-03-18","2020-12-31",null,null,null,"diav@drapc.gov.pt"]
[null,null,null,null,null,null,null,"MAR-05.03.01-FEAMP-0158","ROCHA & JORGE, LDA","APOIO AO INVESTIMENTO ESPECIFICO INERENTE AO SURTO DE COVID – 19","DRAPLVT",10390737,10224,5849.62,2193.62,731.20000000000027,"2020-03-18","2020-12-31",null,null,null,"decisoesmar2020@draplvt.gov.pt"]
[null,null,null,null,null,null,null,"MAR-05.03.01-FEAMP-0159","LACTIFOZ - TRANSFORMAÇÃO E COMÉRCIO DE PEIXES E MARISCOS, S.A.","Investimento Surto Covid19","DRAPC",7290196,17018.400000000001,12918.4,4844.3999999999996,1614.8000000000002,"2020-03-18","2020-12-31",null,null,null,"diav@drapc.gov.pt"]
[null,null,null,null,null,null,null,"MAR-05.03.01-FEAMP-0161","FABRICA DE CONSERVAS DA MURTOSA LDA","Implementação de medidas no âmbito da Pandemia causada pela Covid19","DRAPC",4911901,19562.59,14160.19,5310.08,1770.0200000000004,"2020-03-18","2020-12-31",null,null,null,"diav@drapc.gov.pt"]
[null,null,null,null,null,null,null,"MAR-05.03.01-FEAMP-0162","GIALMAR - PRODUTOS ALIMENTARES, SA","Implementação de medidas de eficiência energética","DRAPC",7193866,34188.550000000003,29471.97,11051.99,3684,"2020-08-01","2020-12-31",null,null,null,"diav@drapc.gov.pt"]
[null,null,null,null,null,null,null,"MAR-05.03.01-FEAMP-0166","FABRICA DE CONSERVAS DA MURTOSA LDA","Projeto de Eficiência Energética da COMUR","DRAPC",4911901,177732.18,161206.18,60452.32,20150.769999999997,"2020-08-03","2022-08-02",null,null,null,"diav@drapc.gov.pt"]
[null,null,null,null,null,null,null,"MAR-05.03.01-FEAMP-0167","MAR LUSITANO - PRODUTOS ALIMENTARES, LDA","MAR LUSITANO - Melhoria da Eficiência Energética","DRAPC",7180204,360847,357097,112485.58,37495.159999999989,"2020-07-31","2022-10-31",null,null,null,"diav@drapc.gov.pt"]
[null,null,null,null,null,null,null,"MAR-05.03.01-FEAMP-0169","SACAREMA - INDÚSTRIAS ALIMENTARES, LDA","SACAREMA - Melhoria da eficiência energética","DRAPC",7082674,151009.04999999999,151009.04999999999,56628.4,18876.129999999997,"2020-07-31","2021-12-31",null,null,null,"diav@drapc.gov.pt"]
[null,null,null,null,null,null,null,"MAR-05.03.01-FEAMP-0172","EMPRESA FIGUEIRENSE DE PESCA, LDA ","Otimização Energética EFP","DRAPC",7066176,43045,43045,16141.88,5380.6200000000008,"2020-02-14","2020-12-31",null,null,null,"diav@drapc.gov.pt"]
[null,null,null,null,null,null,null,"MAR-05.06.01-FEAMP-0001","PROPEIXE O.P.- COOP.DE PRODUTORES DE PEIXE DO NORTE CRL","Apoio à armazenagem da PROPEIXE","DGRM",4907002,1115049.3600000001,1115049.3600000001,1115049.3600000001,0,"2014-01-01","2018-12-31",null,null,null,"ifferreira@dgrm.mm.gov.pt"]
[null,null,null,null,null,null,null,"MAR-05.06.01-FEAMP-0002","APROPESCA ORGANIZAÇÃO DE PRODUTORES DA PESCA ARTESANAL","Apoio à armazenagem da APROPESCA","DGRM",5169841,20100.37,20100.37,20100.37,0,"2014-01-01","2019-10-31",null,null,null,"ifferreira@dgrm.mm.gov.pt"]
[null,null,null,null,null,null,null,"MAR-05.06.01-FEAMP-0003","COOPERATIVA DE PRODUTORES DE PEIXE DO CENTRO LITORAL CRL","Mecanismo de armazenagem da cavala, sardinha e sarda","DGRM",5628165,33914.720000000001,33914.720000000001,33914.720000000001,0,"2015-01-01","2019-10-31",null,null,null,"ifferreira@dgrm.mm.gov.pt"]
[null,null,null,null,null,null,null,"MAR-05.06.01-FEAMP-0004","VIANAPESCA-O.P.-COOPERATIVA DE PRODUTORES DE PEIXE DE VIANA DO CASTELO","VIANAPESCA - Armazenagem de sardinha, cavala e sarda","DGRM",5168957,29015.79,29015.79,29015.79,0,"2014-01-01","2019-10-31",null,null,null,"ifferreira@dgrm.mm.gov.pt"]
[null,null,null,null,null,null,null,"MAR-06.01.01-FEAMP-0003","DIRECÇÃO-GERAL DE POLÍTICA DO MAR","SEAMIND PLATFORM - Indicadores Socioeconómicos e Ambientais","Estrutura de Apoio Técnico da Autoridade de Gestão do MAR2020",8013252,240000,75371.95,56528.959999999999,18842.989999999998,"2018-02-01","2019-01-05",null,null,null,"geral@mar2020.pt"]
[null,null,null,null,null,null,null,"MAR-06.01.01-FEAMP-0004","INSTITUTO HIDROGRÁFICO","SAGA - SISTEMA DE APOIO À GESTÃO PORTUÁRIA","DGPM",8991296,218999.99,103620,77715,25905,"2018-01-01","2020-12-31",null,null,null,"pomar2020.oi@dgpm.mm.gov.pt; fernanda.rodrigues@dgpm.mm.gov.pt"]
[null,null,null,null,null,null,null,"MAR-06.01.01-FEAMP-0005","DEIMOS ENGENHARIA, SA","SAGA- SISTEMA DE APOIO À GESTÃO PORTUÁRIA","DGPM",9262776,97380,97380,73035,24345,"2018-01-01","2020-12-31",null,null,null,"pomar2020.oi@dgpm.mm.gov.pt; fernanda.rodrigues@dgpm.mm.gov.pt"]
[null,null,null,null,null,null,null,"MAR-06.01.01-FEAMP-0006","MINISTERIO DA DEFESA NACIONAL - MARINHA","SAGA-SISTEMA DE APOIO À GESTÃO PORTUÁRIA","DGPM",5650563,18000,16141.91,12106.43,4035.4799999999996,"2018-01-01","2020-12-31",null,null,null,"pomar2020.oi@dgpm.mm.gov.pt; fernanda.rodrigues@dgpm.mm.gov.pt"]
[null,null,null,null,null,null,null,"MAR-06.01.01-FEAMP-0008","DIRECÇÃO GERAL DE RECURSOS NATURAIS, SEGURANÇA E SERVIÇOS MARÍTIMOS","Definição das capacidades funcionais e tecnológicas para alargamento do Vessel Traffic Service (VTS) às Regiões Autónomas da Madeira e Açores ","DGPM",8171291,175902.68,165927,124445.25,41481.75,"2017-01-01","2021-03-31",null,null,null,"pomar2020.oi@dgpm.mm.gov.pt; fernanda.rodrigues@dgpm.mm.gov.pt"]
[null,null,null,null,null,null,null,"MAR-06.01.01-FEAMP-0009","DIRECÇÃO GERAL DE RECURSOS NATURAIS, SEGURANÇA E SERVIÇOS MARÍTIMOS","CRIAÇÃO DO CENTRO DE COMANDO E CONTROLO INTEGRADO DO MAR - C3IMAR","DGPM",8171291,2689860.8,2689860.8,2017395.6,672465.19999999972,"2017-01-02","2022-12-31",null,null,null,"pomar2020.oi@dgpm.mm.gov.pt; fernanda.rodrigues@dgpm.mm.gov.pt"]
[null,null,null,null,null,null,null,"MAR-06.01.01-FEAMP-0010","DIRECÇÃO-GERAL DE POLÍTICA DO MAR","SEAMInd Platform - Fases 2 e 3","Estrutura de Apoio Técnico da Autoridade de Gestão do MAR2020",8013252,652838,652838,489628.5,163209.5,"2019-07-01","2021-12-31",null,null,null,"geral@mar2020.pt"]
[null,null,null,null,null,null,null,"MAR-06.01.01-FEAMP-0011","DIRECÇÃO GERAL DE RECURSOS NATURAIS, SEGURANÇA E SERVIÇOS MARÍTIMOS","NIPIM@R Shipping Intelligence Network – Portal de Informação Estratégica para o Mar","DGPM",8171291,369000,369000,276750,92250,"2019-06-03","2020-12-31",null,null,null,"pomar2020.oi@dgpm.mm.gov.pt; fernanda.rodrigues@dgpm.mm.gov.pt"]
[null,null,null,null,null,null,null,"MAR-06.01.01-FEAMP-0012","CEIIA - CENTRO DE ENGENHARIA E DESENVOLVIMENTO - ASSOCIAÇÃO","Portal de Informação Estratégica para o Mar OperaçãoP06M01 Execução da Política Marítima… AnúncioMAR20-T3-2019-37 Data de Fecho10-05-2019 às 23:59:59 Investimento ","DGPM",9249683,337497.63,301696.53000000003,226272.4,75424.130000000034,"2019-06-03","2020-06-03",null,null,null,"pomar2020.oi@dgpm.mm.gov.pt; fernanda.rodrigues@dgpm.mm.gov.pt"]
[null,null,null,null,null,null,null,"MAR-06.01.01-FEAMP-0013","INOVAWORKS II, COMMAND AND CONTROL, S.A.","Portal de Informação Estratégica para o Mar OperaçãoP06M01 Execução da Política Marítima AnúncioMAR20-T3-","DGPM",9368685,316658.11,311814.86,233861.15,77953.709999999992,"2019-06-03","2020-06-03",null,null,null,"pomar2020.oi@dgpm.mm.gov.pt; fernanda.rodrigues@dgpm.mm.gov.pt"]
[null,null,null,null,null,null,null,"MAR-06.02.01-FEAMP-0001","DIRECÇÃO GERAL DE RECURSOS NATURAIS, SEGURANÇA E SERVIÇOS MARÍTIMOS","FISH&SHIPS","DGPM",8171291,123250,123250,92437.5,30812.5,"2018-06-01","2022-02-28",null,null,null,"pomar2020.oi@dgpm.mm.gov.pt; fernanda.rodrigues@dgpm.mm.gov.pt"]
[null,null,null,null,null,null,null,"MAR-06.02.01-FEAMP-0002","INSTITUTO PORTUGUÊS DO MAR E DA ATMOSFERA IP","GIDLAM – Gestão de Informação e Dados de Lixo em Ambiente Marinho","DGPM",7956586,549629.93999999994,238249.04,178686.78,59562.260000000009,"2018-01-02","2019-12-31",null,null,null,"pomar2020.oi@dgpm.mm.gov.pt; fernanda.rodrigues@dgpm.mm.gov.pt"]
[null,null,null,null,null,null,null,"MAR-06.02.01-FEAMP-0003","CEIIA - CENTRO DE ENGENHARIA E DESENVOLVIMENTO - ASSOCIAÇÃO","GIDLAM - Gestão de Informação e Dados de Lixo em Ambiente Marinho","DGPM",9249683,313380,302705.84999999998,227029.39,75676.459999999963,"2018-01-02","2019-12-31",null,null,null,"pomar2020.oi@dgpm.mm.gov.pt; fernanda.rodrigues@dgpm.mm.gov.pt"]
[null,null,null,null,null,null,null,"MAR-06.02.01-FEAMP-0004","SECRETARIA REGIONAL DO AMBIENTE E DOS RECURSOS NATURAIS","DEEP-ML – Promoção do conhecimento sobre as quantidades, distribuição espacial e composição do lixo-marinho na costa Sul da Ilha da Madeira, do litoral às grandes profundidades  ","DGPM",5777104,309800,309800,232350,77450,"2019-06-15","2020-12-31",null,null,null,"pomar2020.oi@dgpm.mm.gov.pt; fernanda.rodrigues@dgpm.mm.gov.pt"]
[null,null,null,null,null,null,null,"MAR-06.02.01-FEAMP-0005","CEIIA - CENTRO DE ENGENHARIA E DESENVOLVIMENTO - ASSOCIAÇÃO","EASER – Desenvolvimento de um Veículo Autónomo de Superfície Para Observação da Integridade dos Fundos Marinhos","DGPM",9249683,643141.44999999995,613679.89,460259.92,153419.97000000003,"2018-01-02","2020-12-31",null,null,null,"pomar2020.oi@dgpm.mm.gov.pt; fernanda.rodrigues@dgpm.mm.gov.pt"]